Workbook

Sheet District
Y1: Do Not | AF1: Aberdeen
F2: District Name | G2: ABERDEEN | K2: <- Please select distrtict from this drop-down | X2: <<- Please Select District From Drop Down | Y2: Change | AF2: Brewster
F3: CCDDD | G3: =VLOOKUP(G2,CCDDD!B:C,2,0) -> 14005 | H3: 2024-2025 | J3: 2022-23 | K3: 2021-22 | M3: 2020-21 | O3: 2011-12 | Q3: 2010-11 | S3: 2009-10 | U3: 2008-09 | W3: 2007-08 | AF3: Bridgeport
V4: %% | AF4: Burlington
H5: Prelim 2024-2025 | I5: % of PY | J5: Final 23-24 | K5: Final 2021-22 | L5: % of PY | M5: Final 2020-21 | O5: Prelim 2011-12 | P5: % of PY | Q5: Final 2010-11 | R5: % of PY | S5: Final 2009-10 | T5: % of PY | U5: Final 2008-09 | V5: of Prior Year | W5: 2007-08 | AF5: Cascade
F6: Regular Allocation | AF6: Cashmere
B7: 2 | F7: K-12 Migrant Students | G7: Average Number | H7: =IFERROR(VLOOKUP($G$3,'2024-25 Final'!$B$19:$AA$156,4,0),0) -> 128 | I7: =H7/J7 -> 1.122807018 | J7: =IFERROR(VLOOKUP($G$3,'2023-24 Final'!$B$19:$Z$156,4,0),0) -> 114 | K7: 338 | L7: =IFERROR(K7/M7-1,0) -> 0.1304347826 | M7: 299 | O7: =VLOOKUP($G$2,#REF!,$B7,FALSE) ->  | P7: =IF(Q7=0,0,O7/Q7) ->  | Q7: =VLOOKUP($G$2,#REF!,$B7,FALSE) ->  | R7: =IF(S7>0,Q7/S7,"-") ->  | S7: =VLOOKUP($G$2,#REF!,$B7,FALSE) ->  | T7: =IF(U7>0,S7/U7,"-") ->  | U7: =VLOOKUP($G$2,#REF!,$B7,FALSE) ->  | V7: =IF(W7>0,U7/W7,"-") ->  | W7: =VLOOKUP($G$2,#REF!,$B7,FALSE) ->  | Y7: 1 | Z7: 3 | AF7: Centralia
B8: 3 | G8: Regular Dollars | H8: =IFERROR(VLOOKUP($G$3,'2024-25 Final'!$B$19:$AA$156,5,0),0) -> 58300 | I8: 1.285330041 | J8: =IFERROR(VLOOKUP($G$3,'2023-24 Final'!$B$19:$Z$156,5,0),0) -> 45358 | K8: 159039 | L8: 0.3281029487 | M8: 119749 | O8: =VLOOKUP($G$2,#REF!,$B8,FALSE) ->  | Q8: =VLOOKUP($G$2,#REF!,$B8,FALSE) ->  | R8: =IF(S8>0,Q8/S8,"-") ->  | S8: =VLOOKUP($G$2,#REF!,$B8,FALSE) ->  | T8: =IF(U8>0,S8/U8,"-") ->  | U8: =VLOOKUP($G$2,#REF!,$B8,FALSE) ->  | W8: =VLOOKUP($G$2,#REF!,$B8,FALSE) ->  | Y8: 2 | Z8: 3 | AF8: College Place
B9: 4 | F9: Needs Support | G9: Average Number | H9: =IFERROR(VLOOKUP($G$3,'2024-25 Final'!$B$19:$AA$156,6,0),0) -> 37 | I9: 0.9736842105 | J9: =IFERROR(VLOOKUP($G$3,'2023-24 Final'!$B$19:$Z$156,6,0),0) -> 38 | K9: 59 | L9: -0.01666666667 | M9: 60 | O9: =VLOOKUP($G$2,#REF!,$B9,FALSE) ->  | P9: =IF(Q9=0,0,O9/Q9) ->  | Q9: =VLOOKUP($G$2,#REF!,$B9,FALSE) ->  | S9: =VLOOKUP($G$2,#REF!,$B9,FALSE) ->  | U9: =VLOOKUP($G$2,#REF!,$B9,FALSE) ->  | W9: =VLOOKUP($G$2,#REF!,$B9,FALSE) ->  | Y9: 1 | Z9: 4 | AF9: Columbia
B10: 5 | G10: Regular Dollars | H10: =IFERROR(VLOOKUP($G$3,'2024-25 Final'!$B$19:$AA$156,7,0),0) -> 4213 | I10: 1.114550265 | J10: =IFERROR(VLOOKUP($G$3,'2023-24 Final'!$B$19:$Z$156,7,0),0) -> 3780 | K10: 6940 | L10: 0.1553187947 | M10: 6007 | O10: =VLOOKUP($G$2,#REF!,$B10,FALSE) ->  | P10: =IF(Q10=0,0,O10/Q10) ->  | Q10: =VLOOKUP($G$2,#REF!,$B10,FALSE) ->  | S10: =VLOOKUP($G$2,#REF!,$B10,FALSE) ->  | U10: =VLOOKUP($G$2,#REF!,$B10,FALSE) ->  | W10: =VLOOKUP($G$2,#REF!,$B10,FALSE) ->  | Y10: 2 | Z10: 4 | AF10: Conway
B11: 6 | F11: Priority Interruption | G11: Priority Number | H11: =IFERROR(VLOOKUP($G$3,'2024-25 Final'!$B$19:$AA$156,8,0),0) -> 59 | I11: 1.017241379 | J11: =IFERROR(VLOOKUP($G$3,'2023-24 Final'!$B$19:$Z$156,8,0),0) -> 58 | K11: 108 | L11: 0.1368421053 | M11: 95 | O11: =VLOOKUP($G$2,#REF!,$B11,FALSE) ->  | Q11: =VLOOKUP($G$2,#REF!,$B11,FALSE) ->  | S11: =VLOOKUP($G$2,#REF!,$B11,FALSE) ->  | U11: =VLOOKUP($G$2,#REF!,$B11,FALSE) ->  | W11: =VLOOKUP($G$2,#REF!,$B11,FALSE) ->  | Y11: 1 | Z11: 5 | AF11: East Valley
B12: 7 | G12: Priority Dollars | H12: =IFERROR(VLOOKUP($G$3,'2024-25 Final'!$B$19:$AA$156,9,0),0) -> 26873 | I12: 1.164492785 | J12: =IFERROR(VLOOKUP($G$3,'2023-24 Final'!$B$19:$Z$156,9,0),0) -> 23077 | K12: 50817 | L12: 0.335637501 | M12: 38047 | O12: =VLOOKUP($G$2,#REF!,$B12,FALSE) ->  | Q12: =VLOOKUP($G$2,#REF!,$B12,FALSE) ->  | S12: =VLOOKUP($G$2,#REF!,$B12,FALSE) ->  | U12: =VLOOKUP($G$2,#REF!,$B12,FALSE) ->  | W12: =VLOOKUP($G$2,#REF!,$B12,FALSE) ->  | Y12: 3 | Z12: 5 | AF12: Eastmont
B13: 8 | C13: Grades 1-5 | F13: Top 1/4 | G13: Attendance | H13: 78867 | I13: 1 | J13: 78867 | L13: =K13/M13-1 ->  | Q13: =VLOOKUP($G$2,#REF!,$B13,FALSE) ->  | S13: =VLOOKUP($G$2,#REF!,$B13,FALSE) ->  | U13: =VLOOKUP($G$2,#REF!,$B13,FALSE) ->  | W13: =VLOOKUP($G$2,#REF!,$B13,FALSE) ->  | Y13: 1 | Z13: 6 | AF13: Ellensburg
B14: 9 | G14: Dollars | H14: 78867 | I14: 1 | J14: 78867 | Q14: =VLOOKUP($G$2,#REF!,$B14,FALSE) ->  | S14: =VLOOKUP($G$2,#REF!,$B14,FALSE) ->  | U14: =VLOOKUP($G$2,#REF!,$B14,FALSE) ->  | W14: =VLOOKUP($G$2,#REF!,$B14,FALSE) ->  | Y14: 4 | Z14: 6 | AF14: Entiat
B15: 10 | F15: middle 2/4 | G15: Attendance | H15: 78867 | I15: 1 | J15: 78867 | Q15: =VLOOKUP($G$2,#REF!,$B15,FALSE) ->  | S15: =VLOOKUP($G$2,#REF!,$B15,FALSE) ->  | U15: =VLOOKUP($G$2,#REF!,$B15,FALSE) ->  | W15: =VLOOKUP($G$2,#REF!,$B15,FALSE) ->  | Y15: 1 | Z15: 7 | AF15: Ephrata
B16: 11 | G16: Dollars | H16: 78867 | I16: 1 | J16: 78867 | Q16: =VLOOKUP($G$2,#REF!,$B16,FALSE) ->  | S16: =VLOOKUP($G$2,#REF!,$B16,FALSE) ->  | U16: =VLOOKUP($G$2,#REF!,$B16,FALSE) ->  | W16: =VLOOKUP($G$2,#REF!,$B16,FALSE) ->  | Y16: 4 | Z16: 7 | AF16: Ferndale
B17: 12 | C17: Grades 6-8 | F17: Top 1/4 | G17: Attendance | H17: 78867 | I17: 1 | J17: 78867 | Q17: =VLOOKUP($G$2,#REF!,$B17,FALSE) ->  | S17: =VLOOKUP($G$2,#REF!,$B17,FALSE) ->  | U17: =VLOOKUP($G$2,#REF!,$B17,FALSE) ->  | W17: =VLOOKUP($G$2,#REF!,$B17,FALSE) ->  | Y17: 1 | Z17: 8 | AF17: Finley
B18: 13 | G18: Dollars | H18: 78867 | I18: 1 | J18: 78867 | Q18: =VLOOKUP($G$2,#REF!,$B18,FALSE) ->  | S18: =VLOOKUP($G$2,#REF!,$B18,FALSE) ->  | U18: =VLOOKUP($G$2,#REF!,$B18,FALSE) ->  | W18: =VLOOKUP($G$2,#REF!,$B18,FALSE) ->  | Y18: 4 | Z18: 8 | AF18: Goldendale
B19: 14 | F19: middle 2/4 | G19: Attendance | H19: 78867 | I19: 1 | J19: 78867 | Q19: =VLOOKUP($G$2,#REF!,$B19,FALSE) ->  | S19: =VLOOKUP($G$2,#REF!,$B19,FALSE) ->  | U19: =VLOOKUP($G$2,#REF!,$B19,FALSE) ->  | W19: =VLOOKUP($G$2,#REF!,$B19,FALSE) ->  | Y19: 1 | Z19: 9 | AF19: Grandview
B20: 15 | G20: Dollars | H20: 78867 | I20: 1 | J20: 78867 | Q20: =VLOOKUP($G$2,#REF!,$B20,FALSE) ->  | S20: =VLOOKUP($G$2,#REF!,$B20,FALSE) ->  | U20: =VLOOKUP($G$2,#REF!,$B20,FALSE) ->  | W20: =VLOOKUP($G$2,#REF!,$B20,FALSE) ->  | Y20: 4 | Z20: 9 | AF20: Granger
B21: 16 | C21: Grades 9-12 | F21: Top 1/4 | G21: Attendance | H21: 78867 | I21: 1 | J21: 78867 | Q21: =VLOOKUP($G$2,#REF!,$B21,FALSE) ->  | S21: =VLOOKUP($G$2,#REF!,$B21,FALSE) ->  | U21: =VLOOKUP($G$2,#REF!,$B21,FALSE) ->  | W21: =VLOOKUP($G$2,#REF!,$B21,FALSE) ->  | Y21: 1 | Z21: 10 | AF21: Highland
B22: 17 | G22: Dollars | H22: 78867 | I22: 1 | J22: 78867 | Q22: =VLOOKUP($G$2,#REF!,$B22,FALSE) ->  | S22: =VLOOKUP($G$2,#REF!,$B22,FALSE) ->  | U22: =VLOOKUP($G$2,#REF!,$B22,FALSE) ->  | W22: =VLOOKUP($G$2,#REF!,$B22,FALSE) ->  | Y22: 4 | Z22: 10 | AF22: Hoquiam
B23: 18 | F23: middle 2/4 | G23: Attendance | H23: 78867 | I23: 1 | J23: 78867 | Q23: =VLOOKUP($G$2,#REF!,$B23,FALSE) ->  | S23: =VLOOKUP($G$2,#REF!,$B23,FALSE) ->  | U23: =VLOOKUP($G$2,#REF!,$B23,FALSE) ->  | W23: =VLOOKUP($G$2,#REF!,$B23,FALSE) ->  | Y23: 1 | Z23: 11 | AF23: Kennewick
B24: 19 | G24: Dollars | H24: 78867 | I24: 1 | J24: 78867 | Q24: =VLOOKUP($G$2,#REF!,$B24,FALSE) ->  | S24: =VLOOKUP($G$2,#REF!,$B24,FALSE) ->  | U24: =VLOOKUP($G$2,#REF!,$B24,FALSE) ->  | W24: =VLOOKUP($G$2,#REF!,$B24,FALSE) ->  | Y24: 4 | Z24: 11 | AF24: Kiona Benton
B26: 20 | G26: Subtotal Dollars | H26: =IFERROR(VLOOKUP($G$3,'2024-25 Final'!$B$19:$AA$156,10,0),0) -> 89386 | I26: =H26/J26 -> 1.237776085 | J26: =IFERROR(VLOOKUP($G$3,'2023-24 Final'!$B$19:$Z$156,10,0),0) -> 72215 | K26: 216796 | L26: =IFERROR(K26/M26-1,0) -> 0.3235166633 | M26: 163803 | O26: =VLOOKUP($G$2,#REF!,8,FALSE) ->  | Q26: =VLOOKUP($G$2,#REF!,$B26,FALSE) ->  | S26: =VLOOKUP($G$2,#REF!,$B26,FALSE) ->  | U26: =VLOOKUP($G$2,#REF!,$B26,FALSE) ->  | W26: =VLOOKUP($G$2,#REF!,$B26,FALSE) ->  | AF26: La Conner
B28: 21 | F28: Other Fund Factor | H28: =IFERROR(VLOOKUP($G$3,'2024-25 Final'!$B$19:$AA$156,11,0),0) -> 0.95 | J28: =IFERROR(VLOOKUP($G$3,'2023-24 Final'!$B$19:$Z$156,11,0),0) -> 0.85 | K28: 0.95 | L28: =IFERROR(K28/M28-1,0) -> 0 | M28: 0.95 | O28: N/A | Q28: =VLOOKUP($G$2,#REF!,$B28,FALSE) ->  | S28: =VLOOKUP($G$2,#REF!,$B28,FALSE) ->  | U28: =VLOOKUP($G$2,#REF!,$B28,FALSE) ->  | W28: =VLOOKUP($G$2,#REF!,$B28,FALSE) ->  | Y28: 1 | Z28: 12 | AF28: Lake Chelan
B29: 22 | F29: Rural Factor | H29: =IFERROR(VLOOKUP($G$3,'2024-25 Final'!$B$19:$AA$156,13,0),0) -> 1.1 | J29: =IFERROR(VLOOKUP($G$3,'2023-24 Final'!$B$19:$Z$156,13,0),0) -> 1.1 | K29: 1 | L29: =IFERROR(K29/M29-1,0) -> 0 | M29: 1 | Q29: =VLOOKUP($G$2,#REF!,$B29,FALSE) ->  | S29: =VLOOKUP($G$2,#REF!,$B29,FALSE) ->  | U29: =VLOOKUP($G$2,#REF!,$B29,FALSE) ->  | W29: =VLOOKUP($G$2,#REF!,$B29,FALSE) ->  | Y29: 2 | Z29: 12 | AF29: Lake Quinault
B30: 23 | G30: Total Allocated Amount | H30: =IFERROR(VLOOKUP($G$3,'2024-25 Final'!$B$19:$AA$156,18,0),0) -> 93409 | I30: =H30/J30 -> 1.383406644 | J30: =IFERROR(VLOOKUP($G$3,'2023-24 Final'!$B$19:$Z$156,18,0),0) -> 67521 | K30: 205956 | L30: =IFERROR(K30/M30-1,0) -> 0.3235141023 | M30: 155613 | O30: =VLOOKUP($G$2,#REF!,9,FALSE) ->  | P30: =IF(Q30=0,0,O30/Q30) ->  | Q30: =VLOOKUP($G$2,#REF!,$B30,FALSE) ->  | S30: =VLOOKUP($G$2,#REF!,$B30,FALSE) ->  | U30: =VLOOKUP($G$2,#REF!,$B30,FALSE) ->  | W30: =VLOOKUP($G$2,#REF!,$B30,FALSE) ->  | Y30: 25 | AF30: Lind
O31: =IF(VLOOKUP($G$3,#REF!,15,FALSE)="Y","Not participating","") ->  | Q31: =IF(VLOOKUP($G$3,#REF!,29,FALSE)="Y","Not participating","") ->  | AF31: Lynden
F32: Summer Allocation | AF32: Mabton
F33: Allocation Factors | G33: Total Student | M33: 299 | Q33: =IF(ISNA(VLOOKUP($G$2,#REF!,Y33,FALSE)),0,VLOOKUP($G$2,#REF!,Y33,FALSE)) ->  | S33: =IF(ISNA(VLOOKUP($G$2,#REF!,AA33,FALSE)),0,VLOOKUP($G$2,#REF!,AA33,FALSE)) ->  | U33: =IF(ISNA(VLOOKUP($G$2,#REF!,$Y$33,FALSE)),0,VLOOKUP($G$2,#REF!,$Y$33,FALSE)) ->  | W33: =IF(ISNA(VLOOKUP($G$2,#REF!,AA33,FALSE)),0,VLOOKUP($G$2,#REF!,AA33,FALSE)) ->  | Y33: 2 | AA33: 2 | AF33: Manson
G34: Needs Service | M34: 60 | Q34: =IF(ISNA(VLOOKUP($G$2,#REF!,$AA$34,FALSE)),0,VLOOKUP($G$2,#REF!,$AA$34,FALSE)) ->  | S34: =IF(ISNA(VLOOKUP($G$2,#REF!,$AA$34,FALSE)),0,VLOOKUP($G$2,#REF!,$AA$34,FALSE)) ->  | U34: =IF(ISNA(VLOOKUP($G$2,#REF!,$Y$34,FALSE)),0,VLOOKUP($G$2,#REF!,$Y$34,FALSE)) ->  | W34: =IF(ISNA(VLOOKUP($G$2,#REF!,AA34,FALSE)),0,VLOOKUP($G$2,#REF!,AA34,FALSE)) ->  | Y34: 3 | AA34: 3 | AF34: Monroe
G35: Priority | M35: 95 | Q35: =IF(ISNA(VLOOKUP($G$2,#REF!,$AA$35,FALSE)),0,VLOOKUP($G$2,#REF!,$AA$35,FALSE)) ->  | S35: =IF(ISNA(VLOOKUP($G$2,#REF!,$AA$35,FALSE)),0,VLOOKUP($G$2,#REF!,$AA$35,FALSE)) ->  | U35: =IF(ISNA(VLOOKUP($G$2,#REF!,$Y$35,FALSE)),0,VLOOKUP($G$2,#REF!,$Y$35,FALSE)) ->  | W35: =IF(ISNA(VLOOKUP($G$2,#REF!,AA35,FALSE)),0,VLOOKUP($G$2,#REF!,AA35,FALSE)) ->  | Y35: 4 | AA35: 4 | AF35: Moses Lake
F36: Dollars | M36: 21049 | Q36: =IF(ISNA(VLOOKUP($G$2,#REF!,$AA$36,FALSE)),0,VLOOKUP($G$2,#REF!,$AA$36,FALSE)) ->  | S36: =IF(ISNA(VLOOKUP($G$2,#REF!,$AA$36,FALSE)),0,VLOOKUP($G$2,#REF!,$AA$36,FALSE)) ->  | U36: =IF(ISNA(VLOOKUP($G$2,#REF!,$Y$36,FALSE)),0,VLOOKUP($G$2,#REF!,$Y$36,FALSE)) ->  | W36: =IF(ISNA(VLOOKUP($G$2,#REF!,AA36,FALSE)),0,VLOOKUP($G$2,#REF!,AA36,FALSE)) ->  | Y36: 5 | AA36: 5 | AF36: Mossyrock
Q37: =IF(ISNA(VLOOKUP($G$2,#REF!,$AA$37,FALSE)),0,VLOOKUP($G$2,#REF!,$AA$37,FALSE)) ->  | S37: =IF(ISNA(VLOOKUP($G$2,#REF!,$AA$37,FALSE)),0,VLOOKUP($G$2,#REF!,$AA$37,FALSE)) ->  | U37: =IF(ISNA(VLOOKUP($G$2,#REF!,$Y$37,FALSE)),0,VLOOKUP($G$2,#REF!,$Y$37,FALSE)) ->  | W37: =IF(ISNA(VLOOKUP($G$2,#REF!,AA37,FALSE)),0,VLOOKUP($G$2,#REF!,AA37,FALSE)) ->  | Y37: 6 | AA37: 6 | AF37: Mount Vernon
F38: SY 21-22 Health Support Grant | H38: =IFERROR(VLOOKUP($G$3,'2024-25 Final'!$B$19:$AA$156,24,0),0) -> 2500 | J38: =IFERROR(VLOOKUP($G$3,#REF!,24,0),0) -> 0 | K38: 2500 | Q38: =IF(ISNA(VLOOKUP($G$2,#REF!,$AA$38,FALSE)),0,VLOOKUP($G$2,#REF!,$AA$38,FALSE)) ->  | S38: =IF(ISNA(VLOOKUP($G$2,#REF!,$AA$38,FALSE)),0,VLOOKUP($G$2,#REF!,$AA$38,FALSE)) ->  | U38: =IF(ISNA(VLOOKUP($G$2,#REF!,$Y$38,FALSE)),0,VLOOKUP($G$2,#REF!,$Y$38,FALSE)) ->  | W38: =IF(ISNA(VLOOKUP($G$2,#REF!,AA38,FALSE)),0,VLOOKUP($G$2,#REF!,AA38,FALSE)) ->  | Y38: 7 | AA38: 7 | AF38: Mt Adams
G39: Total Allocated Amount | H39: =H38+H30 -> 95909 | I39: =H39/J39 -> 1.420432162 | J39: =J38+J30 -> 67521 | K39: =K38+K30 -> 208456 | Q39: =IF(ISNA(VLOOKUP($G$2,#REF!,$AA$39,FALSE)),0,VLOOKUP($G$2,#REF!,$AA$39,FALSE)) ->  | S39: =IF(ISNA(VLOOKUP($G$2,#REF!,$AA$39,FALSE)),0,VLOOKUP($G$2,#REF!,$AA$39,FALSE)) ->  | U39: =IF(ISNA(VLOOKUP($G$2,#REF!,$Y$39,FALSE)),0,VLOOKUP($G$2,#REF!,$Y$39,FALSE)) ->  | V39: =IF(W39>0,U39/W39,"-") ->  | W39: =IF(ISNA(VLOOKUP($G$2,#REF!,AA39,FALSE)),0,VLOOKUP($G$2,#REF!,AA39,FALSE)) ->  | Y39: 8 | AA39: 8 | AF39: Naches
AF40: Naselle-Grays River
AF41: Nooksack Valley
AF42: North Franklin
AF43: Ocean Beach
AF44: Ocosta
AF45: Okanogan
AF46: Omak
AF47: Orondo
AF48: Oroville
AF49: Othello
AF50: Palisades
AF51: Pasco
AF52: Pateros
AF53: Paterson
AF54: Prosser
AF55: Quillayute Valley
AF56: Quincy
AF57: Rochester
AF58: Roosevelt
AF59: Royal City
AF60: Seattle
AF61: Sedro Woolley
AF62: Shelton
AF63: Soap Lake
AF64: South Bend
AF65: Sunnyside
AF66: Tacoma
AF67: Tonasket
AF68: Toppenish
AF69: Touchet
AF70: Union Gap
AF71: Vancouver
AF72: Wahkiakum
AF73: Wahluke
AF74: Walla Walla
AF75: Wapato
AF76: Warden
AF77: Waterville
AF78: Wenatchee
AF79: West Valley
AF80: White Salmon
AF81: Winlock
AF82: Yakima
AF83: Zillah

Sheet 2024-25 Final (hidden)
J1: From Assumptions Page:
D2: Constant Dollar Multipliers - Do Not Change Here | J2: Target Amounts | O2: =Assumptions!C24 -> 22016123
D3: 0 | F3: 2.036969198e+66 | G3: 455.4713094 | H3: Use CTRL K | J3: Actual Amounts | O3: =O18 -> 22016123
J4: Difference | O4: =O3-O2 -> 0
J6: 22016123
H7: Put total here | J7: =Assumptions!C24 -> 22016123
J10: Go to H9 & Control K to set dollar amount
E14: Migrant Students | V14: Accepting Funding? | X14: HOLD HARMLESS
D15: =G3 -> 455.4713094 | E15: K-12 | G15: Needs Support | I15: Priority Interuption | S15: =S18 -> 22016123
C16: CCDDD | D16: District | E16: Ave. number | F16: Regular Dollars | G16: Ave. number | H16: Regular Dollars | I16: Priority Number | J16: Priority Dollars | K16: Subtotal | L16: Other Funds Factor | M16: Subtotal 2 | N16: Add'l Rural Factor | O16: Total Allocated Amount | Q16: MOE | R16: MOE Red. | S16: Subtotal After MOE | V16: Y for yes, N for no (reallocates money) | X16: Override funding? Y for yes, otherwise blank. | Y16: Health Support Grant | Z16: Behavioral Health Supports | AA16: Total
E17: 10 | F17: =F18/E18 -> 455.471316 | G17: 0.25 | H17: =H18/G18 -> 116.1096342 | I17: 1 | J17: =J18/I18 -> 459.29408 | N17: 0.1 | O17: 124
A18: 0 | C18: 99999 | D18: State Total | E18: =SUMIF(E19:E164,">-10") -> 30470 | F18: =SUM(F19:F164) -> 13878211 | G18: =SUMIF(G19:G164,">=10") -> 10006 | H18: =SUM(H19:H164) -> 1161793 | I18: =SUMIF(I19:I164,">=10") -> 15608 | J18: =SUM(J19:J164) -> 7168662 | K18: =SUM(K19:K164) -> 22208666 | M18: =SUM(M19:M164) -> 23328595 | O18: =SUM(O19:O164) -> 22016123 | R18: =SUM(R19:R152) -> 0 | S18: =SUM(S19:S164) -> 22016123 | T18: Previous Year Final Allocations | U18: Allocation Difference | W18: Consortia | Y18: =SUM(Y19:Y164) -> 202000 | Z18: =SUM(Z19:Z164) -> 320000 | AA18: =SUM(AA19:AA164) -> 22147811
A19: 1 | B19: 14005 | D19: ABERDEEN | E19: =IFERROR(VLOOKUP(B19,Enrollment!$A$2:$G$147,5,0),0) -> 128 | F19: =IF(E19>=10,ROUND(E19*$G$3,0),0) -> 58300 | G19: =IFERROR(VLOOKUP(B19,Enrollment!$A$2:$G$147,6,0),0) -> 37 | H19: =IF(E19>=$E$17,ROUND(G19*$G$3*$G$17,0),0) -> 4213 | I19: =IFERROR(VLOOKUP(B19,Enrollment!$A$2:$G$147,7,0),0) -> 59 | J19: =IF(E19>=$E$17,ROUND(I19*$G$3*$I$17,0),0) -> 26873 | K19: =+F19+H19+J19 -> 89386 | L19: =IF(E19>$E$17,_xlfn.IFNA(VLOOKUP(B19,'other funds ftr 2023'!A:I,9,FALSE),0),1) -> 0.95 | M19: =IF(L19=0,K19,ROUND(K19*L19,0)) -> 84917 | N19: =1+IF(ISNA(VLOOKUP(B19,'Rural and Low Income 24-25'!$A:$B,2,FALSE)),0,$N$17) -> 1.1 | O19: =IF(V19="y",ROUND(M19*N19,0),0) -> 93409 | R19: =ROUND(IF(Q19>0,-(0.9-Q19)*O19,0),0) -> 0 | S19: =O19+R19 -> 93409 | T19: =IFERROR(VLOOKUP(B19,'2023-24 Final'!$B$19:$S$156,18,FALSE),0) -> 67521 | U19: =S19-T19 -> 25888 | V19: y | Y19: =IF(V19="Y",IF(E19<=99,1500,IF(AND(E19>=100,E19<=399),2500,4000)),0) -> 2500 | AA19: =IF(W19=1, 0, Y19+S19+Z19) -> 95909
A20: 2 | B20: 29103 | D20: ANACORTES | E20: =IFERROR(VLOOKUP(B20,Enrollment!$A$2:$G$147,5,0),0) -> 16 | F20: =IF(E20>=10,ROUND(E20*$G$3,0),0) -> 7288 | G20: =IFERROR(VLOOKUP(B20,Enrollment!$A$2:$G$147,6,0),0) -> 2 | H20: =IF(E20>=$E$17,ROUND(G20*$G$3*$G$17,0),0) -> 228 | I20: =IFERROR(VLOOKUP(B20,Enrollment!$A$2:$G$147,7,0),0) -> 11 | J20: =IF(E20>=$E$17,ROUND(I20*$G$3*$I$17,0),0) -> 5010 | K20: 12526 | L20: =IF(E20>$E$17,_xlfn.IFNA(VLOOKUP(B20,'other funds ftr 2023'!A:I,9,FALSE),0),1) -> 0.95 | M20: 11900 | N20: =1+IF(ISNA(VLOOKUP(B20,'Rural and Low Income 24-25'!$A:$B,2,FALSE)),0,$N$17) -> 1 | O20: 0 | R20: 0 | S20: 0 | T20: =IFERROR(VLOOKUP(B20,'2023-24 Final'!$B$19:$S$156,18,FALSE),0) -> 8356 | U20: -8356 | V20: n | Y20: =IF(V20="Y",IF(E20<=99,1500,IF(AND(E20>=100,E20<=399),2500,4000)),0) -> 0 | AA20: =IF(W20=1, 0, Y20+S20+Z20) -> 0
A21: 3 | B21: 31016 | D21: ARLINGTON | E21: =IFERROR(VLOOKUP(B21,Enrollment!$A$2:$G$147,5,0),0) -> 43 | F21: 19585 | G21: =IFERROR(VLOOKUP(B21,Enrollment!$A$2:$G$147,6,0),0) -> 12 | H21: 1366 | I21: =IFERROR(VLOOKUP(B21,Enrollment!$A$2:$G$147,7,0),0) -> 30 | J21: 13664 | K21: 34615 | L21: =IF(E21>$E$17,_xlfn.IFNA(VLOOKUP(B21,'other funds ftr 2023'!A:I,9,FALSE),0),1) -> 0 | M21: 34615 | N21: =1+IF(ISNA(VLOOKUP(B21,'Rural and Low Income 24-25'!$A:$B,2,FALSE)),0,$N$17) -> 1 | O21: 0 | R21: 0 | S21: 0 | T21: =IFERROR(VLOOKUP(B21,'2023-24 Final'!$B$19:$S$156,18,FALSE),0) -> 0 | U21: 0 | V21: n | Y21: 0 | AA21: 0
A22: 4 | B22: 17408 | D22: AUBURN | E22: =IFERROR(VLOOKUP(B22,Enrollment!$A$2:$G$147,5,0),0) -> 34 | F22: 15486 | G22: =IFERROR(VLOOKUP(B22,Enrollment!$A$2:$G$147,6,0),0) -> 5 | H22: 569 | I22: =IFERROR(VLOOKUP(B22,Enrollment!$A$2:$G$147,7,0),0) -> 23 | J22: 10476 | K22: 26531 | L22: =IF(E22>$E$17,_xlfn.IFNA(VLOOKUP(B22,'other funds ftr 2023'!A:I,9,FALSE),0),1) -> 0.95 | M22: 25204 | N22: =1+IF(ISNA(VLOOKUP(B22,'Rural and Low Income 24-25'!$A:$B,2,FALSE)),0,$N$17) -> 1 | O22: 0 | R22: 0 | S22: 0 | T22: =IFERROR(VLOOKUP(B22,'2023-24 Final'!$B$19:$S$156,18,FALSE),0) -> 26459 | U22: -26459 | V22: n | Y22: 0 | AA22: 0
A23: 5 | B23: 06119 | D23: BATTLE GROUND | E23: =IFERROR(VLOOKUP(B23,Enrollment!$A$2:$G$147,5,0),0) -> 25 | F23: 11387 | G23: =IFERROR(VLOOKUP(B23,Enrollment!$A$2:$G$147,6,0),0) -> 11 | H23: 1253 | I23: =IFERROR(VLOOKUP(B23,Enrollment!$A$2:$G$147,7,0),0) -> 12 | J23: 5466 | K23: 18106 | L23: =IF(E23>$E$17,_xlfn.IFNA(VLOOKUP(B23,'other funds ftr 2023'!A:I,9,FALSE),0),1) -> 0 | M23: 18106 | N23: =1+IF(ISNA(VLOOKUP(B23,'Rural and Low Income 24-25'!$A:$B,2,FALSE)),0,$N$17) -> 1 | O23: 0 | R23: 0 | S23: 0 | T23: =IFERROR(VLOOKUP(B23,'2023-24 Final'!$B$19:$S$156,18,FALSE),0) -> 0 | U23: 0 | V23: n | Y23: 0 | AA23: 0
A24: 6 | B24: 37501 | D24: BELLINGHAM | E24: =IFERROR(VLOOKUP(B24,Enrollment!$A$2:$G$147,5,0),0) -> 106 | F24: 48280 | G24: =IFERROR(VLOOKUP(B24,Enrollment!$A$2:$G$147,6,0),0) -> 34 | H24: 3872 | I24: =IFERROR(VLOOKUP(B24,Enrollment!$A$2:$G$147,7,0),0) -> 57 | J24: 25962 | K24: 78114 | L24: =IF(E24>$E$17,_xlfn.IFNA(VLOOKUP(B24,'other funds ftr 2023'!A:I,9,FALSE),0),1) -> 0.95 | M24: 74208 | N24: =1+IF(ISNA(VLOOKUP(B24,'Rural and Low Income 24-25'!$A:$B,2,FALSE)),0,$N$17) -> 1 | O24: 0 | R24: 0 | S24: 0 | T24: =IFERROR(VLOOKUP(B24,'2023-24 Final'!$B$19:$S$156,18,FALSE),0) -> 83056 | U24: -83056 | V24: n | Y24: 0 | AA24: 0
A25: 7 | B25: 27403 | D25: BETHEL | E25: =IFERROR(VLOOKUP(B25,Enrollment!$A$2:$G$147,5,0),0) -> 22 | F25: 10020 | G25: =IFERROR(VLOOKUP(B25,Enrollment!$A$2:$G$147,6,0),0) -> 9 | H25: 1025 | I25: =IFERROR(VLOOKUP(B25,Enrollment!$A$2:$G$147,7,0),0) -> 12 | J25: 5466 | K25: 16511 | L25: =IF(E25>$E$17,_xlfn.IFNA(VLOOKUP(B25,'other funds ftr 2023'!A:I,9,FALSE),0),1) -> 0 | M25: 16511 | N25: =1+IF(ISNA(VLOOKUP(B25,'Rural and Low Income 24-25'!$A:$B,2,FALSE)),0,$N$17) -> 1 | O25: 0 | R25: 0 | S25: 0 | T25: =IFERROR(VLOOKUP(B25,'2023-24 Final'!$B$19:$S$156,18,FALSE),0) -> 0 | U25: 0 | V25: n | Y25: 0 | AA25: 0
A26: 8 | B26: 18100 | D26: BREMERTON | E26: =IFERROR(VLOOKUP(B26,Enrollment!$A$2:$G$147,5,0),0) -> 54 | F26: 24595 | G26: =IFERROR(VLOOKUP(B26,Enrollment!$A$2:$G$147,6,0),0) -> 14 | H26: 1594 | I26: =IFERROR(VLOOKUP(B26,Enrollment!$A$2:$G$147,7,0),0) -> 36 | J26: 16397 | K26: 42586 | L26: =IF(E26>$E$17,_xlfn.IFNA(VLOOKUP(B26,'other funds ftr 2023'!A:I,9,FALSE),0),1) -> 0.95 | M26: 40457 | N26: =1+IF(ISNA(VLOOKUP(B26,'Rural and Low Income 24-25'!$A:$B,2,FALSE)),0,$N$17) -> 1 | O26: 40457 | R26: 0 | S26: 40457 | T26: =IFERROR(VLOOKUP(B26,'2023-24 Final'!$B$19:$S$156,18,FALSE),0) -> 34580 | U26: 5877 | V26: y | Y26: 1500 | AA26: 41957
A27: 9 | B27: 24111 | D27: BREWSTER | E27: =IFERROR(VLOOKUP(B27,Enrollment!$A$2:$G$147,5,0),0) -> 237 | F27: 107947 | G27: =IFERROR(VLOOKUP(B27,Enrollment!$A$2:$G$147,6,0),0) -> 90 | H27: 10248 | I27: =IFERROR(VLOOKUP(B27,Enrollment!$A$2:$G$147,7,0),0) -> 108 | J27: 49191 | K27: 167386 | L27: =IF(E27>$E$17,_xlfn.IFNA(VLOOKUP(B27,'other funds ftr 2023'!A:I,9,FALSE),0),1) -> 1.05 | M27: 175755 | N27: =1+IF(ISNA(VLOOKUP(B27,'Rural and Low Income 24-25'!$A:$B,2,FALSE)),0,$N$17) -> 1.1 | O27: 193331 | R27: 0 | S27: 193331 | T27: =IFERROR(VLOOKUP(B27,'2023-24 Final'!$B$19:$S$156,18,FALSE),0) -> 185543 | U27: 7788 | V27: y | Y27: 2500 | AA27: 195831
A28: 10 | B28: 09075 | D28: BRIDGEPORT | E28: =IFERROR(VLOOKUP(B28,Enrollment!$A$2:$G$147,5,0),0) -> 112 | F28: 51013 | G28: =IFERROR(VLOOKUP(B28,Enrollment!$A$2:$G$147,6,0),0) -> 40 | H28: 4555 | I28: =IFERROR(VLOOKUP(B28,Enrollment!$A$2:$G$147,7,0),0) -> 54 | J28: 24595 | K28: 80163 | L28: =IF(E28>$E$17,_xlfn.IFNA(VLOOKUP(B28,'other funds ftr 2023'!A:I,9,FALSE),0),1) -> 1.05 | M28: 84171 | N28: =1+IF(ISNA(VLOOKUP(B28,'Rural and Low Income 24-25'!$A:$B,2,FALSE)),0,$N$17) -> 1.1 | O28: 92588 | R28: 0 | S28: 92588 | T28: =IFERROR(VLOOKUP(B28,'2023-24 Final'!$B$19:$S$156,18,FALSE),0) -> 102134 | U28: -9546 | V28: y | Y28: 2500 | AA28: 95088
A29: 11 | B29: 29100 | D29: BURLINGTON-EDISON | E29: =IFERROR(VLOOKUP(B29,Enrollment!$A$2:$G$147,5,0),0) -> 501 | F29: 228191 | G29: =IFERROR(VLOOKUP(B29,Enrollment!$A$2:$G$147,6,0),0) -> 134 | H29: 15258 | I29: =IFERROR(VLOOKUP(B29,Enrollment!$A$2:$G$147,7,0),0) -> 268 | J29: 122066 | K29: 365515 | L29: =IF(E29>$E$17,_xlfn.IFNA(VLOOKUP(B29,'other funds ftr 2023'!A:I,9,FALSE),0),1) -> 1.05 | M29: 383791 | N29: =1+IF(ISNA(VLOOKUP(B29,'Rural and Low Income 24-25'!$A:$B,2,FALSE)),0,$N$17) -> 1 | O29: 383791 | R29: 0 | S29: 383791 | T29: =IFERROR(VLOOKUP(B29,'2023-24 Final'!$B$19:$S$156,18,FALSE),0) -> 343367 | U29: 40424 | V29: y | Y29: 4000 | AA29: 387791
A30: 12 | B30: 04228 | D30: CASCADE | E30: =IFERROR(VLOOKUP(B30,Enrollment!$A$2:$G$147,5,0),0) -> 47 | F30: 21407 | G30: =IFERROR(VLOOKUP(B30,Enrollment!$A$2:$G$147,6,0),0) -> 26 | H30: 2961 | I30: =IFERROR(VLOOKUP(B30,Enrollment!$A$2:$G$147,7,0),0) -> 10 | J30: 4555 | K30: 28923 | L30: =IF(E30>$E$17,_xlfn.IFNA(VLOOKUP(B30,'other funds ftr 2023'!A:I,9,FALSE),0),1) -> 1 | M30: 28923 | N30: =1+IF(ISNA(VLOOKUP(B30,'Rural and Low Income 24-25'!$A:$B,2,FALSE)),0,$N$17) -> 1 | O30: 28923 | R30: 0 | S30: 28923 | T30: =IFERROR(VLOOKUP(B30,'2023-24 Final'!$B$19:$S$156,18,FALSE),0) -> 34615 | U30: -5692 | V30: y | Y30: 1500 | AA30: 30423
A31: 14 | B31: 04222 | D31: CASHMERE | E31: =IFERROR(VLOOKUP(B31,Enrollment!$A$2:$G$147,5,0),0) -> 203 | F31: 92461 | G31: =IFERROR(VLOOKUP(B31,Enrollment!$A$2:$G$147,6,0),0) -> 56 | H31: 6377 | I31: =IFERROR(VLOOKUP(B31,Enrollment!$A$2:$G$147,7,0),0) -> 77 | J31: 35071 | K31: 133909 | L31: =IF(E31>$E$17,_xlfn.IFNA(VLOOKUP(B31,'other funds ftr 2023'!A:I,9,FALSE),0),1) -> 1.1 | M31: 147300 | N31: =1+IF(ISNA(VLOOKUP(B31,'Rural and Low Income 24-25'!$A:$B,2,FALSE)),0,$N$17) -> 1 | O31: 147300 | R31: 0 | S31: 147300 | T31: =IFERROR(VLOOKUP(B31,'2023-24 Final'!$B$19:$S$156,18,FALSE),0) -> 153968 | U31: -6668 | V31: y | Y31: 2500 | AA31: 149800
A32: 13 | B32: 18401 | D32: CENTRAL KITSAP | E32: =IFERROR(VLOOKUP(B32,Enrollment!$A$2:$G$147,5,0),0) -> 16 | F32: 7288 | G32: =IFERROR(VLOOKUP(B32,Enrollment!$A$2:$G$147,6,0),0) -> 7 | H32: 797 | I32: =IFERROR(VLOOKUP(B32,Enrollment!$A$2:$G$147,7,0),0) -> 7 | J32: 3188 | K32: 11273 | L32: =IF(E32>$E$17,_xlfn.IFNA(VLOOKUP(B32,'other funds ftr 2023'!A:I,9,FALSE),0),1) -> 0 | M32: 11273 | N32: =1+IF(ISNA(VLOOKUP(B32,'Rural and Low Income 24-25'!$A:$B,2,FALSE)),0,$N$17) -> 1 | O32: 0 | R32: =ROUND(IF(Q32>0,-(0.9-Q32)*O32,0),0) -> 0 | S32: 0 | T32: =IFERROR(VLOOKUP(B32,'2023-24 Final'!$B$19:$S$156,18,FALSE),0) -> 0 | U32: 0 | V32: n | Y32: 0 | AA32: 0
A33: 15 | B33: 32356 | D33: CENTRAL VALLEY | E33: =IFERROR(VLOOKUP(B33,Enrollment!$A$2:$G$147,5,0),0) -> 19 | F33: 8654 | G33: =IFERROR(VLOOKUP(B33,Enrollment!$A$2:$G$147,6,0),0) -> 1 | H33: 114 | I33: =IFERROR(VLOOKUP(B33,Enrollment!$A$2:$G$147,7,0),0) -> 17 | J33: 7743 | K33: 16511 | L33: =IF(E33>$E$17,_xlfn.IFNA(VLOOKUP(B33,'other funds ftr 2023'!A:I,9,FALSE),0),1) -> 0 | M33: 16511 | N33: =1+IF(ISNA(VLOOKUP(B33,'Rural and Low Income 24-25'!$A:$B,2,FALSE)),0,$N$17) -> 1 | O33: 16511 | R33: =ROUND(IF(Q33>0,-(0.9-Q33)*O33,0),0) -> 0 | S33: 16511 | T33: =IFERROR(VLOOKUP(B33,'2023-24 Final'!$B$19:$S$156,18,FALSE),0) -> 0 | U33: 16511 | V33: y | Y33: 1500 | AA33: 18011
A34: 16 | B34: 21401 | D34: CENTRALIA | E34: =IFERROR(VLOOKUP(B34,Enrollment!$A$2:$G$147,5,0),0) -> 88 | F34: 40081 | G34: =IFERROR(VLOOKUP(B34,Enrollment!$A$2:$G$147,6,0),0) -> 48 | H34: 5466 | I34: =IFERROR(VLOOKUP(B34,Enrollment!$A$2:$G$147,7,0),0) -> 26 | J34: 11842 | K34: 57389 | L34: =IF(E34>$E$17,_xlfn.IFNA(VLOOKUP(B34,'other funds ftr 2023'!A:I,9,FALSE),0),1) -> 0.95 | M34: 54520 | N34: =1+IF(ISNA(VLOOKUP(B34,'Rural and Low Income 24-25'!$A:$B,2,FALSE)),0,$N$17) -> 1 | O34: 54520 | R34: =ROUND(IF(Q34>0,-(0.9-Q34)*O34,0),0) -> 0 | S34: 54520 | T34: =IFERROR(VLOOKUP(B34,'2023-24 Final'!$B$19:$S$156,18,FALSE),0) -> 44726 | U34: 9794 | V34: y | X34: Y | Y34: 1500 | AA34: 56020
A35: 17 | B35: 21302 | D35: CHEHALIS | E35: =IFERROR(VLOOKUP(B35,Enrollment!$A$2:$G$147,5,0),0) -> 31 | F35: 14120 | G35: =IFERROR(VLOOKUP(B35,Enrollment!$A$2:$G$147,6,0),0) -> 22 | H35: 2505 | I35: =IFERROR(VLOOKUP(B35,Enrollment!$A$2:$G$147,7,0),0) -> 5 | J35: 2277 | K35: 18902 | L35: =IF(E35>$E$17,_xlfn.IFNA(VLOOKUP(B35,'other funds ftr 2023'!A:I,9,FALSE),0),1) -> 0.95 | M35: 17957 | N35: =1+IF(ISNA(VLOOKUP(B35,'Rural and Low Income 24-25'!$A:$B,2,FALSE)),0,$N$17) -> 1 | O35: 17957 | R35: 0 | S35: 17957 | T35: =IFERROR(VLOOKUP(B35,'2023-24 Final'!$B$19:$S$156,18,FALSE),0) -> 20038 | U35: -2081 | V35: y | Y35: 1500 | AA35: 19457
A36: 18 | B36: 32360 | D36: CHENEY | E36: =IFERROR(VLOOKUP(B36,Enrollment!$A$2:$G$147,5,0),0) -> 17 | F36: 7743 | G36: =IFERROR(VLOOKUP(B36,Enrollment!$A$2:$G$147,6,0),0) -> 7 | H36: 797 | I36: =IFERROR(VLOOKUP(B36,Enrollment!$A$2:$G$147,7,0),0) -> 8 | J36: 3644 | K36: 12184 | L36: =IF(E36>$E$17,_xlfn.IFNA(VLOOKUP(B36,'other funds ftr 2023'!A:I,9,FALSE),0),1) -> 0 | M36: 12184 | N36: =1+IF(ISNA(VLOOKUP(B36,'Rural and Low Income 24-25'!$A:$B,2,FALSE)),0,$N$17) -> 1 | O36: 0 | R36: =ROUND(IF(Q36>0,-(0.9-Q36)*O36,0),0) -> 0 | S36: 0 | T36: =IFERROR(VLOOKUP(B36,'2023-24 Final'!$B$19:$S$156,18,FALSE),0) -> 0 | U36: 0 | V36: n | X36: Y | Y36: 0 | AA36: 0
A37: 19 | B37: 27901 | D37: CHIEF LESCHI TRIBAL COMPACT | E37: =IFERROR(VLOOKUP(B37,Enrollment!$A$2:$G$147,5,0),0) -> 41 | F37: 18674 | G37: =IFERROR(VLOOKUP(B37,Enrollment!$A$2:$G$147,6,0),0) -> 2 | H37: 228 | I37: =IFERROR(VLOOKUP(B37,Enrollment!$A$2:$G$147,7,0),0) -> 29 | J37: 13209 | K37: 32111 | L37: =IF(E37>$E$17,_xlfn.IFNA(VLOOKUP(B37,'other funds ftr 2023'!A:I,9,FALSE),0),1) -> 1.05 | M37: 33717 | N37: =1+IF(ISNA(VLOOKUP(B37,'Rural and Low Income 24-25'!$A:$B,2,FALSE)),0,$N$17) -> 1 | O37: 33717 | R37: 0 | S37: 33717 | T37: =IFERROR(VLOOKUP(B37,'2023-24 Final'!$B$19:$S$156,18,FALSE),0) -> 24852 | U37: 8865 | V37: y | Y37: 1500 | AA37: 35217
A38: 20 | B38: 27400 | D38: CLOVER PARK | E38: =IFERROR(VLOOKUP(B38,Enrollment!$A$2:$G$147,5,0),0) -> 12 | F38: 5466 | G38: =IFERROR(VLOOKUP(B38,Enrollment!$A$2:$G$147,6,0),0) -> 2 | H38: 228 | I38: =IFERROR(VLOOKUP(B38,Enrollment!$A$2:$G$147,7,0),0) -> 7 | J38: 3188 | K38: 8882 | L38: =IF(E38>$E$17,_xlfn.IFNA(VLOOKUP(B38,'other funds ftr 2023'!A:I,9,FALSE),0),1) -> 0 | M38: 8882 | N38: =1+IF(ISNA(VLOOKUP(B38,'Rural and Low Income 24-25'!$A:$B,2,FALSE)),0,$N$17) -> 1 | O38: 0 | R38: 0 | S38: 0 | T38: =IFERROR(VLOOKUP(B38,'2023-24 Final'!$B$19:$S$156,18,FALSE),0) -> 0 | U38: 0 | V38: n | Y38: 0 | AA38: 0
A39: 21 | B39: 36250 | D39: COLLEGE PLACE | E39: =IFERROR(VLOOKUP(B39,Enrollment!$A$2:$G$147,5,0),0) -> 175 | F39: 79707 | G39: =IFERROR(VLOOKUP(B39,Enrollment!$A$2:$G$147,6,0),0) -> 39 | H39: 4441 | I39: =IFERROR(VLOOKUP(B39,Enrollment!$A$2:$G$147,7,0),0) -> 98 | J39: 44636 | K39: 128784 | L39: =IF(E39>$E$17,_xlfn.IFNA(VLOOKUP(B39,'other funds ftr 2023'!A:I,9,FALSE),0),1) -> 1 | M39: 128784 | N39: =1+IF(ISNA(VLOOKUP(B39,'Rural and Low Income 24-25'!$A:$B,2,FALSE)),0,$N$17) -> 1 | O39: 128784 | R39: 0 | S39: 128784 | T39: =IFERROR(VLOOKUP(B39,'2023-24 Final'!$B$19:$S$156,18,FALSE),0) -> 88165 | U39: 40619 | V39: y | Y39: 2500 | Z39: 40000 | AA39: 171284
A40: 22 | B40: 36400 | D40: COLUMBIA (WALLA WALLA) | E40: =IFERROR(VLOOKUP(B40,Enrollment!$A$2:$G$147,5,0),0) -> 65 | F40: 29606 | G40: =IFERROR(VLOOKUP(B40,Enrollment!$A$2:$G$147,6,0),0) -> 26 | H40: 2961 | I40: =IFERROR(VLOOKUP(B40,Enrollment!$A$2:$G$147,7,0),0) -> 36 | J40: 16397 | K40: 48964 | L40: =IF(E40>$E$17,_xlfn.IFNA(VLOOKUP(B40,'other funds ftr 2023'!A:I,9,FALSE),0),1) -> 1 | M40: 48964 | N40: =1+IF(ISNA(VLOOKUP(B40,'Rural and Low Income 24-25'!$A:$B,2,FALSE)),0,$N$17) -> 1 | O40: 48964 | R40: 0 | S40: 48964 | T40: =IFERROR(VLOOKUP(B40,'2023-24 Final'!$B$19:$S$156,18,FALSE),0) -> 33640 | U40: 15324 | V40: y | W40: 1 | Y40: 1500 | AA40: 0
A41: 23 | B41: 29317 | D41: CONWAY | E41: =IFERROR(VLOOKUP(B41,Enrollment!$A$2:$G$147,5,0),0) -> 12 | F41: 5466 | G41: =IFERROR(VLOOKUP(B41,Enrollment!$A$2:$G$147,6,0),0) -> 6 | H41: 683 | I41: =IFERROR(VLOOKUP(B41,Enrollment!$A$2:$G$147,7,0),0) -> 4 | J41: 1822 | K41: 7971 | L41: =IF(E41>$E$17,_xlfn.IFNA(VLOOKUP(B41,'other funds ftr 2023'!A:I,9,FALSE),0),1) -> 0 | M41: 7971 | N41: =1+IF(ISNA(VLOOKUP(B41,'Rural and Low Income 24-25'!$A:$B,2,FALSE)),0,$N$17) -> 1.1 | O41: 0 | R41: 0 | S41: 0 | T41: =IFERROR(VLOOKUP(B41,'2023-24 Final'!$B$19:$S$156,18,FALSE),0) -> 0 | U41: 0 | V41: n | Y41: 0 | AA41: 0
A42: 24 | B42: 15204 | D42: COUPEVILLE | E42: =IFERROR(VLOOKUP(B42,Enrollment!$A$2:$G$147,5,0),0) -> 11 | F42: 5010 | G42: =IFERROR(VLOOKUP(B42,Enrollment!$A$2:$G$147,6,0),0) -> 2 | H42: 228 | I42: =IFERROR(VLOOKUP(B42,Enrollment!$A$2:$G$147,7,0),0) -> 5 | J42: 2277 | K42: 7515 | L42: =IF(E42>$E$17,_xlfn.IFNA(VLOOKUP(B42,'other funds ftr 2023'!A:I,9,FALSE),0),1) -> 0.95 | M42: 7139 | N42: =1+IF(ISNA(VLOOKUP(B42,'Rural and Low Income 24-25'!$A:$B,2,FALSE)),0,$N$17) -> 1 | O42: 7139 | R42: 0 | S42: 7139 | T42: =IFERROR(VLOOKUP(B42,'2023-24 Final'!$B$19:$S$156,18,FALSE),0) -> 9132 | U42: -1993 | V42: y | Y42: 1500 | AA42: 8639
A43: 25 | B43: 39090 | D43: EAST VALLEY (YAKIMA) | E43: =IFERROR(VLOOKUP(B43,Enrollment!$A$2:$G$147,5,0),0) -> 229 | F43: 104303 | G43: =IFERROR(VLOOKUP(B43,Enrollment!$A$2:$G$147,6,0),0) -> 38 | H43: 4327 | I43: =IFERROR(VLOOKUP(B43,Enrollment!$A$2:$G$147,7,0),0) -> 147 | J43: 66954 | K43: 175584 | L43: =IF(E43>$E$17,_xlfn.IFNA(VLOOKUP(B43,'other funds ftr 2023'!A:I,9,FALSE),0),1) -> 0 | M43: 175584 | N43: =1+IF(ISNA(VLOOKUP(B43,'Rural and Low Income 24-25'!$A:$B,2,FALSE)),0,$N$17) -> 1 | O43: 0 | R43: 0 | S43: 0 | T43: =IFERROR(VLOOKUP(B43,'2023-24 Final'!$B$19:$S$156,18,FALSE),0) -> 0 | U43: 0 | V43: n | Y43: 0 | AA43: 0
A44: 26 | B44: 09206 | D44: EASTMONT | E44: =IFERROR(VLOOKUP(B44,Enrollment!$A$2:$G$147,5,0),0) -> 883 | F44: 402181 | G44: =IFERROR(VLOOKUP(B44,Enrollment!$A$2:$G$147,6,0),0) -> 356 | H44: 40537 | I44: =IFERROR(VLOOKUP(B44,Enrollment!$A$2:$G$147,7,0),0) -> 436 | J44: 198585 | K44: 641303 | L44: =IF(E44>$E$17,_xlfn.IFNA(VLOOKUP(B44,'other funds ftr 2023'!A:I,9,FALSE),0),1) -> 1.05 | M44: 673368 | N44: =1+IF(ISNA(VLOOKUP(B44,'Rural and Low Income 24-25'!$A:$B,2,FALSE)),0,$N$17) -> 1 | O44: 673368 | R44: 0 | S44: 673368 | T44: =IFERROR(VLOOKUP(B44,'2023-24 Final'!$B$19:$S$156,18,FALSE),0) -> 651200 | U44: 22168 | V44: y | Y44: 4000 | Z44: 60000 | AA44: 737368
A45: 27 | B45: 19028 | D45: EASTON | E45: =IFERROR(VLOOKUP(B45,Enrollment!$A$2:$G$147,5,0),0) -> 0 | F45: 0 | G45: =IFERROR(VLOOKUP(B45,Enrollment!$A$2:$G$147,6,0),0) -> 0 | H45: 0 | I45: =IFERROR(VLOOKUP(B45,Enrollment!$A$2:$G$147,7,0),0) -> 0 | J45: 0 | K45: 0 | L45: =IF(E45>$E$17,_xlfn.IFNA(VLOOKUP(B45,'other funds ftr 2023'!A:I,9,FALSE),0),1) -> 1 | M45: 0 | N45: =1+IF(ISNA(VLOOKUP(B45,'Rural and Low Income 24-25'!$A:$B,2,FALSE)),0,$N$17) -> 1.1 | O45: 0 | R45: 0 | S45: 0 | T45: =IFERROR(VLOOKUP(B45,'2023-24 Final'!$B$19:$S$156,18,FALSE),0) -> 0 | U45: 0 | V45: n | Y45: 0 | AA45: 0
A46: 28 | B46: 31015 | D46: EDMONDS | E46: =IFERROR(VLOOKUP(B46,Enrollment!$A$2:$G$147,5,0),0) -> 18 | F46: 8198 | G46: =IFERROR(VLOOKUP(B46,Enrollment!$A$2:$G$147,6,0),0) -> 4 | H46: 455 | I46: =IFERROR(VLOOKUP(B46,Enrollment!$A$2:$G$147,7,0),0) -> 11 | J46: 5010 | K46: 13663 | L46: =IF(E46>$E$17,_xlfn.IFNA(VLOOKUP(B46,'other funds ftr 2023'!A:I,9,FALSE),0),1) -> 0 | M46: 13663 | N46: =1+IF(ISNA(VLOOKUP(B46,'Rural and Low Income 24-25'!$A:$B,2,FALSE)),0,$N$17) -> 1 | O46: 13663 | R46: 0 | S46: 13663 | T46: =IFERROR(VLOOKUP(B46,'2023-24 Final'!$B$19:$S$156,18,FALSE),0) -> 0 | U46: 13663 | V46: y | Y46: 1500 | AA46: 15163
A47: 29 | B47: 39801 | D47: EDUCATIONAL SERVICE DISTRICT 105 | E47: =IFERROR(VLOOKUP(B47,Enrollment!$A$2:$G$147,5,0),0) -> 20 | F47: 9109 | G47: =IFERROR(VLOOKUP(B47,Enrollment!$A$2:$G$147,6,0),0) -> 10 | H47: 1139 | I47: =IFERROR(VLOOKUP(B47,Enrollment!$A$2:$G$147,7,0),0) -> 10 | J47: 4555 | K47: 14803 | L47: =IF(E47>$E$17,_xlfn.IFNA(VLOOKUP(B47,'other funds ftr 2023'!A:I,9,FALSE),0),1) -> 0 | M47: 14803 | N47: =1+IF(ISNA(VLOOKUP(B47,'Rural and Low Income 24-25'!$A:$B,2,FALSE)),0,$N$17) -> 1 | O47: 0 | R47: 0 | S47: 0 | T47: =IFERROR(VLOOKUP(B47,'2023-24 Final'!$B$19:$S$156,18,FALSE),0) -> 0 | U47: 0 | Y47: 0 | AA47: 0
A48: 30 | B48: 11801 | D48: EDUCATIONAL SERVICE DISTRICT 123 | E48: =IFERROR(VLOOKUP(B48,Enrollment!$A$2:$G$147,5,0),0) -> 131 | F48: 59667 | G48: =IFERROR(VLOOKUP(B48,Enrollment!$A$2:$G$147,6,0),0) -> 76 | H48: 8654 | I48: =IFERROR(VLOOKUP(B48,Enrollment!$A$2:$G$147,7,0),0) -> 43 | J48: 19585 | K48: 87906 | L48: =IF(E48>$E$17,_xlfn.IFNA(VLOOKUP(B48,'other funds ftr 2023'!A:I,9,FALSE),0),1) -> 0 | M48: 87906 | N48: =1+IF(ISNA(VLOOKUP(B48,'Rural and Low Income 24-25'!$A:$B,2,FALSE)),0,$N$17) -> 1 | O48: 0 | R48: 0 | S48: 0 | T48: =IFERROR(VLOOKUP(B48,'2023-24 Final'!$B$19:$S$156,18,FALSE),0) -> 0 | U48: 0 | Y48: 0 | AA48: 0
A49: 31 | B49: 19401 | D49: ELLENSBURG | E49: =IFERROR(VLOOKUP(B49,Enrollment!$A$2:$G$147,5,0),0) -> 24 | F49: 10931 | G49: =IFERROR(VLOOKUP(B49,Enrollment!$A$2:$G$147,6,0),0) -> 9 | H49: 1025 | I49: =IFERROR(VLOOKUP(B49,Enrollment!$A$2:$G$147,7,0),0) -> 13 | J49: 5921 | K49: 17877 | L49: =IF(E49>$E$17,_xlfn.IFNA(VLOOKUP(B49,'other funds ftr 2023'!A:I,9,FALSE),0),1) -> 0 | M49: 17877 | N49: =1+IF(ISNA(VLOOKUP(B49,'Rural and Low Income 24-25'!$A:$B,2,FALSE)),0,$N$17) -> 1 | O49: 0 | R49: 0 | S49: 0 | T49: =IFERROR(VLOOKUP(B49,'2023-24 Final'!$B$19:$S$156,18,FALSE),0) -> 0 | U49: 0 | V49: n | Y49: 0 | AA49: 0
A50: 32 | B50: 14068 | D50: ELMA | E50: =IFERROR(VLOOKUP(B50,Enrollment!$A$2:$G$147,5,0),0) -> 33 | F50: 15031 | G50: =IFERROR(VLOOKUP(B50,Enrollment!$A$2:$G$147,6,0),0) -> 15 | H50: 1708 | I50: =IFERROR(VLOOKUP(B50,Enrollment!$A$2:$G$147,7,0),0) -> 13 | J50: 5921 | K50: 22660 | L50: =IF(E50>$E$17,_xlfn.IFNA(VLOOKUP(B50,'other funds ftr 2023'!A:I,9,FALSE),0),1) -> 0 | M50: 22660 | N50: =1+IF(ISNA(VLOOKUP(B50,'Rural and Low Income 24-25'!$A:$B,2,FALSE)),0,$N$17) -> 1.1 | O50: 0 | R50: 0 | S50: 0 | T50: =IFERROR(VLOOKUP(B50,'2023-24 Final'!$B$19:$S$156,18,FALSE),0) -> 0 | U50: 0 | V50: n | Y50: 0 | AA50: 0
A51: 33 | B51: 04127 | D51: ENTIAT | E51: =IFERROR(VLOOKUP(B51,Enrollment!$A$2:$G$147,5,0),0) -> 61 | F51: 27784 | G51: =IFERROR(VLOOKUP(B51,Enrollment!$A$2:$G$147,6,0),0) -> 1 | H51: 114 | I51: =IFERROR(VLOOKUP(B51,Enrollment!$A$2:$G$147,7,0),0) -> 45 | J51: 20496 | K51: 48394 | L51: =IF(E51>$E$17,_xlfn.IFNA(VLOOKUP(B51,'other funds ftr 2023'!A:I,9,FALSE),0),1) -> 0 | M51: 48394 | N51: =1+IF(ISNA(VLOOKUP(B51,'Rural and Low Income 24-25'!$A:$B,2,FALSE)),0,$N$17) -> 1.1 | O51: 0 | R51: 0 | S51: 0 | T51: =IFERROR(VLOOKUP(B51,'2023-24 Final'!$B$19:$S$156,18,FALSE),0) -> 0 | U51: 0 | V51: n | Y51: 0 | AA51: 0
A52: 34 | B52: 13165 | D52: EPHRATA | E52: =IFERROR(VLOOKUP(B52,Enrollment!$A$2:$G$147,5,0),0) -> 147 | F52: 66954 | G52: =IFERROR(VLOOKUP(B52,Enrollment!$A$2:$G$147,6,0),0) -> 69 | H52: 7857 | I52: =IFERROR(VLOOKUP(B52,Enrollment!$A$2:$G$147,7,0),0) -> 56 | J52: 25506 | K52: 100317 | L52: =IF(E52>$E$17,_xlfn.IFNA(VLOOKUP(B52,'other funds ftr 2023'!A:I,9,FALSE),0),1) -> 1 | M52: 100317 | N52: =1+IF(ISNA(VLOOKUP(B52,'Rural and Low Income 24-25'!$A:$B,2,FALSE)),0,$N$17) -> 1 | O52: 100317 | R52: 0 | S52: 100317 | T52: =IFERROR(VLOOKUP(B52,'2023-24 Final'!$B$19:$S$156,18,FALSE),0) -> 105934 | U52: -5617 | V52: y | Y52: 2500 | AA52: 102817
A53: 35 | B53: 31002 | D53: EVERETT | E53: =IFERROR(VLOOKUP(B53,Enrollment!$A$2:$G$147,5,0),0) -> 59 | F53: 26873 | G53: =IFERROR(VLOOKUP(B53,Enrollment!$A$2:$G$147,6,0),0) -> 9 | H53: 1025 | I53: =IFERROR(VLOOKUP(B53,Enrollment!$A$2:$G$147,7,0),0) -> 40 | J53: 18219 | K53: 46117 | L53: =IF(E53>$E$17,_xlfn.IFNA(VLOOKUP(B53,'other funds ftr 2023'!A:I,9,FALSE),0),1) -> 0 | M53: 46117 | N53: =1+IF(ISNA(VLOOKUP(B53,'Rural and Low Income 24-25'!$A:$B,2,FALSE)),0,$N$17) -> 1 | O53: 0 | R53: 0 | S53: 0 | T53: =IFERROR(VLOOKUP(B53,'2023-24 Final'!$B$19:$S$156,18,FALSE),0) -> 0 | U53: 0 | V53: n | Y53: 0 | AA53: 0
A54: 36 | B54: 06114 | D54: EVERGREEN (CLARK) | E54: =IFERROR(VLOOKUP(B54,Enrollment!$A$2:$G$147,5,0),0) -> 34 | F54: 15486 | G54: =IFERROR(VLOOKUP(B54,Enrollment!$A$2:$G$147,6,0),0) -> 10 | H54: 1139 | I54: =IFERROR(VLOOKUP(B54,Enrollment!$A$2:$G$147,7,0),0) -> 23 | J54: 10476 | K54: 27101 | L54: =IF(E54>$E$17,_xlfn.IFNA(VLOOKUP(B54,'other funds ftr 2023'!A:I,9,FALSE),0),1) -> 0 | M54: 27101 | N54: =1+IF(ISNA(VLOOKUP(B54,'Rural and Low Income 24-25'!$A:$B,2,FALSE)),0,$N$17) -> 1 | O54: 0 | R54: 0 | S54: 0 | T54: =IFERROR(VLOOKUP(B54,'2023-24 Final'!$B$19:$S$156,18,FALSE),0) -> 0 | U54: 0 | V54: n | Y54: 0 | AA54: 0
A55: 37 | B55: 17210 | D55: FEDERAL WAY | E55: =IFERROR(VLOOKUP(B55,Enrollment!$A$2:$G$147,5,0),0) -> 28 | F55: 12753 | G55: =IFERROR(VLOOKUP(B55,Enrollment!$A$2:$G$147,6,0),0) -> 10 | H55: 1139 | I55: =IFERROR(VLOOKUP(B55,Enrollment!$A$2:$G$147,7,0),0) -> 15 | J55: 6832 | K55: 20724 | L55: =IF(E55>$E$17,_xlfn.IFNA(VLOOKUP(B55,'other funds ftr 2023'!A:I,9,FALSE),0),1) -> 0 | M55: 20724 | N55: =1+IF(ISNA(VLOOKUP(B55,'Rural and Low Income 24-25'!$A:$B,2,FALSE)),0,$N$17) -> 1 | O55: 0 | R55: 0 | S55: 0 | T55: =IFERROR(VLOOKUP(B55,'2023-24 Final'!$B$19:$S$156,18,FALSE),0) -> 0 | U55: 0 | V55: n | X55: Y | Y55: 0 | AA55: 0
A56: 38 | B56: 37502 | D56: FERNDALE | E56: =IFERROR(VLOOKUP(B56,Enrollment!$A$2:$G$147,5,0),0) -> 119 | F56: 54201 | G56: =IFERROR(VLOOKUP(B56,Enrollment!$A$2:$G$147,6,0),0) -> 23 | H56: 2619 | I56: =IFERROR(VLOOKUP(B56,Enrollment!$A$2:$G$147,7,0),0) -> 59 | J56: 26873 | K56: 83693 | L56: =IF(E56>$E$17,_xlfn.IFNA(VLOOKUP(B56,'other funds ftr 2023'!A:I,9,FALSE),0),1) -> 1 | M56: 83693 | N56: =1+IF(ISNA(VLOOKUP(B56,'Rural and Low Income 24-25'!$A:$B,2,FALSE)),0,$N$17) -> 1 | O56: 83693 | R56: 0 | S56: 83693 | T56: =IFERROR(VLOOKUP(B56,'2023-24 Final'!$B$19:$S$156,18,FALSE),0) -> 96101 | U56: -12408 | V56: y | X56: Y | Y56: 2500 | AA56: 86193
A57: 39 | B57: 03053 | D57: FINLEY | E57: =IFERROR(VLOOKUP(B57,Enrollment!$A$2:$G$147,5,0),0) -> 115 | F57: 52379 | G57: =IFERROR(VLOOKUP(B57,Enrollment!$A$2:$G$147,6,0),0) -> 37 | H57: 4213 | I57: =IFERROR(VLOOKUP(B57,Enrollment!$A$2:$G$147,7,0),0) -> 64 | J57: 29150 | K57: 85742 | L57: =IF(E57>$E$17,_xlfn.IFNA(VLOOKUP(B57,'other funds ftr 2023'!A:I,9,FALSE),0),1) -> 1.05 | M57: 90029 | N57: =1+IF(ISNA(VLOOKUP(B57,'Rural and Low Income 24-25'!$A:$B,2,FALSE)),0,$N$17) -> 1 | O57: 90029 | R57: 0 | S57: 90029 | T57: =IFERROR(VLOOKUP(B57,'2023-24 Final'!$B$19:$S$156,18,FALSE),0) -> 78879 | U57: 11150 | V57: y | W57: 1 | Y57: 2500 | AA57: 0
A58: 40 | B58: 27402 | D58: FRANKLIN PIERCE | E58: =IFERROR(VLOOKUP(B58,Enrollment!$A$2:$G$147,5,0),0) -> 0 | F58: 0 | G58: =IFERROR(VLOOKUP(B58,Enrollment!$A$2:$G$147,6,0),0) -> 0 | H58: 0 | I58: =IFERROR(VLOOKUP(B58,Enrollment!$A$2:$G$147,7,0),0) -> 0 | J58: 0 | K58: 0 | L58: =IF(E58>$E$17,_xlfn.IFNA(VLOOKUP(B58,'other funds ftr 2023'!A:I,9,FALSE),0),1) -> 1 | M58: 0 | N58: =1+IF(ISNA(VLOOKUP(B58,'Rural and Low Income 24-25'!$A:$B,2,FALSE)),0,$N$17) -> 1 | O58: 0 | R58: 0 | S58: 0 | T58: =IFERROR(VLOOKUP(B58,'2023-24 Final'!$B$19:$S$156,18,FALSE),0) -> 0 | U58: 0 | V58: n | Y58: 0 | AA58: 0
A59: 41 | B59: 20404 | D59: GOLDENDALE | E59: =IFERROR(VLOOKUP(B59,Enrollment!$A$2:$G$147,5,0),0) -> 61 | F59: 27784 | G59: =IFERROR(VLOOKUP(B59,Enrollment!$A$2:$G$147,6,0),0) -> 8 | H59: 911 | I59: =IFERROR(VLOOKUP(B59,Enrollment!$A$2:$G$147,7,0),0) -> 46 | J59: 20952 | K59: 49647 | L59: =IF(E59>$E$17,_xlfn.IFNA(VLOOKUP(B59,'other funds ftr 2023'!A:I,9,FALSE),0),1) -> 1 | M59: 49647 | N59: =1+IF(ISNA(VLOOKUP(B59,'Rural and Low Income 24-25'!$A:$B,2,FALSE)),0,$N$17) -> 1.1 | O59: 54612 | R59: 0 | S59: 54612 | T59: =IFERROR(VLOOKUP(B59,'2023-24 Final'!$B$19:$S$156,18,FALSE),0) -> 62887 | U59: -8275 | V59: y | Y59: 1500 | AA59: 56112
A60: 42 | B60: 13301 | D60: GRAND COULEE DAM | E60: =IFERROR(VLOOKUP(B60,Enrollment!$A$2:$G$147,5,0),0) -> 236 | F60: 107491 | G60: =IFERROR(VLOOKUP(B60,Enrollment!$A$2:$G$147,6,0),0) -> 49 | H60: 5580 | I60: =IFERROR(VLOOKUP(B60,Enrollment!$A$2:$G$147,7,0),0) -> 166 | J60: 75608 | K60: 188679 | L60: =IF(E60>$E$17,_xlfn.IFNA(VLOOKUP(B60,'other funds ftr 2023'!A:I,9,FALSE),0),1) -> 1.1 | M60: 207547 | N60: =1+IF(ISNA(VLOOKUP(B60,'Rural and Low Income 24-25'!$A:$B,2,FALSE)),0,$N$17) -> 1 | O60: 207547 | R60: 0 | S60: 207547 | T60: =IFERROR(VLOOKUP(B60,'2023-24 Final'!$B$19:$S$156,18,FALSE),0) -> 186340 | U60: 21207 | V60: y | Y60: 2500 | AA60: 210047
A61: 43 | B61: 39200 | D61: GRANDVIEW | E61: =IFERROR(VLOOKUP(B61,Enrollment!$A$2:$G$147,5,0),0) -> 599 | F61: 272827 | G61: =IFERROR(VLOOKUP(B61,Enrollment!$A$2:$G$147,6,0),0) -> 235 | H61: 26759 | I61: =IFERROR(VLOOKUP(B61,Enrollment!$A$2:$G$147,7,0),0) -> 292 | J61: 132998 | K61: 432584 | L61: =IF(E61>$E$17,_xlfn.IFNA(VLOOKUP(B61,'other funds ftr 2023'!A:I,9,FALSE),0),1) -> 1.05 | M61: 454213 | N61: =1+IF(ISNA(VLOOKUP(B61,'Rural and Low Income 24-25'!$A:$B,2,FALSE)),0,$N$17) -> 1 | O61: 454213 | R61: 0 | S61: 454213 | T61: =IFERROR(VLOOKUP(B61,'2023-24 Final'!$B$19:$S$156,18,FALSE),0) -> 418367 | U61: 35846 | V61: y | Y61: 4000 | AA61: 458213
A62: 44 | B62: 39204 | D62: GRANGER | E62: =IFERROR(VLOOKUP(B62,Enrollment!$A$2:$G$147,5,0),0) -> 317 | F62: 144384 | G62: =IFERROR(VLOOKUP(B62,Enrollment!$A$2:$G$147,6,0),0) -> 126 | H62: 14347 | I62: =IFERROR(VLOOKUP(B62,Enrollment!$A$2:$G$147,7,0),0) -> 126 | J62: 57389 | K62: 216120 | L62: =IF(E62>$E$17,_xlfn.IFNA(VLOOKUP(B62,'other funds ftr 2023'!A:I,9,FALSE),0),1) -> 1.05 | M62: 226926 | N62: =1+IF(ISNA(VLOOKUP(B62,'Rural and Low Income 24-25'!$A:$B,2,FALSE)),0,$N$17) -> 1.1 | O62: 249619 | R62: 0 | S62: 249619 | T62: =IFERROR(VLOOKUP(B62,'2023-24 Final'!$B$19:$S$156,18,FALSE),0) -> 273546 | U62: -23927 | V62: y | Y62: 2500 | AA62: 252119
A63: 45 | B63: 39203 | D63: HIGHLAND | E63: =IFERROR(VLOOKUP(B63,Enrollment!$A$2:$G$147,5,0),0) -> 211 | F63: 96104 | G63: =IFERROR(VLOOKUP(B63,Enrollment!$A$2:$G$147,6,0),0) -> 64 | H63: 7288 | I63: =IFERROR(VLOOKUP(B63,Enrollment!$A$2:$G$147,7,0),0) -> 121 | J63: 55112 | K63: 158504 | L63: =IF(E63>$E$17,_xlfn.IFNA(VLOOKUP(B63,'other funds ftr 2023'!A:I,9,FALSE),0),1) -> 1.05 | M63: 166429 | N63: =1+IF(ISNA(VLOOKUP(B63,'Rural and Low Income 24-25'!$A:$B,2,FALSE)),0,$N$17) -> 1 | O63: 166429 | R63: 0 | S63: 166429 | T63: =IFERROR(VLOOKUP(B63,'2023-24 Final'!$B$19:$S$156,18,FALSE),0) -> 150995 | U63: 15434 | V63: y | Y63: 2500 | AA63: 168929
A64: 46 | B64: 17401 | D64: HIGHLINE | E64: =IFERROR(VLOOKUP(B64,Enrollment!$A$2:$G$147,5,0),0) -> 0 | F64: 0 | G64: =IFERROR(VLOOKUP(B64,Enrollment!$A$2:$G$147,6,0),0) -> 0 | H64: 0 | I64: =IFERROR(VLOOKUP(B64,Enrollment!$A$2:$G$147,7,0),0) -> 0 | J64: 0 | K64: 0 | L64: =IF(E64>$E$17,_xlfn.IFNA(VLOOKUP(B64,'other funds ftr 2023'!A:I,9,FALSE),0),1) -> 1 | M64: 0 | N64: =1+IF(ISNA(VLOOKUP(B64,'Rural and Low Income 24-25'!$A:$B,2,FALSE)),0,$N$17) -> 1 | O64: 0 | R64: 0 | S64: 0 | T64: =IFERROR(VLOOKUP(B64,'2023-24 Final'!$B$19:$S$156,18,FALSE),0) -> 0 | U64: 0 | V64: n | X64: Y | Y64: 0 | AA64: 0
A65: 47 | B65: 23404 | D65: HOOD CANAL | E65: =IFERROR(VLOOKUP(B65,Enrollment!$A$2:$G$147,5,0),0) -> 44 | F65: 20041 | G65: =IFERROR(VLOOKUP(B65,Enrollment!$A$2:$G$147,6,0),0) -> 4 | H65: 455 | I65: =IFERROR(VLOOKUP(B65,Enrollment!$A$2:$G$147,7,0),0) -> 35 | J65: 15941 | K65: 36437 | L65: =IF(E65>$E$17,_xlfn.IFNA(VLOOKUP(B65,'other funds ftr 2023'!A:I,9,FALSE),0),1) -> 1 | M65: 36437 | N65: =1+IF(ISNA(VLOOKUP(B65,'Rural and Low Income 24-25'!$A:$B,2,FALSE)),0,$N$17) -> 1.1 | O65: 40081 | R65: 0 | S65: 40081 | T65: =IFERROR(VLOOKUP(B65,'2023-24 Final'!$B$19:$S$156,18,FALSE),0) -> 23306 | U65: 16775 | V65: y | Y65: 1500 | AA65: 41581
A66: 48 | B66: 14028 | D66: HOQUIAM | E66: =IFERROR(VLOOKUP(B66,Enrollment!$A$2:$G$147,5,0),0) -> 33 | F66: 15031 | G66: =IFERROR(VLOOKUP(B66,Enrollment!$A$2:$G$147,6,0),0) -> 22 | H66: 2505 | I66: =IFERROR(VLOOKUP(B66,Enrollment!$A$2:$G$147,7,0),0) -> 9 | J66: 4099 | K66: 21635 | L66: =IF(E66>$E$17,_xlfn.IFNA(VLOOKUP(B66,'other funds ftr 2023'!A:I,9,FALSE),0),1) -> 0 | M66: 21635 | N66: =1+IF(ISNA(VLOOKUP(B66,'Rural and Low Income 24-25'!$A:$B,2,FALSE)),0,$N$17) -> 1.1 | O66: 0 | R66: 0 | S66: 0 | T66: =IFERROR(VLOOKUP(B66,'2023-24 Final'!$B$19:$S$156,18,FALSE),0) -> 0 | U66: 0 | V66: n | Y66: 0 | AA66: 0
A67: 49 | B67: 10070 | D67: INCHELIUM | E67: =IFERROR(VLOOKUP(B67,Enrollment!$A$2:$G$147,5,0),0) -> 14 | F67: 6377 | G67: =IFERROR(VLOOKUP(B67,Enrollment!$A$2:$G$147,6,0),0) -> 3 | H67: 342 | I67: =IFERROR(VLOOKUP(B67,Enrollment!$A$2:$G$147,7,0),0) -> 10 | J67: 4555 | K67: 11274 | L67: =IF(E67>$E$17,_xlfn.IFNA(VLOOKUP(B67,'other funds ftr 2023'!A:I,9,FALSE),0),1) -> 0 | M67: 11274 | N67: =1+IF(ISNA(VLOOKUP(B67,'Rural and Low Income 24-25'!$A:$B,2,FALSE)),0,$N$17) -> 1.1 | O67: 12401 | R67: 0 | S67: 12401 | T67: =IFERROR(VLOOKUP(B67,'2023-24 Final'!$B$19:$S$156,18,FALSE),0) -> 0 | U67: 12401 | V67: y | Y67: 1500 | AA67: 13901
A68: 50 | B68: 08458 | D68: KELSO | E68: =IFERROR(VLOOKUP(B68,Enrollment!$A$2:$G$147,5,0),0) -> 32 | F68: 14575 | G68: =IFERROR(VLOOKUP(B68,Enrollment!$A$2:$G$147,6,0),0) -> 6 | H68: 683 | I68: =IFERROR(VLOOKUP(B68,Enrollment!$A$2:$G$147,7,0),0) -> 23 | J68: 10476 | K68: 25734 | L68: =IF(E68>$E$17,_xlfn.IFNA(VLOOKUP(B68,'other funds ftr 2023'!A:I,9,FALSE),0),1) -> 0 | M68: 25734 | N68: =1+IF(ISNA(VLOOKUP(B68,'Rural and Low Income 24-25'!$A:$B,2,FALSE)),0,$N$17) -> 1 | O68: 0 | R68: 0 | S68: 0 | T68: =IFERROR(VLOOKUP(B68,'2023-24 Final'!$B$19:$S$156,18,FALSE),0) -> 0 | U68: 0 | V68: n | Y68: 0 | AA68: 0
A69: 51 | B69: 03017 | D69: KENNEWICK | E69: =IFERROR(VLOOKUP(B69,Enrollment!$A$2:$G$147,5,0),0) -> 2734 | F69: 1245259 | G69: =IFERROR(VLOOKUP(B69,Enrollment!$A$2:$G$147,6,0),0) -> 1199 | H69: 136528 | I69: =IFERROR(VLOOKUP(B69,Enrollment!$A$2:$G$147,7,0),0) -> 1184 | J69: 539278 | K69: 1921065 | L69: =IF(E69>$E$17,_xlfn.IFNA(VLOOKUP(B69,'other funds ftr 2023'!A:I,9,FALSE),0),1) -> 1.05 | M69: 2017118 | N69: =1+IF(ISNA(VLOOKUP(B69,'Rural and Low Income 24-25'!$A:$B,2,FALSE)),0,$N$17) -> 1 | O69: 2017118 | R69: 0 | S69: 2017118 | T69: =IFERROR(VLOOKUP(B69,'2023-24 Final'!$B$19:$S$156,18,FALSE),0) -> 2084988 | U69: -67870 | V69: y | Y69: 4000 | AA69: 2021118
A70: 52 | B70: 17415 | D70: KENT | E70: =IFERROR(VLOOKUP(B70,Enrollment!$A$2:$G$147,5,0),0) -> 26 | F70: 11842 | G70: =IFERROR(VLOOKUP(B70,Enrollment!$A$2:$G$147,6,0),0) -> 11 | H70: 1253 | I70: =IFERROR(VLOOKUP(B70,Enrollment!$A$2:$G$147,7,0),0) -> 14 | J70: 6377 | K70: 19472 | L70: =IF(E70>$E$17,_xlfn.IFNA(VLOOKUP(B70,'other funds ftr 2023'!A:I,9,FALSE),0),1) -> 0 | M70: 19472 | N70: =1+IF(ISNA(VLOOKUP(B70,'Rural and Low Income 24-25'!$A:$B,2,FALSE)),0,$N$17) -> 1 | O70: 0 | R70: 0 | S70: 0 | T70: =IFERROR(VLOOKUP(B70,'2023-24 Final'!$B$19:$S$156,18,FALSE),0) -> 0 | U70: 0 | V70: n | Y70: 0 | AA70: 0
A71: 53 | B71: 03052 | D71: KIONA-BENTON CITY | E71: =IFERROR(VLOOKUP(B71,Enrollment!$A$2:$G$147,5,0),0) -> 330 | F71: 150306 | G71: =IFERROR(VLOOKUP(B71,Enrollment!$A$2:$G$147,6,0),0) -> 123 | H71: 14006 | I71: =IFERROR(VLOOKUP(B71,Enrollment!$A$2:$G$147,7,0),0) -> 166 | J71: 75608 | K71: 239920 | L71: =IF(E71>$E$17,_xlfn.IFNA(VLOOKUP(B71,'other funds ftr 2023'!A:I,9,FALSE),0),1) -> 1.1 | M71: 263912 | N71: =1+IF(ISNA(VLOOKUP(B71,'Rural and Low Income 24-25'!$A:$B,2,FALSE)),0,$N$17) -> 1 | O71: 263912 | R71: 0 | S71: 263912 | T71: =IFERROR(VLOOKUP(B71,'2023-24 Final'!$B$19:$S$156,18,FALSE),0) -> 297413 | U71: -33501 | V71: y | Y71: 2500 | AA71: 266412
A72: 54 | B72: 19403 | D72: KITTITAS | E72: =IFERROR(VLOOKUP(B72,Enrollment!$A$2:$G$147,5,0),0) -> 22 | F72: 10020 | G72: =IFERROR(VLOOKUP(B72,Enrollment!$A$2:$G$147,6,0),0) -> 6 | H72: 683 | I72: =IFERROR(VLOOKUP(B72,Enrollment!$A$2:$G$147,7,0),0) -> 14 | J72: 6377 | K72: 17080 | L72: =IF(E72>$E$17,_xlfn.IFNA(VLOOKUP(B72,'other funds ftr 2023'!A:I,9,FALSE),0),1) -> 0 | M72: 17080 | N72: =1+IF(ISNA(VLOOKUP(B72,'Rural and Low Income 24-25'!$A:$B,2,FALSE)),0,$N$17) -> 1 | O72: 0 | R72: 0 | S72: 0 | T72: =IFERROR(VLOOKUP(B72,'2023-24 Final'!$B$19:$S$156,18,FALSE),0) -> 0 | U72: 0 | V72: n | Y72: 0 | AA72: 0
A73: 55 | B73: 29311 | D73: LA CONNER | E73: =IFERROR(VLOOKUP(B73,Enrollment!$A$2:$G$147,5,0),0) -> 144 | F73: 65588 | G73: =IFERROR(VLOOKUP(B73,Enrollment!$A$2:$G$147,6,0),0) -> 59 | H73: 6718 | I73: =IFERROR(VLOOKUP(B73,Enrollment!$A$2:$G$147,7,0),0) -> 76 | J73: 34616 | K73: 106922 | L73: =IF(E73>$E$17,_xlfn.IFNA(VLOOKUP(B73,'other funds ftr 2023'!A:I,9,FALSE),0),1) -> 1.1 | M73: 117614 | N73: =1+IF(ISNA(VLOOKUP(B73,'Rural and Low Income 24-25'!$A:$B,2,FALSE)),0,$N$17) -> 1.1 | O73: 129375 | R73: 0 | S73: 129375 | T73: =IFERROR(VLOOKUP(B73,'2023-24 Final'!$B$19:$S$156,18,FALSE),0) -> 149862 | U73: -20487 | V73: y | Y73: 2500 | AA73: 131875
A74: 56 | B74: 04129 | D74: LAKE CHELAN | E74: =IFERROR(VLOOKUP(B74,Enrollment!$A$2:$G$147,5,0),0) -> 162 | F74: 73786 | G74: =IFERROR(VLOOKUP(B74,Enrollment!$A$2:$G$147,6,0),0) -> 46 | H74: 5238 | I74: =IFERROR(VLOOKUP(B74,Enrollment!$A$2:$G$147,7,0),0) -> 99 | J74: 45092 | K74: 124116 | L74: =IF(E74>$E$17,_xlfn.IFNA(VLOOKUP(B74,'other funds ftr 2023'!A:I,9,FALSE),0),1) -> 1.05 | M74: 130322 | N74: =1+IF(ISNA(VLOOKUP(B74,'Rural and Low Income 24-25'!$A:$B,2,FALSE)),0,$N$17) -> 1 | O74: 130322 | R74: 0 | S74: 130322 | T74: =IFERROR(VLOOKUP(B74,'2023-24 Final'!$B$19:$S$156,18,FALSE),0) -> 113947 | U74: 16375 | V74: y | Y74: 2500 | AA74: 132822
A75: 57 | B75: 31306 | D75: LAKEWOOD | E75: =IFERROR(VLOOKUP(B75,Enrollment!$A$2:$G$147,5,0),0) -> 15 | F75: 6832 | G75: =IFERROR(VLOOKUP(B75,Enrollment!$A$2:$G$147,6,0),0) -> 0 | H75: 0 | I75: =IFERROR(VLOOKUP(B75,Enrollment!$A$2:$G$147,7,0),0) -> 15 | J75: 6832 | K75: 13664 | L75: =IF(E75>$E$17,_xlfn.IFNA(VLOOKUP(B75,'other funds ftr 2023'!A:I,9,FALSE),0),1) -> 0 | M75: 13664 | N75: =1+IF(ISNA(VLOOKUP(B75,'Rural and Low Income 24-25'!$A:$B,2,FALSE)),0,$N$17) -> 1 | O75: 13664 | R75: 0 | S75: 13664 | T75: =IFERROR(VLOOKUP(B75,'2023-24 Final'!$B$19:$S$156,18,FALSE),0) -> 0 | U75: 13664 | V75: y | Y75: 1500 | AA75: 15164
A76: 58 | B76: 01158 | D76: LIND | E76: =IFERROR(VLOOKUP(B76,Enrollment!$A$2:$G$147,5,0),0) -> 40 | F76: 18219 | G76: =IFERROR(VLOOKUP(B76,Enrollment!$A$2:$G$147,6,0),0) -> 7 | H76: 797 | I76: =IFERROR(VLOOKUP(B76,Enrollment!$A$2:$G$147,7,0),0) -> 25 | J76: 11387 | K76: 30403 | L76: =IF(E76>$E$17,_xlfn.IFNA(VLOOKUP(B76,'other funds ftr 2023'!A:I,9,FALSE),0),1) -> 1.05 | M76: 31923 | N76: =1+IF(ISNA(VLOOKUP(B76,'Rural and Low Income 24-25'!$A:$B,2,FALSE)),0,$N$17) -> 1.1 | O76: 35115 | R76: 0 | S76: 35115 | T76: =IFERROR(VLOOKUP(B76,'2023-24 Final'!$B$19:$S$156,18,FALSE),0) -> 33092 | U76: 2023 | V76: y | Y76: 1500 | AA76: 36615
A77: 59 | B77: 08122 | D77: LONGVIEW | E77: =IFERROR(VLOOKUP(B77,Enrollment!$A$2:$G$147,5,0),0) -> 36 | F77: 16397 | G77: =IFERROR(VLOOKUP(B77,Enrollment!$A$2:$G$147,6,0),0) -> 11 | H77: 1253 | I77: =IFERROR(VLOOKUP(B77,Enrollment!$A$2:$G$147,7,0),0) -> 18 | J77: 8198 | K77: 25848 | L77: =IF(E77>$E$17,_xlfn.IFNA(VLOOKUP(B77,'other funds ftr 2023'!A:I,9,FALSE),0),1) -> 0 | M77: 25848 | N77: =1+IF(ISNA(VLOOKUP(B77,'Rural and Low Income 24-25'!$A:$B,2,FALSE)),0,$N$17) -> 1 | O77: 0 | R77: 0 | S77: 0 | T77: =IFERROR(VLOOKUP(B77,'2023-24 Final'!$B$19:$S$156,18,FALSE),0) -> 0 | U77: 0 | V77: n | Y77: 0 | AA77: 0
A78: 60 | B78: 20406 | D78: LYLE | E78: =IFERROR(VLOOKUP(B78,Enrollment!$A$2:$G$147,5,0),0) -> 19 | F78: 8654 | G78: =IFERROR(VLOOKUP(B78,Enrollment!$A$2:$G$147,6,0),0) -> 0 | H78: 0 | I78: =IFERROR(VLOOKUP(B78,Enrollment!$A$2:$G$147,7,0),0) -> 13 | J78: 5921 | K78: 14575 | L78: =IF(E78>$E$17,_xlfn.IFNA(VLOOKUP(B78,'other funds ftr 2023'!A:I,9,FALSE),0),1) -> 1.05 | M78: 15304 | N78: =1+IF(ISNA(VLOOKUP(B78,'Rural and Low Income 24-25'!$A:$B,2,FALSE)),0,$N$17) -> 1.1 | O78: 0 | R78: 0 | S78: 0 | T78: =IFERROR(VLOOKUP(B78,'2023-24 Final'!$B$19:$S$156,18,FALSE),0) -> 21555 | U78: -21555 | V78: n | Y78: 0 | AA78: 0
A79: 61 | B79: 37504 | D79: LYNDEN | E79: =IFERROR(VLOOKUP(B79,Enrollment!$A$2:$G$147,5,0),0) -> 106 | F79: 48280 | G79: =IFERROR(VLOOKUP(B79,Enrollment!$A$2:$G$147,6,0),0) -> 36 | H79: 4099 | I79: =IFERROR(VLOOKUP(B79,Enrollment!$A$2:$G$147,7,0),0) -> 46 | J79: 20952 | K79: 73331 | L79: =IF(E79>$E$17,_xlfn.IFNA(VLOOKUP(B79,'other funds ftr 2023'!A:I,9,FALSE),0),1) -> 1 | M79: 73331 | N79: =1+IF(ISNA(VLOOKUP(B79,'Rural and Low Income 24-25'!$A:$B,2,FALSE)),0,$N$17) -> 1 | O79: 73331 | R79: 0 | S79: 73331 | T79: =IFERROR(VLOOKUP(B79,'2023-24 Final'!$B$19:$S$156,18,FALSE),0) -> 84748 | U79: -11417 | V79: y | Y79: 2500 | AA79: 75831
A80: 62 | B80: 39120 | D80: MABTON | E80: =IFERROR(VLOOKUP(B80,Enrollment!$A$2:$G$147,5,0),0) -> 353 | F80: 160781 | G80: =IFERROR(VLOOKUP(B80,Enrollment!$A$2:$G$147,6,0),0) -> 139 | H80: 15828 | I80: =IFERROR(VLOOKUP(B80,Enrollment!$A$2:$G$147,7,0),0) -> 179 | J80: 81529 | K80: 258138 | L80: =IF(E80>$E$17,_xlfn.IFNA(VLOOKUP(B80,'other funds ftr 2023'!A:I,9,FALSE),0),1) -> 1.1 | M80: 283952 | N80: =1+IF(ISNA(VLOOKUP(B80,'Rural and Low Income 24-25'!$A:$B,2,FALSE)),0,$N$17) -> 1.1 | O80: 312347 | R80: 0 | S80: 312347 | T80: =IFERROR(VLOOKUP(B80,'2023-24 Final'!$B$19:$S$156,18,FALSE),0) -> 337724 | U80: -25377 | V80: y | Y80: 2500 | AA80: 314847
A81: 63 | B81: 04019 | D81: MANSON | E81: =IFERROR(VLOOKUP(B81,Enrollment!$A$2:$G$147,5,0),0) -> 95 | F81: 43270 | G81: =IFERROR(VLOOKUP(B81,Enrollment!$A$2:$G$147,6,0),0) -> 27 | H81: 3074 | I81: =IFERROR(VLOOKUP(B81,Enrollment!$A$2:$G$147,7,0),0) -> 53 | J81: 24140 | K81: 70484 | L81: =IF(E81>$E$17,_xlfn.IFNA(VLOOKUP(B81,'other funds ftr 2023'!A:I,9,FALSE),0),1) -> 1.05 | M81: 74008 | N81: =1+IF(ISNA(VLOOKUP(B81,'Rural and Low Income 24-25'!$A:$B,2,FALSE)),0,$N$17) -> 1.1 | O81: 81409 | R81: 0 | S81: 81409 | T81: =IFERROR(VLOOKUP(B81,'2023-24 Final'!$B$19:$S$156,18,FALSE),0) -> 58487 | U81: 22922 | V81: y | Y81: 1500 | AA81: 82909
A82: 64 | B82: 33207 | D82: MARY WALKER | E82: =IFERROR(VLOOKUP(B82,Enrollment!$A$2:$G$147,5,0),0) -> 16 | F82: 7288 | G82: =IFERROR(VLOOKUP(B82,Enrollment!$A$2:$G$147,6,0),0) -> 1 | H82: 114 | I82: =IFERROR(VLOOKUP(B82,Enrollment!$A$2:$G$147,7,0),0) -> 13 | J82: 5921 | K82: 13323 | L82: =IF(E82>$E$17,_xlfn.IFNA(VLOOKUP(B82,'other funds ftr 2023'!A:I,9,FALSE),0),1) -> 0 | M82: 13323 | N82: =1+IF(ISNA(VLOOKUP(B82,'Rural and Low Income 24-25'!$A:$B,2,FALSE)),0,$N$17) -> 1.1 | O82: 0 | R82: 0 | S82: 0 | T82: =IFERROR(VLOOKUP(B82,'2023-24 Final'!$B$19:$S$156,18,FALSE),0) -> 0 | U82: 0 | V82: n | Y82: 0 | AA82: 0
A83: 65 | B83: 31025 | D83: MARYSVILLE | E83: =IFERROR(VLOOKUP(B83,Enrollment!$A$2:$G$147,5,0),0) -> 321 | F83: 146206 | G83: =IFERROR(VLOOKUP(B83,Enrollment!$A$2:$G$147,6,0),0) -> 68 | H83: 7743 | I83: =IFERROR(VLOOKUP(B83,Enrollment!$A$2:$G$147,7,0),0) -> 220 | J83: 100204 | K83: =+F83+H83+J83 -> 254153 | L83: =IF(E83>$E$17,_xlfn.IFNA(VLOOKUP(B83,'other funds ftr 2023'!A:I,9,FALSE),0),1) -> 1 | M83: =IF(L83=0,K83,ROUND(K83*L83,0)) -> 254153 | N83: =1+IF(ISNA(VLOOKUP(B83,'Rural and Low Income 24-25'!$A:$B,2,FALSE)),0,$N$17) -> 1 | O83: =IF(V83="y",ROUND(M83*N83,0),0) -> 254153 | R83: 0 | S83: =O83+R83 -> 254153 | T83: =IFERROR(VLOOKUP(B83,'2023-24 Final'!$B$19:$S$156,18,FALSE),0) -> 194125 | U83: =S83-T83 -> 60028 | V83: y | Y83: 2500 | AA83: 256653
A84: 66 | B84: 37505 | D84: MERIDIAN | E84: =IFERROR(VLOOKUP(B84,Enrollment!$A$2:$G$147,5,0),0) -> 41 | F84: =IF(E84>=10,ROUND(E84*$G$3,0),0) -> 18674 | G84: =IFERROR(VLOOKUP(B84,Enrollment!$A$2:$G$147,6,0),0) -> 12 | H84: =IF(E84>=$E$17,ROUND(G84*$G$3*$G$17,0),0) -> 1366 | I84: =IFERROR(VLOOKUP(B84,Enrollment!$A$2:$G$147,7,0),0) -> 28 | J84: =IF(E84>=$E$17,ROUND(I84*$G$3*$I$17,0),0) -> 12753 | K84: 32793 | L84: =IF(E84>$E$17,_xlfn.IFNA(VLOOKUP(B84,'other funds ftr 2023'!A:I,9,FALSE),0),1) -> 1 | M84: 32793 | N84: =1+IF(ISNA(VLOOKUP(B84,'Rural and Low Income 24-25'!$A:$B,2,FALSE)),0,$N$17) -> 1 | O84: 32793 | R84: 0 | S84: 32793 | T84: =IFERROR(VLOOKUP(B84,'2023-24 Final'!$B$19:$S$156,18,FALSE),0) -> 31830 | U84: 963 | V84: y | Y84: =IF(V84="Y",IF(E84<=99,1500,IF(AND(E84>=100,E84<=399),2500,4000)),0) -> 1500 | AA84: =IF(W84=1, 0, Y84+S84+Z84) -> 34293
A85: 67 | B85: 31103 | D85: MONROE | E85: =IFERROR(VLOOKUP(B85,Enrollment!$A$2:$G$147,5,0),0) -> 19 | F85: 8654 | G85: =IFERROR(VLOOKUP(B85,Enrollment!$A$2:$G$147,6,0),0) -> 6 | H85: 683 | I85: =IFERROR(VLOOKUP(B85,Enrollment!$A$2:$G$147,7,0),0) -> 10 | J85: 4555 | K85: 13892 | L85: =IF(E85>$E$17,_xlfn.IFNA(VLOOKUP(B85,'other funds ftr 2023'!A:I,9,FALSE),0),1) -> 0 | M85: 13892 | N85: =1+IF(ISNA(VLOOKUP(B85,'Rural and Low Income 24-25'!$A:$B,2,FALSE)),0,$N$17) -> 1 | O85: 0 | R85: 0 | S85: 0 | T85: =IFERROR(VLOOKUP(B85,'2023-24 Final'!$B$19:$S$156,18,FALSE),0) -> 0 | U85: 0 | V85: n | X85: Y | Y85: 0 | AA85: 0
A86: 68 | B86: 13161 | D86: MOSES LAKE | E86: =IFERROR(VLOOKUP(B86,Enrollment!$A$2:$G$147,5,0),0) -> 475 | F86: 216349 | G86: =IFERROR(VLOOKUP(B86,Enrollment!$A$2:$G$147,6,0),0) -> 146 | H86: 16625 | I86: =IFERROR(VLOOKUP(B86,Enrollment!$A$2:$G$147,7,0),0) -> 297 | J86: 135275 | K86: 368249 | L86: =IF(E86>$E$17,_xlfn.IFNA(VLOOKUP(B86,'other funds ftr 2023'!A:I,9,FALSE),0),1) -> 1 | M86: 368249 | N86: =1+IF(ISNA(VLOOKUP(B86,'Rural and Low Income 24-25'!$A:$B,2,FALSE)),0,$N$17) -> 1 | O86: 368249 | R86: 0 | S86: 368249 | T86: =IFERROR(VLOOKUP(B86,'2023-24 Final'!$B$19:$S$156,18,FALSE),0) -> 322609 | U86: 45640 | V86: y | X86: Y | Y86: 4000 | AA86: 372249
A87: 69 | B87: 21206 | D87: MOSSYROCK | E87: =IFERROR(VLOOKUP(B87,Enrollment!$A$2:$G$147,5,0),0) -> 26 | F87: 11842 | G87: =IFERROR(VLOOKUP(B87,Enrollment!$A$2:$G$147,6,0),0) -> 15 | H87: 1708 | I87: =IFERROR(VLOOKUP(B87,Enrollment!$A$2:$G$147,7,0),0) -> 7 | J87: 3188 | K87: 16738 | L87: =IF(E87>$E$17,_xlfn.IFNA(VLOOKUP(B87,'other funds ftr 2023'!A:I,9,FALSE),0),1) -> 1 | M87: 16738 | N87: =1+IF(ISNA(VLOOKUP(B87,'Rural and Low Income 24-25'!$A:$B,2,FALSE)),0,$N$17) -> 1.1 | O87: 18412 | R87: 0 | S87: 18412 | T87: =IFERROR(VLOOKUP(B87,'2023-24 Final'!$B$19:$S$156,18,FALSE),0) -> 34685 | U87: -16273 | V87: y | Y87: 1500 | AA87: 19912
A88: 70 | B88: 39209 | D88: MOUNT ADAMS | E88: =IFERROR(VLOOKUP(B88,Enrollment!$A$2:$G$147,5,0),0) -> 239 | F88: 108858 | G88: =IFERROR(VLOOKUP(B88,Enrollment!$A$2:$G$147,6,0),0) -> 125 | H88: 14233 | I88: =IFERROR(VLOOKUP(B88,Enrollment!$A$2:$G$147,7,0),0) -> 82 | J88: 37349 | K88: 160440 | L88: =IF(E88>$E$17,_xlfn.IFNA(VLOOKUP(B88,'other funds ftr 2023'!A:I,9,FALSE),0),1) -> 1.1 | M88: 176484 | N88: =1+IF(ISNA(VLOOKUP(B88,'Rural and Low Income 24-25'!$A:$B,2,FALSE)),0,$N$17) -> 1.1 | O88: 194132 | R88: 0 | S88: 194132 | T88: =IFERROR(VLOOKUP(B88,'2023-24 Final'!$B$19:$S$156,18,FALSE),0) -> 178880 | U88: 15252 | V88: y | Y88: 2500 | AA88: 196632
A89: 71 | B89: 37507 | D89: MOUNT BAKER | E89: =IFERROR(VLOOKUP(B89,Enrollment!$A$2:$G$147,5,0),0) -> 30 | F89: 13664 | G89: =IFERROR(VLOOKUP(B89,Enrollment!$A$2:$G$147,6,0),0) -> 17 | H89: 1936 | I89: =IFERROR(VLOOKUP(B89,Enrollment!$A$2:$G$147,7,0),0) -> 11 | J89: 5010 | K89: 20610 | L89: =IF(E89>$E$17,_xlfn.IFNA(VLOOKUP(B89,'other funds ftr 2023'!A:I,9,FALSE),0),1) -> 1 | M89: 20610 | N89: =1+IF(ISNA(VLOOKUP(B89,'Rural and Low Income 24-25'!$A:$B,2,FALSE)),0,$N$17) -> 1 | O89: 20610 | R89: 0 | S89: 20610 | T89: =IFERROR(VLOOKUP(B89,'2023-24 Final'!$B$19:$S$156,18,FALSE),0) -> 32974 | U89: -12364 | V89: y | Y89: 1500 | AA89: 22110
A90: 72 | B90: 29320 | D90: MOUNT VERNON | E90: =IFERROR(VLOOKUP(B90,Enrollment!$A$2:$G$147,5,0),0) -> 1857 | F90: 845810 | G90: =IFERROR(VLOOKUP(B90,Enrollment!$A$2:$G$147,6,0),0) -> 753 | H90: 85742 | I90: =IFERROR(VLOOKUP(B90,Enrollment!$A$2:$G$147,7,0),0) -> 874 | J90: 398082 | K90: 1329634 | L90: =IF(E90>$E$17,_xlfn.IFNA(VLOOKUP(B90,'other funds ftr 2023'!A:I,9,FALSE),0),1) -> 1.1 | M90: 1462597 | N90: =1+IF(ISNA(VLOOKUP(B90,'Rural and Low Income 24-25'!$A:$B,2,FALSE)),0,$N$17) -> 1 | O90: 1462597 | R90: 0 | S90: 1462597 | T90: =IFERROR(VLOOKUP(B90,'2023-24 Final'!$B$19:$S$156,18,FALSE),0) -> 1143646 | U90: 318951 | V90: y | Y90: 4000 | AA90: 1466597
A91: 73 | B91: 17903 | D91: MUCKLESHOOT INDIAN TRIBE | E91: =IFERROR(VLOOKUP(B91,Enrollment!$A$2:$G$147,5,0),0) -> 18 | F91: 8198 | G91: =IFERROR(VLOOKUP(B91,Enrollment!$A$2:$G$147,6,0),0) -> 7 | H91: 797 | I91: =IFERROR(VLOOKUP(B91,Enrollment!$A$2:$G$147,7,0),0) -> 7 | J91: 3188 | K91: 12183 | L91: =IF(E91>$E$17,_xlfn.IFNA(VLOOKUP(B91,'other funds ftr 2023'!A:I,9,FALSE),0),1) -> 0 | M91: 12183 | N91: =1+IF(ISNA(VLOOKUP(B91,'Rural and Low Income 24-25'!$A:$B,2,FALSE)),0,$N$17) -> 1 | O91: 0 | R91: 0 | S91: 0 | T91: =IFERROR(VLOOKUP(B91,'2023-24 Final'!$B$19:$S$156,18,FALSE),0) -> 0 | U91: 0 | V91: n | Y91: 0 | AA91: 0
A92: 74 | B92: 31006 | D92: MUKILTEO | E92: =IFERROR(VLOOKUP(B92,Enrollment!$A$2:$G$147,5,0),0) -> 37 | F92: 16852 | G92: =IFERROR(VLOOKUP(B92,Enrollment!$A$2:$G$147,6,0),0) -> 7 | H92: 797 | I92: =IFERROR(VLOOKUP(B92,Enrollment!$A$2:$G$147,7,0),0) -> 27 | J92: 12298 | K92: 29947 | L92: =IF(E92>$E$17,_xlfn.IFNA(VLOOKUP(B92,'other funds ftr 2023'!A:I,9,FALSE),0),1) -> 0 | M92: 29947 | N92: =1+IF(ISNA(VLOOKUP(B92,'Rural and Low Income 24-25'!$A:$B,2,FALSE)),0,$N$17) -> 1 | O92: 0 | R92: 0 | S92: 0 | T92: =IFERROR(VLOOKUP(B92,'2023-24 Final'!$B$19:$S$156,18,FALSE),0) -> 0 | U92: 0 | V92: n | Y92: 0 | AA92: 0
A93: 75 | B93: 39003 | D93: NACHES VALLEY | E93: =IFERROR(VLOOKUP(B93,Enrollment!$A$2:$G$147,5,0),0) -> 118 | F93: 53746 | G93: =IFERROR(VLOOKUP(B93,Enrollment!$A$2:$G$147,6,0),0) -> 13 | H93: 1480 | I93: =IFERROR(VLOOKUP(B93,Enrollment!$A$2:$G$147,7,0),0) -> 96 | J93: 43725 | K93: 98951 | L93: =IF(E93>$E$17,_xlfn.IFNA(VLOOKUP(B93,'other funds ftr 2023'!A:I,9,FALSE),0),1) -> 0 | M93: 98951 | N93: =1+IF(ISNA(VLOOKUP(B93,'Rural and Low Income 24-25'!$A:$B,2,FALSE)),0,$N$17) -> 1 | O93: 0 | R93: 0 | S93: 0 | T93: =IFERROR(VLOOKUP(B93,'2023-24 Final'!$B$19:$S$156,18,FALSE),0) -> 0 | U93: 0 | V93: n | Y93: 0 | AA93: 0
A94: 76 | B94: 25155 | D94: NASELLE-GRAYS RIVER VALLEY | E94: =IFERROR(VLOOKUP(B94,Enrollment!$A$2:$G$147,5,0),0) -> 56 | F94: 25506 | G94: =IFERROR(VLOOKUP(B94,Enrollment!$A$2:$G$147,6,0),0) -> 13 | H94: 1480 | I94: =IFERROR(VLOOKUP(B94,Enrollment!$A$2:$G$147,7,0),0) -> 28 | J94: 12753 | K94: 39739 | L94: =IF(E94>$E$17,_xlfn.IFNA(VLOOKUP(B94,'other funds ftr 2023'!A:I,9,FALSE),0),1) -> 1.1 | M94: 43713 | N94: =1+IF(ISNA(VLOOKUP(B94,'Rural and Low Income 24-25'!$A:$B,2,FALSE)),0,$N$17) -> 1.1 | O94: 48084 | R94: 0 | S94: 48084 | T94: =IFERROR(VLOOKUP(B94,'2023-24 Final'!$B$19:$S$156,18,FALSE),0) -> 38126 | U94: 9958 | V94: y | Y94: 1500 | AA94: 49584
A95: 77 | B95: 24014 | D95: NESPELEM | E95: =IFERROR(VLOOKUP(B95,Enrollment!$A$2:$G$147,5,0),0) -> 65 | F95: 29606 | G95: =IFERROR(VLOOKUP(B95,Enrollment!$A$2:$G$147,6,0),0) -> 32 | H95: 3644 | I95: =IFERROR(VLOOKUP(B95,Enrollment!$A$2:$G$147,7,0),0) -> 14 | J95: 6377 | K95: 39627 | L95: =IF(E95>$E$17,_xlfn.IFNA(VLOOKUP(B95,'other funds ftr 2023'!A:I,9,FALSE),0),1) -> 1.1 | M95: 43590 | N95: =1+IF(ISNA(VLOOKUP(B95,'Rural and Low Income 24-25'!$A:$B,2,FALSE)),0,$N$17) -> 1.1 | O95: 47949 | R95: 0 | S95: 47949 | T95: =IFERROR(VLOOKUP(B95,'2023-24 Final'!$B$19:$S$156,18,FALSE),0) -> 47103 | U95: 846 | V95: y | Y95: 1500 | AA95: 49449
A96: 78 | B96: 37506 | D96: NOOKSACK VALLEY | E96: =IFERROR(VLOOKUP(B96,Enrollment!$A$2:$G$147,5,0),0) -> 125 | F96: 56934 | G96: =IFERROR(VLOOKUP(B96,Enrollment!$A$2:$G$147,6,0),0) -> 30 | H96: 3416 | I96: =IFERROR(VLOOKUP(B96,Enrollment!$A$2:$G$147,7,0),0) -> 75 | J96: 34160 | K96: 94510 | L96: =IF(E96>$E$17,_xlfn.IFNA(VLOOKUP(B96,'other funds ftr 2023'!A:I,9,FALSE),0),1) -> 1 | M96: 94510 | N96: =1+IF(ISNA(VLOOKUP(B96,'Rural and Low Income 24-25'!$A:$B,2,FALSE)),0,$N$17) -> 1 | O96: 94510 | R96: 0 | S96: 94510 | T96: =IFERROR(VLOOKUP(B96,'2023-24 Final'!$B$19:$S$156,18,FALSE),0) -> 93700 | U96: 810 | V96: y | Y96: 2500 | AA96: 97010
A97: 79 | B97: 14064 | D97: NORTH BEACH | E97: =IFERROR(VLOOKUP(B97,Enrollment!$A$2:$G$147,5,0),0) -> 33 | F97: 15031 | G97: =IFERROR(VLOOKUP(B97,Enrollment!$A$2:$G$147,6,0),0) -> 17 | H97: 1936 | I97: =IFERROR(VLOOKUP(B97,Enrollment!$A$2:$G$147,7,0),0) -> 12 | J97: 5466 | K97: 22433 | L97: =IF(E97>$E$17,_xlfn.IFNA(VLOOKUP(B97,'other funds ftr 2023'!A:I,9,FALSE),0),1) -> 0 | M97: 22433 | N97: =1+IF(ISNA(VLOOKUP(B97,'Rural and Low Income 24-25'!$A:$B,2,FALSE)),0,$N$17) -> 1.1 | O97: 24676 | R97: 0 | S97: 24676 | T97: =IFERROR(VLOOKUP(B97,'2023-24 Final'!$B$19:$S$156,18,FALSE),0) -> 0 | U97: 24676 | V97: y | Y97: 1500 | AA97: 26176
A98: 80 | B98: 11051 | D98: NORTH FRANKLIN | E98: =IFERROR(VLOOKUP(B98,Enrollment!$A$2:$G$147,5,0),0) -> 618 | F98: 281481 | G98: =IFERROR(VLOOKUP(B98,Enrollment!$A$2:$G$147,6,0),0) -> 226 | H98: 25734 | I98: =IFERROR(VLOOKUP(B98,Enrollment!$A$2:$G$147,7,0),0) -> 327 | J98: 148939 | K98: 456154 | L98: =IF(E98>$E$17,_xlfn.IFNA(VLOOKUP(B98,'other funds ftr 2023'!A:I,9,FALSE),0),1) -> 1.1 | M98: 501769 | N98: =1+IF(ISNA(VLOOKUP(B98,'Rural and Low Income 24-25'!$A:$B,2,FALSE)),0,$N$17) -> 1 | O98: 501769 | R98: 0 | S98: 501769 | T98: =IFERROR(VLOOKUP(B98,'2023-24 Final'!$B$19:$S$156,18,FALSE),0) -> 537860 | U98: -36091 | V98: y | Y98: 4000 | AA98: 505769
A99: 81 | B99: 18400 | D99: NORTH KITSAP | E99: =IFERROR(VLOOKUP(B99,Enrollment!$A$2:$G$147,5,0),0) -> 39 | F99: 17763 | G99: =IFERROR(VLOOKUP(B99,Enrollment!$A$2:$G$147,6,0),0) -> 4 | H99: 455 | I99: =IFERROR(VLOOKUP(B99,Enrollment!$A$2:$G$147,7,0),0) -> 28 | J99: 12753 | K99: 30971 | L99: =IF(E99>$E$17,_xlfn.IFNA(VLOOKUP(B99,'other funds ftr 2023'!A:I,9,FALSE),0),1) -> 0 | M99: 30971 | N99: =1+IF(ISNA(VLOOKUP(B99,'Rural and Low Income 24-25'!$A:$B,2,FALSE)),0,$N$17) -> 1 | O99: 0 | R99: 0 | S99: 0 | T99: =IFERROR(VLOOKUP(B99,'2023-24 Final'!$B$19:$S$156,18,FALSE),0) -> 0 | U99: 0 | V99: n | Y99: 0 | AA99: 0
A100: 82 | B100: 23403 | D100: NORTH MASON | E100: =IFERROR(VLOOKUP(B100,Enrollment!$A$2:$G$147,5,0),0) -> 0 | F100: 0 | G100: =IFERROR(VLOOKUP(B100,Enrollment!$A$2:$G$147,6,0),0) -> 0 | H100: 0 | I100: =IFERROR(VLOOKUP(B100,Enrollment!$A$2:$G$147,7,0),0) -> 0 | J100: 0 | K100: 0 | L100: =IF(E100>$E$17,_xlfn.IFNA(VLOOKUP(B100,'other funds ftr 2023'!A:I,9,FALSE),0),1) -> 1 | M100: 0 | N100: =1+IF(ISNA(VLOOKUP(B100,'Rural and Low Income 24-25'!$A:$B,2,FALSE)),0,$N$17) -> 1 | O100: 0 | R100: =ROUND(IF(Q100>0,-(0.9-Q100)*O100,0),0) -> 0 | S100: 0 | T100: =IFERROR(VLOOKUP(B100,'2023-24 Final'!$B$19:$S$156,18,FALSE),0) -> 9748 | U100: -9748 | V100: n | Y100: 0 | AA100: 0
A101: 83 | B101: 34003 | D101: NORTH THURSTON PUBLIC SCHOOLS | E101: =IFERROR(VLOOKUP(B101,Enrollment!$A$2:$G$147,5,0),0) -> 57 | F101: 25962 | G101: =IFERROR(VLOOKUP(B101,Enrollment!$A$2:$G$147,6,0),0) -> 9 | H101: 1025 | I101: =IFERROR(VLOOKUP(B101,Enrollment!$A$2:$G$147,7,0),0) -> 42 | J101: 19130 | K101: 46117 | L101: =IF(E101>$E$17,_xlfn.IFNA(VLOOKUP(B101,'other funds ftr 2023'!A:I,9,FALSE),0),1) -> 0.95 | M101: 43811 | N101: =1+IF(ISNA(VLOOKUP(B101,'Rural and Low Income 24-25'!$A:$B,2,FALSE)),0,$N$17) -> 1 | O101: 43811 | R101: 0 | S101: 43811 | T101: =IFERROR(VLOOKUP(B101,'2023-24 Final'!$B$19:$S$156,18,FALSE),0) -> 34019 | U101: 9792 | V101: y | Y101: 1500 | AA101: 45311
A102: 84 | B102: 15201 | D102: OAK HARBOR | E102: =IFERROR(VLOOKUP(B102,Enrollment!$A$2:$G$147,5,0),0) -> 23 | F102: 10476 | G102: =IFERROR(VLOOKUP(B102,Enrollment!$A$2:$G$147,6,0),0) -> 10 | H102: 1139 | I102: =IFERROR(VLOOKUP(B102,Enrollment!$A$2:$G$147,7,0),0) -> 5 | J102: 2277 | K102: 13892 | L102: =IF(E102>$E$17,_xlfn.IFNA(VLOOKUP(B102,'other funds ftr 2023'!A:I,9,FALSE),0),1) -> 0.95 | M102: 13197 | N102: =1+IF(ISNA(VLOOKUP(B102,'Rural and Low Income 24-25'!$A:$B,2,FALSE)),0,$N$17) -> 1 | O102: 0 | R102: 0 | S102: 0 | T102: =IFERROR(VLOOKUP(B102,'2023-24 Final'!$B$19:$S$156,18,FALSE),0) -> 15915 | U102: -15915 | V102: n | Y102: 0 | AA102: 0
A103: 85 | B103: 25101 | D103: OCEAN BEACH | E103: =IFERROR(VLOOKUP(B103,Enrollment!$A$2:$G$147,5,0),0) -> 29 | F103: 13209 | G103: =IFERROR(VLOOKUP(B103,Enrollment!$A$2:$G$147,6,0),0) -> 26 | H103: 2961 | I103: =IFERROR(VLOOKUP(B103,Enrollment!$A$2:$G$147,7,0),0) -> 1 | J103: 455 | K103: 16625 | L103: =IF(E103>$E$17,_xlfn.IFNA(VLOOKUP(B103,'other funds ftr 2023'!A:I,9,FALSE),0),1) -> 1 | M103: 16625 | N103: =1+IF(ISNA(VLOOKUP(B103,'Rural and Low Income 24-25'!$A:$B,2,FALSE)),0,$N$17) -> 1 | O103: 16625 | R103: 0 | S103: 16625 | T103: =IFERROR(VLOOKUP(B103,'2023-24 Final'!$B$19:$S$156,18,FALSE),0) -> 21545 | U103: -4920 | V103: y | Y103: 1500 | Z103: 50000 | AA103: 68125
A104: 86 | B104: 14172 | D104: OCOSTA | E104: =IFERROR(VLOOKUP(B104,Enrollment!$A$2:$G$147,5,0),0) -> 27 | F104: 12298 | G104: =IFERROR(VLOOKUP(B104,Enrollment!$A$2:$G$147,6,0),0) -> 2 | H104: 228 | I104: =IFERROR(VLOOKUP(B104,Enrollment!$A$2:$G$147,7,0),0) -> 17 | J104: 7743 | K104: 20269 | L104: =IF(E104>$E$17,_xlfn.IFNA(VLOOKUP(B104,'other funds ftr 2023'!A:I,9,FALSE),0),1) -> 1 | M104: 20269 | N104: =1+IF(ISNA(VLOOKUP(B104,'Rural and Low Income 24-25'!$A:$B,2,FALSE)),0,$N$17) -> 1.1 | O104: 22296 | R104: 0 | S104: 22296 | T104: =IFERROR(VLOOKUP(B104,'2023-24 Final'!$B$19:$S$156,18,FALSE),0) -> 20892 | U104: 1404 | V104: y | Y104: 1500 | AA104: 23796
A105: 87 | B105: 24105 | D105: OKANOGAN | E105: =IFERROR(VLOOKUP(B105,Enrollment!$A$2:$G$147,5,0),0) -> 59 | F105: 26873 | G105: =IFERROR(VLOOKUP(B105,Enrollment!$A$2:$G$147,6,0),0) -> 29 | H105: 3302 | I105: =IFERROR(VLOOKUP(B105,Enrollment!$A$2:$G$147,7,0),0) -> 25 | J105: 11387 | K105: 41562 | L105: =IF(E105>$E$17,_xlfn.IFNA(VLOOKUP(B105,'other funds ftr 2023'!A:I,9,FALSE),0),1) -> 0 | M105: 41562 | N105: =1+IF(ISNA(VLOOKUP(B105,'Rural and Low Income 24-25'!$A:$B,2,FALSE)),0,$N$17) -> 1.1 | O105: 0 | R105: 0 | S105: 0 | T105: =IFERROR(VLOOKUP(B105,'2023-24 Final'!$B$19:$S$156,18,FALSE),0) -> 0 | U105: 0 | V105: n | Y105: 0 | AA105: 0
A106: 88 | B106: 34111 | D106: OLYMPIA | E106: =IFERROR(VLOOKUP(B106,Enrollment!$A$2:$G$147,5,0),0) -> 51 | F106: 23229 | G106: =IFERROR(VLOOKUP(B106,Enrollment!$A$2:$G$147,6,0),0) -> 20 | H106: 2277 | I106: =IFERROR(VLOOKUP(B106,Enrollment!$A$2:$G$147,7,0),0) -> 19 | J106: 8654 | K106: 34160 | L106: =IF(E106>$E$17,_xlfn.IFNA(VLOOKUP(B106,'other funds ftr 2023'!A:I,9,FALSE),0),1) -> 0.95 | M106: 32452 | N106: =1+IF(ISNA(VLOOKUP(B106,'Rural and Low Income 24-25'!$A:$B,2,FALSE)),0,$N$17) -> 1 | O106: 32452 | R106: 0 | S106: 32452 | T106: =IFERROR(VLOOKUP(B106,'2023-24 Final'!$B$19:$S$156,18,FALSE),0) -> 21390 | U106: 11062 | V106: y | Y106: 1500 | Z106: 50000 | AA106: 83952
A107: 89 | B107: 24019 | D107: OMAK | E107: =IFERROR(VLOOKUP(B107,Enrollment!$A$2:$G$147,5,0),0) -> 63 | F107: 28695 | G107: =IFERROR(VLOOKUP(B107,Enrollment!$A$2:$G$147,6,0),0) -> 20 | H107: 2277 | I107: =IFERROR(VLOOKUP(B107,Enrollment!$A$2:$G$147,7,0),0) -> 36 | J107: 16397 | K107: 47369 | L107: =IF(E107>$E$17,_xlfn.IFNA(VLOOKUP(B107,'other funds ftr 2023'!A:I,9,FALSE),0),1) -> 0 | M107: 47369 | N107: =1+IF(ISNA(VLOOKUP(B107,'Rural and Low Income 24-25'!$A:$B,2,FALSE)),0,$N$17) -> 1.1 | O107: 0 | R107: 0 | S107: 0 | T107: =IFERROR(VLOOKUP(B107,'2023-24 Final'!$B$19:$S$156,18,FALSE),0) -> 0 | U107: 0 | V107: n | Y107: 0 | AA107: 0
A108: 90 | B108: 09013 | D108: ORONDO | E108: =IFERROR(VLOOKUP(B108,Enrollment!$A$2:$G$147,5,0),0) -> 40 | F108: 18219 | G108: =IFERROR(VLOOKUP(B108,Enrollment!$A$2:$G$147,6,0),0) -> 11 | H108: 1253 | I108: =IFERROR(VLOOKUP(B108,Enrollment!$A$2:$G$147,7,0),0) -> 16 | J108: 7288 | K108: 26760 | L108: =IF(E108>$E$17,_xlfn.IFNA(VLOOKUP(B108,'other funds ftr 2023'!A:I,9,FALSE),0),1) -> 1.1 | M108: 29436 | N108: =1+IF(ISNA(VLOOKUP(B108,'Rural and Low Income 24-25'!$A:$B,2,FALSE)),0,$N$17) -> 1.1 | O108: 32380 | R108: 0 | S108: 32380 | T108: =IFERROR(VLOOKUP(B108,'2023-24 Final'!$B$19:$S$156,18,FALSE),0) -> 39888 | U108: -7508 | V108: y | Y108: 1500 | AA108: 33880
A109: 91 | B109: 24410 | D109: OROVILLE | E109: =IFERROR(VLOOKUP(B109,Enrollment!$A$2:$G$147,5,0),0) -> 31 | F109: 14120 | G109: =IFERROR(VLOOKUP(B109,Enrollment!$A$2:$G$147,6,0),0) -> 8 | H109: 911 | I109: =IFERROR(VLOOKUP(B109,Enrollment!$A$2:$G$147,7,0),0) -> 13 | J109: 5921 | K109: 20952 | L109: =IF(E109>$E$17,_xlfn.IFNA(VLOOKUP(B109,'other funds ftr 2023'!A:I,9,FALSE),0),1) -> 0 | M109: 20952 | N109: =1+IF(ISNA(VLOOKUP(B109,'Rural and Low Income 24-25'!$A:$B,2,FALSE)),0,$N$17) -> 1.1 | O109: 0 | R109: 0 | S109: 0 | T109: =IFERROR(VLOOKUP(B109,'2023-24 Final'!$B$19:$S$156,18,FALSE),0) -> 0 | U109: 0 | V109: n | Y109: 0 | AA109: 0
A110: 92 | B110: 01147 | D110: OTHELLO | E110: =IFERROR(VLOOKUP(B110,Enrollment!$A$2:$G$147,5,0),0) -> 820 | F110: 373486 | G110: =IFERROR(VLOOKUP(B110,Enrollment!$A$2:$G$147,6,0),0) -> 262 | H110: 29833 | I110: =IFERROR(VLOOKUP(B110,Enrollment!$A$2:$G$147,7,0),0) -> 415 | J110: 189021 | K110: 592340 | L110: =IF(E110>$E$17,_xlfn.IFNA(VLOOKUP(B110,'other funds ftr 2023'!A:I,9,FALSE),0),1) -> 1.05 | M110: 621957 | N110: =1+IF(ISNA(VLOOKUP(B110,'Rural and Low Income 24-25'!$A:$B,2,FALSE)),0,$N$17) -> 1 | O110: 621957 | R110: 0 | S110: 621957 | T110: =IFERROR(VLOOKUP(B110,'2023-24 Final'!$B$19:$S$156,18,FALSE),0) -> 587386 | U110: 34571 | V110: y | Y110: 4000 | AA110: 625957
A111: 93 | B111: 11001 | D111: PASCO | E111: =IFERROR(VLOOKUP(B111,Enrollment!$A$2:$G$147,5,0),0) -> 1932 | F111: 879971 | G111: =IFERROR(VLOOKUP(B111,Enrollment!$A$2:$G$147,6,0),0) -> 830 | H111: 94510 | I111: =IFERROR(VLOOKUP(B111,Enrollment!$A$2:$G$147,7,0),0) -> 816 | J111: 371665 | K111: 1346146 | L111: =IF(E111>$E$17,_xlfn.IFNA(VLOOKUP(B111,'other funds ftr 2023'!A:I,9,FALSE),0),1) -> 1 | M111: 1346146 | N111: =1+IF(ISNA(VLOOKUP(B111,'Rural and Low Income 24-25'!$A:$B,2,FALSE)),0,$N$17) -> 1 | O111: 1346146 | R111: 0 | S111: 1346146 | T111: =IFERROR(VLOOKUP(B111,'2023-24 Final'!$B$19:$S$156,18,FALSE),0) -> 1286653 | U111: 59493 | V111: y | Y111: 4000 | AA111: 1350146
A112: 94 | B112: 24122 | D112: PATEROS | E112: =IFERROR(VLOOKUP(B112,Enrollment!$A$2:$G$147,5,0),0) -> 29 | F112: 13209 | G112: =IFERROR(VLOOKUP(B112,Enrollment!$A$2:$G$147,6,0),0) -> 19 | H112: 2163 | I112: =IFERROR(VLOOKUP(B112,Enrollment!$A$2:$G$147,7,0),0) -> 4 | J112: 1822 | K112: 17194 | L112: =IF(E112>$E$17,_xlfn.IFNA(VLOOKUP(B112,'other funds ftr 2023'!A:I,9,FALSE),0),1) -> 1.05 | M112: 18054 | N112: =1+IF(ISNA(VLOOKUP(B112,'Rural and Low Income 24-25'!$A:$B,2,FALSE)),0,$N$17) -> 1.1 | O112: 19859 | R112: 0 | S112: 19859 | T112: =IFERROR(VLOOKUP(B112,'2023-24 Final'!$B$19:$S$156,18,FALSE),0) -> 28607 | U112: -8748 | V112: y | Y112: 1500 | AA112: 21359
A113: 95 | B113: 03050 | D113: PATERSON | E113: =IFERROR(VLOOKUP(B113,Enrollment!$A$2:$G$147,5,0),0) -> 25 | F113: 11387 | G113: =IFERROR(VLOOKUP(B113,Enrollment!$A$2:$G$147,6,0),0) -> 14 | H113: 1594 | I113: =IFERROR(VLOOKUP(B113,Enrollment!$A$2:$G$147,7,0),0) -> 3 | J113: 1366 | K113: 14347 | L113: =IF(E113>$E$17,_xlfn.IFNA(VLOOKUP(B113,'other funds ftr 2023'!A:I,9,FALSE),0),1) -> 1.1 | M113: 15782 | N113: =1+IF(ISNA(VLOOKUP(B113,'Rural and Low Income 24-25'!$A:$B,2,FALSE)),0,$N$17) -> 1.1 | O113: 17360 | R113: 0 | S113: 17360 | T113: =IFERROR(VLOOKUP(B113,'2023-24 Final'!$B$19:$S$156,18,FALSE),0) -> 19302 | U113: -1942 | V113: y | Y113: 1500 | AA113: 18860
A114: 96 | B114: 04901 | D114: PINNACLES PREP CHARTER SCHOOL | E114: =IFERROR(VLOOKUP(B114,Enrollment!$A$2:$G$147,5,0),0) -> 17 | F114: 7743 | G114: =IFERROR(VLOOKUP(B114,Enrollment!$A$2:$G$147,6,0),0) -> 8 | H114: 911 | I114: =IFERROR(VLOOKUP(B114,Enrollment!$A$2:$G$147,7,0),0) -> 7 | J114: 3188 | K114: 11842 | L114: =IF(E114>$E$17,_xlfn.IFNA(VLOOKUP(B114,'other funds ftr 2023'!A:I,9,FALSE),0),1) -> 1.05 | M114: 12434 | N114: =1+IF(ISNA(VLOOKUP(B114,'Rural and Low Income 24-25'!$A:$B,2,FALSE)),0,$N$17) -> 1.1 | O114: 13677 | R114: 0 | S114: 13677 | T114: =IFERROR(VLOOKUP(B114,'2023-24 Final'!$B$19:$S$156,18,FALSE),0) -> 8355 | U114: 5322 | V114: y | Y114: 1500 | AA114: 15177
A115: 97 | B115: 36402 | D115: PRESCOTT | E115: =IFERROR(VLOOKUP(B115,Enrollment!$A$2:$G$147,5,0),0) -> 55 | F115: 25051 | G115: =IFERROR(VLOOKUP(B115,Enrollment!$A$2:$G$147,6,0),0) -> 4 | H115: 455 | I115: =IFERROR(VLOOKUP(B115,Enrollment!$A$2:$G$147,7,0),0) -> 11 | J115: 5010 | K115: 30516 | L115: =IF(E115>$E$17,_xlfn.IFNA(VLOOKUP(B115,'other funds ftr 2023'!A:I,9,FALSE),0),1) -> 1 | M115: 30516 | N115: =1+IF(ISNA(VLOOKUP(B115,'Rural and Low Income 24-25'!$A:$B,2,FALSE)),0,$N$17) -> 1.1 | O115: 33568 | R115: 0 | S115: 33568 | T115: =IFERROR(VLOOKUP(B115,'2023-24 Final'!$B$19:$S$156,18,FALSE),0) -> 17398 | U115: 16170 | V115: y | W115: 1 | Y115: 1500 | AA115: 0
A116: 98 | B116: 03116 | D116: PROSSER | E116: =IFERROR(VLOOKUP(B116,Enrollment!$A$2:$G$147,5,0),0) -> 776 | F116: 353446 | G116: =IFERROR(VLOOKUP(B116,Enrollment!$A$2:$G$147,6,0),0) -> 272 | H116: 30972 | I116: =IFERROR(VLOOKUP(B116,Enrollment!$A$2:$G$147,7,0),0) -> 383 | J116: 174446 | K116: 558864 | L116: =IF(E116>$E$17,_xlfn.IFNA(VLOOKUP(B116,'other funds ftr 2023'!A:I,9,FALSE),0),1) -> 1.1 | M116: 614750 | N116: =1+IF(ISNA(VLOOKUP(B116,'Rural and Low Income 24-25'!$A:$B,2,FALSE)),0,$N$17) -> 1 | O116: 614750 | R116: 0 | S116: 614750 | T116: =IFERROR(VLOOKUP(B116,'2023-24 Final'!$B$19:$S$156,18,FALSE),0) -> 651676 | U116: -36926 | V116: y | Y116: 4000 | AA116: 618750
A117: 99 | B117: 27003 | D117: PUYALLUP | E117: =IFERROR(VLOOKUP(B117,Enrollment!$A$2:$G$147,5,0),0) -> 17 | F117: 7743 | G117: =IFERROR(VLOOKUP(B117,Enrollment!$A$2:$G$147,6,0),0) -> 2 | H117: 228 | I117: =IFERROR(VLOOKUP(B117,Enrollment!$A$2:$G$147,7,0),0) -> 9 | J117: 4099 | K117: 12070 | L117: =IF(E117>$E$17,_xlfn.IFNA(VLOOKUP(B117,'other funds ftr 2023'!A:I,9,FALSE),0),1) -> 0.95 | M117: 11467 | N117: =1+IF(ISNA(VLOOKUP(B117,'Rural and Low Income 24-25'!$A:$B,2,FALSE)),0,$N$17) -> 1 | O117: 11467 | R117: 0 | S117: 11467 | T117: =IFERROR(VLOOKUP(B117,'2023-24 Final'!$B$19:$S$156,18,FALSE),0) -> 11937 | U117: -470 | V117: Y | Y117: 1500 | AA117: 12967
A118: 100 | B118: 05402 | D118: QUILLAYUTE VALLEY | E118: =IFERROR(VLOOKUP(B118,Enrollment!$A$2:$G$147,5,0),0) -> 97 | F118: 44181 | G118: =IFERROR(VLOOKUP(B118,Enrollment!$A$2:$G$147,6,0),0) -> 49 | H118: 5580 | I118: =IFERROR(VLOOKUP(B118,Enrollment!$A$2:$G$147,7,0),0) -> 32 | J118: 14575 | K118: 64336 | L118: =IF(E118>$E$17,_xlfn.IFNA(VLOOKUP(B118,'other funds ftr 2023'!A:I,9,FALSE),0),1) -> 0.95 | M118: 61119 | N118: =1+IF(ISNA(VLOOKUP(B118,'Rural and Low Income 24-25'!$A:$B,2,FALSE)),0,$N$17) -> 1.1 | O118: 67231 | R118: 0 | S118: 67231 | T118: =IFERROR(VLOOKUP(B118,'2023-24 Final'!$B$19:$S$156,18,FALSE),0) -> 62777 | U118: 4454 | V118: y | Y118: 1500 | AA118: 68731
A119: 101 | B119: 13144 | D119: QUINCY | E119: =IFERROR(VLOOKUP(B119,Enrollment!$A$2:$G$147,5,0),0) -> 604 | F119: 275105 | G119: =IFERROR(VLOOKUP(B119,Enrollment!$A$2:$G$147,6,0),0) -> 202 | H119: 23001 | I119: =IFERROR(VLOOKUP(B119,Enrollment!$A$2:$G$147,7,0),0) -> 309 | J119: 140741 | K119: 438847 | L119: =IF(E119>$E$17,_xlfn.IFNA(VLOOKUP(B119,'other funds ftr 2023'!A:I,9,FALSE),0),1) -> 1.05 | M119: 460789 | N119: =1+IF(ISNA(VLOOKUP(B119,'Rural and Low Income 24-25'!$A:$B,2,FALSE)),0,$N$17) -> 1 | O119: 460789 | R119: 0 | S119: 460789 | T119: =IFERROR(VLOOKUP(B119,'2023-24 Final'!$B$19:$S$156,18,FALSE),0) -> 447115 | U119: 13674 | V119: y | Y119: 4000 | AA119: 464789
A120: 102 | B120: 22009 | D120: REARDAN-EDWALL | E120: =IFERROR(VLOOKUP(B120,Enrollment!$A$2:$G$147,5,0),0) -> 23 | F120: 10476 | G120: =IFERROR(VLOOKUP(B120,Enrollment!$A$2:$G$147,6,0),0) -> 6 | H120: 683 | I120: =IFERROR(VLOOKUP(B120,Enrollment!$A$2:$G$147,7,0),0) -> 14 | J120: 6377 | K120: 17536 | L120: =IF(E120>$E$17,_xlfn.IFNA(VLOOKUP(B120,'other funds ftr 2023'!A:I,9,FALSE),0),1) -> 0 | M120: 17536 | N120: =1+IF(ISNA(VLOOKUP(B120,'Rural and Low Income 24-25'!$A:$B,2,FALSE)),0,$N$17) -> 1.1 | O120: 0 | R120: 0 | S120: 0 | T120: =IFERROR(VLOOKUP(B120,'2023-24 Final'!$B$19:$S$156,18,FALSE),0) -> 0 | U120: 0 | V120: n | Y120: 0 | AA120: 0
A121: 103 | B121: 17403 | D121: RENTON | E121: =IFERROR(VLOOKUP(B121,Enrollment!$A$2:$G$147,5,0),0) -> 14 | F121: 6377 | G121: =IFERROR(VLOOKUP(B121,Enrollment!$A$2:$G$147,6,0),0) -> 2 | H121: 228 | I121: =IFERROR(VLOOKUP(B121,Enrollment!$A$2:$G$147,7,0),0) -> 10 | J121: 4555 | K121: 11160 | L121: =IF(E121>$E$17,_xlfn.IFNA(VLOOKUP(B121,'other funds ftr 2023'!A:I,9,FALSE),0),1) -> 0 | M121: 11160 | N121: =1+IF(ISNA(VLOOKUP(B121,'Rural and Low Income 24-25'!$A:$B,2,FALSE)),0,$N$17) -> 1 | O121: 0 | R121: 0 | S121: 0 | T121: =IFERROR(VLOOKUP(B121,'2023-24 Final'!$B$19:$S$156,18,FALSE),0) -> 0 | U121: 0 | V121: n | Y121: 0 | AA121: 0
A122: 104 | B122: 03400 | D122: RICHLAND | E122: =IFERROR(VLOOKUP(B122,Enrollment!$A$2:$G$147,5,0),0) -> 297 | F122: 135275 | G122: =IFERROR(VLOOKUP(B122,Enrollment!$A$2:$G$147,6,0),0) -> 91 | H122: 10362 | I122: =IFERROR(VLOOKUP(B122,Enrollment!$A$2:$G$147,7,0),0) -> 165 | J122: 75153 | K122: 220790 | L122: =IF(E122>$E$17,_xlfn.IFNA(VLOOKUP(B122,'other funds ftr 2023'!A:I,9,FALSE),0),1) -> 0.95 | M122: 209751 | N122: =1+IF(ISNA(VLOOKUP(B122,'Rural and Low Income 24-25'!$A:$B,2,FALSE)),0,$N$17) -> 1 | O122: 209751 | R122: 0 | S122: 209751 | T122: =IFERROR(VLOOKUP(B122,'2023-24 Final'!$B$19:$S$156,18,FALSE),0) -> 151597 | U122: 58154 | V122: y | W122: 1 | Y122: 2500 | AA122: 0
A123: 105 | B123: 06122 | D123: RIDGEFIELD | E123: =IFERROR(VLOOKUP(B123,Enrollment!$A$2:$G$147,5,0),0) -> 24 | F123: 10931 | G123: =IFERROR(VLOOKUP(B123,Enrollment!$A$2:$G$147,6,0),0) -> 2 | H123: 228 | I123: =IFERROR(VLOOKUP(B123,Enrollment!$A$2:$G$147,7,0),0) -> 18 | J123: 8198 | K123: 19357 | L123: =IF(E123>$E$17,_xlfn.IFNA(VLOOKUP(B123,'other funds ftr 2023'!A:I,9,FALSE),0),1) -> 0.95 | M123: 18389 | N123: =1+IF(ISNA(VLOOKUP(B123,'Rural and Low Income 24-25'!$A:$B,2,FALSE)),0,$N$17) -> 1 | O123: =IF(V123="y",ROUND(M123*N123,0),0) -> 18389 | R123: 0 | S123: 18389 | T123: =IFERROR(VLOOKUP(B123,'2023-24 Final'!$B$19:$S$156,18,FALSE),0) -> 22579 | U123: -4190 | V123: y | Y123: 1500 | AA123: 19889
A124: 106 | B124: 17407 | D124: RIVERVIEW | E124: =IFERROR(VLOOKUP(B124,Enrollment!$A$2:$G$147,5,0),0) -> 11 | F124: 5010 | G124: =IFERROR(VLOOKUP(B124,Enrollment!$A$2:$G$147,6,0),0) -> 0 | H124: 0 | I124: =IFERROR(VLOOKUP(B124,Enrollment!$A$2:$G$147,7,0),0) -> 7 | J124: 3188 | K124: 8198 | L124: =IF(E124>$E$17,_xlfn.IFNA(VLOOKUP(B124,'other funds ftr 2023'!A:I,9,FALSE),0),1) -> 0.95 | M124: 7788 | N124: =1+IF(ISNA(VLOOKUP(B124,'Rural and Low Income 24-25'!$A:$B,2,FALSE)),0,$N$17) -> 1 | O124: 0 | R124: 0 | S124: 0 | T124: =IFERROR(VLOOKUP(B124,'2023-24 Final'!$B$19:$S$156,18,FALSE),0) -> 7560 | U124: -7560 | V124: n | Y124: 0 | AA124: 0
A125: 107 | B125: 34401 | D125: ROCHESTER | E125: =IFERROR(VLOOKUP(B125,Enrollment!$A$2:$G$147,5,0),0) -> 47 | F125: 21407 | G125: =IFERROR(VLOOKUP(B125,Enrollment!$A$2:$G$147,6,0),0) -> 20 | H125: 2277 | I125: =IFERROR(VLOOKUP(B125,Enrollment!$A$2:$G$147,7,0),0) -> 13 | J125: 5921 | K125: 29605 | L125: =IF(E125>$E$17,_xlfn.IFNA(VLOOKUP(B125,'other funds ftr 2023'!A:I,9,FALSE),0),1) -> 0.95 | M125: 28125 | N125: =1+IF(ISNA(VLOOKUP(B125,'Rural and Low Income 24-25'!$A:$B,2,FALSE)),0,$N$17) -> 1 | O125: 28125 | R125: 0 | S125: 28125 | T125: =IFERROR(VLOOKUP(B125,'2023-24 Final'!$B$19:$S$156,18,FALSE),0) -> 25703 | U125: 2422 | V125: y | Y125: 1500 | Z125: 50000 | AA125: 79625
A126: 108 | B126: 20403 | D126: ROOSEVELT | E126: =IFERROR(VLOOKUP(B126,Enrollment!$A$2:$G$147,5,0),0) -> 17 | F126: 7743 | G126: =IFERROR(VLOOKUP(B126,Enrollment!$A$2:$G$147,6,0),0) -> 0 | H126: 0 | I126: =IFERROR(VLOOKUP(B126,Enrollment!$A$2:$G$147,7,0),0) -> 8 | J126: 3644 | K126: 11387 | L126: =IF(E126>$E$17,_xlfn.IFNA(VLOOKUP(B126,'other funds ftr 2023'!A:I,9,FALSE),0),1) -> 1.1 | M126: 12526 | N126: =1+IF(ISNA(VLOOKUP(B126,'Rural and Low Income 24-25'!$A:$B,2,FALSE)),0,$N$17) -> 1.1 | O126: 13779 | R126: 0 | S126: 13779 | T126: =IFERROR(VLOOKUP(B126,'2023-24 Final'!$B$19:$S$156,18,FALSE),0) -> 24411 | U126: -10632 | V126: y | Y126: 1500 | AA126: 15279
A127: 109 | B127: 13160 | D127: ROYAL | E127: =IFERROR(VLOOKUP(B127,Enrollment!$A$2:$G$147,5,0),0) -> 252 | F127: 114779 | G127: =IFERROR(VLOOKUP(B127,Enrollment!$A$2:$G$147,6,0),0) -> 81 | H127: 9223 | I127: =IFERROR(VLOOKUP(B127,Enrollment!$A$2:$G$147,7,0),0) -> 130 | J127: 59211 | K127: 183213 | L127: =IF(E127>$E$17,_xlfn.IFNA(VLOOKUP(B127,'other funds ftr 2023'!A:I,9,FALSE),0),1) -> 1 | M127: 183213 | N127: =1+IF(ISNA(VLOOKUP(B127,'Rural and Low Income 24-25'!$A:$B,2,FALSE)),0,$N$17) -> 1 | O127: 183213 | R127: 0 | S127: 183213 | T127: =IFERROR(VLOOKUP(B127,'2023-24 Final'!$B$19:$S$156,18,FALSE),0) -> 157560 | U127: 25653 | V127: y | Y127: 2500 | AA127: 185713
A128: 110 | B128: 28149 | D128: SAN JUAN ISLAND | E128: =IFERROR(VLOOKUP(B128,Enrollment!$A$2:$G$147,5,0),0) -> 0 | F128: 0 | G128: =IFERROR(VLOOKUP(B128,Enrollment!$A$2:$G$147,6,0),0) -> 0 | H128: 0 | I128: =IFERROR(VLOOKUP(B128,Enrollment!$A$2:$G$147,7,0),0) -> 0 | J128: 0 | K128: 0 | L128: =IF(E128>$E$17,_xlfn.IFNA(VLOOKUP(B128,'other funds ftr 2023'!A:I,9,FALSE),0),1) -> 1 | M128: 0 | N128: =1+IF(ISNA(VLOOKUP(B128,'Rural and Low Income 24-25'!$A:$B,2,FALSE)),0,$N$17) -> 1 | O128: 0 | R128: 0 | S128: 0 | T128: =IFERROR(VLOOKUP(B128,'2023-24 Final'!$B$19:$S$156,18,FALSE),0) -> 7371 | U128: -7371 | V128: n | Y128: 0 | AA128: 0
A129: 111 | B129: 17001 | D129: SEATTLE PUBLIC SCHOOLS | E129: =IFERROR(VLOOKUP(B129,Enrollment!$A$2:$G$147,5,0),0) -> 22 | F129: 10020 | G129: =IFERROR(VLOOKUP(B129,Enrollment!$A$2:$G$147,6,0),0) -> 14 | H129: 1594 | I129: =IFERROR(VLOOKUP(B129,Enrollment!$A$2:$G$147,7,0),0) -> 8 | J129: 3644 | K129: 15258 | L129: =IF(E129>$E$17,_xlfn.IFNA(VLOOKUP(B129,'other funds ftr 2023'!A:I,9,FALSE),0),1) -> 0.95 | M129: 14495 | N129: =1+IF(ISNA(VLOOKUP(B129,'Rural and Low Income 24-25'!$A:$B,2,FALSE)),0,$N$17) -> 1 | O129: 0 | R129: 0 | S129: 0 | T129: =IFERROR(VLOOKUP(B129,'2023-24 Final'!$B$19:$S$156,18,FALSE),0) -> 25449 | U129: -25449 | V129: n | Y129: 0 | AA129: 0
A130: 112 | B130: 29101 | D130: SEDRO-WOOLLEY | E130: =IFERROR(VLOOKUP(B130,Enrollment!$A$2:$G$147,5,0),0) -> 163 | F130: 74242 | G130: =IFERROR(VLOOKUP(B130,Enrollment!$A$2:$G$147,6,0),0) -> 61 | H130: 6946 | I130: =IFERROR(VLOOKUP(B130,Enrollment!$A$2:$G$147,7,0),0) -> 77 | J130: 35071 | K130: 116259 | L130: =IF(E130>$E$17,_xlfn.IFNA(VLOOKUP(B130,'other funds ftr 2023'!A:I,9,FALSE),0),1) -> 1 | M130: 116259 | N130: =1+IF(ISNA(VLOOKUP(B130,'Rural and Low Income 24-25'!$A:$B,2,FALSE)),0,$N$17) -> 1 | O130: 116259 | R130: 0 | S130: 116259 | T130: =IFERROR(VLOOKUP(B130,'2023-24 Final'!$B$19:$S$156,18,FALSE),0) -> 114056 | U130: 2203 | V130: y | Y130: 2500 | AA130: 118759
A131: 113 | B131: 39119 | D131: SELAH | E131: =IFERROR(VLOOKUP(B131,Enrollment!$A$2:$G$147,5,0),0) -> 235 | F131: 107036 | G131: =IFERROR(VLOOKUP(B131,Enrollment!$A$2:$G$147,6,0),0) -> 74 | H131: 8426 | I131: =IFERROR(VLOOKUP(B131,Enrollment!$A$2:$G$147,7,0),0) -> 124 | J131: 56478 | K131: 171940 | L131: =IF(E131>$E$17,_xlfn.IFNA(VLOOKUP(B131,'other funds ftr 2023'!A:I,9,FALSE),0),1) -> 1 | M131: 171940 | N131: =1+IF(ISNA(VLOOKUP(B131,'Rural and Low Income 24-25'!$A:$B,2,FALSE)),0,$N$17) -> 1 | O131: 171940 | R131: 0 | S131: 171940 | T131: =IFERROR(VLOOKUP(B131,'2023-24 Final'!$B$19:$S$156,18,FALSE),0) -> 137775 | U131: 34165 | V131: y | Y131: 2500 | Z131: 20000 | AA131: 194440
A132: 114 | B132: 23309 | D132: SHELTON | E132: =IFERROR(VLOOKUP(B132,Enrollment!$A$2:$G$147,5,0),0) -> 68 | F132: 30972 | G132: =IFERROR(VLOOKUP(B132,Enrollment!$A$2:$G$147,6,0),0) -> 22 | H132: 2505 | I132: =IFERROR(VLOOKUP(B132,Enrollment!$A$2:$G$147,7,0),0) -> 42 | J132: 19130 | K132: 52607 | L132: =IF(E132>$E$17,_xlfn.IFNA(VLOOKUP(B132,'other funds ftr 2023'!A:I,9,FALSE),0),1) -> 0 | M132: 52607 | N132: =1+IF(ISNA(VLOOKUP(B132,'Rural and Low Income 24-25'!$A:$B,2,FALSE)),0,$N$17) -> 1 | O132: 0 | R132: 0 | S132: 0 | T132: =IFERROR(VLOOKUP(B132,'2023-24 Final'!$B$19:$S$156,18,FALSE),0) -> 0 | U132: 0 | V132: n | Y132: 0 | AA132: 0
A133: 115 | B133: 31201 | D133: SNOHOMISH | E133: =IFERROR(VLOOKUP(B133,Enrollment!$A$2:$G$147,5,0),0) -> 69 | F133: 31428 | G133: =IFERROR(VLOOKUP(B133,Enrollment!$A$2:$G$147,6,0),0) -> 22 | H133: 2505 | I133: =IFERROR(VLOOKUP(B133,Enrollment!$A$2:$G$147,7,0),0) -> 32 | J133: 14575 | K133: 48508 | L133: =IF(E133>$E$17,_xlfn.IFNA(VLOOKUP(B133,'other funds ftr 2023'!A:I,9,FALSE),0),1) -> 0.95 | M133: 46083 | N133: =1+IF(ISNA(VLOOKUP(B133,'Rural and Low Income 24-25'!$A:$B,2,FALSE)),0,$N$17) -> 1 | O133: 46083 | R133: 0 | S133: 46083 | T133: =IFERROR(VLOOKUP(B133,'2023-24 Final'!$B$19:$S$156,18,FALSE),0) -> 47059 | U133: -976 | V133: y | Y133: 1500 | AA133: 47583
A134: 116 | B134: 13156 | D134: SOAP LAKE | E134: =IFERROR(VLOOKUP(B134,Enrollment!$A$2:$G$147,5,0),0) -> 43 | F134: 19585 | G134: =IFERROR(VLOOKUP(B134,Enrollment!$A$2:$G$147,6,0),0) -> 13 | H134: 1480 | I134: =IFERROR(VLOOKUP(B134,Enrollment!$A$2:$G$147,7,0),0) -> 24 | J134: 10931 | K134: 31996 | L134: =IF(E134>$E$17,_xlfn.IFNA(VLOOKUP(B134,'other funds ftr 2023'!A:I,9,FALSE),0),1) -> 0 | M134: 31996 | N134: =1+IF(ISNA(VLOOKUP(B134,'Rural and Low Income 24-25'!$A:$B,2,FALSE)),0,$N$17) -> 1.1 | O134: 0 | R134: 0 | S134: 0 | T134: =IFERROR(VLOOKUP(B134,'2023-24 Final'!$B$19:$S$156,18,FALSE),0) -> 0 | U134: 0 | V134: n | Y134: 0 | AA134: 0
A135: 117 | B135: 32081 | D135: SPOKANE | E135: =IFERROR(VLOOKUP(B135,Enrollment!$A$2:$G$147,5,0),0) -> 101 | F135: 46003 | G135: =IFERROR(VLOOKUP(B135,Enrollment!$A$2:$G$147,6,0),0) -> 18 | H135: 2050 | I135: =IFERROR(VLOOKUP(B135,Enrollment!$A$2:$G$147,7,0),0) -> 63 | J135: 28695 | K135: 76748 | L135: =IF(E135>$E$17,_xlfn.IFNA(VLOOKUP(B135,'other funds ftr 2023'!A:I,9,FALSE),0),1) -> 0 | M135: 76748 | N135: =1+IF(ISNA(VLOOKUP(B135,'Rural and Low Income 24-25'!$A:$B,2,FALSE)),0,$N$17) -> 1 | O135: 0 | R135: 0 | S135: 0 | T135: =IFERROR(VLOOKUP(B135,'2023-24 Final'!$B$19:$S$156,18,FALSE),0) -> 0 | U135: 0 | V135: n | Y135: 0 | AA135: 0
A136: 118 | B136: 31401 | D136: STANWOOD-CAMANO | E136: =IFERROR(VLOOKUP(B136,Enrollment!$A$2:$G$147,5,0),0) -> 20 | F136: 9109 | G136: =IFERROR(VLOOKUP(B136,Enrollment!$A$2:$G$147,6,0),0) -> 4 | H136: 455 | I136: =IFERROR(VLOOKUP(B136,Enrollment!$A$2:$G$147,7,0),0) -> 15 | J136: 6832 | K136: 16396 | L136: =IF(E136>$E$17,_xlfn.IFNA(VLOOKUP(B136,'other funds ftr 2023'!A:I,9,FALSE),0),1) -> 0.95 | M136: 15576 | N136: =1+IF(ISNA(VLOOKUP(B136,'Rural and Low Income 24-25'!$A:$B,2,FALSE)),0,$N$17) -> 1 | O136: 0 | R136: 0 | S136: 0 | T136: =IFERROR(VLOOKUP(B136,'2023-24 Final'!$B$19:$S$156,18,FALSE),0) -> 11668 | U136: -11668 | V136: n | Y136: 0 | AA136: 0
A137: 119 | B137: 30303 | D137: STEVENSON-CARSON | E137: =IFERROR(VLOOKUP(B137,Enrollment!$A$2:$G$147,5,0),0) -> 11 | F137: 5010 | G137: =IFERROR(VLOOKUP(B137,Enrollment!$A$2:$G$147,6,0),0) -> 7 | H137: 797 | I137: =IFERROR(VLOOKUP(B137,Enrollment!$A$2:$G$147,7,0),0) -> 4 | J137: 1822 | K137: 7629 | L137: =IF(E137>$E$17,_xlfn.IFNA(VLOOKUP(B137,'other funds ftr 2023'!A:I,9,FALSE),0),1) -> 0 | M137: 7629 | N137: =1+IF(ISNA(VLOOKUP(B137,'Rural and Low Income 24-25'!$A:$B,2,FALSE)),0,$N$17) -> 1.1 | O137: 0 | R137: 0 | S137: 0 | T137: =IFERROR(VLOOKUP(B137,'2023-24 Final'!$B$19:$S$156,18,FALSE),0) -> 0 | U137: 0 | V137: n | Y137: 0 | AA137: 0
A138: 120 | B138: 39201 | D138: SUNNYSIDE | E138: =IFERROR(VLOOKUP(B138,Enrollment!$A$2:$G$147,5,0),0) -> 1846 | F138: 840800 | G138: =IFERROR(VLOOKUP(B138,Enrollment!$A$2:$G$147,6,0),0) -> 463 | H138: 52721 | I138: =IFERROR(VLOOKUP(B138,Enrollment!$A$2:$G$147,7,0),0) -> 1084 | J138: 493731 | K138: 1387252 | L138: =IF(E138>$E$17,_xlfn.IFNA(VLOOKUP(B138,'other funds ftr 2023'!A:I,9,FALSE),0),1) -> 1.1 | M138: 1525977 | N138: =1+IF(ISNA(VLOOKUP(B138,'Rural and Low Income 24-25'!$A:$B,2,FALSE)),0,$N$17) -> 1 | O138: 1525977 | R138: 0 | S138: 1525977 | T138: =IFERROR(VLOOKUP(B138,'2023-24 Final'!$B$19:$S$156,18,FALSE),0) -> 1411960 | U138: 114017 | V138: y | Y138: 4000 | AA138: 1529977
A139: 121 | B139: 27010 | D139: TACOMA | E139: =IFERROR(VLOOKUP(B139,Enrollment!$A$2:$G$147,5,0),0) -> 21 | F139: 9565 | G139: =IFERROR(VLOOKUP(B139,Enrollment!$A$2:$G$147,6,0),0) -> 4 | H139: 455 | I139: =IFERROR(VLOOKUP(B139,Enrollment!$A$2:$G$147,7,0),0) -> 15 | J139: 6832 | K139: 16852 | L139: =IF(E139>$E$17,_xlfn.IFNA(VLOOKUP(B139,'other funds ftr 2023'!A:I,9,FALSE),0),1) -> 0 | M139: 16852 | N139: =1+IF(ISNA(VLOOKUP(B139,'Rural and Low Income 24-25'!$A:$B,2,FALSE)),0,$N$17) -> 1 | O139: 0 | R139: 0 | S139: 0 | T139: =IFERROR(VLOOKUP(B139,'2023-24 Final'!$B$19:$S$156,18,FALSE),0) -> 0 | U139: 0 | V139: n | Y139: 0 | AA139: 0
A140: 122 | B140: 14077 | D140: TAHOLAH | E140: =IFERROR(VLOOKUP(B140,Enrollment!$A$2:$G$147,5,0),0) -> 87 | F140: 39626 | G140: =IFERROR(VLOOKUP(B140,Enrollment!$A$2:$G$147,6,0),0) -> 16 | H140: 1822 | I140: =IFERROR(VLOOKUP(B140,Enrollment!$A$2:$G$147,7,0),0) -> 55 | J140: 25051 | K140: 66499 | L140: =IF(E140>$E$17,_xlfn.IFNA(VLOOKUP(B140,'other funds ftr 2023'!A:I,9,FALSE),0),1) -> 1.1 | M140: 73149 | N140: =1+IF(ISNA(VLOOKUP(B140,'Rural and Low Income 24-25'!$A:$B,2,FALSE)),0,$N$17) -> 1.1 | O140: 80464 | R140: 0 | S140: 80464 | T140: =IFERROR(VLOOKUP(B140,'2023-24 Final'!$B$19:$S$156,18,FALSE),0) -> 91729 | U140: -11265 | V140: y | Y140: 1500 | AA140: 81964
A141: 123 | B141: 24404 | D141: TONASKET | E141: =IFERROR(VLOOKUP(B141,Enrollment!$A$2:$G$147,5,0),0) -> 355 | F141: 161692 | G141: =IFERROR(VLOOKUP(B141,Enrollment!$A$2:$G$147,6,0),0) -> 67 | H141: 7629 | I141: =IFERROR(VLOOKUP(B141,Enrollment!$A$2:$G$147,7,0),0) -> 185 | J141: 84262 | K141: 253583 | L141: =IF(E141>$E$17,_xlfn.IFNA(VLOOKUP(B141,'other funds ftr 2023'!A:I,9,FALSE),0),1) -> 1.1 | M141: 278941 | N141: =1+IF(ISNA(VLOOKUP(B141,'Rural and Low Income 24-25'!$A:$B,2,FALSE)),0,$N$17) -> 1.1 | O141: 306835 | R141: 0 | S141: 306835 | T141: =IFERROR(VLOOKUP(B141,'2023-24 Final'!$B$19:$S$156,18,FALSE),0) -> 289280 | U141: 17555 | V141: y | Y141: 2500 | AA141: 309335
A142: 124 | B142: 39202 | D142: TOPPENISH | E142: =IFERROR(VLOOKUP(B142,Enrollment!$A$2:$G$147,5,0),0) -> 832 | F142: 378952 | G142: =IFERROR(VLOOKUP(B142,Enrollment!$A$2:$G$147,6,0),0) -> 254 | H142: 28922 | I142: =IFERROR(VLOOKUP(B142,Enrollment!$A$2:$G$147,7,0),0) -> 434 | J142: 197675 | K142: 605549 | L142: =IF(E142>$E$17,_xlfn.IFNA(VLOOKUP(B142,'other funds ftr 2023'!A:I,9,FALSE),0),1) -> 1.05 | M142: 635826 | N142: =1+IF(ISNA(VLOOKUP(B142,'Rural and Low Income 24-25'!$A:$B,2,FALSE)),0,$N$17) -> 1 | O142: 635826 | R142: 0 | S142: 635826 | T142: =IFERROR(VLOOKUP(B142,'2023-24 Final'!$B$19:$S$156,18,FALSE),0) -> 599293 | U142: 36533 | V142: y | Y142: 4000 | AA142: 639826
A143: 125 | B143: 20400 | D143: TROUT LAKE | E143: =IFERROR(VLOOKUP(B143,Enrollment!$A$2:$G$147,5,0),0) -> 20 | F143: 9109 | G143: =IFERROR(VLOOKUP(B143,Enrollment!$A$2:$G$147,6,0),0) -> 2 | H143: 228 | I143: =IFERROR(VLOOKUP(B143,Enrollment!$A$2:$G$147,7,0),0) -> 8 | J143: 3644 | K143: 12981 | L143: =IF(E143>$E$17,_xlfn.IFNA(VLOOKUP(B143,'other funds ftr 2023'!A:I,9,FALSE),0),1) -> 0 | M143: 12981 | N143: =1+IF(ISNA(VLOOKUP(B143,'Rural and Low Income 24-25'!$A:$B,2,FALSE)),0,$N$17) -> 1.1 | O143: 0 | R143: 0 | S143: 0 | T143: =IFERROR(VLOOKUP(B143,'2023-24 Final'!$B$19:$S$156,18,FALSE),0) -> 0 | U143: 0 | V143: n | Y143: 0 | AA143: 0
A144: 126 | B144: 34033 | D144: TUMWATER | E144: =IFERROR(VLOOKUP(B144,Enrollment!$A$2:$G$147,5,0),0) -> 0 | F144: 0 | G144: =IFERROR(VLOOKUP(B144,Enrollment!$A$2:$G$147,6,0),0) -> 0 | H144: 0 | I144: =IFERROR(VLOOKUP(B144,Enrollment!$A$2:$G$147,7,0),0) -> 0 | J144: 0 | K144: 0 | L144: =IF(E144>$E$17,_xlfn.IFNA(VLOOKUP(B144,'other funds ftr 2023'!A:I,9,FALSE),0),1) -> 1 | M144: 0 | N144: =1+IF(ISNA(VLOOKUP(B144,'Rural and Low Income 24-25'!$A:$B,2,FALSE)),0,$N$17) -> 1 | O144: 0 | R144: 0 | S144: 0 | T144: =IFERROR(VLOOKUP(B144,'2023-24 Final'!$B$19:$S$156,18,FALSE),0) -> 0 | U144: 0 | V144: n | Y144: 0 | AA144: 0
A145: 127 | B145: 39002 | D145: UNION GAP | E145: =IFERROR(VLOOKUP(B145,Enrollment!$A$2:$G$147,5,0),0) -> 75 | F145: 34160 | G145: =IFERROR(VLOOKUP(B145,Enrollment!$A$2:$G$147,6,0),0) -> 21 | H145: 2391 | I145: =IFERROR(VLOOKUP(B145,Enrollment!$A$2:$G$147,7,0),0) -> 42 | J145: 19130 | K145: 55681 | L145: =IF(E145>$E$17,_xlfn.IFNA(VLOOKUP(B145,'other funds ftr 2023'!A:I,9,FALSE),0),1) -> 1.05 | M145: 58465 | N145: =1+IF(ISNA(VLOOKUP(B145,'Rural and Low Income 24-25'!$A:$B,2,FALSE)),0,$N$17) -> 1.1 | O145: 64312 | R145: 0 | S145: 64312 | T145: =IFERROR(VLOOKUP(B145,'2023-24 Final'!$B$19:$S$156,18,FALSE),0) -> 58417 | U145: 5895 | V145: y | Y145: 1500 | AA145: 65812
A146: 128 | B146: 06037 | D146: VANCOUVER | E146: =IFERROR(VLOOKUP(B146,Enrollment!$A$2:$G$147,5,0),0) -> 58 | F146: 26417 | G146: =IFERROR(VLOOKUP(B146,Enrollment!$A$2:$G$147,6,0),0) -> 12 | H146: 1366 | I146: =IFERROR(VLOOKUP(B146,Enrollment!$A$2:$G$147,7,0),0) -> 41 | J146: 18674 | K146: 46457 | L146: =IF(E146>$E$17,_xlfn.IFNA(VLOOKUP(B146,'other funds ftr 2023'!A:I,9,FALSE),0),1) -> 0.95 | M146: 44134 | N146: =1+IF(ISNA(VLOOKUP(B146,'Rural and Low Income 24-25'!$A:$B,2,FALSE)),0,$N$17) -> 1 | O146: 44134 | R146: 0 | S146: 44134 | T146: =IFERROR(VLOOKUP(B146,'2023-24 Final'!$B$19:$S$156,18,FALSE),0) -> 38638 | U146: 5496 | V146: y | Y146: 1500 | AA146: 45634
A147: 129 | B147: 34901 | D147: WA HE LUT INDIAN SCHOOL | E147: =IFERROR(VLOOKUP(B147,Enrollment!$A$2:$G$147,5,0),0) -> 15 | F147: 6832 | G147: =IFERROR(VLOOKUP(B147,Enrollment!$A$2:$G$147,6,0),0) -> 1 | H147: 114 | I147: =IFERROR(VLOOKUP(B147,Enrollment!$A$2:$G$147,7,0),0) -> 13 | J147: 5921 | K147: =+F147+H147+J147 -> 12867 | L147: =IF(E147>$E$17,_xlfn.IFNA(VLOOKUP(B147,'other funds ftr 2023'!A:I,9,FALSE),0),1) -> 0 | M147: =IF(L147=0,K147,ROUND(K147*L147,0)) -> 12867 | N147: =1+IF(ISNA(VLOOKUP(B147,'Rural and Low Income 24-25'!$A:$B,2,FALSE)),0,$N$17) -> 1 | O147: =IF(V147="y",ROUND(M147*N147,0),0) -> 0 | R147: 0 | S147: =O147+R147 -> 0 | T147: =IFERROR(VLOOKUP(B147,'2023-24 Final'!$B$19:$S$156,18,FALSE),0) -> 0 | U147: =S147-T147 -> 0 | V147: n | Y147: 0 | AA147: 0
A148: 130 | B148: 13073 | D148: WAHLUKE | E148: =IFERROR(VLOOKUP(B148,Enrollment!$A$2:$G$147,5,0),0) -> 1811 | F148: =IF(E148>=10,ROUND(E148*$G$3,0),0) -> 824859 | G148: =IFERROR(VLOOKUP(B148,Enrollment!$A$2:$G$147,6,0),0) -> 584 | H148: =IF(E148>=$E$17,ROUND(G148*$G$3*$G$17,0),0) -> 66499 | I148: =IFERROR(VLOOKUP(B148,Enrollment!$A$2:$G$147,7,0),0) -> 933 | J148: =IF(E148>=$E$17,ROUND(I148*$G$3*$I$17,0),0) -> 424955 | K148: 1316313 | L148: =IF(E148>$E$17,_xlfn.IFNA(VLOOKUP(B148,'other funds ftr 2023'!A:I,9,FALSE),0),1) -> 1.1 | M148: 1447944 | N148: =1+IF(ISNA(VLOOKUP(B148,'Rural and Low Income 24-25'!$A:$B,2,FALSE)),0,$N$17) -> 1 | O148: 1447944 | R148: 0 | S148: 1447944 | T148: =IFERROR(VLOOKUP(B148,'2023-24 Final'!$B$19:$S$156,18,FALSE),0) -> 1500561 | U148: -52617 | V148: y | Y148: =IF(V148="Y",IF(E148<=99,1500,IF(AND(E148>=100,E148<=399),2500,4000)),0) -> 4000 | AA148: =IF(W148=1, 0, Y148+S148+Z148) -> 1451944
A149: 131 | B149: 36140 | D149: WALLA WALLA PUBLIC SCHOOLS | E149: =IFERROR(VLOOKUP(B149,Enrollment!$A$2:$G$147,5,0),0) -> 97 | F149: 44181 | G149: =IFERROR(VLOOKUP(B149,Enrollment!$A$2:$G$147,6,0),0) -> 42 | H149: 4782 | I149: =IFERROR(VLOOKUP(B149,Enrollment!$A$2:$G$147,7,0),0) -> 38 | J149: 17308 | K149: 66271 | L149: =IF(E149>$E$17,_xlfn.IFNA(VLOOKUP(B149,'other funds ftr 2023'!A:I,9,FALSE),0),1) -> 0.95 | M149: 62957 | N149: =1+IF(ISNA(VLOOKUP(B149,'Rural and Low Income 24-25'!$A:$B,2,FALSE)),0,$N$17) -> 1 | O149: 62957 | R149: 0 | S149: 62957 | T149: =IFERROR(VLOOKUP(B149,'2023-24 Final'!$B$19:$S$156,18,FALSE),0) -> 38723 | U149: 24234 | V149: y | Y149: 1500 | AA149: 64457
A150: 132 | B150: 39207 | D150: WAPATO | E150: =IFERROR(VLOOKUP(B150,Enrollment!$A$2:$G$147,5,0),0) -> 882 | F150: 401726 | G150: =IFERROR(VLOOKUP(B150,Enrollment!$A$2:$G$147,6,0),0) -> 195 | H150: 22204 | I150: =IFERROR(VLOOKUP(B150,Enrollment!$A$2:$G$147,7,0),0) -> 569 | J150: 259163 | K150: 683093 | L150: =IF(E150>$E$17,_xlfn.IFNA(VLOOKUP(B150,'other funds ftr 2023'!A:I,9,FALSE),0),1) -> 1.1 | M150: 751402 | N150: =1+IF(ISNA(VLOOKUP(B150,'Rural and Low Income 24-25'!$A:$B,2,FALSE)),0,$N$17) -> 1 | O150: 751402 | R150: 0 | S150: 751402 | T150: =IFERROR(VLOOKUP(B150,'2023-24 Final'!$B$19:$S$156,18,FALSE),0) -> 648589 | U150: 102813 | V150: y | Y150: 4000 | AA150: 755402
A151: 133 | B151: 13146 | D151: WARDEN | E151: =IFERROR(VLOOKUP(B151,Enrollment!$A$2:$G$147,5,0),0) -> 282 | F151: 128443 | G151: =IFERROR(VLOOKUP(B151,Enrollment!$A$2:$G$147,6,0),0) -> 77 | H151: 8768 | I151: =IFERROR(VLOOKUP(B151,Enrollment!$A$2:$G$147,7,0),0) -> 147 | J151: 66954 | K151: 204165 | L151: =IF(E151>$E$17,_xlfn.IFNA(VLOOKUP(B151,'other funds ftr 2023'!A:I,9,FALSE),0),1) -> 1.1 | M151: 224582 | N151: =1+IF(ISNA(VLOOKUP(B151,'Rural and Low Income 24-25'!$A:$B,2,FALSE)),0,$N$17) -> 1.1 | O151: 247040 | R151: 0 | S151: 247040 | T151: =IFERROR(VLOOKUP(B151,'2023-24 Final'!$B$19:$S$156,18,FALSE),0) -> 218485 | U151: 28555 | V151: y | Y151: 2500 | AA151: 249540
A152: 134 | B152: 09209 | D152: WATERVILLE | E152: =IFERROR(VLOOKUP(B152,Enrollment!$A$2:$G$147,5,0),0) -> 18 | F152: 8198 | G152: =IFERROR(VLOOKUP(B152,Enrollment!$A$2:$G$147,6,0),0) -> 5 | H152: 569 | I152: =IFERROR(VLOOKUP(B152,Enrollment!$A$2:$G$147,7,0),0) -> 8 | J152: 3644 | K152: 12411 | L152: =IF(E152>$E$17,_xlfn.IFNA(VLOOKUP(B152,'other funds ftr 2023'!A:I,9,FALSE),0),1) -> 1.05 | M152: 13032 | N152: =1+IF(ISNA(VLOOKUP(B152,'Rural and Low Income 24-25'!$A:$B,2,FALSE)),0,$N$17) -> 1.1 | O152: 0 | R152: 0 | S152: 0 | T152: =IFERROR(VLOOKUP(B152,'2023-24 Final'!$B$19:$S$156,18,FALSE),0) -> 14881 | U152: -14881 | V152: n | Y152: 0 | AA152: 0
A153: 135 | B153: 33049 | D153: WELLPINIT | E153: =IFERROR(VLOOKUP(B153,Enrollment!$A$2:$G$147,5,0),0) -> 82 | F153: 37349 | G153: =IFERROR(VLOOKUP(B153,Enrollment!$A$2:$G$147,6,0),0) -> 14 | H153: 1594 | I153: =IFERROR(VLOOKUP(B153,Enrollment!$A$2:$G$147,7,0),0) -> 52 | J153: 23685 | K153: 62628 | L153: =IF(E153>$E$17,_xlfn.IFNA(VLOOKUP(B153,'other funds ftr 2023'!A:I,9,FALSE),0),1) -> 1.1 | M153: 68891 | N153: =1+IF(ISNA(VLOOKUP(B153,'Rural and Low Income 24-25'!$A:$B,2,FALSE)),0,$N$17) -> 1.1 | O153: 0 | R153: 0 | S153: 0 | T153: =IFERROR(VLOOKUP(B153,'2023-24 Final'!$B$19:$S$156,18,FALSE),0) -> 74331 | U153: -74331 | V153: n | Y153: 0 | AA153: 0
A154: 136 | B154: 04246 | D154: WENATCHEE | E154: =IFERROR(VLOOKUP(B154,Enrollment!$A$2:$G$147,5,0),0) -> 1528 | F154: 695960 | G154: =IFERROR(VLOOKUP(B154,Enrollment!$A$2:$G$147,6,0),0) -> 517 | H154: 58870 | I154: =IFERROR(VLOOKUP(B154,Enrollment!$A$2:$G$147,7,0),0) -> 783 | J154: 356634 | K154: 1111464 | L154: =IF(E154>$E$17,_xlfn.IFNA(VLOOKUP(B154,'other funds ftr 2023'!A:I,9,FALSE),0),1) -> 1.1 | M154: 1222610 | N154: =1+IF(ISNA(VLOOKUP(B154,'Rural and Low Income 24-25'!$A:$B,2,FALSE)),0,$N$17) -> 1 | O154: 1222610 | R154: 0 | S154: 1222610 | T154: =IFERROR(VLOOKUP(B154,'2023-24 Final'!$B$19:$S$156,18,FALSE),0) -> 1269609 | U154: -46999 | V154: y | Y154: 4000 | AA154: 1226610
A155: 137 | B155: 39208 | D155: WEST VALLEY (YAKIMA) | E155: =IFERROR(VLOOKUP(B155,Enrollment!$A$2:$G$147,5,0),0) -> 221 | F155: 100659 | G155: =IFERROR(VLOOKUP(B155,Enrollment!$A$2:$G$147,6,0),0) -> 80 | H155: 9109 | I155: =IFERROR(VLOOKUP(B155,Enrollment!$A$2:$G$147,7,0),0) -> 107 | J155: 48735 | K155: 158503 | L155: =IF(E155>$E$17,_xlfn.IFNA(VLOOKUP(B155,'other funds ftr 2023'!A:I,9,FALSE),0),1) -> 1 | M155: 158503 | N155: =1+IF(ISNA(VLOOKUP(B155,'Rural and Low Income 24-25'!$A:$B,2,FALSE)),0,$N$17) -> 1 | O155: 158503 | R155: 0 | S155: 158503 | T155: =IFERROR(VLOOKUP(B155,'2023-24 Final'!$B$19:$S$156,18,FALSE),0) -> 118030 | U155: 40473 | V155: y | Y155: 2500 | AA155: 161003
A156: 138 | B156: 21303 | D156: WHITE PASS | E156: =IFERROR(VLOOKUP(B156,Enrollment!$A$2:$G$147,5,0),0) -> 11 | F156: 5010 | G156: =IFERROR(VLOOKUP(B156,Enrollment!$A$2:$G$147,6,0),0) -> 0 | H156: 0 | I156: =IFERROR(VLOOKUP(B156,Enrollment!$A$2:$G$147,7,0),0) -> 11 | J156: 5010 | K156: 10020 | L156: =IF(E156>$E$17,_xlfn.IFNA(VLOOKUP(B156,'other funds ftr 2023'!A:I,9,FALSE),0),1) -> 0 | M156: 10020 | N156: =1+IF(ISNA(VLOOKUP(B156,'Rural and Low Income 24-25'!$A:$B,2,FALSE)),0,$N$17) -> 1.1 | O156: 0 | R156: 0 | S156: 0 | T156: =IFERROR(VLOOKUP(B156,'2023-24 Final'!$B$19:$S$156,18,FALSE),0) -> 0 | U156: 0 | V156: n | Y156: 0 | AA156: 0
A157: 139 | B157: 20405 | D157: WHITE SALMON VALLEY | E157: =IFERROR(VLOOKUP(B157,Enrollment!$A$2:$G$147,5,0),0) -> 18 | F157: 8198 | G157: =IFERROR(VLOOKUP(B157,Enrollment!$A$2:$G$147,6,0),0) -> 1 | H157: 114 | I157: =IFERROR(VLOOKUP(B157,Enrollment!$A$2:$G$147,7,0),0) -> 16 | J157: 7288 | K157: 15600 | L157: =IF(E157>$E$17,_xlfn.IFNA(VLOOKUP(B157,'other funds ftr 2023'!A:I,9,FALSE),0),1) -> 0 | M157: 15600 | N157: =1+IF(ISNA(VLOOKUP(B157,'Rural and Low Income 24-25'!$A:$B,2,FALSE)),0,$N$17) -> 1 | O157: 15600 | R157: 0 | S157: 15600 | T157: =IFERROR(VLOOKUP(B157,'2023-24 Final'!$B$19:$S$156,18,FALSE),0) -> 0 | U157: 15600 | V157: y | Y157: 1500 | AA157: 17100
A158: 140 | B158: 21232 | D158: WINLOCK | E158: =IFERROR(VLOOKUP(B158,Enrollment!$A$2:$G$147,5,0),0) -> 98 | F158: 44636 | G158: =IFERROR(VLOOKUP(B158,Enrollment!$A$2:$G$147,6,0),0) -> 44 | H158: 5010 | I158: =IFERROR(VLOOKUP(B158,Enrollment!$A$2:$G$147,7,0),0) -> 39 | J158: 17763 | K158: 67409 | L158: =IF(E158>$E$17,_xlfn.IFNA(VLOOKUP(B158,'other funds ftr 2023'!A:I,9,FALSE),0),1) -> 0 | M158: 67409 | N158: =1+IF(ISNA(VLOOKUP(B158,'Rural and Low Income 24-25'!$A:$B,2,FALSE)),0,$N$17) -> 1 | O158: 67409 | R158: 0 | S158: 67409 | T158: =IFERROR(VLOOKUP(B158,'2023-24 Final'!$B$19:$S$156,18,FALSE),0) -> 0 | U158: 67409 | V158: y | Y158: 1500 | Z158: 50000 | AA158: 118909
A159: 141 | B159: 20094 | D159: WISHRAM | E159: =IFERROR(VLOOKUP(B159,Enrollment!$A$2:$G$147,5,0),0) -> 39 | F159: 17763 | G159: =IFERROR(VLOOKUP(B159,Enrollment!$A$2:$G$147,6,0),0) -> 0 | H159: 0 | I159: =IFERROR(VLOOKUP(B159,Enrollment!$A$2:$G$147,7,0),0) -> 30 | J159: 13664 | K159: 31427 | L159: =IF(E159>$E$17,_xlfn.IFNA(VLOOKUP(B159,'other funds ftr 2023'!A:I,9,FALSE),0),1) -> 0 | M159: 31427 | N159: =1+IF(ISNA(VLOOKUP(B159,'Rural and Low Income 24-25'!$A:$B,2,FALSE)),0,$N$17) -> 1.1 | O159: 34570 | R159: 0 | S159: 34570 | T159: =IFERROR(VLOOKUP(B159,'2023-24 Final'!$B$19:$S$156,18,FALSE),0) -> 0 | U159: 34570 | V159: y | Y159: 1500 | AA159: 36070
A160: 142 | B160: 08404 | D160: WOODLAND | E160: =IFERROR(VLOOKUP(B160,Enrollment!$A$2:$G$147,5,0),0) -> 44 | F160: 20041 | G160: =IFERROR(VLOOKUP(B160,Enrollment!$A$2:$G$147,6,0),0) -> 15 | H160: 1708 | I160: =IFERROR(VLOOKUP(B160,Enrollment!$A$2:$G$147,7,0),0) -> 19 | J160: 8654 | K160: 30403 | L160: =IF(E160>$E$17,_xlfn.IFNA(VLOOKUP(B160,'other funds ftr 2023'!A:I,9,FALSE),0),1) -> 0 | M160: 30403 | N160: =1+IF(ISNA(VLOOKUP(B160,'Rural and Low Income 24-25'!$A:$B,2,FALSE)),0,$N$17) -> 1 | O160: 30403 | R160: 0 | S160: 30403 | T160: =IFERROR(VLOOKUP(B160,'2023-24 Final'!$B$19:$S$156,18,FALSE),0) -> 0 | U160: 30403 | V160: y | Y160: 1500 | AA160: 31903
A161: 143 | B161: 39901 | D161: YAKAMA NATION TRIBAL COMPACT | E161: =IFERROR(VLOOKUP(B161,Enrollment!$A$2:$G$147,5,0),0) -> 95 | F161: 43270 | G161: =IFERROR(VLOOKUP(B161,Enrollment!$A$2:$G$147,6,0),0) -> 23 | H161: 2619 | I161: =IFERROR(VLOOKUP(B161,Enrollment!$A$2:$G$147,7,0),0) -> 66 | J161: 30061 | K161: 75950 | L161: =IF(E161>$E$17,_xlfn.IFNA(VLOOKUP(B161,'other funds ftr 2023'!A:I,9,FALSE),0),1) -> 0 | M161: 75950 | N161: =1+IF(ISNA(VLOOKUP(B161,'Rural and Low Income 24-25'!$A:$B,2,FALSE)),0,$N$17) -> 1 | O161: 75950 | R161: 0 | S161: 75950 | T161: =IFERROR(VLOOKUP(B161,'2023-24 Final'!$B$19:$S$156,18,FALSE),0) -> 0 | U161: 75950 | V161: y | Y161: 1500 | AA161: 77450
A162: 144 | B162: 39007 | D162: YAKIMA | E162: =IFERROR(VLOOKUP(B162,Enrollment!$A$2:$G$147,5,0),0) -> 1938 | F162: 882703 | G162: =IFERROR(VLOOKUP(B162,Enrollment!$A$2:$G$147,6,0),0) -> 532 | H162: 60578 | I162: =IFERROR(VLOOKUP(B162,Enrollment!$A$2:$G$147,7,0),0) -> 1179 | J162: 537001 | K162: 1480282 | L162: =IF(E162>$E$17,_xlfn.IFNA(VLOOKUP(B162,'other funds ftr 2023'!A:I,9,FALSE),0),1) -> 0 | M162: 1480282 | N162: =1+IF(ISNA(VLOOKUP(B162,'Rural and Low Income 24-25'!$A:$B,2,FALSE)),0,$N$17) -> 1 | O162: 1480282 | R162: 0 | S162: 1480282 | T162: =IFERROR(VLOOKUP(B162,'2023-24 Final'!$B$19:$S$156,18,FALSE),0) -> 0 | U162: 1480282 | V162: y | Y162: 4000 | AA162: 1484282
A163: 145 | B163: 34002 | D163: YELM | E163: =IFERROR(VLOOKUP(B163,Enrollment!$A$2:$G$147,5,0),0) -> 59 | F163: 26873 | G163: =IFERROR(VLOOKUP(B163,Enrollment!$A$2:$G$147,6,0),0) -> 5 | H163: 569 | I163: =IFERROR(VLOOKUP(B163,Enrollment!$A$2:$G$147,7,0),0) -> 44 | J163: 20041 | K163: 47483 | L163: =IF(E163>$E$17,_xlfn.IFNA(VLOOKUP(B163,'other funds ftr 2023'!A:I,9,FALSE),0),1) -> 0 | M163: 47483 | N163: =1+IF(ISNA(VLOOKUP(B163,'Rural and Low Income 24-25'!$A:$B,2,FALSE)),0,$N$17) -> 1 | O163: 0 | R163: 0 | S163: 0 | T163: =IFERROR(VLOOKUP(B163,'2023-24 Final'!$B$19:$S$156,18,FALSE),0) -> 0 | U163: 0 | V163: n | Y163: 0 | AA163: 0
A164: 146 | B164: 39205 | D164: ZILLAH | E164: =IFERROR(VLOOKUP(B164,Enrollment!$A$2:$G$147,5,0),0) -> 91 | F164: 41448 | G164: =IFERROR(VLOOKUP(B164,Enrollment!$A$2:$G$147,6,0),0) -> 23 | H164: 2619 | I164: =IFERROR(VLOOKUP(B164,Enrollment!$A$2:$G$147,7,0),0) -> 44 | J164: 20041 | K164: 64108 | L164: =IF(E164>$E$17,_xlfn.IFNA(VLOOKUP(B164,'other funds ftr 2023'!A:I,9,FALSE),0),1) -> 0 | M164: 64108 | N164: =1+IF(ISNA(VLOOKUP(B164,'Rural and Low Income 24-25'!$A:$B,2,FALSE)),0,$N$17) -> 1 | O164: 64108 | R164: =ROUND(IF(Q164>0,-(0.9-Q164)*O164,0),0) -> 0 | S164: 64108 | T164: =IFERROR(VLOOKUP(B164,'2023-24 Final'!$B$19:$S$156,18,FALSE),0) -> 0 | U164: 64108 | V164: y | Y164: 1500 | AA164: 65608

Sheet Assumptions (hidden)
A1: Assumptions and Factors — Title I Part C Migrant - Final
B2: Caution: Yellow Cells below drive are inputs into the calculations in this model
AL3: Row Headings on Allocation Table
A4: Funding | C4: Final 2024-25 | D4: Preliminary 2024-25 | E4: FINAL 2023-24 | F4: Preliminary 2023-24 | G4: Final 2022-23 | H4: Preliminary 2022-23 | I4: Final 2021-22 | J4: Preliminary 2021-22 | K4: Final 2020-21 | L4: Preliminary 2020-21 | M4: Final 2019-20 | N4: Preliminary 2019-20 | O4: Final 2018-19 | P4: Preliminary 2018-19 | Q4: Final 2017-18 | R4: Preliminary 2017-18 | S4: 2nd Rev Final 2016-17 | T4: Rev Final 2016-17 | U4: Final 2016-17 | V4: Final 2015-16 | W4: Preliminary 2015-16 | X4: Final 2014-15 | Y4: Preliminary 2014-15 | Z4: Revised Final 2013-14 | AA4: Final 2013-14 | AB4: Final 2012-13 | AC4: Preliminary 2012-13 | AD4: Final 2011-12 | AE4: Preliminary 2011-12 | AF4: Final 2010-11 | AG4: Final 2009-10 | AH4: Final 2008-09 | AI4: Source:
B5: Total State Allocation | C5: 37992820 | D5: 37,838,194 | E5: 38616843 | F5: 38616843 | G5: 38126160 | H5: 38,168,234 | I5: 36172055 | J5: 36170767 | K5: 33650164 | L5: 32545772 | M5: 29253692 | N5: 28509499 | O5: 27865765 | P5: 26740196 | Q5: 24667573 | R5: 24540413 | S5: 14921087 | T5: 14921087 | U5: 14921087 | V5: 14921087 | W5: 14875015 | X5: 14875015 | Y5: 14875015 | Z5: 14839257 | AA5: 14839257 | AB5: 15628872 | AC5: 15628872 | AD5: 15659257 | AE5: 15659257 | AF5: 15691456 | AG5: 14450894 | AH5: 15015291
B6: State Allocation under $14B rule | C6: 27985938 | D6: 27866779 | E6: 28466965 | F6: 28448427 | G6: 29491607 | H6: 29524149 | I6: 29680217 | J6: 29680217 | K6: 28007581 | L6: 32545800 | M6: 23817704 | N6: 23834846 | O6: 21267203 | P6: 21267203 | Q6: 13112612 | R6: 13104377 | S6: 13566765 | T6: 13616032 | U6: 13566765 | V6: 14077428 | W6: 14055099 | X6: 14085411 | Y6: 14041918 | Z6: 14645076 | AA6: 14645076 | AB6: 14620622 | AC6: 14620622 | AD6: 14680941 | AE6: 14680941 | AF6: 14980942
A7: General Admin | B7: State Admin | C7: =ROUND(C6*0.01,0) -> 279859 | D7: =ROUND(D6*0.01,0) -> 278668 | E7: =ROUND(E6*0.01,0) -> 284670 | F7: 284484 | G7: 294916 | H7: 295241 | I7: 296802 | J7: 296802 | K7: 280076 | L7: 325458 | M7: =ROUND(M6*0.01,0) -> 238177 | N7: 238348 | O7: 212672 | P7: 212672 | Q7: 131126 | R7: 131044 | S7: 135668 | T7: 136160 | U7: 135668 | V7: 140774 | W7: 140551 | X7: 140854 | Y7: 140419 | Z7: 146451 | AA7: =ROUND(AA6*0.01,0) -> 146451 | AB7: =ROUND(AB6*0.01,0) -> 146206 | AC7: =ROUND(AC6*0.01,0) -> 146206 | AD7: =ROUND(AD6*0.01,0) -> 146809 | AE7: =ROUND(14680941*0.01,0) -> 146809 | AF7: =ROUND(14680942*0.01,0) -> 146809 | AG7: =ROUND(13563693*0.01,0) -> 135637 | AH7: =ROUND(14649429*0.01,0) -> 146494 | AI7: 0.01
B8: State Level Activities (Unallocated Balance) | C8: =C5-C7-C18-C24 -> 13417269 | D8: =D5-D7-D18-D24 -> 13356610 | E8: =E5-E7-E18-E24 -> 15061378 | F8: 15162254 | G8: 14955548 | H8: 14972053 | I8: 13087588 | J8: 13086382 | K8: 13179990 | L8: =L5-L7-L18-L24 -> 12692851 | M8: 10935689 | N8: 11551691 | O8: 11233633 | P8: 10783406 | Q8: 9920983 | R8: 12702535 | S8: 3078585 | T8: 3078093 | U8: 4570694 | V8: 2999662 | W8: 2953813 | X8: 3913523 | Y8: 2273028 | Z8: 14692806 | AA8: 14692806 | AB8: 15482666 | AC8: 15482666 | AD8: 15512448 | AE8: 15512448 | AF8: 15544647 | AG8: 14315257 | AH8: 536592
A10: Other Admin | B10: Director salary
B11: Regional Offices
B12: MSDS
B13: Other stakeholders
B15: Other Grants - not through formula | I15: 180000
B16: Summer Grants - Current Year | C16: 2279569 | D16: 2270292 | E16: 2179730 | F16: 2317010 | G16: 2107548 | H16: 2290094 | I16: 2278840 | J16: 2278758 | K16: 3365016 | L16: 3254577 | M16: 2978130 | N16: 2786577 | O16: 2486577 | P16: 2374020 | Q16: 2281677 | R16: 1492109 | S16: 1492109 | T16: 1492109 | V16: 1565926 | W16: 1565926 | X16: 1565926 | Y16: 1565926 | Z16: 1562887 | AA16: 1562887 | AC16: 1000000 | AD16: 1000000 | AF16: 1550000 | AG16: 1200000 | AH16: 1200000
B17: Summer Grants - Prior Year Unspent Funds | Y17: 75004
B18: Total | C18: =C16+C17 -> 2279569 | D18: =D16+D17 -> 2270292 | E18: =E16+E17 -> 2179730 | F18: 2317010 | G18: 2107548 | H18: 2290094 | I18: 2278840 | J18: 2278758 | K18: =K16+K17 -> 3365016 | L18: 3254577 | M18: 2978130 | N18: 2786577 | O18: 2486577 | P18: 2374020 | Q18: 2281677 | R18: 1492109 | S18: 1492109 | T18: 1492109 | V18: 1565926 | W18: =W16 -> 1565926 | Y18: =SUM(Y16:Y17) -> 1640930
B19: Allocated per Worksheet
B20: Difference
B22: Total Regular Year Allocation - from Sylvia | C22: 22016123 | D22: 21932624 | E22: 21091065 | F22: 20853095 | G22: 20768148 | H22: 20610846 | I22: 20508825 | J22: 20508825 | K22: 16825082 | L22: 16272886 | M22: 15101696 | N22: 13932883 | O22: 13932883 | P22: 13370098 | Q22: 12333787 | R22: 8952652 | S22: 8952652 | T22: 8952652 | U22: 8952652 | V22: 9470989 | W22: 9470989 | X22: 9395554 | Y22: 9395554 | Z22: 9212323 | AA22: 9212323 | AB22: 11016189 | AC22: 11016189 | AD22: 11500000 | AE22: 11500000 | AF22: 11500000 | AG22: 10135000 | AH22: 9900000
B23: Regular Grants from Prior Year Unspent Funds | R23: 1262073 | S23: 1262073 | T23: 1262073 | U23: 1262073 | V23: 743736 | W23: 743736 | X23: 1425084 | Y23: 1425084 | AB23: 11010766
B24: Total | C24: =SUM(C22:C23) -> 22016123 | D24: =SUM(D22:D23) -> 21932624 | E24: 21091065 | F24: 20853095 | G24: 20768148 | H24: 20610846 | I24: 20508825 | J24: =SUM(J22:J23) -> 20508825 | K24: 16825082 | L24: 16272886 | M24: 15101696 | N24: 13932883 | O24: 13932883 | P24: 13370098 | Q24: 12333787 | R24: 10214725 | S24: 10214725 | T24: 10214725 | U24: 10214725 | V24: 10214725 | W24: 10214725 | X24: 10820638 | Y24: 10820638
B25: Allocated per Worksheet before MOE | C25: 22016123 | E25: ='2023-24 Final'!$O$18 -> 21091064 | G25: =#REF! ->  | H25: 20768148 | I25: 20508825 | J25: 20508825 | K25: 16795507 | L25: 16272886 | M25: 13932883 | N25: 13932883 | O25: 13932883 | P25: 13370098 | Q25: 12333787 | Y25: 10820638
B26: MOE Reduction | I26: 0 | J26: 0 | K26: 0 | L26: 0 | M26: -57 | N26: -57 | O26: 0 | P26: 0 | Q26: -1406
B27: Allocated per Worksheet after MOE | C27: =SUM(C25:C26) -> 22016123 | D27: =SUM(D25:D26) -> 0 | E27: =SUM(E25:E26) -> 21091064 | F27: 0 | H27: 20768148 | I27: 20508825 | J27: 20508825 | K27: 16795507 | L27: 16272886 | M27: 13932826 | N27: 13932826 | O27: 13932883 | P27: 13370098 | Q27: 12332381
B29: MERO Allocation - Sylvia to provide | M29: 2757777 | X29: 1619378 | Y29: 1619378
B30: Allocated per Worksheet | Y30: 1409333
B31: Difference | Y31: =+Y29-Y30 -> 210045
B35: Counter-do not change | AC35: 1
B37: Summer:
B38: Amount per Pass Unit | AC38: 90 | AD38: 90
B39: Amount per Credits | AC39: 900 | AD39: 900
B42: Number of LEP child within the districts | AA42: From Bilingual apportionment data
A43: DataSets: | B43: Native american students are also added. See above.
B48: Allocations
B52: Program Review (Sylvia Reyna)
A55: Other Fund Factor
A56: Min | E56: =MIN('other funds ftr 2023'!$H$2:$H$139) -> 0
A57: 25th Percentile | B57: 1.1 | E57: =_xlfn.PERCENTILE.INC(IF('other funds ftr 2023'!$H$2:$H$139,'other funds ftr 2023'!$H$2:$H$139),0.25) -> 0.90931915 | N57: 0.01565336724 | P57: 0.01719687959
A58: 50th Percentile | B58: 1.05 | E58: =_xlfn.PERCENTILE.INC(IF('other funds ftr 2023'!$H$2:$H$139,'other funds ftr 2023'!$H$2:$H$139),0.5) -> 0.9528496153 | N58: 0.0370609667 | P58: 0.03624933072
A59: 75th Percentile | B59: 1 | E59: =_xlfn.PERCENTILE.INC(IF('other funds ftr 2023'!$H$2:$H$139,'other funds ftr 2023'!$H$2:$H$139),0.75) -> 0.982941953 | N59: 0.0597864668 | P59: 0.05439831943
A60: < Max | B60: 0.95 | E60: =MAX('other funds ftr 2023'!$H$2:$H$139) -> 0.9994990883 | N60: 0.1706049389 | P60: 0.1237520479

Sheet Enrollment (hidden)
A1: CO_DIST_NUM | B1: DIST_TITLE | C1: MSDR_ID | D1: ESD | E1: STUDENTS | F1: NEEDY | G1: PRIORITY
A2: 14005 | B2: ABERDEEN | C2: WAABER | D2: 189 | E2: 128 | F2: 37 | G2: 59 | K2: =TEXT(A2, "00000") -> 14005
A3: 29103 | B3: ANACORTES | C3: WAANAC | D3: 189 | E3: 16 | F3: 2 | G3: 11 | K3: =TEXT(A3, "00000") -> 29103
A4: 31016 | B4: ARLINGTON | C4: WAARLI | D4: 189 | E4: 43 | F4: 12 | G4: 30 | K4: 31016
A5: 17408 | B5: AUBURN | C5: WAAURN | D5: 189 | E5: 34 | F5: 5 | G5: 23 | K5: 17408
A6: 06119 | B6: BATTLE GROUND | C6: WABATT | D6: 189 | E6: 25 | F6: 11 | G6: 12 | K6: 06119
A7: 17405 | B7: BELLEVUE | C7: WABELV | D7: 189 | E7: 10 | F7: 4 | G7: 6 | K7: 17405
A8: 37501 | B8: BELLINGHAM | C8: WABELH | D8: 189 | E8: 106 | F8: 34 | G8: 57 | K8: 37501
A9: 27403 | B9: BETHEL | C9: WABETH | D9: 189 | E9: 22 | F9: 9 | G9: 12 | K9: 27403
A10: 18100 | B10: BREMERTON | C10: WABREM | D10: 189 | E10: 54 | F10: 14 | G10: 36 | K10: 18100
A11: 24111 | B11: BREWSTER | C11: WABREW | D11: 171 | E11: 237 | F11: 90 | G11: 108 | K11: 24111
A12: 09075 | B12: BRIDGEPORT | C12: WABRID | D12: 171 | E12: 112 | F12: 40 | G12: 54 | K12: 09075
A13: 29100 | B13: BURLINGTON-EDISON | C13: WABURL | D13: 189 | E13: 501 | F13: 134 | G13: 268 | K13: 29100
A14: 04228 | B14: CASCADE | C14: WACASC | D14: 171 | E14: 47 | F14: 26 | G14: 10 | K14: 04228
A15: 04222 | B15: CASHMERE | C15: WACASH | D15: 171 | E15: 203 | F15: 56 | G15: 77 | K15: 04222
A16: 18401 | B16: CENTRAL KITSAP | C16: WACKIT | D16: 189 | E16: 16 | F16: 7 | G16: 7 | K16: 18401
A17: 32356 | B17: CENTRAL VALLEY | C17: WACENV | D17: 105 | E17: 19 | F17: 1 | G17: 17 | K17: 32356
A18: 21401 | B18: CENTRALIA | C18: WACENT | D18: 189 | E18: 88 | F18: 48 | G18: 26 | K18: 21401
A19: 21302 | B19: CHEHALIS | C19: WACHEH | D19: 189 | E19: 31 | F19: 22 | G19: 5 | K19: 21302
A20: 32360 | B20: CHENEY | C20: WACHEN | D20: 171 | E20: 17 | F20: 7 | G20: 8 | K20: 32360
A21: 27901 | B21: CHIEF LESCHI TRIBAL COMPACT | C21: WACHIE | D21: 189 | E21: 41 | F21: 2 | G21: 29 | K21: 27901
A22: 27400 | B22: CLOVER PARK | C22: WACLOV | D22: 189 | E22: 12 | F22: 2 | G22: 7 | K22: 27400
A23: 36250 | B23: COLLEGE PLACE | C23: WACOLL | D23: 123 | E23: 175 | F23: 39 | G23: 98 | K23: 36250
A24: 36400 | B24: COLUMBIA (WALLA WALLA) | C24: WACOLU | D24: 123 | E24: 65 | F24: 26 | G24: 36 | K24: 36400
A25: 29317 | B25: CONWAY | C25: WACONW | D25: 189 | E25: 12 | F25: 6 | G25: 4 | K25: 29317
A26: 15204 | B26: COUPEVILLE | C26: WACOUP | D26: 189 | E26: 11 | F26: 2 | G26: 5 | K26: 15204
A27: 39090 | B27: EAST VALLEY (YAKIMA) | C27: WAEASV | D27: 105 | E27: 229 | F27: 38 | G27: 147 | K27: 39090
A28: 09206 | B28: EASTMONT | C28: WAEAST | D28: 171 | E28: 883 | F28: 356 | G28: 436 | K28: 09206
A29: 31015 | B29: EDMONDS | C29: WAEDMO | D29: 189 | E29: 18 | F29: 4 | G29: 11 | K29: 31015
A30: 39801 | B30: EDUCATIONAL SERVICE DISTRICT 105 | C30: WAYKES | D30: 105 | E30: 20 | F30: 10 | G30: 10 | K30: 39801
A31: 11801 | B31: EDUCATIONAL SERVICE DISTRICT 123 | C31: WAESSD | D31: 123 | E31: 131 | F31: 76 | G31: 43 | K31: 11801
A32: 19401 | B32: ELLENSBURG | C32: WAELLE | D32: 105 | E32: 24 | F32: 9 | G32: 13 | K32: 19401
A33: 14068 | B33: ELMA | C33: WAELMA | D33: 189 | E33: 33 | F33: 15 | G33: 13 | K33: 14068
A34: 04127 | B34: ENTIAT | C34: WAENTI | D34: 171 | E34: 61 | F34: 1 | G34: 45 | K34: 04127
A35: 13165 | B35: EPHRATA | C35: WAEPHR | D35: 171 | E35: 147 | F35: 69 | G35: 56 | K35: 13165
A36: 31002 | B36: EVERETT | C36: WAEVET | D36: 189 | E36: 59 | F36: 9 | G36: 40 | K36: 31002
A37: 06114 | B37: EVERGREEN (CLARK) | C37: WAEVER | D37: 189 | E37: 34 | F37: 10 | G37: 23 | K37: 06114
A38: 17210 | B38: FEDERAL WAY | C38: WAFEDW | D38: 189 | E38: 28 | F38: 10 | G38: 15 | K38: 17210
A39: 37502 | B39: FERNDALE | C39: WAFERN | D39: 189 | E39: 119 | F39: 23 | G39: 59 | K39: 37502
A40: 03053 | B40: FINLEY | C40: WAFINL | D40: 123 | E40: 115 | F40: 37 | G40: 64 | K40: 03053
A41: 20404 | B41: GOLDENDALE | C41: WAGOLD | D41: 105 | E41: 61 | F41: 8 | G41: 46 | K41: 20404
A42: 13301 | B42: GRAND COULEE DAM | C42: WAGRAC | D42: 171 | E42: 236 | F42: 49 | G42: 166 | K42: 13301
A43: 39200 | B43: GRANDVIEW | C43: WAGRAN | D43: 105 | E43: 599 | F43: 235 | G43: 292 | K43: 39200
A44: 39204 | B44: GRANGER | C44: WAGRAG | D44: 105 | E44: 317 | F44: 126 | G44: 126 | K44: 39204
A45: 39203 | B45: HIGHLAND | C45: WAHIGH | D45: 105 | E45: 211 | F45: 64 | G45: 121 | K45: 39203
A46: 23404 | B46: HOOD CANAL | C46: WAHOOD | D46: 189 | E46: 44 | F46: 4 | G46: 35 | K46: 23404
A47: 14028 | B47: HOQUIAM | C47: WAHOQU | D47: 189 | E47: 33 | F47: 22 | G47: 9 | K47: 14028
A48: 10070 | B48: INCHELIUM | C48: WAINCH | D48: 189 | E48: 14 | F48: 3 | G48: 10 | K48: 10070
A49: 08458 | B49: KELSO | C49: WAKELS | D49: 189 | E49: 32 | F49: 6 | G49: 23 | K49: 08458
A50: 03017 | B50: KENNEWICK | C50: WAKENN | D50: 123 | E50: 2734 | F50: 1199 | G50: 1184 | K50: 03017
A51: 17415 | B51: KENT | C51: WAKENT | D51: 189 | E51: 26 | F51: 11 | G51: 14 | K51: 17415
A52: 03052 | B52: KIONA-BENTON CITY | C52: WAKIBE | D52: 123 | E52: 330 | F52: 123 | G52: 166 | K52: 03052
A53: 19403 | B53: KITTITAS | C53: WAKITT | D53: 105 | E53: 22 | F53: 6 | G53: 14 | K53: 19403
A54: 29311 | B54: LA CONNER | C54: WALACO | D54: 189 | E54: 144 | F54: 59 | G54: 76 | K54: 29311
A55: 04129 | B55: LAKE CHELAN | C55: WALAKE | D55: 171 | E55: 162 | F55: 46 | G55: 99 | K55: 04129
A56: 31004 | B56: LAKE STEVENS | C56: WALAKS | D56: 189 | E56: 16 | F56: 6 | G56: 8 | K56: 31004
A57: 31306 | B57: LAKEWOOD | C57: WALKWO | D57: 189 | E57: 15 | F57: 0 | G57: 15 | K57: 31306
A58: 01158 | B58: LIND | C58: WALIND | D58: 123 | E58: 40 | F58: 7 | G58: 25 | K58: 01158
A59: 08122 | B59: LONGVIEW | C59: WALONG | D59: 189 | E59: 36 | F59: 11 | G59: 18 | K59: 08122
A60: 20406 | B60: LYLE | C60: WALYLE | D60: 105 | E60: 19 | F60: 0 | G60: 13 | K60: 20406
A61: 37504 | B61: LYNDEN | C61: WALYND | D61: 189 | E61: 106 | F61: 36 | G61: 46 | K61: 37504
A62: 39120 | B62: MABTON | C62: WAMABT | D62: 105 | E62: 353 | F62: 139 | G62: 179 | K62: 39120
A63: 04019 | B63: MANSON | C63: WAMANS | D63: 171 | E63: 95 | F63: 27 | G63: 53 | K63: 04019
A64: 33207 | B64: MARY WALKER | C64: WAMARW | D64: 189 | E64: 16 | F64: 1 | G64: 13 | K64: 33207
A65: 31025 | B65: MARYSVILLE | C65: WAMARV | D65: 189 | E65: 321 | F65: 68 | G65: 220 | K65: 31025
A66: NULL | B66: MASA - CWU | C66: WAMASA | D66: 105 | E66: 53 | F66: 13 | G66: 11 | K66: NULL
A67: 37505 | B67: MERIDIAN | C67: WAMERI | D67: 189 | E67: 41 | F67: 12 | G67: 28 | K67: =TEXT(A67, "00000") -> 37505
A68: 31103 | B68: MONROE | C68: WAMONR | D68: 189 | E68: 19 | F68: 6 | G68: 10 | K68: 31103
A69: 14066 | B69: MONTESANO | C69: WAMONT | D69: 189 | E69: 10 | F69: 0 | G69: 10 | K69: 14066
A70: 13161 | B70: MOSES LAKE | C70: WAMSLK | D70: 171 | E70: 475 | F70: 146 | G70: 297 | K70: 13161
A71: 21206 | B71: MOSSYROCK | C71: WAMOSS | D71: 189 | E71: 26 | F71: 15 | G71: 7 | K71: 21206
A72: 39209 | B72: MOUNT ADAMS | C72: WAMTAD | D72: 105 | E72: 239 | F72: 125 | G72: 82 | K72: 39209
A73: 37507 | B73: MOUNT BAKER | C73: WAMTBK | D73: 189 | E73: 30 | F73: 17 | G73: 11 | K73: 37507
A74: 29320 | B74: MOUNT VERNON | C74: WAMTVE | D74: 189 | E74: 1857 | F74: 753 | G74: 874 | K74: 29320
A75: 17903 | B75: MUCKLESHOOT INDIAN TRIBE | C75: WAMUCK | D75: 189 | E75: 18 | F75: 7 | G75: 7 | K75: 17903
A76: 31006 | B76: MUKILTEO | C76: WAMUKL | D76: 189 | E76: 37 | F76: 7 | G76: 27 | K76: 31006
A77: 39003 | B77: NACHES VALLEY | C77: WANACH | D77: 105 | E77: 118 | F77: 13 | G77: 96 | K77: 39003
A78: 25155 | B78: NASELLE-GRAYS RIVER VALLEY | C78: WANASE | D78: 189 | E78: 56 | F78: 13 | G78: 28 | K78: 25155
A79: 24014 | B79: NESPELEM | C79: WANESP | D79: 171 | E79: 65 | F79: 32 | G79: 14 | K79: 24014
A80: 37506 | B80: NOOKSACK VALLEY | C80: WANOOK | D80: 189 | E80: 125 | F80: 30 | G80: 75 | K80: 37506
A81: 14064 | B81: NORTH BEACH | C81: WANORB | D81: 189 | E81: 33 | F81: 17 | G81: 12 | K81: 14064
A82: 11051 | B82: NORTH FRANKLIN | C82: WANORT | D82: 123 | E82: 618 | F82: 226 | G82: 327 | K82: 11051
A83: 18400 | B83: NORTH KITSAP | C83: WANORK | D83: 189 | E83: 39 | F83: 4 | G83: 28 | K83: 18400
A84: 34003 | B84: NORTH THURSTON PUBLIC SCHOOLS | C84: WANORH | D84: 189 | E84: 57 | F84: 9 | G84: 42 | K84: 34003
A85: 15201 | B85: OAK HARBOR | C85: WAOAKH | D85: 189 | E85: 23 | F85: 10 | G85: 5 | K85: 15201
A86: 25101 | B86: OCEAN BEACH | C86: WAOCEA | D86: 189 | E86: 29 | F86: 26 | G86: 1 | K86: 25101
A87: 14172 | B87: OCOSTA | C87: WAOCOS | D87: 189 | E87: 27 | F87: 2 | G87: 17 | K87: 14172
A88: 24105 | B88: OKANOGAN | C88: WAOKAN | D88: 171 | E88: 59 | F88: 29 | G88: 25 | K88: 24105
A89: 34111 | B89: OLYMPIA | C89: WAOLYM | D89: 189 | E89: 51 | F89: 20 | G89: 19 | K89: 34111
A90: 24019 | B90: OMAK | C90: WAOMAK | D90: 171 | E90: 63 | F90: 20 | G90: 36 | K90: 24019
A91: 09013 | B91: ORONDO | C91: WAORON | D91: 171 | E91: 40 | F91: 11 | G91: 16 | K91: 09013
A92: 24410 | B92: OROVILLE | C92: WAOROV | D92: 171 | E92: 31 | F92: 8 | G92: 13 | K92: 24410
A93: 01147 | B93: OTHELLO | C93: WAOTHE | D93: 123 | E93: 820 | F93: 262 | G93: 415 | K93: 01147
A94: 11001 | B94: PASCO | C94: WAPASC | D94: 123 | E94: 1932 | F94: 830 | G94: 816 | K94: 11001
A95: 24122 | B95: PATEROS | C95: WAPATE | D95: 171 | E95: 29 | F95: 19 | G95: 4 | K95: 24122
A96: 03050 | B96: PATERSON | C96: WAPATR | D96: 123 | E96: 25 | F96: 14 | G96: 3 | K96: 03050
A97: 04901 | B97: PINNACLES PREP CHARTER SCHOOL | C97: WAPPCS | D97: NULL | E97: 17 | F97: 8 | G97: 7 | K97: 04901
A98: 36402 | B98: PRESCOTT | C98: WAPRES | D98: 123 | E98: 55 | F98: 4 | G98: 11 | K98: 36402
A99: 03116 | B99: PROSSER | C99: WAPROS | D99: 123 | E99: 776 | F99: 272 | G99: 383 | K99: 03116
A100: 27003 | B100: PUYALLUP | C100: WAPUYA | D100: 189 | E100: 17 | F100: 2 | G100: 9 | K100: 27003
A101: 05402 | B101: QUILLAYUTE VALLEY | C101: WAQUIL | D101: 189 | E101: 97 | F101: 49 | G101: 32 | K101: 05402
A102: 13144 | B102: QUINCY | C102: WAQUIN | D102: 171 | E102: 604 | F102: 202 | G102: 309 | K102: 13144
A103: 22009 | B103: REARDAN-EDWALL | C103: WAREAR | D103: 171 | E103: 23 | F103: 6 | G103: 14 | K103: 22009
A104: 17403 | B104: RENTON | C104: WARENT | D104: 189 | E104: 14 | F104: 2 | G104: 10 | K104: 17403
A105: 03400 | B105: RICHLAND | C105: WARICH | D105: 123 | E105: 297 | F105: 91 | G105: 165 | K105: 03400
A106: 06122 | B106: RIDGEFIELD | C106: WARIDG | D106: 189 | E106: 24 | F106: 2 | G106: 18 | K106: 06122
A107: 17407 | B107: RIVERVIEW | C107: WARIVW | D107: 189 | E107: 11 | F107: 0 | G107: 7 | K107: 17407
A108: 34401 | B108: ROCHESTER | C108: WAROCH | D108: 189 | E108: 47 | F108: 20 | G108: 13 | K108: 34401
A109: 20403 | B109: ROOSEVELT | C109: WAROOS | D109: 105 | E109: 17 | F109: 0 | G109: 8 | K109: 20403
A110: 13160 | B110: ROYAL | C110: WAROYA | D110: 105 | E110: 252 | F110: 81 | G110: 130 | K110: 13160
A111: 17001 | B111: SEATTLE PUBLIC SCHOOLS | C111: WASEAT | D111: 189 | E111: 22 | F111: 14 | G111: 8 | K111: 17001
A112: 29101 | B112: SEDRO-WOOLLEY | C112: WASEDR | D112: 189 | E112: 163 | F112: 61 | G112: 77 | K112: 29101
A113: 39119 | B113: SELAH | C113: WASELA | D113: 105 | E113: 235 | F113: 74 | G113: 124 | K113: 39119
A114: 23309 | B114: SHELTON | C114: WASHEL | D114: 189 | E114: 68 | F114: 22 | G114: 42 | K114: 23309
A115: 31201 | B115: SNOHOMISH | C115: WASNOH | D115: 189 | E115: 69 | F115: 22 | G115: 32 | K115: 31201
A116: 13156 | B116: SOAP LAKE | C116: WASOAP | D116: 171 | E116: 43 | F116: 13 | G116: 24 | K116: 13156
A117: 32081 | B117: SPOKANE | C117: WASPOK | D117: 171 | E117: 101 | F117: 18 | G117: 63 | K117: 32081
A118: 31401 | B118: STANWOOD-CAMANO | C118: WASTAN | D118: 189 | E118: 20 | F118: 4 | G118: 15 | K118: 31401
A119: 30303 | B119: STEVENSON-CARSON | C119: WASTEV | D119: 189 | E119: 11 | F119: 7 | G119: 4 | K119: 30303
A120: 27320 | B120: SUMNER | C120: WASUMN | D120: 189 | E120: 10 | F120: 5 | G120: 5 | K120: 27320
A121: 39201 | B121: SUNNYSIDE | C121: WASUNN | D121: 105 | E121: 1846 | F121: 463 | G121: 1084 | K121: 39201
A122: 27010 | B122: TACOMA | C122: WATACO | D122: 189 | E122: 21 | F122: 4 | G122: 15 | K122: 27010
A123: 14077 | B123: TAHOLAH | C123: WATAHO | D123: 189 | E123: 87 | F123: 16 | G123: 55 | K123: 14077
A124: 24404 | B124: TONASKET | C124: WATONK | D124: 171 | E124: 355 | F124: 67 | G124: 185 | K124: 24404
A125: 39202 | B125: TOPPENISH | C125: WATOPP | D125: 105 | E125: 832 | F125: 254 | G125: 434 | K125: 39202
A126: 20400 | B126: TROUT LAKE | C126: WATOUL | D126: 105 | E126: 20 | F126: 2 | G126: 8 | K126: 20400
A127: 39002 | B127: UNION GAP | C127: WAUNIO | D127: 105 | E127: 75 | F127: 21 | G127: 42 | K127: 39002
A128: 06037 | B128: VANCOUVER | C128: WAVANC | D128: 189 | E128: 58 | F128: 12 | G128: 41 | K128: 06037
A129: 34901 | B129: WA HE LUT INDIAN SCHOOL | C129: WAHELU | D129: 189 | E129: 15 | F129: 1 | G129: 13 | K129: 34901
A130: 13073 | B130: WAHLUKE | C130: WAWAHL | D130: 105 | E130: 1811 | F130: 584 | G130: 933 | K130: 13073
A131: 36140 | B131: WALLA WALLA PUBLIC SCHOOLS | C131: WAWALL | D131: 123 | E131: 97 | F131: 42 | G131: 38 | K131: =TEXT(A131, "00000") -> 36140
A132: 39207 | B132: WAPATO | C132: WAWAPA | D132: 105 | E132: 882 | F132: 195 | G132: 569 | K132: 39207
A133: 13146 | B133: WARDEN | C133: WAWARD | D133: 171 | E133: 282 | F133: 77 | G133: 147 | K133: 13146
A134: 34979 | B134: WASHINGTON MILITARY DEPARTMENT | C134: WAMILI | D134: 189 | E134: 21 | F134: 15 | G134: 6 | K134: 34979
A135: 09209 | B135: WATERVILLE | C135: WAWATE | D135: 171 | E135: 18 | F135: 5 | G135: 8 | K135: 09209
A136: 33049 | B136: WELLPINIT | C136: WAWELL | D136: 189 | E136: 82 | F136: 14 | G136: 52 | K136: 33049
A137: 04246 | B137: WENATCHEE | C137: WAWENA | D137: 171 | E137: 1528 | F137: 517 | G137: 783 | K137: 04246
A138: 39208 | B138: WEST VALLEY (YAKIMA) | C138: WAWEST | D138: 105 | E138: 221 | F138: 80 | G138: 107 | K138: 39208
A139: 21303 | B139: WHITE PASS | C139: WAWPAS | D139: 189 | E139: 11 | F139: 0 | G139: 11 | K139: 21303
A140: 20405 | B140: WHITE SALMON VALLEY | C140: WAWHIT | D140: 105 | E140: 18 | F140: 1 | G140: 16 | K140: 20405
A141: 21232 | B141: WINLOCK | C141: WAWINL | D141: 189 | E141: 98 | F141: 44 | G141: 39 | K141: 21232
A142: 20094 | B142: WISHRAM | C142: WAWISH | D142: 105 | E142: 39 | F142: 0 | G142: 30 | K142: 20094
A143: 08404 | B143: WOODLAND | C143: WAWOOD | D143: 189 | E143: 44 | F143: 15 | G143: 19 | K143: 08404
A144: 39901 | B144: YAKAMA NATION TRIBAL COMPACT | C144: WAYAKT | D144: 105 | E144: 95 | F144: 23 | G144: 66 | K144: 39901
A145: 39007 | B145: YAKIMA | C145: WAYAKI | D145: 105 | E145: 1938 | F145: 532 | G145: 1179 | K145: 39007
A146: 34002 | B146: YELM | C146: WAYELM | D146: 189 | E146: 59 | F146: 5 | G146: 44 | K146: 34002
A147: 39205 | B147: ZILLAH | C147: WAZILL | D147: 105 | E147: 91 | F147: 23 | G147: 44 | K147: 39205

Sheet Rural and Low Income 24-25 (hidden)
A1: CoDis | B1: Local Education Agency (LEA) | D1: Ask Tony May for the list of current year REAP amd RLIS districts
A2: 13146 | B2: Warden School District
A3: 25118 | B3: South Bend School District
A4: 01109 | B4: Washtucna School District
A5: 01122 | B5: Benge School District
A6: 01158 | B6: Lind School District
A7: 01160 | B7: Ritzville School District
A8: 02420 | B8: Asotin-Anatone School District
A9: 03050 | B9: Paterson School District
A10: 04019 | B10: Manson School District
A11: 04069 | B11: Stehekin School District
A12: 04127 | B12: Entiat School District
A13: 04901 | B13: Pinnacles Prep Charter School
A14: 05313 | B14: Crescent School District
A15: 05401 | B15: Cape Flattery School District
A16: 05402 | B16: Quillayute Valley School District
A17: 06103 | B17: Green Mountain School District
A18: 07002 | B18: Dayton School District
A19: 07035 | B19: Starbuck School District
A20: 09013 | B20: Orondo School District
A21: 09075 | B21: Bridgeport School District
A22: 09102 | B22: Palisades School District
A23: 09207 | B23: Mansfield School District
A24: 09209 | B24: Waterville School District
A25: 10003 | B25: Keller School District
A26: 10050 | B26: Curlew School District
A27: 10065 | B27: Orient School District
A28: 10070 | B28: Inchelium School District
A29: 10309 | B29: Republic School District
A30: 11054 | B30: Star School District No. 054
A31: 11056 | B31: Kahlotus School District
A32: 12110 | B32: Pomeroy School District
A33: 13151 | B33: Coulee-Hartline School District
A34: 13156 | B34: Soap Lake School District
A35: 13167 | B35: Wilson Creek School District
A36: 14005 | B36: Aberdeen School District
A37: 14028 | B37: Hoquiam School District
A38: 14064 | B38: North Beach School District No. 64
A39: 14065 | B39: McCleary School District
A40: 14068 | B40: Elma School District
A41: 14077 | B41: Taholah School District
A42: 14097 | B42: Lake Quinault School District
A43: 14099 | B43: Cosmopolis School District
A44: 14104 | B44: Satsop School District
A45: 14117 | B45: Wishkah Valley School District
A46: 14172 | B46: Ocosta School District
A47: 14400 | B47: Oakville School District
A48: 16020 | B48: Queets-Clearwater School District
A49: 16046 | B49: Brinnon School District
A50: 16048 | B50: Quilcene School District
A51: 17404 | B51: Skykomish School District
A52: 19007 | B52: Damman School District
A53: 19028 | B53: Easton School District
A54: 19400 | B54: Thorp School District
A55: 20094 | B55: Wishram School District
A56: 20203 | B56: Bickleton School District
A57: 20215 | B57: Centerville School District
A58: 20400 | B58: Trout Lake School District
A59: 20401 | B59: Glenwood School District
A60: 20402 | B60: Klickitat School District
A61: 20403 | B61: Roosevelt School District
A62: 20404 | B62: Goldendale School District
A63: 20406 | B63: Lyle School District
A64: 21036 | B64: Evaline School District
A65: 21206 | B65: Mossyrock School District
A66: 21214 | B66: Morton School District
A67: 21234 | B67: Boistfort School District
A68: 21301 | B68: Pe Ell School District
A69: 21303 | B69: White Pass School District
A70: 22008 | B70: Sprague School District
A71: 22009 | B71: Reardan-Edwall School District
A72: 22017 | B72: Almira School District
A73: 22073 | B73: Creston School District
A74: 22105 | B74: Odessa School District
A75: 22200 | B75: Wilbur School District
A76: 22204 | B76: Harrington School District
A77: 22207 | B77: Davenport School District
A78: 23042 | B78: Southside School District
A79: 23054 | B79: Grapeview School District
A80: 23404 | B80: Hood Canal School District
A81: 24014 | B81: Nespelem School District
A82: 24019 | B82: Omak School District
A83: 24105 | B83: Okanogan School District
A84: 24111 | B84: Brewster School District
A85: 24122 | B85: Pateros School District
A86: 24350 | B86: Methow Valley School District
A87: 24404 | B87: Tonasket School District
A88: 24410 | B88: Oroville School District
A89: 25116 | B89: Raymond School District
A90: 25155 | B90: Naselle-Grays River Valley School District
A91: 25160 | B91: Willapa Valley School District
A92: 25200 | B92: North River School District
A93: 26056 | B93: Newport School District
A94: 26059 | B94: Cusick School District
A95: 26070 | B95: Selkirk School District
A96: 27019 | B96: Carbonado School District
A97: 28010 | B97: Shaw Island School District
A98: 28144 | B98: Lopez School District
A99: 29011 | B99: Concrete School District
A100: 29311 | B100: La Conner School District
A101: 29317 | B101: Conway School District
A102: 30002 | B102: Skamania School District
A103: 30029 | B103: Mount Pleasant School District
A104: 30031 | B104: Mill A School District
A105: 30303 | B105: Stevenson-Carson School District
A106: 31063 | B106: Index Elementary School District 63
A107: 31330 | B107: Darrington School District
A108: 32123 | B108: Orchard Prairie School District
A109: 32312 | B109: Great Northern School District
A110: 32362 | B110: Liberty School District
A111: 33030 | B111: Onion Creek School District
A112: 33049 | B112: Wellpinit School District #49
A113: 33070 | B113: Valley School District
A114: 33183 | B114: Loon Lake School District
A115: 33202 | B115: Summit Valley School District
A116: 33205 | B116: Evergreen School District (Stevens)
A117: 33206 | B117: Columbia (Stevens) School District
A118: 33207 | B118: Mary Walker School District
A119: 33211 | B119: Northport School District
A120: 35200 | B120: Wahkiakum School District
A121: 36101 | B121: Dixie School District
A122: 36300 | B122: Touchet School District
A123: 36401 | B123: Waitsburg School District
A124: 36402 | B124: Prescott School District
A125: 38126 | B125: LaCrosse School District
A126: 38264 | B126: Lamont School District
A127: 38265 | B127: Tekoa School District
A128: 38300 | B128: Colfax School District
A129: 38301 | B129: Palouse School District
A130: 38302 | B130: Garfield School District
A131: 38304 | B131: Steptoe School District
A132: 38306 | B132: Colton School District
A133: 38308 | B133: Endicott School District
A134: 38320 | B134: Rosalia School District
A135: 38322 | B135: St. John School District
A136: 38324 | B136: Oakesdale School District
A137: 38901 | B137: Pullman Community Montessori
A138: 39002 | B138: Union Gap School District
A139: 39120 | B139: Mabton School District
A140: 39204 | B140: Granger School District
A141: 39209 | B141: Mount Adams School District

Sheet other funds ftr 2023 (hidden)
A1: CCDDD | B1: Migrant Districts | C1: Title III 22-23 | D1: Title I A 22-23 | E1: LAP 22-23 | F1: TBIP 22-23 | G1: Title I C 22-23 | H1: other funds as % of Revs | I1: "Other Funds" Factor
A2: 14005 | B2: ABERDEEN | C2: =IFERROR(VLOOKUP(A2,'[2]Allocations 2023-24'!$B$9:$AC$326,20,FALSE),0) -> 70178 | D2: =IFERROR(VLOOKUP(A2,'[3]State Reservations'!$C$4:$AE$328,29,FALSE),0) -> 1488763.617 | E2: =IFERROR(VLOOKUP(A2,[4]Sheet1!$A$3:$D$379,3,FALSE),0) -> 2365860.29 | F2: =IFERROR(VLOOKUP(A2,[4]Sheet1!$A$3:$D$379,4,FALSE),0) -> 750457.29 | G2: =IFERROR(VLOOKUP(A2,'[5]2023-24 Final'!$B$19:$S$156,18,FALSE),0) -> 67521 | H2: =IF(G2=0,0,(SUM(C2:F2)/SUM(C2:G2))) -> 0.9857634136 | I2: =_xlfn.IFS(H2=0%,0,'other funds ftr 2023'!H2<Assumptions!$E$57,Assumptions!$B$57,'other funds ftr 2023'!H2<Assumptions!$E$58,Assumptions!$B$58,'other funds ftr 2023'!H2<=Assumptions!$E$59,Assumptions!$B$59,'other funds ftr 2023'!H2<=Assumptions!$E$60,Assumptions!$B$60) -> 0.95
A3: 29103 | B3: ANACORTES | C3: =IFERROR(VLOOKUP(A3,'[2]Allocations 2023-24'!$B$9:$AC$326,20,FALSE),0) -> 0 | D3: =IFERROR(VLOOKUP(A3,'[3]State Reservations'!$C$4:$AE$328,29,FALSE),0) -> 443268.4707 | E3: =IFERROR(VLOOKUP(A3,[4]Sheet1!$A$3:$D$379,3,FALSE),0) -> 632190.83 | F3: =IFERROR(VLOOKUP(A3,[4]Sheet1!$A$3:$D$379,4,FALSE),0) -> 119993.18 | G3: =IFERROR(VLOOKUP(A3,'[5]2023-24 Final'!$B$19:$S$156,18,FALSE),0) -> 8356 | H3: 0.9930586965 | I3: =_xlfn.IFS(H3=0%,0,'other funds ftr 2023'!H3<Assumptions!$E$57,Assumptions!$B$57,'other funds ftr 2023'!H3<Assumptions!$E$58,Assumptions!$B$58,'other funds ftr 2023'!H3<=Assumptions!$E$59,Assumptions!$B$59,'other funds ftr 2023'!H3<=Assumptions!$E$60,Assumptions!$B$60) -> 0.95
A4: 31016 | B4: ARLINGTON | C4: =IFERROR(VLOOKUP(A4,'[2]Allocations 2023-24'!$B$9:$AC$326,20,FALSE),0) -> 46187 | D4: =IFERROR(VLOOKUP(A4,'[3]State Reservations'!$C$4:$AE$328,29,FALSE),0) -> 748015.5442 | E4: =IFERROR(VLOOKUP(A4,[4]Sheet1!$A$3:$D$379,3,FALSE),0) -> 1574889.53 | F4: =IFERROR(VLOOKUP(A4,[4]Sheet1!$A$3:$D$379,4,FALSE),0) -> 637210.68 | G4: =IFERROR(VLOOKUP(A4,'[5]2023-24 Final'!$B$19:$S$156,18,FALSE),0) -> 0 | H4: 0 | I4: =_xlfn.IFS(H4=0%,0,'other funds ftr 2023'!H4<Assumptions!$E$57,Assumptions!$B$57,'other funds ftr 2023'!H4<Assumptions!$E$58,Assumptions!$B$58,'other funds ftr 2023'!H4<=Assumptions!$E$59,Assumptions!$B$59,'other funds ftr 2023'!H4<=Assumptions!$E$60,Assumptions!$B$60) -> 0
A5: 17408 | B5: AUBURN | C5: =IFERROR(VLOOKUP(A5,'[2]Allocations 2023-24'!$B$9:$AC$326,20,FALSE),0) -> 664936 | D5: =IFERROR(VLOOKUP(A5,'[3]State Reservations'!$C$4:$AE$328,29,FALSE),0) -> 6019160.81 | E5: =IFERROR(VLOOKUP(A5,[4]Sheet1!$A$3:$D$379,3,FALSE),0) -> 11605143.45 | F5: =IFERROR(VLOOKUP(A5,[4]Sheet1!$A$3:$D$379,4,FALSE),0) -> 9226404.27 | G5: =IFERROR(VLOOKUP(A5,'[5]2023-24 Final'!$B$19:$S$156,18,FALSE),0) -> 26459 | H5: 0.9990393254 | I5: =_xlfn.IFS(H5=0%,0,'other funds ftr 2023'!H5<Assumptions!$E$57,Assumptions!$B$57,'other funds ftr 2023'!H5<Assumptions!$E$58,Assumptions!$B$58,'other funds ftr 2023'!H5<=Assumptions!$E$59,Assumptions!$B$59,'other funds ftr 2023'!H5<=Assumptions!$E$60,Assumptions!$B$60) -> 0.95
A6: 06119 | B6: BATTLE GROUND | C6: =IFERROR(VLOOKUP(A6,'[2]Allocations 2023-24'!$B$9:$AC$326,20,FALSE),0) -> 152512 | D6: =IFERROR(VLOOKUP(A6,'[3]State Reservations'!$C$4:$AE$328,29,FALSE),0) -> 1916487.172 | E6: =IFERROR(VLOOKUP(A6,[4]Sheet1!$A$3:$D$379,3,FALSE),0) -> 3273032.78 | F6: =IFERROR(VLOOKUP(A6,[4]Sheet1!$A$3:$D$379,4,FALSE),0) -> 2270199.01 | G6: =IFERROR(VLOOKUP(A6,'[5]2023-24 Final'!$B$19:$S$156,18,FALSE),0) -> 0 | H6: 0 | I6: =_xlfn.IFS(H6=0%,0,'other funds ftr 2023'!H6<Assumptions!$E$57,Assumptions!$B$57,'other funds ftr 2023'!H6<Assumptions!$E$58,Assumptions!$B$58,'other funds ftr 2023'!H6<=Assumptions!$E$59,Assumptions!$B$59,'other funds ftr 2023'!H6<=Assumptions!$E$60,Assumptions!$B$60) -> 0
A7: 17405 | B7: BELLEVUE | C7: =IFERROR(VLOOKUP(A7,'[2]Allocations 2023-24'!$B$9:$AC$326,20,FALSE),0) -> 441184 | D7: =IFERROR(VLOOKUP(A7,'[3]State Reservations'!$C$4:$AE$328,29,FALSE),0) -> 2855318.457 | E7: =IFERROR(VLOOKUP(A7,[4]Sheet1!$A$3:$D$379,3,FALSE),0) -> 3359491.53 | F7: =IFERROR(VLOOKUP(A7,[4]Sheet1!$A$3:$D$379,4,FALSE),0) -> 7058559.02 | G7: =IFERROR(VLOOKUP(A7,'[5]2023-24 Final'!$B$19:$S$156,18,FALSE),0) -> 0 | H7: 0 | I7: =_xlfn.IFS(H7=0%,0,'other funds ftr 2023'!H7<Assumptions!$E$57,Assumptions!$B$57,'other funds ftr 2023'!H7<Assumptions!$E$58,Assumptions!$B$58,'other funds ftr 2023'!H7<=Assumptions!$E$59,Assumptions!$B$59,'other funds ftr 2023'!H7<=Assumptions!$E$60,Assumptions!$B$60) -> 0
A8: 37501 | B8: BELLINGHAM | C8: =IFERROR(VLOOKUP(A8,'[2]Allocations 2023-24'!$B$9:$AC$326,20,FALSE),0) -> 129950 | D8: =IFERROR(VLOOKUP(A8,'[3]State Reservations'!$C$4:$AE$328,29,FALSE),0) -> 3226284.029 | E8: =IFERROR(VLOOKUP(A8,[4]Sheet1!$A$3:$D$379,3,FALSE),0) -> 3634033.15 | F8: =IFERROR(VLOOKUP(A8,[4]Sheet1!$A$3:$D$379,4,FALSE),0) -> 1653590.51 | G8: =IFERROR(VLOOKUP(A8,'[5]2023-24 Final'!$B$19:$S$156,18,FALSE),0) -> 83056 | H8: 0.9904827751 | I8: =_xlfn.IFS(H8=0%,0,'other funds ftr 2023'!H8<Assumptions!$E$57,Assumptions!$B$57,'other funds ftr 2023'!H8<Assumptions!$E$58,Assumptions!$B$58,'other funds ftr 2023'!H8<=Assumptions!$E$59,Assumptions!$B$59,'other funds ftr 2023'!H8<=Assumptions!$E$60,Assumptions!$B$60) -> 0.95
A9: 27403 | B9: BETHEL | C9: =IFERROR(VLOOKUP(A9,'[2]Allocations 2023-24'!$B$9:$AC$326,20,FALSE),0) -> 206337 | D9: =IFERROR(VLOOKUP(A9,'[3]State Reservations'!$C$4:$AE$328,29,FALSE),0) -> 4319027.899 | E9: =IFERROR(VLOOKUP(A9,[4]Sheet1!$A$3:$D$379,3,FALSE),0) -> 10244625.86 | F9: =IFERROR(VLOOKUP(A9,[4]Sheet1!$A$3:$D$379,4,FALSE),0) -> 2812213.1 | G9: =IFERROR(VLOOKUP(A9,'[5]2023-24 Final'!$B$19:$S$156,18,FALSE),0) -> 0 | H9: 0 | I9: =_xlfn.IFS(H9=0%,0,'other funds ftr 2023'!H9<Assumptions!$E$57,Assumptions!$B$57,'other funds ftr 2023'!H9<Assumptions!$E$58,Assumptions!$B$58,'other funds ftr 2023'!H9<=Assumptions!$E$59,Assumptions!$B$59,'other funds ftr 2023'!H9<=Assumptions!$E$60,Assumptions!$B$60) -> 0
A10: 18100 | B10: BREMERTON | C10: =IFERROR(VLOOKUP(A10,'[2]Allocations 2023-24'!$B$9:$AC$326,20,FALSE),0) -> 71170 | D10: =IFERROR(VLOOKUP(A10,'[3]State Reservations'!$C$4:$AE$328,29,FALSE),0) -> 1594584.509 | E10: =IFERROR(VLOOKUP(A10,[4]Sheet1!$A$3:$D$379,3,FALSE),0) -> 3523524.54 | F10: =IFERROR(VLOOKUP(A10,[4]Sheet1!$A$3:$D$379,4,FALSE),0) -> 1003811.54 | G10: =IFERROR(VLOOKUP(A10,'[5]2023-24 Final'!$B$19:$S$156,18,FALSE),0) -> 34580 | H10: 0.9944473621 | I10: =_xlfn.IFS(H10=0%,0,'other funds ftr 2023'!H10<Assumptions!$E$57,Assumptions!$B$57,'other funds ftr 2023'!H10<Assumptions!$E$58,Assumptions!$B$58,'other funds ftr 2023'!H10<=Assumptions!$E$59,Assumptions!$B$59,'other funds ftr 2023'!H10<=Assumptions!$E$60,Assumptions!$B$60) -> 0.95
A11: 24111 | B11: BREWSTER | C11: =IFERROR(VLOOKUP(A11,'[2]Allocations 2023-24'!$B$9:$AC$326,20,FALSE),0) -> 52351 | D11: =IFERROR(VLOOKUP(A11,'[3]State Reservations'!$C$4:$AE$328,29,FALSE),0) -> 636334.5033 | E11: =IFERROR(VLOOKUP(A11,[4]Sheet1!$A$3:$D$379,3,FALSE),0) -> 911560.61 | F11: =IFERROR(VLOOKUP(A11,[4]Sheet1!$A$3:$D$379,4,FALSE),0) -> 607245.7 | G11: =IFERROR(VLOOKUP(A11,'[5]2023-24 Final'!$B$19:$S$156,18,FALSE),0) -> 185543 | H11: 0.9224653988 | I11: =_xlfn.IFS(H11=0%,0,'other funds ftr 2023'!H11<Assumptions!$E$57,Assumptions!$B$57,'other funds ftr 2023'!H11<Assumptions!$E$58,Assumptions!$B$58,'other funds ftr 2023'!H11<=Assumptions!$E$59,Assumptions!$B$59,'other funds ftr 2023'!H11<=Assumptions!$E$60,Assumptions!$B$60) -> 1.05
A12: 09075 | B12: BRIDGEPORT | C12: =IFERROR(VLOOKUP(A12,'[2]Allocations 2023-24'!$B$9:$AC$326,20,FALSE),0) -> 55071 | D12: =IFERROR(VLOOKUP(A12,'[3]State Reservations'!$C$4:$AE$328,29,FALSE),0) -> 445972.9168 | E12: =IFERROR(VLOOKUP(A12,[4]Sheet1!$A$3:$D$379,3,FALSE),0) -> 695254.58 | F12: =IFERROR(VLOOKUP(A12,[4]Sheet1!$A$3:$D$379,4,FALSE),0) -> 638378.66 | G12: =IFERROR(VLOOKUP(A12,'[5]2023-24 Final'!$B$19:$S$156,18,FALSE),0) -> 102134 | H12: 0.9472669291 | I12: =_xlfn.IFS(H12=0%,0,'other funds ftr 2023'!H12<Assumptions!$E$57,Assumptions!$B$57,'other funds ftr 2023'!H12<Assumptions!$E$58,Assumptions!$B$58,'other funds ftr 2023'!H12<=Assumptions!$E$59,Assumptions!$B$59,'other funds ftr 2023'!H12<=Assumptions!$E$60,Assumptions!$B$60) -> 1.05
A13: 29100 | B13: BURLINGTON-EDISON | C13: =IFERROR(VLOOKUP(A13,'[2]Allocations 2023-24'!$B$9:$AC$326,20,FALSE),0) -> 104236 | D13: =IFERROR(VLOOKUP(A13,'[3]State Reservations'!$C$4:$AE$328,29,FALSE),0) -> 1035638.26 | E13: =IFERROR(VLOOKUP(A13,[4]Sheet1!$A$3:$D$379,3,FALSE),0) -> 2244935.86 | F13: =IFERROR(VLOOKUP(A13,[4]Sheet1!$A$3:$D$379,4,FALSE),0) -> 1386972.08 | G13: =IFERROR(VLOOKUP(A13,'[5]2023-24 Final'!$B$19:$S$156,18,FALSE),0) -> 343367 | H13: 0.9328725348 | I13: =_xlfn.IFS(H13=0%,0,'other funds ftr 2023'!H13<Assumptions!$E$57,Assumptions!$B$57,'other funds ftr 2023'!H13<Assumptions!$E$58,Assumptions!$B$58,'other funds ftr 2023'!H13<=Assumptions!$E$59,Assumptions!$B$59,'other funds ftr 2023'!H13<=Assumptions!$E$60,Assumptions!$B$60) -> 1.05
A14: 04228 | B14: CASCADE | C14: =IFERROR(VLOOKUP(A14,'[2]Allocations 2023-24'!$B$9:$AC$326,20,FALSE),0) -> 19499 | D14: =IFERROR(VLOOKUP(A14,'[3]State Reservations'!$C$4:$AE$328,29,FALSE),0) -> 337046.7361 | E14: =IFERROR(VLOOKUP(A14,[4]Sheet1!$A$3:$D$379,3,FALSE),0) -> 344822.16 | F14: =IFERROR(VLOOKUP(A14,[4]Sheet1!$A$3:$D$379,4,FALSE),0) -> 219665.96 | G14: =IFERROR(VLOOKUP(A14,'[5]2023-24 Final'!$B$19:$S$156,18,FALSE),0) -> 34615 | H14: 0.9637785367 | I14: =_xlfn.IFS(H14=0%,0,'other funds ftr 2023'!H14<Assumptions!$E$57,Assumptions!$B$57,'other funds ftr 2023'!H14<Assumptions!$E$58,Assumptions!$B$58,'other funds ftr 2023'!H14<=Assumptions!$E$59,Assumptions!$B$59,'other funds ftr 2023'!H14<=Assumptions!$E$60,Assumptions!$B$60) -> 1
A15: 04222 | B15: CASHMERE | C15: =IFERROR(VLOOKUP(A15,'[2]Allocations 2023-24'!$B$9:$AC$326,20,FALSE),0) -> 25890 | D15: =IFERROR(VLOOKUP(A15,'[3]State Reservations'!$C$4:$AE$328,29,FALSE),0) -> 373190.5763 | E15: =IFERROR(VLOOKUP(A15,[4]Sheet1!$A$3:$D$379,3,FALSE),0) -> 487905.96 | F15: =IFERROR(VLOOKUP(A15,[4]Sheet1!$A$3:$D$379,4,FALSE),0) -> 302469.45 | G15: =IFERROR(VLOOKUP(A15,'[5]2023-24 Final'!$B$19:$S$156,18,FALSE),0) -> 153968 | H15: 0.885391357 | I15: =_xlfn.IFS(H15=0%,0,'other funds ftr 2023'!H15<Assumptions!$E$57,Assumptions!$B$57,'other funds ftr 2023'!H15<Assumptions!$E$58,Assumptions!$B$58,'other funds ftr 2023'!H15<=Assumptions!$E$59,Assumptions!$B$59,'other funds ftr 2023'!H15<=Assumptions!$E$60,Assumptions!$B$60) -> 1.1
A16: 18401 | B16: CENTRAL KITSAP | C16: =IFERROR(VLOOKUP(A16,'[2]Allocations 2023-24'!$B$9:$AC$326,20,FALSE),0) -> 68424 | D16: =IFERROR(VLOOKUP(A16,'[3]State Reservations'!$C$4:$AE$328,29,FALSE),0) -> 1561253.713 | E16: =IFERROR(VLOOKUP(A16,[4]Sheet1!$A$3:$D$379,3,FALSE),0) -> 3999602.92 | F16: =IFERROR(VLOOKUP(A16,[4]Sheet1!$A$3:$D$379,4,FALSE),0) -> 970272.55 | G16: =IFERROR(VLOOKUP(A16,'[5]2023-24 Final'!$B$19:$S$156,18,FALSE),0) -> 0 | H16: 0 | I16: =_xlfn.IFS(H16=0%,0,'other funds ftr 2023'!H16<Assumptions!$E$57,Assumptions!$B$57,'other funds ftr 2023'!H16<Assumptions!$E$58,Assumptions!$B$58,'other funds ftr 2023'!H16<=Assumptions!$E$59,Assumptions!$B$59,'other funds ftr 2023'!H16<=Assumptions!$E$60,Assumptions!$B$60) -> 0
A17: 32356 | B17: CENTRAL VALLEY | C17: =IFERROR(VLOOKUP(A17,'[2]Allocations 2023-24'!$B$9:$AC$326,20,FALSE),0) -> 82040 | D17: =IFERROR(VLOOKUP(A17,'[3]State Reservations'!$C$4:$AE$328,29,FALSE),0) -> 2933391.745 | E17: =IFERROR(VLOOKUP(A17,[4]Sheet1!$A$3:$D$379,3,FALSE),0) -> 4988593.81 | F17: =IFERROR(VLOOKUP(A17,[4]Sheet1!$A$3:$D$379,4,FALSE),0) -> 1253706.27 | G17: =IFERROR(VLOOKUP(A17,'[5]2023-24 Final'!$B$19:$S$156,18,FALSE),0) -> 0 | H17: 0 | I17: =_xlfn.IFS(H17=0%,0,'other funds ftr 2023'!H17<Assumptions!$E$57,Assumptions!$B$57,'other funds ftr 2023'!H17<Assumptions!$E$58,Assumptions!$B$58,'other funds ftr 2023'!H17<=Assumptions!$E$59,Assumptions!$B$59,'other funds ftr 2023'!H17<=Assumptions!$E$60,Assumptions!$B$60) -> 0
A18: 21401 | B18: CENTRALIA | C18: =IFERROR(VLOOKUP(A18,'[2]Allocations 2023-24'!$B$9:$AC$326,20,FALSE),0) -> 70682 | D18: =IFERROR(VLOOKUP(A18,'[3]State Reservations'!$C$4:$AE$328,29,FALSE),0) -> 1536573.563 | E18: =IFERROR(VLOOKUP(A18,[4]Sheet1!$A$3:$D$379,3,FALSE),0) -> 2760239.59 | F18: =IFERROR(VLOOKUP(A18,[4]Sheet1!$A$3:$D$379,4,FALSE),0) -> 803842.64 | G18: =IFERROR(VLOOKUP(A18,'[5]2023-24 Final'!$B$19:$S$156,18,FALSE),0) -> 44726 | H18: 0.9914253349 | I18: =_xlfn.IFS(H18=0%,0,'other funds ftr 2023'!H18<Assumptions!$E$57,Assumptions!$B$57,'other funds ftr 2023'!H18<Assumptions!$E$58,Assumptions!$B$58,'other funds ftr 2023'!H18<=Assumptions!$E$59,Assumptions!$B$59,'other funds ftr 2023'!H18<=Assumptions!$E$60,Assumptions!$B$60) -> 0.95
A19: 21302 | B19: CHEHALIS | C19: =IFERROR(VLOOKUP(A19,'[2]Allocations 2023-24'!$B$9:$AC$326,20,FALSE),0) -> 19173 | D19: =IFERROR(VLOOKUP(A19,'[3]State Reservations'!$C$4:$AE$328,29,FALSE),0) -> 587855.3379 | E19: =IFERROR(VLOOKUP(A19,[4]Sheet1!$A$3:$D$379,3,FALSE),0) -> 1199287.66 | F19: =IFERROR(VLOOKUP(A19,[4]Sheet1!$A$3:$D$379,4,FALSE),0) -> 247023.76 | G19: =IFERROR(VLOOKUP(A19,'[5]2023-24 Final'!$B$19:$S$156,18,FALSE),0) -> 20038 | H19: 0.9903355769 | I19: =_xlfn.IFS(H19=0%,0,'other funds ftr 2023'!H19<Assumptions!$E$57,Assumptions!$B$57,'other funds ftr 2023'!H19<Assumptions!$E$58,Assumptions!$B$58,'other funds ftr 2023'!H19<=Assumptions!$E$59,Assumptions!$B$59,'other funds ftr 2023'!H19<=Assumptions!$E$60,Assumptions!$B$60) -> 0.95
A20: 32360 | B20: CHENEY | C20: =IFERROR(VLOOKUP(A20,'[2]Allocations 2023-24'!$B$9:$AC$326,20,FALSE),0) -> 51726 | D20: =IFERROR(VLOOKUP(A20,'[3]State Reservations'!$C$4:$AE$328,29,FALSE),0) -> 1289949.039 | E20: =IFERROR(VLOOKUP(A20,[4]Sheet1!$A$3:$D$379,3,FALSE),0) -> 2500298.35 | F20: =IFERROR(VLOOKUP(A20,[4]Sheet1!$A$3:$D$379,4,FALSE),0) -> 705544.18 | G20: =IFERROR(VLOOKUP(A20,'[5]2023-24 Final'!$B$19:$S$156,18,FALSE),0) -> 0 | H20: 0 | I20: =_xlfn.IFS(H20=0%,0,'other funds ftr 2023'!H20<Assumptions!$E$57,Assumptions!$B$57,'other funds ftr 2023'!H20<Assumptions!$E$58,Assumptions!$B$58,'other funds ftr 2023'!H20<=Assumptions!$E$59,Assumptions!$B$59,'other funds ftr 2023'!H20<=Assumptions!$E$60,Assumptions!$B$60) -> 0
A21: 27901 | B21: CHIEF LESCHI TRIBAL COMPACT | C21: =IFERROR(VLOOKUP(A21,'[2]Allocations 2023-24'!$B$9:$AC$326,20,FALSE),0) -> 0 | D21: =IFERROR(VLOOKUP(A21,'[3]State Reservations'!$C$4:$AE$328,29,FALSE),0) -> 0 | E21: =IFERROR(VLOOKUP(A21,[4]Sheet1!$A$3:$D$379,3,FALSE),0) -> 433850.53 | F21: =IFERROR(VLOOKUP(A21,[4]Sheet1!$A$3:$D$379,4,FALSE),0) -> 0 | G21: =IFERROR(VLOOKUP(A21,'[5]2023-24 Final'!$B$19:$S$156,18,FALSE),0) -> 24852 | H21: 0.9458210967 | I21: =_xlfn.IFS(H21=0%,0,'other funds ftr 2023'!H21<Assumptions!$E$57,Assumptions!$B$57,'other funds ftr 2023'!H21<Assumptions!$E$58,Assumptions!$B$58,'other funds ftr 2023'!H21<=Assumptions!$E$59,Assumptions!$B$59,'other funds ftr 2023'!H21<=Assumptions!$E$60,Assumptions!$B$60) -> 1.05
A22: 27400 | B22: CLOVER PARK | C22: =IFERROR(VLOOKUP(A22,'[2]Allocations 2023-24'!$B$9:$AC$326,20,FALSE),0) -> 243128 | D22: =IFERROR(VLOOKUP(A22,'[3]State Reservations'!$C$4:$AE$328,29,FALSE),0) -> 4269881.335 | E22: =IFERROR(VLOOKUP(A22,[4]Sheet1!$A$3:$D$379,3,FALSE),0) -> 8157941.85 | F22: =IFERROR(VLOOKUP(A22,[4]Sheet1!$A$3:$D$379,4,FALSE),0) -> 3127449.91 | G22: =IFERROR(VLOOKUP(A22,'[5]2023-24 Final'!$B$19:$S$156,18,FALSE),0) -> 0 | H22: 0 | I22: =_xlfn.IFS(H22=0%,0,'other funds ftr 2023'!H22<Assumptions!$E$57,Assumptions!$B$57,'other funds ftr 2023'!H22<Assumptions!$E$58,Assumptions!$B$58,'other funds ftr 2023'!H22<=Assumptions!$E$59,Assumptions!$B$59,'other funds ftr 2023'!H22<=Assumptions!$E$60,Assumptions!$B$60) -> 0
A23: 36250 | B23: COLLEGE PLACE | C23: =IFERROR(VLOOKUP(A23,'[2]Allocations 2023-24'!$B$9:$AC$326,20,FALSE),0) -> 37666 | D23: =IFERROR(VLOOKUP(A23,'[3]State Reservations'!$C$4:$AE$328,29,FALSE),0) -> 408958.6156 | E23: =IFERROR(VLOOKUP(A23,[4]Sheet1!$A$3:$D$379,3,FALSE),0) -> 1011194.37 | F23: =IFERROR(VLOOKUP(A23,[4]Sheet1!$A$3:$D$379,4,FALSE),0) -> 406565.74 | G23: =IFERROR(VLOOKUP(A23,'[5]2023-24 Final'!$B$19:$S$156,18,FALSE),0) -> 88165 | H23: 0.9548462204 | I23: =_xlfn.IFS(H23=0%,0,'other funds ftr 2023'!H23<Assumptions!$E$57,Assumptions!$B$57,'other funds ftr 2023'!H23<Assumptions!$E$58,Assumptions!$B$58,'other funds ftr 2023'!H23<=Assumptions!$E$59,Assumptions!$B$59,'other funds ftr 2023'!H23<=Assumptions!$E$60,Assumptions!$B$60) -> 1
A24: 36400 | B24: COLUMBIA (WALLA WALLA) | C24: =IFERROR(VLOOKUP(A24,'[2]Allocations 2023-24'!$B$9:$AC$326,20,FALSE),0) -> 18684 | D24: =IFERROR(VLOOKUP(A24,'[3]State Reservations'!$C$4:$AE$328,29,FALSE),0) -> 244800.2873 | E24: =IFERROR(VLOOKUP(A24,[4]Sheet1!$A$3:$D$379,3,FALSE),0) -> 517682.68 | F24: =IFERROR(VLOOKUP(A24,[4]Sheet1!$A$3:$D$379,4,FALSE),0) -> 245381.12 | G24: =IFERROR(VLOOKUP(A24,'[5]2023-24 Final'!$B$19:$S$156,18,FALSE),0) -> 33640 | H24: 0.9682697812 | I24: =_xlfn.IFS(H24=0%,0,'other funds ftr 2023'!H24<Assumptions!$E$57,Assumptions!$B$57,'other funds ftr 2023'!H24<Assumptions!$E$58,Assumptions!$B$58,'other funds ftr 2023'!H24<=Assumptions!$E$59,Assumptions!$B$59,'other funds ftr 2023'!H24<=Assumptions!$E$60,Assumptions!$B$60) -> 1
A25: 29317 | B25: CONWAY | C25: =IFERROR(VLOOKUP(A25,'[2]Allocations 2023-24'!$B$9:$AC$326,20,FALSE),0) -> 4759 | D25: =IFERROR(VLOOKUP(A25,'[3]State Reservations'!$C$4:$AE$328,29,FALSE),0) -> 73878.07844 | E25: =IFERROR(VLOOKUP(A25,[4]Sheet1!$A$3:$D$379,3,FALSE),0) -> 89586.01 | F25: =IFERROR(VLOOKUP(A25,[4]Sheet1!$A$3:$D$379,4,FALSE),0) -> 53369.07 | G25: =IFERROR(VLOOKUP(A25,'[5]2023-24 Final'!$B$19:$S$156,18,FALSE),0) -> 0 | H25: 0 | I25: =_xlfn.IFS(H25=0%,0,'other funds ftr 2023'!H25<Assumptions!$E$57,Assumptions!$B$57,'other funds ftr 2023'!H25<Assumptions!$E$58,Assumptions!$B$58,'other funds ftr 2023'!H25<=Assumptions!$E$59,Assumptions!$B$59,'other funds ftr 2023'!H25<=Assumptions!$E$60,Assumptions!$B$60) -> 0
A26: 15204 | B26: COUPEVILLE | C26: =IFERROR(VLOOKUP(A26,'[2]Allocations 2023-24'!$B$9:$AC$326,20,FALSE),0) -> 0 | D26: =IFERROR(VLOOKUP(A26,'[3]State Reservations'!$C$4:$AE$328,29,FALSE),0) -> 219898.4439 | E26: =IFERROR(VLOOKUP(A26,[4]Sheet1!$A$3:$D$379,3,FALSE),0) -> 329703.54 | F26: =IFERROR(VLOOKUP(A26,[4]Sheet1!$A$3:$D$379,4,FALSE),0) -> 63321.09 | G26: =IFERROR(VLOOKUP(A26,'[5]2023-24 Final'!$B$19:$S$156,18,FALSE),0) -> 9132 | H26: 0.9853196278 | I26: =_xlfn.IFS(H26=0%,0,'other funds ftr 2023'!H26<Assumptions!$E$57,Assumptions!$B$57,'other funds ftr 2023'!H26<Assumptions!$E$58,Assumptions!$B$58,'other funds ftr 2023'!H26<=Assumptions!$E$59,Assumptions!$B$59,'other funds ftr 2023'!H26<=Assumptions!$E$60,Assumptions!$B$60) -> 0.95
A27: 39090 | B27: EAST VALLEY (YAKIMA) | C27: =IFERROR(VLOOKUP(A27,'[2]Allocations 2023-24'!$B$9:$AC$326,20,FALSE),0) -> 57709 | D27: =IFERROR(VLOOKUP(A27,'[3]State Reservations'!$C$4:$AE$328,29,FALSE),0) -> 740582.1895 | E27: =IFERROR(VLOOKUP(A27,[4]Sheet1!$A$3:$D$379,3,FALSE),0) -> 2379366.42 | F27: =IFERROR(VLOOKUP(A27,[4]Sheet1!$A$3:$D$379,4,FALSE),0) -> 702073.61 | G27: =IFERROR(VLOOKUP(A27,'[5]2023-24 Final'!$B$19:$S$156,18,FALSE),0) -> 0 | H27: 0 | I27: =_xlfn.IFS(H27=0%,0,'other funds ftr 2023'!H27<Assumptions!$E$57,Assumptions!$B$57,'other funds ftr 2023'!H27<Assumptions!$E$58,Assumptions!$B$58,'other funds ftr 2023'!H27<=Assumptions!$E$59,Assumptions!$B$59,'other funds ftr 2023'!H27<=Assumptions!$E$60,Assumptions!$B$60) -> 0
A28: 09206 | B28: EASTMONT | C28: =IFERROR(VLOOKUP(A28,'[2]Allocations 2023-24'!$B$9:$AC$326,20,FALSE),0) -> 154498 | D28: =IFERROR(VLOOKUP(A28,'[3]State Reservations'!$C$4:$AE$328,29,FALSE),0) -> 1272731.81 | E28: =IFERROR(VLOOKUP(A28,[4]Sheet1!$A$3:$D$379,3,FALSE),0) -> 4160930.29 | F28: =IFERROR(VLOOKUP(A28,[4]Sheet1!$A$3:$D$379,4,FALSE),0) -> 1845622.71 | G28: =IFERROR(VLOOKUP(A28,'[5]2023-24 Final'!$B$19:$S$156,18,FALSE),0) -> 651200 | H28: 0.9194556111 | I28: =_xlfn.IFS(H28=0%,0,'other funds ftr 2023'!H28<Assumptions!$E$57,Assumptions!$B$57,'other funds ftr 2023'!H28<Assumptions!$E$58,Assumptions!$B$58,'other funds ftr 2023'!H28<=Assumptions!$E$59,Assumptions!$B$59,'other funds ftr 2023'!H28<=Assumptions!$E$60,Assumptions!$B$60) -> 1.05
A29: 31015 | B29: EDMONDS | C29: =IFERROR(VLOOKUP(A29,'[2]Allocations 2023-24'!$B$9:$AC$326,20,FALSE),0) -> 496079 | D29: =IFERROR(VLOOKUP(A29,'[3]State Reservations'!$C$4:$AE$328,29,FALSE),0) -> 3489663.919 | E29: =IFERROR(VLOOKUP(A29,[4]Sheet1!$A$3:$D$379,3,FALSE),0) -> 6470470.13 | F29: =IFERROR(VLOOKUP(A29,[4]Sheet1!$A$3:$D$379,4,FALSE),0) -> 7136483.69 | G29: =IFERROR(VLOOKUP(A29,'[5]2023-24 Final'!$B$19:$S$156,18,FALSE),0) -> 0 | H29: 0 | I29: =_xlfn.IFS(H29=0%,0,'other funds ftr 2023'!H29<Assumptions!$E$57,Assumptions!$B$57,'other funds ftr 2023'!H29<Assumptions!$E$58,Assumptions!$B$58,'other funds ftr 2023'!H29<=Assumptions!$E$59,Assumptions!$B$59,'other funds ftr 2023'!H29<=Assumptions!$E$60,Assumptions!$B$60) -> 0
A30: 39801 | B30: EDUCATIONAL SERVICE DISTRICT 105 | C30: =IFERROR(VLOOKUP(A30,'[2]Allocations 2023-24'!$B$9:$AC$326,20,FALSE),0) -> 0 | D30: =IFERROR(VLOOKUP(A30,'[3]State Reservations'!$C$4:$AE$328,29,FALSE),0) -> 0 | E30: =IFERROR(VLOOKUP(A30,[4]Sheet1!$A$3:$D$379,3,FALSE),0) -> 0 | F30: =IFERROR(VLOOKUP(A30,[4]Sheet1!$A$3:$D$379,4,FALSE),0) -> 0 | G30: =IFERROR(VLOOKUP(A30,'[5]2023-24 Final'!$B$19:$S$156,18,FALSE),0) -> 0 | H30: 0 | I30: =_xlfn.IFS(H30=0%,0,'other funds ftr 2023'!H30<Assumptions!$E$57,Assumptions!$B$57,'other funds ftr 2023'!H30<Assumptions!$E$58,Assumptions!$B$58,'other funds ftr 2023'!H30<=Assumptions!$E$59,Assumptions!$B$59,'other funds ftr 2023'!H30<=Assumptions!$E$60,Assumptions!$B$60) -> 0
A31: 11801 | B31: EDUCATIONAL SERVICE DISTRICT 123 | C31: =IFERROR(VLOOKUP(A31,'[2]Allocations 2023-24'!$B$9:$AC$326,20,FALSE),0) -> 0 | D31: =IFERROR(VLOOKUP(A31,'[3]State Reservations'!$C$4:$AE$328,29,FALSE),0) -> 0 | E31: =IFERROR(VLOOKUP(A31,[4]Sheet1!$A$3:$D$379,3,FALSE),0) -> 0 | F31: =IFERROR(VLOOKUP(A31,[4]Sheet1!$A$3:$D$379,4,FALSE),0) -> 0 | G31: =IFERROR(VLOOKUP(A31,'[5]2023-24 Final'!$B$19:$S$156,18,FALSE),0) -> 0 | H31: 0 | I31: =_xlfn.IFS(H31=0%,0,'other funds ftr 2023'!H31<Assumptions!$E$57,Assumptions!$B$57,'other funds ftr 2023'!H31<Assumptions!$E$58,Assumptions!$B$58,'other funds ftr 2023'!H31<=Assumptions!$E$59,Assumptions!$B$59,'other funds ftr 2023'!H31<=Assumptions!$E$60,Assumptions!$B$60) -> 0
A32: 19401 | B32: ELLENSBURG | C32: =IFERROR(VLOOKUP(A32,'[2]Allocations 2023-24'!$B$9:$AC$326,20,FALSE),0) -> 34511 | D32: =IFERROR(VLOOKUP(A32,'[3]State Reservations'!$C$4:$AE$328,29,FALSE),0) -> 742593.9753 | E32: =IFERROR(VLOOKUP(A32,[4]Sheet1!$A$3:$D$379,3,FALSE),0) -> 1134411.92 | F32: =IFERROR(VLOOKUP(A32,[4]Sheet1!$A$3:$D$379,4,FALSE),0) -> 393806.34 | G32: =IFERROR(VLOOKUP(A32,'[5]2023-24 Final'!$B$19:$S$156,18,FALSE),0) -> 0 | H32: 0 | I32: =_xlfn.IFS(H32=0%,0,'other funds ftr 2023'!H32<Assumptions!$E$57,Assumptions!$B$57,'other funds ftr 2023'!H32<Assumptions!$E$58,Assumptions!$B$58,'other funds ftr 2023'!H32<=Assumptions!$E$59,Assumptions!$B$59,'other funds ftr 2023'!H32<=Assumptions!$E$60,Assumptions!$B$60) -> 0
A33: 14068 | B33: ELMA | C33: =IFERROR(VLOOKUP(A33,'[2]Allocations 2023-24'!$B$9:$AC$326,20,FALSE),0) -> 18737 | D33: =IFERROR(VLOOKUP(A33,'[3]State Reservations'!$C$4:$AE$328,29,FALSE),0) -> 529521.4434 | E33: =IFERROR(VLOOKUP(A33,[4]Sheet1!$A$3:$D$379,3,FALSE),0) -> 1380240.56 | F33: =IFERROR(VLOOKUP(A33,[4]Sheet1!$A$3:$D$379,4,FALSE),0) -> 218070.4 | G33: =IFERROR(VLOOKUP(A33,'[5]2023-24 Final'!$B$19:$S$156,18,FALSE),0) -> 0 | H33: 0 | I33: =_xlfn.IFS(H33=0%,0,'other funds ftr 2023'!H33<Assumptions!$E$57,Assumptions!$B$57,'other funds ftr 2023'!H33<Assumptions!$E$58,Assumptions!$B$58,'other funds ftr 2023'!H33<=Assumptions!$E$59,Assumptions!$B$59,'other funds ftr 2023'!H33<=Assumptions!$E$60,Assumptions!$B$60) -> 0
A34: 04127 | B34: ENTIAT | C34: =IFERROR(VLOOKUP(A34,'[2]Allocations 2023-24'!$B$9:$AC$326,20,FALSE),0) -> 0 | D34: =IFERROR(VLOOKUP(A34,'[3]State Reservations'!$C$4:$AE$328,29,FALSE),0) -> 131352.6289 | E34: =IFERROR(VLOOKUP(A34,[4]Sheet1!$A$3:$D$379,3,FALSE),0) -> 269267.33 | F34: =IFERROR(VLOOKUP(A34,[4]Sheet1!$A$3:$D$379,4,FALSE),0) -> 179327.21 | G34: =IFERROR(VLOOKUP(A34,'[5]2023-24 Final'!$B$19:$S$156,18,FALSE),0) -> 0 | H34: =IF(G34=0,0,(SUM(C34:F34)/SUM(C34:G34))) -> 0 | I34: =_xlfn.IFS(H34=0%,0,'other funds ftr 2023'!H34<Assumptions!$E$57,Assumptions!$B$57,'other funds ftr 2023'!H34<Assumptions!$E$58,Assumptions!$B$58,'other funds ftr 2023'!H34<=Assumptions!$E$59,Assumptions!$B$59,'other funds ftr 2023'!H34<=Assumptions!$E$60,Assumptions!$B$60) -> 0
A35: 13165 | B35: EPHRATA | C35: =IFERROR(VLOOKUP(A35,'[2]Allocations 2023-24'!$B$9:$AC$326,20,FALSE),0) -> 54989 | D35: =IFERROR(VLOOKUP(A35,'[3]State Reservations'!$C$4:$AE$328,29,FALSE),0) -> 644238.1819 | E35: =IFERROR(VLOOKUP(A35,[4]Sheet1!$A$3:$D$379,3,FALSE),0) -> 1904434.85 | F35: =IFERROR(VLOOKUP(A35,[4]Sheet1!$A$3:$D$379,4,FALSE),0) -> 677387.92 | G35: =IFERROR(VLOOKUP(A35,'[5]2023-24 Final'!$B$19:$S$156,18,FALSE),0) -> 105934 | H35: 0.9687232058 | I35: =_xlfn.IFS(H35=0%,0,'other funds ftr 2023'!H35<Assumptions!$E$57,Assumptions!$B$57,'other funds ftr 2023'!H35<Assumptions!$E$58,Assumptions!$B$58,'other funds ftr 2023'!H35<=Assumptions!$E$59,Assumptions!$B$59,'other funds ftr 2023'!H35<=Assumptions!$E$60,Assumptions!$B$60) -> 1
A36: 31002 | B36: EVERETT | C36: =IFERROR(VLOOKUP(A36,'[2]Allocations 2023-24'!$B$9:$AC$326,20,FALSE),0) -> 493971 | D36: =IFERROR(VLOOKUP(A36,'[3]State Reservations'!$C$4:$AE$328,29,FALSE),0) -> 3483808.423 | E36: =IFERROR(VLOOKUP(A36,[4]Sheet1!$A$3:$D$379,3,FALSE),0) -> 8813317.74 | F36: =IFERROR(VLOOKUP(A36,[4]Sheet1!$A$3:$D$379,4,FALSE),0) -> 7111217.21 | G36: =IFERROR(VLOOKUP(A36,'[5]2023-24 Final'!$B$19:$S$156,18,FALSE),0) -> 0 | H36: 0 | I36: =_xlfn.IFS(H36=0%,0,'other funds ftr 2023'!H36<Assumptions!$E$57,Assumptions!$B$57,'other funds ftr 2023'!H36<Assumptions!$E$58,Assumptions!$B$58,'other funds ftr 2023'!H36<=Assumptions!$E$59,Assumptions!$B$59,'other funds ftr 2023'!H36<=Assumptions!$E$60,Assumptions!$B$60) -> 0
A37: 06114 | B37: EVERGREEN (CLARK) | C37: =IFERROR(VLOOKUP(A37,'[2]Allocations 2023-24'!$B$9:$AC$326,20,FALSE),0) -> 508979 | D37: =IFERROR(VLOOKUP(A37,'[3]State Reservations'!$C$4:$AE$328,29,FALSE),0) -> 6668117.537 | E37: =IFERROR(VLOOKUP(A37,[4]Sheet1!$A$3:$D$379,3,FALSE),0) -> 13698273.36 | F37: =IFERROR(VLOOKUP(A37,[4]Sheet1!$A$3:$D$379,4,FALSE),0) -> 6636862.41 | G37: =IFERROR(VLOOKUP(A37,'[5]2023-24 Final'!$B$19:$S$156,18,FALSE),0) -> 0 | H37: 0 | I37: =_xlfn.IFS(H37=0%,0,'other funds ftr 2023'!H37<Assumptions!$E$57,Assumptions!$B$57,'other funds ftr 2023'!H37<Assumptions!$E$58,Assumptions!$B$58,'other funds ftr 2023'!H37<=Assumptions!$E$59,Assumptions!$B$59,'other funds ftr 2023'!H37<=Assumptions!$E$60,Assumptions!$B$60) -> 0
A38: 17210 | B38: FEDERAL WAY | C38: =IFERROR(VLOOKUP(A38,'[2]Allocations 2023-24'!$B$9:$AC$326,20,FALSE),0) -> 807549 | D38: =IFERROR(VLOOKUP(A38,'[3]State Reservations'!$C$4:$AE$328,29,FALSE),0) -> 9203113.804 | E38: =IFERROR(VLOOKUP(A38,[4]Sheet1!$A$3:$D$379,3,FALSE),0) -> 17732679.52 | F38: =IFERROR(VLOOKUP(A38,[4]Sheet1!$A$3:$D$379,4,FALSE),0) -> 11174705.14 | G38: =IFERROR(VLOOKUP(A38,'[5]2023-24 Final'!$B$19:$S$156,18,FALSE),0) -> 0 | H38: 0 | I38: =_xlfn.IFS(H38=0%,0,'other funds ftr 2023'!H38<Assumptions!$E$57,Assumptions!$B$57,'other funds ftr 2023'!H38<Assumptions!$E$58,Assumptions!$B$58,'other funds ftr 2023'!H38<=Assumptions!$E$59,Assumptions!$B$59,'other funds ftr 2023'!H38<=Assumptions!$E$60,Assumptions!$B$60) -> 0
A39: 37502 | B39: FERNDALE | C39: =IFERROR(VLOOKUP(A39,'[2]Allocations 2023-24'!$B$9:$AC$326,20,FALSE),0) -> 60483 | D39: =IFERROR(VLOOKUP(A39,'[3]State Reservations'!$C$4:$AE$328,29,FALSE),0) -> 1919653.991 | E39: =IFERROR(VLOOKUP(A39,[4]Sheet1!$A$3:$D$379,3,FALSE),0) -> 2413281.36 | F39: =IFERROR(VLOOKUP(A39,[4]Sheet1!$A$3:$D$379,4,FALSE),0) -> 822608.81 | G39: =IFERROR(VLOOKUP(A39,'[5]2023-24 Final'!$B$19:$S$156,18,FALSE),0) -> 96101 | H39: 0.9819091338 | I39: =_xlfn.IFS(H39=0%,0,'other funds ftr 2023'!H39<Assumptions!$E$57,Assumptions!$B$57,'other funds ftr 2023'!H39<Assumptions!$E$58,Assumptions!$B$58,'other funds ftr 2023'!H39<=Assumptions!$E$59,Assumptions!$B$59,'other funds ftr 2023'!H39<=Assumptions!$E$60,Assumptions!$B$60) -> 1
A40: 03053 | B40: FINLEY | C40: =IFERROR(VLOOKUP(A40,'[2]Allocations 2023-24'!$B$9:$AC$326,20,FALSE),0) -> 27254 | D40: =IFERROR(VLOOKUP(A40,'[3]State Reservations'!$C$4:$AE$328,29,FALSE),0) -> 330402.0459 | E40: =IFERROR(VLOOKUP(A40,[4]Sheet1!$A$3:$D$379,3,FALSE),0) -> 683618.52 | F40: =IFERROR(VLOOKUP(A40,[4]Sheet1!$A$3:$D$379,4,FALSE),0) -> 273663.75 | G40: =IFERROR(VLOOKUP(A40,'[5]2023-24 Final'!$B$19:$S$156,18,FALSE),0) -> 78879 | H40: 0.9434079351 | I40: =_xlfn.IFS(H40=0%,0,'other funds ftr 2023'!H40<Assumptions!$E$57,Assumptions!$B$57,'other funds ftr 2023'!H40<Assumptions!$E$58,Assumptions!$B$58,'other funds ftr 2023'!H40<=Assumptions!$E$59,Assumptions!$B$59,'other funds ftr 2023'!H40<=Assumptions!$E$60,Assumptions!$B$60) -> 1.05
A41: 20404 | B41: GOLDENDALE | C41: =IFERROR(VLOOKUP(A41,'[2]Allocations 2023-24'!$B$9:$AC$326,20,FALSE),0) -> 14885 | D41: =IFERROR(VLOOKUP(A41,'[3]State Reservations'!$C$4:$AE$328,29,FALSE),0) -> 489698.5211 | E41: =IFERROR(VLOOKUP(A41,[4]Sheet1!$A$3:$D$379,3,FALSE),0) -> 1160800.88 | F41: =IFERROR(VLOOKUP(A41,[4]Sheet1!$A$3:$D$379,4,FALSE),0) -> 204762.96 | G41: =IFERROR(VLOOKUP(A41,'[5]2023-24 Final'!$B$19:$S$156,18,FALSE),0) -> 62887 | H41: 0.9674672105 | I41: =_xlfn.IFS(H41=0%,0,'other funds ftr 2023'!H41<Assumptions!$E$57,Assumptions!$B$57,'other funds ftr 2023'!H41<Assumptions!$E$58,Assumptions!$B$58,'other funds ftr 2023'!H41<=Assumptions!$E$59,Assumptions!$B$59,'other funds ftr 2023'!H41<=Assumptions!$E$60,Assumptions!$B$60) -> 1
A42: 13301 | B42: GRAND COULEE DAM | C42: =IFERROR(VLOOKUP(A42,'[2]Allocations 2023-24'!$B$9:$AC$326,20,FALSE),0) -> 19785 | D42: =IFERROR(VLOOKUP(A42,'[3]State Reservations'!$C$4:$AE$328,29,FALSE),0) -> 189204.4882 | E42: =IFERROR(VLOOKUP(A42,[4]Sheet1!$A$3:$D$379,3,FALSE),0) -> 578166.7 | F42: =IFERROR(VLOOKUP(A42,[4]Sheet1!$A$3:$D$379,4,FALSE),0) -> 0 | G42: =IFERROR(VLOOKUP(A42,'[5]2023-24 Final'!$B$19:$S$156,18,FALSE),0) -> 186340 | H42: 0.8085868211 | I42: =_xlfn.IFS(H42=0%,0,'other funds ftr 2023'!H42<Assumptions!$E$57,Assumptions!$B$57,'other funds ftr 2023'!H42<Assumptions!$E$58,Assumptions!$B$58,'other funds ftr 2023'!H42<=Assumptions!$E$59,Assumptions!$B$59,'other funds ftr 2023'!H42<=Assumptions!$E$60,Assumptions!$B$60) -> 1.1
A43: 39200 | B43: GRANDVIEW | C43: =IFERROR(VLOOKUP(A43,'[2]Allocations 2023-24'!$B$9:$AC$326,20,FALSE),0) -> 150908 | D43: =IFERROR(VLOOKUP(A43,'[3]State Reservations'!$C$4:$AE$328,29,FALSE),0) -> 1260958.771 | E43: =IFERROR(VLOOKUP(A43,[4]Sheet1!$A$3:$D$379,3,FALSE),0) -> 3089685.54 | F43: =IFERROR(VLOOKUP(A43,[4]Sheet1!$A$3:$D$379,4,FALSE),0) -> 1833271.6 | G43: =IFERROR(VLOOKUP(A43,'[5]2023-24 Final'!$B$19:$S$156,18,FALSE),0) -> 418367 | H43: 0.9380489897 | I43: =_xlfn.IFS(H43=0%,0,'other funds ftr 2023'!H43<Assumptions!$E$57,Assumptions!$B$57,'other funds ftr 2023'!H43<Assumptions!$E$58,Assumptions!$B$58,'other funds ftr 2023'!H43<=Assumptions!$E$59,Assumptions!$B$59,'other funds ftr 2023'!H43<=Assumptions!$E$60,Assumptions!$B$60) -> 1.05
A44: 39204 | B44: GRANGER | C44: =IFERROR(VLOOKUP(A44,'[2]Allocations 2023-24'!$B$9:$AC$326,20,FALSE),0) -> 95629 | D44: =IFERROR(VLOOKUP(A44,'[3]State Reservations'!$C$4:$AE$328,29,FALSE),0) -> 866810.1402 | E44: =IFERROR(VLOOKUP(A44,[4]Sheet1!$A$3:$D$379,3,FALSE),0) -> 1268953.89 | F44: =IFERROR(VLOOKUP(A44,[4]Sheet1!$A$3:$D$379,4,FALSE),0) -> 1121909.14 | G44: =IFERROR(VLOOKUP(A44,'[5]2023-24 Final'!$B$19:$S$156,18,FALSE),0) -> 273546 | H44: 0.9245774879 | I44: =_xlfn.IFS(H44=0%,0,'other funds ftr 2023'!H44<Assumptions!$E$57,Assumptions!$B$57,'other funds ftr 2023'!H44<Assumptions!$E$58,Assumptions!$B$58,'other funds ftr 2023'!H44<=Assumptions!$E$59,Assumptions!$B$59,'other funds ftr 2023'!H44<=Assumptions!$E$60,Assumptions!$B$60) -> 1.05
A45: 39203 | B45: HIGHLAND | C45: =IFERROR(VLOOKUP(A45,'[2]Allocations 2023-24'!$B$9:$AC$326,20,FALSE),0) -> 44057 | D45: =IFERROR(VLOOKUP(A45,'[3]State Reservations'!$C$4:$AE$328,29,FALSE),0) -> 407581.4642 | E45: =IFERROR(VLOOKUP(A45,[4]Sheet1!$A$3:$D$379,3,FALSE),0) -> 894833.79 | F45: =IFERROR(VLOOKUP(A45,[4]Sheet1!$A$3:$D$379,4,FALSE),0) -> 535793.02 | G45: =IFERROR(VLOOKUP(A45,'[5]2023-24 Final'!$B$19:$S$156,18,FALSE),0) -> 150995 | H45: 0.9257374956 | I45: =_xlfn.IFS(H45=0%,0,'other funds ftr 2023'!H45<Assumptions!$E$57,Assumptions!$B$57,'other funds ftr 2023'!H45<Assumptions!$E$58,Assumptions!$B$58,'other funds ftr 2023'!H45<=Assumptions!$E$59,Assumptions!$B$59,'other funds ftr 2023'!H45<=Assumptions!$E$60,Assumptions!$B$60) -> 1.05
A46: 23404 | B46: HOOD CANAL | C46: =IFERROR(VLOOKUP(A46,'[2]Allocations 2023-24'!$B$9:$AC$326,20,FALSE),0) -> 0 | D46: =IFERROR(VLOOKUP(A46,'[3]State Reservations'!$C$4:$AE$328,29,FALSE),0) -> 260770.3227 | E46: =IFERROR(VLOOKUP(A46,[4]Sheet1!$A$3:$D$379,3,FALSE),0) -> 269499.44 | F46: =IFERROR(VLOOKUP(A46,[4]Sheet1!$A$3:$D$379,4,FALSE),0) -> 0 | G46: =IFERROR(VLOOKUP(A46,'[5]2023-24 Final'!$B$19:$S$156,18,FALSE),0) -> 23306 | H46: 0.9578991683 | I46: =_xlfn.IFS(H46=0%,0,'other funds ftr 2023'!H46<Assumptions!$E$57,Assumptions!$B$57,'other funds ftr 2023'!H46<Assumptions!$E$58,Assumptions!$B$58,'other funds ftr 2023'!H46<=Assumptions!$E$59,Assumptions!$B$59,'other funds ftr 2023'!H46<=Assumptions!$E$60,Assumptions!$B$60) -> 1
A47: 14028 | B47: HOQUIAM | C47: =IFERROR(VLOOKUP(A47,'[2]Allocations 2023-24'!$B$9:$AC$326,20,FALSE),0) -> 16916 | D47: =IFERROR(VLOOKUP(A47,'[3]State Reservations'!$C$4:$AE$328,29,FALSE),0) -> 800724.7463 | E47: =IFERROR(VLOOKUP(A47,[4]Sheet1!$A$3:$D$379,3,FALSE),0) -> 1229474.39 | F47: =IFERROR(VLOOKUP(A47,[4]Sheet1!$A$3:$D$379,4,FALSE),0) -> 196801.09 | G47: =IFERROR(VLOOKUP(A47,'[5]2023-24 Final'!$B$19:$S$156,18,FALSE),0) -> 0 | H47: 0 | I47: =_xlfn.IFS(H47=0%,0,'other funds ftr 2023'!H47<Assumptions!$E$57,Assumptions!$B$57,'other funds ftr 2023'!H47<Assumptions!$E$58,Assumptions!$B$58,'other funds ftr 2023'!H47<=Assumptions!$E$59,Assumptions!$B$59,'other funds ftr 2023'!H47<=Assumptions!$E$60,Assumptions!$B$60) -> 0
A48: 10070 | B48: INCHELIUM | C48: =IFERROR(VLOOKUP(A48,'[2]Allocations 2023-24'!$B$9:$AC$326,20,FALSE),0) -> 0 | D48: =IFERROR(VLOOKUP(A48,'[3]State Reservations'!$C$4:$AE$328,29,FALSE),0) -> 110466.8036 | E48: =IFERROR(VLOOKUP(A48,[4]Sheet1!$A$3:$D$379,3,FALSE),0) -> 169346.23 | F48: =IFERROR(VLOOKUP(A48,[4]Sheet1!$A$3:$D$379,4,FALSE),0) -> 0 | G48: =IFERROR(VLOOKUP(A48,'[5]2023-24 Final'!$B$19:$S$156,18,FALSE),0) -> 0 | H48: 0 | I48: =_xlfn.IFS(H48=0%,0,'other funds ftr 2023'!H48<Assumptions!$E$57,Assumptions!$B$57,'other funds ftr 2023'!H48<Assumptions!$E$58,Assumptions!$B$58,'other funds ftr 2023'!H48<=Assumptions!$E$59,Assumptions!$B$59,'other funds ftr 2023'!H48<=Assumptions!$E$60,Assumptions!$B$60) -> 0
A49: 08458 | B49: KELSO | C49: =IFERROR(VLOOKUP(A49,'[2]Allocations 2023-24'!$B$9:$AC$326,20,FALSE),0) -> 50361 | D49: =IFERROR(VLOOKUP(A49,'[3]State Reservations'!$C$4:$AE$328,29,FALSE),0) -> 1622397.094 | E49: =IFERROR(VLOOKUP(A49,[4]Sheet1!$A$3:$D$379,3,FALSE),0) -> 3522505.41 | F49: =IFERROR(VLOOKUP(A49,[4]Sheet1!$A$3:$D$379,4,FALSE),0) -> 569069.55 | G49: =IFERROR(VLOOKUP(A49,'[5]2023-24 Final'!$B$19:$S$156,18,FALSE),0) -> 0 | H49: 0 | I49: =_xlfn.IFS(H49=0%,0,'other funds ftr 2023'!H49<Assumptions!$E$57,Assumptions!$B$57,'other funds ftr 2023'!H49<Assumptions!$E$58,Assumptions!$B$58,'other funds ftr 2023'!H49<=Assumptions!$E$59,Assumptions!$B$59,'other funds ftr 2023'!H49<=Assumptions!$E$60,Assumptions!$B$60) -> 0
A50: 03017 | B50: KENNEWICK | C50: =IFERROR(VLOOKUP(A50,'[2]Allocations 2023-24'!$B$9:$AC$326,20,FALSE),0) -> 410245 | D50: =IFERROR(VLOOKUP(A50,'[3]State Reservations'!$C$4:$AE$328,29,FALSE),0) -> 6180129.462 | E50: =IFERROR(VLOOKUP(A50,[4]Sheet1!$A$3:$D$379,3,FALSE),0) -> 11193162.22 | F50: =IFERROR(VLOOKUP(A50,[4]Sheet1!$A$3:$D$379,4,FALSE),0) -> 5275861.68 | G50: =IFERROR(VLOOKUP(A50,'[5]2023-24 Final'!$B$19:$S$156,18,FALSE),0) -> 2084988 | H50: 0.9170793842 | I50: =_xlfn.IFS(H50=0%,0,'other funds ftr 2023'!H50<Assumptions!$E$57,Assumptions!$B$57,'other funds ftr 2023'!H50<Assumptions!$E$58,Assumptions!$B$58,'other funds ftr 2023'!H50<=Assumptions!$E$59,Assumptions!$B$59,'other funds ftr 2023'!H50<=Assumptions!$E$60,Assumptions!$B$60) -> 1.05
A51: 17415 | B51: KENT | C51: =IFERROR(VLOOKUP(A51,'[2]Allocations 2023-24'!$B$9:$AC$326,20,FALSE),0) -> 896429 | D51: =IFERROR(VLOOKUP(A51,'[3]State Reservations'!$C$4:$AE$328,29,FALSE),0) -> 9926183.893 | E51: =IFERROR(VLOOKUP(A51,[4]Sheet1!$A$3:$D$379,3,FALSE),0) -> 15302895 | F51: =IFERROR(VLOOKUP(A51,[4]Sheet1!$A$3:$D$379,4,FALSE),0) -> 13184737.43 | G51: =IFERROR(VLOOKUP(A51,'[5]2023-24 Final'!$B$19:$S$156,18,FALSE),0) -> 0 | H51: 0 | I51: =_xlfn.IFS(H51=0%,0,'other funds ftr 2023'!H51<Assumptions!$E$57,Assumptions!$B$57,'other funds ftr 2023'!H51<Assumptions!$E$58,Assumptions!$B$58,'other funds ftr 2023'!H51<=Assumptions!$E$59,Assumptions!$B$59,'other funds ftr 2023'!H51<=Assumptions!$E$60,Assumptions!$B$60) -> 0
A52: 03052 | B52: KIONA-BENTON CITY | C52: =IFERROR(VLOOKUP(A52,'[2]Allocations 2023-24'!$B$9:$AC$326,20,FALSE),0) -> 47946 | D52: =IFERROR(VLOOKUP(A52,'[3]State Reservations'!$C$4:$AE$328,29,FALSE),0) -> 475353.6826 | E52: =IFERROR(VLOOKUP(A52,[4]Sheet1!$A$3:$D$379,3,FALSE),0) -> 1236694.86 | F52: =IFERROR(VLOOKUP(A52,[4]Sheet1!$A$3:$D$379,4,FALSE),0) -> 563222.6 | G52: =IFERROR(VLOOKUP(A52,'[5]2023-24 Final'!$B$19:$S$156,18,FALSE),0) -> 297413 | H52: 0.8865108833 | I52: =_xlfn.IFS(H52=0%,0,'other funds ftr 2023'!H52<Assumptions!$E$57,Assumptions!$B$57,'other funds ftr 2023'!H52<Assumptions!$E$58,Assumptions!$B$58,'other funds ftr 2023'!H52<=Assumptions!$E$59,Assumptions!$B$59,'other funds ftr 2023'!H52<=Assumptions!$E$60,Assumptions!$B$60) -> 1.1
A53: 19403 | B53: KITTITAS | C53: =IFERROR(VLOOKUP(A53,'[2]Allocations 2023-24'!$B$9:$AC$326,20,FALSE),0) -> 0 | D53: =IFERROR(VLOOKUP(A53,'[3]State Reservations'!$C$4:$AE$328,29,FALSE),0) -> 98988.09163 | E53: =IFERROR(VLOOKUP(A53,[4]Sheet1!$A$3:$D$379,3,FALSE),0) -> 302225.87 | F53: =IFERROR(VLOOKUP(A53,[4]Sheet1!$A$3:$D$379,4,FALSE),0) -> 65430.24 | G53: =IFERROR(VLOOKUP(A53,'[5]2023-24 Final'!$B$19:$S$156,18,FALSE),0) -> 0 | H53: 0 | I53: =_xlfn.IFS(H53=0%,0,'other funds ftr 2023'!H53<Assumptions!$E$57,Assumptions!$B$57,'other funds ftr 2023'!H53<Assumptions!$E$58,Assumptions!$B$58,'other funds ftr 2023'!H53<=Assumptions!$E$59,Assumptions!$B$59,'other funds ftr 2023'!H53<=Assumptions!$E$60,Assumptions!$B$60) -> 0
A54: 29311 | B54: LA CONNER | C54: =IFERROR(VLOOKUP(A54,'[2]Allocations 2023-24'!$B$9:$AC$326,20,FALSE),0) -> 23805 | D54: =IFERROR(VLOOKUP(A54,'[3]State Reservations'!$C$4:$AE$328,29,FALSE),0) -> 265600.6438 | E54: =IFERROR(VLOOKUP(A54,[4]Sheet1!$A$3:$D$379,3,FALSE),0) -> 403126.38 | F54: =IFERROR(VLOOKUP(A54,[4]Sheet1!$A$3:$D$379,4,FALSE),0) -> 13511.55 | G54: =IFERROR(VLOOKUP(A54,'[5]2023-24 Final'!$B$19:$S$156,18,FALSE),0) -> 149862 | H54: 0.8249082556 | I54: =_xlfn.IFS(H54=0%,0,'other funds ftr 2023'!H54<Assumptions!$E$57,Assumptions!$B$57,'other funds ftr 2023'!H54<Assumptions!$E$58,Assumptions!$B$58,'other funds ftr 2023'!H54<=Assumptions!$E$59,Assumptions!$B$59,'other funds ftr 2023'!H54<=Assumptions!$E$60,Assumptions!$B$60) -> 1.1
A55: 04129 | B55: LAKE CHELAN | C55: =IFERROR(VLOOKUP(A55,'[2]Allocations 2023-24'!$B$9:$AC$326,20,FALSE),0) -> 49904 | D55: =IFERROR(VLOOKUP(A55,'[3]State Reservations'!$C$4:$AE$328,29,FALSE),0) -> 263190.6545 | E55: =IFERROR(VLOOKUP(A55,[4]Sheet1!$A$3:$D$379,3,FALSE),0) -> 894626 | F55: =IFERROR(VLOOKUP(A55,[4]Sheet1!$A$3:$D$379,4,FALSE),0) -> 586932.71 | G55: =IFERROR(VLOOKUP(A55,'[5]2023-24 Final'!$B$19:$S$156,18,FALSE),0) -> 113947 | H55: 0.9402981357 | I55: =_xlfn.IFS(H55=0%,0,'other funds ftr 2023'!H55<Assumptions!$E$57,Assumptions!$B$57,'other funds ftr 2023'!H55<Assumptions!$E$58,Assumptions!$B$58,'other funds ftr 2023'!H55<=Assumptions!$E$59,Assumptions!$B$59,'other funds ftr 2023'!H55<=Assumptions!$E$60,Assumptions!$B$60) -> 1.05
A56: 31004 | B56: LAKE STEVENS | C56: =IFERROR(VLOOKUP(A56,'[2]Allocations 2023-24'!$B$9:$AC$326,20,FALSE),0) -> 89288 | D56: =IFERROR(VLOOKUP(A56,'[3]State Reservations'!$C$4:$AE$328,29,FALSE),0) -> 824971.876 | E56: =IFERROR(VLOOKUP(A56,[4]Sheet1!$A$3:$D$379,3,FALSE),0) -> 2060206.16 | F56: =IFERROR(VLOOKUP(A56,[4]Sheet1!$A$3:$D$379,4,FALSE),0) -> 1334164.96 | G56: =IFERROR(VLOOKUP(A56,'[5]2023-24 Final'!$B$19:$S$156,18,FALSE),0) -> 0 | H56: 0 | I56: =_xlfn.IFS(H56=0%,0,'other funds ftr 2023'!H56<Assumptions!$E$57,Assumptions!$B$57,'other funds ftr 2023'!H56<Assumptions!$E$58,Assumptions!$B$58,'other funds ftr 2023'!H56<=Assumptions!$E$59,Assumptions!$B$59,'other funds ftr 2023'!H56<=Assumptions!$E$60,Assumptions!$B$60) -> 0
A57: 31306 | B57: LAKEWOOD | C57: =IFERROR(VLOOKUP(A57,'[2]Allocations 2023-24'!$B$9:$AC$326,20,FALSE),0) -> 35921 | D57: =IFERROR(VLOOKUP(A57,'[3]State Reservations'!$C$4:$AE$328,29,FALSE),0) -> 475590.13 | E57: =IFERROR(VLOOKUP(A57,[4]Sheet1!$A$3:$D$379,3,FALSE),0) -> 828034.89 | F57: =IFERROR(VLOOKUP(A57,[4]Sheet1!$A$3:$D$379,4,FALSE),0) -> 491297.69 | G57: =IFERROR(VLOOKUP(A57,'[5]2023-24 Final'!$B$19:$S$156,18,FALSE),0) -> 0 | H57: 0 | I57: =_xlfn.IFS(H57=0%,0,'other funds ftr 2023'!H57<Assumptions!$E$57,Assumptions!$B$57,'other funds ftr 2023'!H57<Assumptions!$E$58,Assumptions!$B$58,'other funds ftr 2023'!H57<=Assumptions!$E$59,Assumptions!$B$59,'other funds ftr 2023'!H57<=Assumptions!$E$60,Assumptions!$B$60) -> 0
A58: 01158 | B58: LIND | C58: =IFERROR(VLOOKUP(A58,'[2]Allocations 2023-24'!$B$9:$AC$326,20,FALSE),0) -> 4406 | D58: =IFERROR(VLOOKUP(A58,'[3]State Reservations'!$C$4:$AE$328,29,FALSE),0) -> 127208.4581 | E58: =IFERROR(VLOOKUP(A58,[4]Sheet1!$A$3:$D$379,3,FALSE),0) -> 161034.76 | F58: =IFERROR(VLOOKUP(A58,[4]Sheet1!$A$3:$D$379,4,FALSE),0) -> 40625.95 | G58: =IFERROR(VLOOKUP(A58,'[5]2023-24 Final'!$B$19:$S$156,18,FALSE),0) -> 33092 | H58: 0.9096753124 | I58: =_xlfn.IFS(H58=0%,0,'other funds ftr 2023'!H58<Assumptions!$E$57,Assumptions!$B$57,'other funds ftr 2023'!H58<Assumptions!$E$58,Assumptions!$B$58,'other funds ftr 2023'!H58<=Assumptions!$E$59,Assumptions!$B$59,'other funds ftr 2023'!H58<=Assumptions!$E$60,Assumptions!$B$60) -> 1.05
A59: 08122 | B59: LONGVIEW | C59: =IFERROR(VLOOKUP(A59,'[2]Allocations 2023-24'!$B$9:$AC$326,20,FALSE),0) -> 59527 | D59: =IFERROR(VLOOKUP(A59,'[3]State Reservations'!$C$4:$AE$328,29,FALSE),0) -> 2545836.78 | E59: =IFERROR(VLOOKUP(A59,[4]Sheet1!$A$3:$D$379,3,FALSE),0) -> 4188046.47 | F59: =IFERROR(VLOOKUP(A59,[4]Sheet1!$A$3:$D$379,4,FALSE),0) -> 734431.48 | G59: =IFERROR(VLOOKUP(A59,'[5]2023-24 Final'!$B$19:$S$156,18,FALSE),0) -> 0 | H59: 0 | I59: =_xlfn.IFS(H59=0%,0,'other funds ftr 2023'!H59<Assumptions!$E$57,Assumptions!$B$57,'other funds ftr 2023'!H59<Assumptions!$E$58,Assumptions!$B$58,'other funds ftr 2023'!H59<=Assumptions!$E$59,Assumptions!$B$59,'other funds ftr 2023'!H59<=Assumptions!$E$60,Assumptions!$B$60) -> 0
A60: 20406 | B60: LYLE | C60: =IFERROR(VLOOKUP(A60,'[2]Allocations 2023-24'!$B$9:$AC$326,20,FALSE),0) -> 0 | D60: =IFERROR(VLOOKUP(A60,'[3]State Reservations'!$C$4:$AE$328,29,FALSE),0) -> 209888.7341 | E60: =IFERROR(VLOOKUP(A60,[4]Sheet1!$A$3:$D$379,3,FALSE),0) -> 169450.12 | F60: =IFERROR(VLOOKUP(A60,[4]Sheet1!$A$3:$D$379,4,FALSE),0) -> 0 | G60: =IFERROR(VLOOKUP(A60,'[5]2023-24 Final'!$B$19:$S$156,18,FALSE),0) -> 21555 | H60: 0.9462326504 | I60: =_xlfn.IFS(H60=0%,0,'other funds ftr 2023'!H60<Assumptions!$E$57,Assumptions!$B$57,'other funds ftr 2023'!H60<Assumptions!$E$58,Assumptions!$B$58,'other funds ftr 2023'!H60<=Assumptions!$E$59,Assumptions!$B$59,'other funds ftr 2023'!H60<=Assumptions!$E$60,Assumptions!$B$60) -> 1.05
A61: 37504 | B61: LYNDEN | C61: =IFERROR(VLOOKUP(A61,'[2]Allocations 2023-24'!$B$9:$AC$326,20,FALSE),0) -> 53874 | D61: =IFERROR(VLOOKUP(A61,'[3]State Reservations'!$C$4:$AE$328,29,FALSE),0) -> 646433.1864 | E61: =IFERROR(VLOOKUP(A61,[4]Sheet1!$A$3:$D$379,3,FALSE),0) -> 1032015.8 | F61: =IFERROR(VLOOKUP(A61,[4]Sheet1!$A$3:$D$379,4,FALSE),0) -> 831885.44 | G61: =IFERROR(VLOOKUP(A61,'[5]2023-24 Final'!$B$19:$S$156,18,FALSE),0) -> 84748 | H61: 0.9680070238 | I61: =_xlfn.IFS(H61=0%,0,'other funds ftr 2023'!H61<Assumptions!$E$57,Assumptions!$B$57,'other funds ftr 2023'!H61<Assumptions!$E$58,Assumptions!$B$58,'other funds ftr 2023'!H61<=Assumptions!$E$59,Assumptions!$B$59,'other funds ftr 2023'!H61<=Assumptions!$E$60,Assumptions!$B$60) -> 1
A62: 39120 | B62: MABTON | C62: =IFERROR(VLOOKUP(A62,'[2]Allocations 2023-24'!$B$9:$AC$326,20,FALSE),0) -> 44723 | D62: =IFERROR(VLOOKUP(A62,'[3]State Reservations'!$C$4:$AE$328,29,FALSE),0) -> 350560.7281 | E62: =IFERROR(VLOOKUP(A62,[4]Sheet1!$A$3:$D$379,3,FALSE),0) -> 740967.66 | F62: =IFERROR(VLOOKUP(A62,[4]Sheet1!$A$3:$D$379,4,FALSE),0) -> 517623.61 | G62: =IFERROR(VLOOKUP(A62,'[5]2023-24 Final'!$B$19:$S$156,18,FALSE),0) -> 337724 | H62: 0.830425703 | I62: =_xlfn.IFS(H62=0%,0,'other funds ftr 2023'!H62<Assumptions!$E$57,Assumptions!$B$57,'other funds ftr 2023'!H62<Assumptions!$E$58,Assumptions!$B$58,'other funds ftr 2023'!H62<=Assumptions!$E$59,Assumptions!$B$59,'other funds ftr 2023'!H62<=Assumptions!$E$60,Assumptions!$B$60) -> 1.1
A63: 04019 | B63: MANSON | C63: =IFERROR(VLOOKUP(A63,'[2]Allocations 2023-24'!$B$9:$AC$326,20,FALSE),0) -> 30676 | D63: =IFERROR(VLOOKUP(A63,'[3]State Reservations'!$C$4:$AE$328,29,FALSE),0) -> 193160.3866 | E63: =IFERROR(VLOOKUP(A63,[4]Sheet1!$A$3:$D$379,3,FALSE),0) -> 457234.8 | F63: =IFERROR(VLOOKUP(A63,[4]Sheet1!$A$3:$D$379,4,FALSE),0) -> 369614.5 | G63: =IFERROR(VLOOKUP(A63,'[5]2023-24 Final'!$B$19:$S$156,18,FALSE),0) -> 58487 | H63: 0.9472697077 | I63: =_xlfn.IFS(H63=0%,0,'other funds ftr 2023'!H63<Assumptions!$E$57,Assumptions!$B$57,'other funds ftr 2023'!H63<Assumptions!$E$58,Assumptions!$B$58,'other funds ftr 2023'!H63<=Assumptions!$E$59,Assumptions!$B$59,'other funds ftr 2023'!H63<=Assumptions!$E$60,Assumptions!$B$60) -> 1.05
A64: 33207 | B64: MARY WALKER | C64: =IFERROR(VLOOKUP(A64,'[2]Allocations 2023-24'!$B$9:$AC$326,20,FALSE),0) -> 0 | D64: =IFERROR(VLOOKUP(A64,'[3]State Reservations'!$C$4:$AE$328,29,FALSE),0) -> 317577.3768 | E64: =IFERROR(VLOOKUP(A64,[4]Sheet1!$A$3:$D$379,3,FALSE),0) -> 406119.26 | F64: =IFERROR(VLOOKUP(A64,[4]Sheet1!$A$3:$D$379,4,FALSE),0) -> 0 | G64: =IFERROR(VLOOKUP(A64,'[5]2023-24 Final'!$B$19:$S$156,18,FALSE),0) -> 0 | H64: 0 | I64: =_xlfn.IFS(H64=0%,0,'other funds ftr 2023'!H64<Assumptions!$E$57,Assumptions!$B$57,'other funds ftr 2023'!H64<Assumptions!$E$58,Assumptions!$B$58,'other funds ftr 2023'!H64<=Assumptions!$E$59,Assumptions!$B$59,'other funds ftr 2023'!H64<=Assumptions!$E$60,Assumptions!$B$60) -> 0
A65: 31025 | B65: MARYSVILLE | C65: =IFERROR(VLOOKUP(A65,'[2]Allocations 2023-24'!$B$9:$AC$326,20,FALSE),0) -> 173829 | D65: =IFERROR(VLOOKUP(A65,'[3]State Reservations'!$C$4:$AE$328,29,FALSE),0) -> 2158514.364 | E65: =IFERROR(VLOOKUP(A65,[4]Sheet1!$A$3:$D$379,3,FALSE),0) -> 6308840.57 | F65: =IFERROR(VLOOKUP(A65,[4]Sheet1!$A$3:$D$379,4,FALSE),0) -> 1888846.96 | G65: =IFERROR(VLOOKUP(A65,'[5]2023-24 Final'!$B$19:$S$156,18,FALSE),0) -> 194125 | H65: 0.9818983422 | I65: =_xlfn.IFS(H65=0%,0,'other funds ftr 2023'!H65<Assumptions!$E$57,Assumptions!$B$57,'other funds ftr 2023'!H65<Assumptions!$E$58,Assumptions!$B$58,'other funds ftr 2023'!H65<=Assumptions!$E$59,Assumptions!$B$59,'other funds ftr 2023'!H65<=Assumptions!$E$60,Assumptions!$B$60) -> 1
A66: NULL | B66: MASA - CWU | C66: =IFERROR(VLOOKUP(A66,'[2]Allocations 2023-24'!$B$9:$AC$326,20,FALSE),0) -> 0 | D66: =IFERROR(VLOOKUP(A66,'[3]State Reservations'!$C$4:$AE$328,29,FALSE),0) -> 0 | E66: =IFERROR(VLOOKUP(A66,[4]Sheet1!$A$3:$D$379,3,FALSE),0) -> 0 | F66: =IFERROR(VLOOKUP(A66,[4]Sheet1!$A$3:$D$379,4,FALSE),0) -> 0 | G66: =IFERROR(VLOOKUP(A66,'[5]2023-24 Final'!$B$19:$S$156,18,FALSE),0) -> 0 | H66: =IF(G66=0,0,(SUM(C66:F66)/SUM(C66:G66))) -> 0 | I66: =_xlfn.IFS(H66=0%,0,'other funds ftr 2023'!H66<Assumptions!$E$57,Assumptions!$B$57,'other funds ftr 2023'!H66<Assumptions!$E$58,Assumptions!$B$58,'other funds ftr 2023'!H66<=Assumptions!$E$59,Assumptions!$B$59,'other funds ftr 2023'!H66<=Assumptions!$E$60,Assumptions!$B$60) -> 0
A67: 37505 | B67: MERIDIAN | C67: =IFERROR(VLOOKUP(A67,'[2]Allocations 2023-24'!$B$9:$AC$326,20,FALSE),0) -> 31846 | D67: =IFERROR(VLOOKUP(A67,'[3]State Reservations'!$C$4:$AE$328,29,FALSE),0) -> 366312.139 | E67: =IFERROR(VLOOKUP(A67,[4]Sheet1!$A$3:$D$379,3,FALSE),0) -> 496730.75 | F67: =IFERROR(VLOOKUP(A67,[4]Sheet1!$A$3:$D$379,4,FALSE),0) -> 402583.4 | G67: =IFERROR(VLOOKUP(A67,'[5]2023-24 Final'!$B$19:$S$156,18,FALSE),0) -> 31830 | H67: 0.9760551078 | I67: =_xlfn.IFS(H67=0%,0,'other funds ftr 2023'!H67<Assumptions!$E$57,Assumptions!$B$57,'other funds ftr 2023'!H67<Assumptions!$E$58,Assumptions!$B$58,'other funds ftr 2023'!H67<=Assumptions!$E$59,Assumptions!$B$59,'other funds ftr 2023'!H67<=Assumptions!$E$60,Assumptions!$B$60) -> 1
A68: 31103 | B68: MONROE | C68: =IFERROR(VLOOKUP(A68,'[2]Allocations 2023-24'!$B$9:$AC$326,20,FALSE),0) -> 106139 | D68: =IFERROR(VLOOKUP(A68,'[3]State Reservations'!$C$4:$AE$328,29,FALSE),0) -> 627963.6668 | E68: =IFERROR(VLOOKUP(A68,[4]Sheet1!$A$3:$D$379,3,FALSE),0) -> 1634801.93 | F68: =IFERROR(VLOOKUP(A68,[4]Sheet1!$A$3:$D$379,4,FALSE),0) -> 1464275.55 | G68: =IFERROR(VLOOKUP(A68,'[5]2023-24 Final'!$B$19:$S$156,18,FALSE),0) -> 0 | H68: 0 | I68: =_xlfn.IFS(H68=0%,0,'other funds ftr 2023'!H68<Assumptions!$E$57,Assumptions!$B$57,'other funds ftr 2023'!H68<Assumptions!$E$58,Assumptions!$B$58,'other funds ftr 2023'!H68<=Assumptions!$E$59,Assumptions!$B$59,'other funds ftr 2023'!H68<=Assumptions!$E$60,Assumptions!$B$60) -> 0
A69: 14066 | B69: MONTESANO | C69: =IFERROR(VLOOKUP(A69,'[2]Allocations 2023-24'!$B$9:$AC$326,20,FALSE),0) -> 0 | D69: =IFERROR(VLOOKUP(A69,'[3]State Reservations'!$C$4:$AE$328,29,FALSE),0) -> 317565.7255 | E69: =IFERROR(VLOOKUP(A69,[4]Sheet1!$A$3:$D$379,3,FALSE),0) -> 357840.71 | F69: =IFERROR(VLOOKUP(A69,[4]Sheet1!$A$3:$D$379,4,FALSE),0) -> 59986.96 | G69: =IFERROR(VLOOKUP(A69,'[5]2023-24 Final'!$B$19:$S$156,18,FALSE),0) -> 0 | H69: 0 | I69: =_xlfn.IFS(H69=0%,0,'other funds ftr 2023'!H69<Assumptions!$E$57,Assumptions!$B$57,'other funds ftr 2023'!H69<Assumptions!$E$58,Assumptions!$B$58,'other funds ftr 2023'!H69<=Assumptions!$E$59,Assumptions!$B$59,'other funds ftr 2023'!H69<=Assumptions!$E$60,Assumptions!$B$60) -> 0
A70: 13161 | B70: MOSES LAKE | C70: =IFERROR(VLOOKUP(A70,'[2]Allocations 2023-24'!$B$9:$AC$326,20,FALSE),0) -> 173263 | D70: =IFERROR(VLOOKUP(A70,'[3]State Reservations'!$C$4:$AE$328,29,FALSE),0) -> 3076356.316 | E70: =IFERROR(VLOOKUP(A70,[4]Sheet1!$A$3:$D$379,3,FALSE),0) -> 6034920.07 | F70: =IFERROR(VLOOKUP(A70,[4]Sheet1!$A$3:$D$379,4,FALSE),0) -> 2044685.59 | G70: =IFERROR(VLOOKUP(A70,'[5]2023-24 Final'!$B$19:$S$156,18,FALSE),0) -> 322609 | H70: 0.972312599 | I70: =_xlfn.IFS(H70=0%,0,'other funds ftr 2023'!H70<Assumptions!$E$57,Assumptions!$B$57,'other funds ftr 2023'!H70<Assumptions!$E$58,Assumptions!$B$58,'other funds ftr 2023'!H70<=Assumptions!$E$59,Assumptions!$B$59,'other funds ftr 2023'!H70<=Assumptions!$E$60,Assumptions!$B$60) -> 1
A71: 21206 | B71: MOSSYROCK | C71: =IFERROR(VLOOKUP(A71,'[2]Allocations 2023-24'!$B$9:$AC$326,20,FALSE),0) -> 0 | D71: =IFERROR(VLOOKUP(A71,'[3]State Reservations'!$C$4:$AE$328,29,FALSE),0) -> 186389.9931 | E71: =IFERROR(VLOOKUP(A71,[4]Sheet1!$A$3:$D$379,3,FALSE),0) -> 419313.75 | F71: =IFERROR(VLOOKUP(A71,[4]Sheet1!$A$3:$D$379,4,FALSE),0) -> 95236.22 | G71: =IFERROR(VLOOKUP(A71,'[5]2023-24 Final'!$B$19:$S$156,18,FALSE),0) -> 34685 | H71: 0.9528496153 | I71: =_xlfn.IFS(H71=0%,0,'other funds ftr 2023'!H71<Assumptions!$E$57,Assumptions!$B$57,'other funds ftr 2023'!H71<Assumptions!$E$58,Assumptions!$B$58,'other funds ftr 2023'!H71<=Assumptions!$E$59,Assumptions!$B$59,'other funds ftr 2023'!H71<=Assumptions!$E$60,Assumptions!$B$60) -> 1
A72: 39209 | B72: MOUNT ADAMS | C72: =IFERROR(VLOOKUP(A72,'[2]Allocations 2023-24'!$B$9:$AC$326,20,FALSE),0) -> 56789 | D72: =IFERROR(VLOOKUP(A72,'[3]State Reservations'!$C$4:$AE$328,29,FALSE),0) -> 536768.0019 | E72: =IFERROR(VLOOKUP(A72,[4]Sheet1!$A$3:$D$379,3,FALSE),0) -> 854938.71 | F72: =IFERROR(VLOOKUP(A72,[4]Sheet1!$A$3:$D$379,4,FALSE),0) -> 200782.03 | G72: =IFERROR(VLOOKUP(A72,'[5]2023-24 Final'!$B$19:$S$156,18,FALSE),0) -> 178880 | H72: 0.9021528636 | I72: =_xlfn.IFS(H72=0%,0,'other funds ftr 2023'!H72<Assumptions!$E$57,Assumptions!$B$57,'other funds ftr 2023'!H72<Assumptions!$E$58,Assumptions!$B$58,'other funds ftr 2023'!H72<=Assumptions!$E$59,Assumptions!$B$59,'other funds ftr 2023'!H72<=Assumptions!$E$60,Assumptions!$B$60) -> 1.1
A73: 37507 | B73: MOUNT BAKER | C73: =IFERROR(VLOOKUP(A73,'[2]Allocations 2023-24'!$B$9:$AC$326,20,FALSE),0) -> 22146 | D73: =IFERROR(VLOOKUP(A73,'[3]State Reservations'!$C$4:$AE$328,29,FALSE),0) -> 754943.3556 | E73: =IFERROR(VLOOKUP(A73,[4]Sheet1!$A$3:$D$379,3,FALSE),0) -> 895135.94 | F73: =IFERROR(VLOOKUP(A73,[4]Sheet1!$A$3:$D$379,4,FALSE),0) -> 160484.2 | G73: =IFERROR(VLOOKUP(A73,'[5]2023-24 Final'!$B$19:$S$156,18,FALSE),0) -> 32974 | H73: 0.9823260483 | I73: =_xlfn.IFS(H73=0%,0,'other funds ftr 2023'!H73<Assumptions!$E$57,Assumptions!$B$57,'other funds ftr 2023'!H73<Assumptions!$E$58,Assumptions!$B$58,'other funds ftr 2023'!H73<=Assumptions!$E$59,Assumptions!$B$59,'other funds ftr 2023'!H73<=Assumptions!$E$60,Assumptions!$B$60) -> 1
A74: 29320 | B74: MOUNT VERNON | C74: =IFERROR(VLOOKUP(A74,'[2]Allocations 2023-24'!$B$9:$AC$326,20,FALSE),0) -> 235899 | D74: =IFERROR(VLOOKUP(A74,'[3]State Reservations'!$C$4:$AE$328,29,FALSE),0) -> 1954290.257 | E74: =IFERROR(VLOOKUP(A74,[4]Sheet1!$A$3:$D$379,3,FALSE),0) -> 5223303.37 | F74: =IFERROR(VLOOKUP(A74,[4]Sheet1!$A$3:$D$379,4,FALSE),0) -> 3119316.78 | G74: =IFERROR(VLOOKUP(A74,'[5]2023-24 Final'!$B$19:$S$156,18,FALSE),0) -> 1143646 | H74: 0.9020553789 | I74: =_xlfn.IFS(H74=0%,0,'other funds ftr 2023'!H74<Assumptions!$E$57,Assumptions!$B$57,'other funds ftr 2023'!H74<Assumptions!$E$58,Assumptions!$B$58,'other funds ftr 2023'!H74<=Assumptions!$E$59,Assumptions!$B$59,'other funds ftr 2023'!H74<=Assumptions!$E$60,Assumptions!$B$60) -> 1.1
A75: 17903 | B75: MUCKLESHOOT INDIAN TRIBE | C75: =IFERROR(VLOOKUP(A75,'[2]Allocations 2023-24'!$B$9:$AC$326,20,FALSE),0) -> 0 | D75: =IFERROR(VLOOKUP(A75,'[3]State Reservations'!$C$4:$AE$328,29,FALSE),0) -> 0 | E75: =IFERROR(VLOOKUP(A75,[4]Sheet1!$A$3:$D$379,3,FALSE),0) -> 472062.9 | F75: =IFERROR(VLOOKUP(A75,[4]Sheet1!$A$3:$D$379,4,FALSE),0) -> 0 | G75: =IFERROR(VLOOKUP(A75,'[5]2023-24 Final'!$B$19:$S$156,18,FALSE),0) -> 0 | H75: 0 | I75: =_xlfn.IFS(H75=0%,0,'other funds ftr 2023'!H75<Assumptions!$E$57,Assumptions!$B$57,'other funds ftr 2023'!H75<Assumptions!$E$58,Assumptions!$B$58,'other funds ftr 2023'!H75<=Assumptions!$E$59,Assumptions!$B$59,'other funds ftr 2023'!H75<=Assumptions!$E$60,Assumptions!$B$60) -> 0
A76: 31006 | B76: MUKILTEO | C76: =IFERROR(VLOOKUP(A76,'[2]Allocations 2023-24'!$B$9:$AC$326,20,FALSE),0) -> 502629 | D76: =IFERROR(VLOOKUP(A76,'[3]State Reservations'!$C$4:$AE$328,29,FALSE),0) -> 3423301.625 | E76: =IFERROR(VLOOKUP(A76,[4]Sheet1!$A$3:$D$379,3,FALSE),0) -> 8731601.68 | F76: =IFERROR(VLOOKUP(A76,[4]Sheet1!$A$3:$D$379,4,FALSE),0) -> 7315002.04 | G76: =IFERROR(VLOOKUP(A76,'[5]2023-24 Final'!$B$19:$S$156,18,FALSE),0) -> 0 | H76: 0 | I76: =_xlfn.IFS(H76=0%,0,'other funds ftr 2023'!H76<Assumptions!$E$57,Assumptions!$B$57,'other funds ftr 2023'!H76<Assumptions!$E$58,Assumptions!$B$58,'other funds ftr 2023'!H76<=Assumptions!$E$59,Assumptions!$B$59,'other funds ftr 2023'!H76<=Assumptions!$E$60,Assumptions!$B$60) -> 0
A77: 39003 | B77: NACHES VALLEY | C77: =IFERROR(VLOOKUP(A77,'[2]Allocations 2023-24'!$B$9:$AC$326,20,FALSE),0) -> 10225 | D77: =IFERROR(VLOOKUP(A77,'[3]State Reservations'!$C$4:$AE$328,29,FALSE),0) -> 318599.2133 | E77: =IFERROR(VLOOKUP(A77,[4]Sheet1!$A$3:$D$379,3,FALSE),0) -> 858263.3 | F77: =IFERROR(VLOOKUP(A77,[4]Sheet1!$A$3:$D$379,4,FALSE),0) -> 111568.25 | G77: =IFERROR(VLOOKUP(A77,'[5]2023-24 Final'!$B$19:$S$156,18,FALSE),0) -> 0 | H77: 0 | I77: =_xlfn.IFS(H77=0%,0,'other funds ftr 2023'!H77<Assumptions!$E$57,Assumptions!$B$57,'other funds ftr 2023'!H77<Assumptions!$E$58,Assumptions!$B$58,'other funds ftr 2023'!H77<=Assumptions!$E$59,Assumptions!$B$59,'other funds ftr 2023'!H77<=Assumptions!$E$60,Assumptions!$B$60) -> 0
A78: 25155 | B78: NASELLE-GRAYS RIVER VALLEY | C78: =IFERROR(VLOOKUP(A78,'[2]Allocations 2023-24'!$B$9:$AC$326,20,FALSE),0) -> 1496 | D78: =IFERROR(VLOOKUP(A78,'[3]State Reservations'!$C$4:$AE$328,29,FALSE),0) -> 89939.05719 | E78: =IFERROR(VLOOKUP(A78,[4]Sheet1!$A$3:$D$379,3,FALSE),0) -> 206840.55 | F78: =IFERROR(VLOOKUP(A78,[4]Sheet1!$A$3:$D$379,4,FALSE),0) -> 16303.36 | G78: =IFERROR(VLOOKUP(A78,'[5]2023-24 Final'!$B$19:$S$156,18,FALSE),0) -> 38126 | H78: 0.891903989 | I78: =_xlfn.IFS(H78=0%,0,'other funds ftr 2023'!H78<Assumptions!$E$57,Assumptions!$B$57,'other funds ftr 2023'!H78<Assumptions!$E$58,Assumptions!$B$58,'other funds ftr 2023'!H78<=Assumptions!$E$59,Assumptions!$B$59,'other funds ftr 2023'!H78<=Assumptions!$E$60,Assumptions!$B$60) -> 1.1
A79: 24014 | B79: NESPELEM | C79: =IFERROR(VLOOKUP(A79,'[2]Allocations 2023-24'!$B$9:$AC$326,20,FALSE),0) -> 0 | D79: =IFERROR(VLOOKUP(A79,'[3]State Reservations'!$C$4:$AE$328,29,FALSE),0) -> 185323.451 | E79: =IFERROR(VLOOKUP(A79,[4]Sheet1!$A$3:$D$379,3,FALSE),0) -> 118854.04 | F79: =IFERROR(VLOOKUP(A79,[4]Sheet1!$A$3:$D$379,4,FALSE),0) -> 0 | G79: =IFERROR(VLOOKUP(A79,'[5]2023-24 Final'!$B$19:$S$156,18,FALSE),0) -> 47103 | H79: 0.8659105723 | I79: =_xlfn.IFS(H79=0%,0,'other funds ftr 2023'!H79<Assumptions!$E$57,Assumptions!$B$57,'other funds ftr 2023'!H79<Assumptions!$E$58,Assumptions!$B$58,'other funds ftr 2023'!H79<=Assumptions!$E$59,Assumptions!$B$59,'other funds ftr 2023'!H79<=Assumptions!$E$60,Assumptions!$B$60) -> 1.1
A80: 37506 | B80: NOOKSACK VALLEY | C80: =IFERROR(VLOOKUP(A80,'[2]Allocations 2023-24'!$B$9:$AC$326,20,FALSE),0) -> 43033 | D80: =IFERROR(VLOOKUP(A80,'[3]State Reservations'!$C$4:$AE$328,29,FALSE),0) -> 464816.2435 | E80: =IFERROR(VLOOKUP(A80,[4]Sheet1!$A$3:$D$379,3,FALSE),0) -> 1253672.06 | F80: =IFERROR(VLOOKUP(A80,[4]Sheet1!$A$3:$D$379,4,FALSE),0) -> 459483.16 | G80: =IFERROR(VLOOKUP(A80,'[5]2023-24 Final'!$B$19:$S$156,18,FALSE),0) -> 93700 | H80: 0.9595196702 | I80: =_xlfn.IFS(H80=0%,0,'other funds ftr 2023'!H80<Assumptions!$E$57,Assumptions!$B$57,'other funds ftr 2023'!H80<Assumptions!$E$58,Assumptions!$B$58,'other funds ftr 2023'!H80<=Assumptions!$E$59,Assumptions!$B$59,'other funds ftr 2023'!H80<=Assumptions!$E$60,Assumptions!$B$60) -> 1
A81: 14064 | B81: NORTH BEACH | C81: =IFERROR(VLOOKUP(A81,'[2]Allocations 2023-24'!$B$9:$AC$326,20,FALSE),0) -> 0 | D81: =IFERROR(VLOOKUP(A81,'[3]State Reservations'!$C$4:$AE$328,29,FALSE),0) -> 337512.1293 | E81: =IFERROR(VLOOKUP(A81,[4]Sheet1!$A$3:$D$379,3,FALSE),0) -> 513025.59 | F81: =IFERROR(VLOOKUP(A81,[4]Sheet1!$A$3:$D$379,4,FALSE),0) -> 15617.52 | G81: =IFERROR(VLOOKUP(A81,'[5]2023-24 Final'!$B$19:$S$156,18,FALSE),0) -> 0 | H81: 0 | I81: =_xlfn.IFS(H81=0%,0,'other funds ftr 2023'!H81<Assumptions!$E$57,Assumptions!$B$57,'other funds ftr 2023'!H81<Assumptions!$E$58,Assumptions!$B$58,'other funds ftr 2023'!H81<=Assumptions!$E$59,Assumptions!$B$59,'other funds ftr 2023'!H81<=Assumptions!$E$60,Assumptions!$B$60) -> 0
A82: 11051 | B82: NORTH FRANKLIN | C82: =IFERROR(VLOOKUP(A82,'[2]Allocations 2023-24'!$B$9:$AC$326,20,FALSE),0) -> 102147 | D82: =IFERROR(VLOOKUP(A82,'[3]State Reservations'!$C$4:$AE$328,29,FALSE),0) -> 688897.832 | E82: =IFERROR(VLOOKUP(A82,[4]Sheet1!$A$3:$D$379,3,FALSE),0) -> 1610555.33 | F82: =IFERROR(VLOOKUP(A82,[4]Sheet1!$A$3:$D$379,4,FALSE),0) -> 1151613.05 | G82: =IFERROR(VLOOKUP(A82,'[5]2023-24 Final'!$B$19:$S$156,18,FALSE),0) -> 537860 | H82: 0.8685283856 | I82: =_xlfn.IFS(H82=0%,0,'other funds ftr 2023'!H82<Assumptions!$E$57,Assumptions!$B$57,'other funds ftr 2023'!H82<Assumptions!$E$58,Assumptions!$B$58,'other funds ftr 2023'!H82<=Assumptions!$E$59,Assumptions!$B$59,'other funds ftr 2023'!H82<=Assumptions!$E$60,Assumptions!$B$60) -> 1.1
A83: 18400 | B83: NORTH KITSAP | C83: =IFERROR(VLOOKUP(A83,'[2]Allocations 2023-24'!$B$9:$AC$326,20,FALSE),0) -> 40603 | D83: =IFERROR(VLOOKUP(A83,'[3]State Reservations'!$C$4:$AE$328,29,FALSE),0) -> 969649.7796 | E83: =IFERROR(VLOOKUP(A83,[4]Sheet1!$A$3:$D$379,3,FALSE),0) -> 1572116.87 | F83: =IFERROR(VLOOKUP(A83,[4]Sheet1!$A$3:$D$379,4,FALSE),0) -> 534203.19 | G83: =IFERROR(VLOOKUP(A83,'[5]2023-24 Final'!$B$19:$S$156,18,FALSE),0) -> 0 | H83: 0 | I83: =_xlfn.IFS(H83=0%,0,'other funds ftr 2023'!H83<Assumptions!$E$57,Assumptions!$B$57,'other funds ftr 2023'!H83<Assumptions!$E$58,Assumptions!$B$58,'other funds ftr 2023'!H83<=Assumptions!$E$59,Assumptions!$B$59,'other funds ftr 2023'!H83<=Assumptions!$E$60,Assumptions!$B$60) -> 0
A84: 34003 | B84: NORTH THURSTON PUBLIC SCHOOLS | C84: =IFERROR(VLOOKUP(A84,'[2]Allocations 2023-24'!$B$9:$AC$326,20,FALSE),0) -> 134464 | D84: =IFERROR(VLOOKUP(A84,'[3]State Reservations'!$C$4:$AE$328,29,FALSE),0) -> 3278866.043 | E84: =IFERROR(VLOOKUP(A84,[4]Sheet1!$A$3:$D$379,3,FALSE),0) -> 5480674.48 | F84: =IFERROR(VLOOKUP(A84,[4]Sheet1!$A$3:$D$379,4,FALSE),0) -> 1627848.1 | G84: =IFERROR(VLOOKUP(A84,'[5]2023-24 Final'!$B$19:$S$156,18,FALSE),0) -> 34019 | H84: 0.9967772439 | I84: =_xlfn.IFS(H84=0%,0,'other funds ftr 2023'!H84<Assumptions!$E$57,Assumptions!$B$57,'other funds ftr 2023'!H84<Assumptions!$E$58,Assumptions!$B$58,'other funds ftr 2023'!H84<=Assumptions!$E$59,Assumptions!$B$59,'other funds ftr 2023'!H84<=Assumptions!$E$60,Assumptions!$B$60) -> 0.95
A85: 15201 | B85: OAK HARBOR | C85: =IFERROR(VLOOKUP(A85,'[2]Allocations 2023-24'!$B$9:$AC$326,20,FALSE),0) -> 33559 | D85: =IFERROR(VLOOKUP(A85,'[3]State Reservations'!$C$4:$AE$328,29,FALSE),0) -> 861910.9152 | E85: =IFERROR(VLOOKUP(A85,[4]Sheet1!$A$3:$D$379,3,FALSE),0) -> 1973497.84 | F85: =IFERROR(VLOOKUP(A85,[4]Sheet1!$A$3:$D$379,4,FALSE),0) -> 472705.73 | G85: =IFERROR(VLOOKUP(A85,'[5]2023-24 Final'!$B$19:$S$156,18,FALSE),0) -> 15915 | H85: 0.9952599909 | I85: =_xlfn.IFS(H85=0%,0,'other funds ftr 2023'!H85<Assumptions!$E$57,Assumptions!$B$57,'other funds ftr 2023'!H85<Assumptions!$E$58,Assumptions!$B$58,'other funds ftr 2023'!H85<=Assumptions!$E$59,Assumptions!$B$59,'other funds ftr 2023'!H85<=Assumptions!$E$60,Assumptions!$B$60) -> 0.95
A86: 25101 | B86: OCEAN BEACH | C86: =IFERROR(VLOOKUP(A86,'[2]Allocations 2023-24'!$B$9:$AC$326,20,FALSE),0) -> 5901 | D86: =IFERROR(VLOOKUP(A86,'[3]State Reservations'!$C$4:$AE$328,29,FALSE),0) -> 394302.0787 | E86: =IFERROR(VLOOKUP(A86,[4]Sheet1!$A$3:$D$379,3,FALSE),0) -> 739720.95 | F86: =IFERROR(VLOOKUP(A86,[4]Sheet1!$A$3:$D$379,4,FALSE),0) -> 94827.92 | G86: =IFERROR(VLOOKUP(A86,'[5]2023-24 Final'!$B$19:$S$156,18,FALSE),0) -> 21545 | H86: 0.9828503922 | I86: =_xlfn.IFS(H86=0%,0,'other funds ftr 2023'!H86<Assumptions!$E$57,Assumptions!$B$57,'other funds ftr 2023'!H86<Assumptions!$E$58,Assumptions!$B$58,'other funds ftr 2023'!H86<=Assumptions!$E$59,Assumptions!$B$59,'other funds ftr 2023'!H86<=Assumptions!$E$60,Assumptions!$B$60) -> 1
A87: 14172 | B87: OCOSTA | C87: =IFERROR(VLOOKUP(A87,'[2]Allocations 2023-24'!$B$9:$AC$326,20,FALSE),0) -> 8594 | D87: =IFERROR(VLOOKUP(A87,'[3]State Reservations'!$C$4:$AE$328,29,FALSE),0) -> 424841.0437 | E87: =IFERROR(VLOOKUP(A87,[4]Sheet1!$A$3:$D$379,3,FALSE),0) -> 435313.31 | F87: =IFERROR(VLOOKUP(A87,[4]Sheet1!$A$3:$D$379,4,FALSE),0) -> 111159.95 | G87: =IFERROR(VLOOKUP(A87,'[5]2023-24 Final'!$B$19:$S$156,18,FALSE),0) -> 20892 | H87: 0.9791247066 | I87: =_xlfn.IFS(H87=0%,0,'other funds ftr 2023'!H87<Assumptions!$E$57,Assumptions!$B$57,'other funds ftr 2023'!H87<Assumptions!$E$58,Assumptions!$B$58,'other funds ftr 2023'!H87<=Assumptions!$E$59,Assumptions!$B$59,'other funds ftr 2023'!H87<=Assumptions!$E$60,Assumptions!$B$60) -> 1
A88: 24105 | B88: OKANOGAN | C88: =IFERROR(VLOOKUP(A88,'[2]Allocations 2023-24'!$B$9:$AC$326,20,FALSE),0) -> 12242 | D88: =IFERROR(VLOOKUP(A88,'[3]State Reservations'!$C$4:$AE$328,29,FALSE),0) -> 566850.7004 | E88: =IFERROR(VLOOKUP(A88,[4]Sheet1!$A$3:$D$379,3,FALSE),0) -> 857590.32 | F88: =IFERROR(VLOOKUP(A88,[4]Sheet1!$A$3:$D$379,4,FALSE),0) -> 139149.69 | G88: =IFERROR(VLOOKUP(A88,'[5]2023-24 Final'!$B$19:$S$156,18,FALSE),0) -> 0 | H88: 0 | I88: =_xlfn.IFS(H88=0%,0,'other funds ftr 2023'!H88<Assumptions!$E$57,Assumptions!$B$57,'other funds ftr 2023'!H88<Assumptions!$E$58,Assumptions!$B$58,'other funds ftr 2023'!H88<=Assumptions!$E$59,Assumptions!$B$59,'other funds ftr 2023'!H88<=Assumptions!$E$60,Assumptions!$B$60) -> 0
A89: 34111 | B89: OLYMPIA | C89: =IFERROR(VLOOKUP(A89,'[2]Allocations 2023-24'!$B$9:$AC$326,20,FALSE),0) -> 42860 | D89: =IFERROR(VLOOKUP(A89,'[3]State Reservations'!$C$4:$AE$328,29,FALSE),0) -> 2037500.768 | E89: =IFERROR(VLOOKUP(A89,[4]Sheet1!$A$3:$D$379,3,FALSE),0) -> 2273132.22 | F89: =IFERROR(VLOOKUP(A89,[4]Sheet1!$A$3:$D$379,4,FALSE),0) -> 610219.42 | G89: =IFERROR(VLOOKUP(A89,'[5]2023-24 Final'!$B$19:$S$156,18,FALSE),0) -> 21390 | H89: 0.9957092155 | I89: =_xlfn.IFS(H89=0%,0,'other funds ftr 2023'!H89<Assumptions!$E$57,Assumptions!$B$57,'other funds ftr 2023'!H89<Assumptions!$E$58,Assumptions!$B$58,'other funds ftr 2023'!H89<=Assumptions!$E$59,Assumptions!$B$59,'other funds ftr 2023'!H89<=Assumptions!$E$60,Assumptions!$B$60) -> 0.95
A90: 24019 | B90: OMAK | C90: =IFERROR(VLOOKUP(A90,'[2]Allocations 2023-24'!$B$9:$AC$326,20,FALSE),0) -> 43785 | D90: =IFERROR(VLOOKUP(A90,'[3]State Reservations'!$C$4:$AE$328,29,FALSE),0) -> 1099174.228 | E90: =IFERROR(VLOOKUP(A90,[4]Sheet1!$A$3:$D$379,3,FALSE),0) -> 3213734.25 | F90: =IFERROR(VLOOKUP(A90,[4]Sheet1!$A$3:$D$379,4,FALSE),0) -> 556412.23 | G90: =IFERROR(VLOOKUP(A90,'[5]2023-24 Final'!$B$19:$S$156,18,FALSE),0) -> 0 | H90: 0 | I90: =_xlfn.IFS(H90=0%,0,'other funds ftr 2023'!H90<Assumptions!$E$57,Assumptions!$B$57,'other funds ftr 2023'!H90<Assumptions!$E$58,Assumptions!$B$58,'other funds ftr 2023'!H90<=Assumptions!$E$59,Assumptions!$B$59,'other funds ftr 2023'!H90<=Assumptions!$E$60,Assumptions!$B$60) -> 0
A91: 09013 | B91: ORONDO | C91: =IFERROR(VLOOKUP(A91,'[2]Allocations 2023-24'!$B$9:$AC$326,20,FALSE),0) -> 7887 | D91: =IFERROR(VLOOKUP(A91,'[3]State Reservations'!$C$4:$AE$328,29,FALSE),0) -> 144187.9781 | E91: =IFERROR(VLOOKUP(A91,[4]Sheet1!$A$3:$D$379,3,FALSE),0) -> 105347.9 | F91: =IFERROR(VLOOKUP(A91,[4]Sheet1!$A$3:$D$379,4,FALSE),0) -> 82885.11 | G91: =IFERROR(VLOOKUP(A91,'[5]2023-24 Final'!$B$19:$S$156,18,FALSE),0) -> 39888 | H91: 0.8950856894 | I91: =_xlfn.IFS(H91=0%,0,'other funds ftr 2023'!H91<Assumptions!$E$57,Assumptions!$B$57,'other funds ftr 2023'!H91<Assumptions!$E$58,Assumptions!$B$58,'other funds ftr 2023'!H91<=Assumptions!$E$59,Assumptions!$B$59,'other funds ftr 2023'!H91<=Assumptions!$E$60,Assumptions!$B$60) -> 1.1
A92: 24410 | B92: OROVILLE | C92: =IFERROR(VLOOKUP(A92,'[2]Allocations 2023-24'!$B$9:$AC$326,20,FALSE),0) -> 0 | D92: =IFERROR(VLOOKUP(A92,'[3]State Reservations'!$C$4:$AE$328,29,FALSE),0) -> 762332.4967 | E92: =IFERROR(VLOOKUP(A92,[4]Sheet1!$A$3:$D$379,3,FALSE),0) -> 396872.75 | F92: =IFERROR(VLOOKUP(A92,[4]Sheet1!$A$3:$D$379,4,FALSE),0) -> 95644.51 | G92: =IFERROR(VLOOKUP(A92,'[5]2023-24 Final'!$B$19:$S$156,18,FALSE),0) -> 0 | H92: 0 | I92: =_xlfn.IFS(H92=0%,0,'other funds ftr 2023'!H92<Assumptions!$E$57,Assumptions!$B$57,'other funds ftr 2023'!H92<Assumptions!$E$58,Assumptions!$B$58,'other funds ftr 2023'!H92<=Assumptions!$E$59,Assumptions!$B$59,'other funds ftr 2023'!H92<=Assumptions!$E$60,Assumptions!$B$60) -> 0
A93: 01147 | B93: OTHELLO | C93: =IFERROR(VLOOKUP(A93,'[2]Allocations 2023-24'!$B$9:$AC$326,20,FALSE),0) -> 260873 | D93: =IFERROR(VLOOKUP(A93,'[3]State Reservations'!$C$4:$AE$328,29,FALSE),0) -> 1849305.797 | E93: =IFERROR(VLOOKUP(A93,[4]Sheet1!$A$3:$D$379,3,FALSE),0) -> 3857561.6 | F93: =IFERROR(VLOOKUP(A93,[4]Sheet1!$A$3:$D$379,4,FALSE),0) -> 3055520.73 | G93: =IFERROR(VLOOKUP(A93,'[5]2023-24 Final'!$B$19:$S$156,18,FALSE),0) -> 587386 | H93: 0.9388817431 | I93: =_xlfn.IFS(H93=0%,0,'other funds ftr 2023'!H93<Assumptions!$E$57,Assumptions!$B$57,'other funds ftr 2023'!H93<Assumptions!$E$58,Assumptions!$B$58,'other funds ftr 2023'!H93<=Assumptions!$E$59,Assumptions!$B$59,'other funds ftr 2023'!H93<=Assumptions!$E$60,Assumptions!$B$60) -> 1.05
A94: 11001 | B94: PASCO | C94: =IFERROR(VLOOKUP(A94,'[2]Allocations 2023-24'!$B$9:$AC$326,20,FALSE),0) -> 891307 | D94: =IFERROR(VLOOKUP(A94,'[3]State Reservations'!$C$4:$AE$328,29,FALSE),0) -> 6389658.651 | E94: =IFERROR(VLOOKUP(A94,[4]Sheet1!$A$3:$D$379,3,FALSE),0) -> 14083268.54 | F94: =IFERROR(VLOOKUP(A94,[4]Sheet1!$A$3:$D$379,4,FALSE),0) -> 10686156.49 | G94: =IFERROR(VLOOKUP(A94,'[5]2023-24 Final'!$B$19:$S$156,18,FALSE),0) -> 1286653 | H94: 0.9614047061 | I94: =_xlfn.IFS(H94=0%,0,'other funds ftr 2023'!H94<Assumptions!$E$57,Assumptions!$B$57,'other funds ftr 2023'!H94<Assumptions!$E$58,Assumptions!$B$58,'other funds ftr 2023'!H94<=Assumptions!$E$59,Assumptions!$B$59,'other funds ftr 2023'!H94<=Assumptions!$E$60,Assumptions!$B$60) -> 1
A95: 24122 | B95: PATEROS | C95: =IFERROR(VLOOKUP(A95,'[2]Allocations 2023-24'!$B$9:$AC$326,20,FALSE),0) -> 0 | D95: =IFERROR(VLOOKUP(A95,'[3]State Reservations'!$C$4:$AE$328,29,FALSE),0) -> 142147.1655 | E95: =IFERROR(VLOOKUP(A95,[4]Sheet1!$A$3:$D$379,3,FALSE),0) -> 209271.48 | F95: =IFERROR(VLOOKUP(A95,[4]Sheet1!$A$3:$D$379,4,FALSE),0) -> 43510.24 | G95: =IFERROR(VLOOKUP(A95,'[5]2023-24 Final'!$B$19:$S$156,18,FALSE),0) -> 28607 | H95: 0.9324567269 | I95: =_xlfn.IFS(H95=0%,0,'other funds ftr 2023'!H95<Assumptions!$E$57,Assumptions!$B$57,'other funds ftr 2023'!H95<Assumptions!$E$58,Assumptions!$B$58,'other funds ftr 2023'!H95<=Assumptions!$E$59,Assumptions!$B$59,'other funds ftr 2023'!H95<=Assumptions!$E$60,Assumptions!$B$60) -> 1.05
A96: 03050 | B96: PATERSON | C96: =IFERROR(VLOOKUP(A96,'[2]Allocations 2023-24'!$B$9:$AC$326,20,FALSE),0) -> 0 | D96: =IFERROR(VLOOKUP(A96,'[3]State Reservations'!$C$4:$AE$328,29,FALSE),0) -> 17281.58459 | E96: =IFERROR(VLOOKUP(A96,[4]Sheet1!$A$3:$D$379,3,FALSE),0) -> 133814.68 | F96: =IFERROR(VLOOKUP(A96,[4]Sheet1!$A$3:$D$379,4,FALSE),0) -> 0 | G96: =IFERROR(VLOOKUP(A96,'[5]2023-24 Final'!$B$19:$S$156,18,FALSE),0) -> 19302 | H96: 0.8867241985 | I96: =_xlfn.IFS(H96=0%,0,'other funds ftr 2023'!H96<Assumptions!$E$57,Assumptions!$B$57,'other funds ftr 2023'!H96<Assumptions!$E$58,Assumptions!$B$58,'other funds ftr 2023'!H96<=Assumptions!$E$59,Assumptions!$B$59,'other funds ftr 2023'!H96<=Assumptions!$E$60,Assumptions!$B$60) -> 1.1
A97: 04901 | B97: PINNACLES PREP CHARTER SCHOOL | C97: =IFERROR(VLOOKUP(A97,'[2]Allocations 2023-24'!$B$9:$AC$326,20,FALSE),0) -> 0 | D97: =IFERROR(VLOOKUP(A97,'[3]State Reservations'!$C$4:$AE$328,29,FALSE),0) -> 59572.08859 | E97: =IFERROR(VLOOKUP(A97,[4]Sheet1!$A$3:$D$379,3,FALSE),0) -> 55677.16 | F97: =IFERROR(VLOOKUP(A97,[4]Sheet1!$A$3:$D$379,4,FALSE),0) -> 49739.23 | G97: =IFERROR(VLOOKUP(A97,'[5]2023-24 Final'!$B$19:$S$156,18,FALSE),0) -> 8355 | H97: 0.951800898 | I97: =_xlfn.IFS(H97=0%,0,'other funds ftr 2023'!H97<Assumptions!$E$57,Assumptions!$B$57,'other funds ftr 2023'!H97<Assumptions!$E$58,Assumptions!$B$58,'other funds ftr 2023'!H97<=Assumptions!$E$59,Assumptions!$B$59,'other funds ftr 2023'!H97<=Assumptions!$E$60,Assumptions!$B$60) -> 1.05
A98: 36402 | B98: PRESCOTT | C98: =IFERROR(VLOOKUP(A98,'[2]Allocations 2023-24'!$B$9:$AC$326,20,FALSE),0) -> 13081 | D98: =IFERROR(VLOOKUP(A98,'[3]State Reservations'!$C$4:$AE$328,29,FALSE),0) -> 81185.2911 | E98: =IFERROR(VLOOKUP(A98,[4]Sheet1!$A$3:$D$379,3,FALSE),0) -> 208929.59 | F98: =IFERROR(VLOOKUP(A98,[4]Sheet1!$A$3:$D$379,4,FALSE),0) -> 159441.55 | G98: =IFERROR(VLOOKUP(A98,'[5]2023-24 Final'!$B$19:$S$156,18,FALSE),0) -> 17398 | H98: =IF(G98=0,0,(SUM(C98:F98)/SUM(C98:G98))) -> 0.9637568419 | I98: =_xlfn.IFS(H98=0%,0,'other funds ftr 2023'!H98<Assumptions!$E$57,Assumptions!$B$57,'other funds ftr 2023'!H98<Assumptions!$E$58,Assumptions!$B$58,'other funds ftr 2023'!H98<=Assumptions!$E$59,Assumptions!$B$59,'other funds ftr 2023'!H98<=Assumptions!$E$60,Assumptions!$B$60) -> 1
A99: 03116 | B99: PROSSER | C99: =IFERROR(VLOOKUP(A99,'[2]Allocations 2023-24'!$B$9:$AC$326,20,FALSE),0) -> 84007 | D99: =IFERROR(VLOOKUP(A99,'[3]State Reservations'!$C$4:$AE$328,29,FALSE),0) -> 806733.9775 | E99: =IFERROR(VLOOKUP(A99,[4]Sheet1!$A$3:$D$379,3,FALSE),0) -> 1959948.81 | F99: =IFERROR(VLOOKUP(A99,[4]Sheet1!$A$3:$D$379,4,FALSE),0) -> 1020140.12 | G99: =IFERROR(VLOOKUP(A99,'[5]2023-24 Final'!$B$19:$S$156,18,FALSE),0) -> 651676 | H99: 0.8559037814 | I99: =_xlfn.IFS(H99=0%,0,'other funds ftr 2023'!H99<Assumptions!$E$57,Assumptions!$B$57,'other funds ftr 2023'!H99<Assumptions!$E$58,Assumptions!$B$58,'other funds ftr 2023'!H99<=Assumptions!$E$59,Assumptions!$B$59,'other funds ftr 2023'!H99<=Assumptions!$E$60,Assumptions!$B$60) -> 1.1
A100: 27003 | B100: PUYALLUP | C100: =IFERROR(VLOOKUP(A100,'[2]Allocations 2023-24'!$B$9:$AC$326,20,FALSE),0) -> 235939 | D100: =IFERROR(VLOOKUP(A100,'[3]State Reservations'!$C$4:$AE$328,29,FALSE),0) -> 3409638.8 | E100: =IFERROR(VLOOKUP(A100,[4]Sheet1!$A$3:$D$379,3,FALSE),0) -> 8044192.42 | F100: =IFERROR(VLOOKUP(A100,[4]Sheet1!$A$3:$D$379,4,FALSE),0) -> 3318635.59 | G100: =IFERROR(VLOOKUP(A100,'[5]2023-24 Final'!$B$19:$S$156,18,FALSE),0) -> 11937 | H100: 0.9992052778 | I100: =_xlfn.IFS(H100=0%,0,'other funds ftr 2023'!H100<Assumptions!$E$57,Assumptions!$B$57,'other funds ftr 2023'!H100<Assumptions!$E$58,Assumptions!$B$58,'other funds ftr 2023'!H100<=Assumptions!$E$59,Assumptions!$B$59,'other funds ftr 2023'!H100<=Assumptions!$E$60,Assumptions!$B$60) -> 0.95
A101: 05402 | B101: QUILLAYUTE VALLEY | C101: =IFERROR(VLOOKUP(A101,'[2]Allocations 2023-24'!$B$9:$AC$326,20,FALSE),0) -> 42552 | D101: =IFERROR(VLOOKUP(A101,'[3]State Reservations'!$C$4:$AE$328,29,FALSE),0) -> 748307.2197 | E101: =IFERROR(VLOOKUP(A101,[4]Sheet1!$A$3:$D$379,3,FALSE),0) -> 2295420.57 | F101: =IFERROR(VLOOKUP(A101,[4]Sheet1!$A$3:$D$379,4,FALSE),0) -> 551002.24 | G101: =IFERROR(VLOOKUP(A101,'[5]2023-24 Final'!$B$19:$S$156,18,FALSE),0) -> 62777 | H101: 0.9830335139 | I101: =_xlfn.IFS(H101=0%,0,'other funds ftr 2023'!H101<Assumptions!$E$57,Assumptions!$B$57,'other funds ftr 2023'!H101<Assumptions!$E$58,Assumptions!$B$58,'other funds ftr 2023'!H101<=Assumptions!$E$59,Assumptions!$B$59,'other funds ftr 2023'!H101<=Assumptions!$E$60,Assumptions!$B$60) -> 0.95
A102: 13144 | B102: QUINCY | C102: =IFERROR(VLOOKUP(A102,'[2]Allocations 2023-24'!$B$9:$AC$326,20,FALSE),0) -> 170108 | D102: =IFERROR(VLOOKUP(A102,'[3]State Reservations'!$C$4:$AE$328,29,FALSE),0) -> 1065928.772 | E102: =IFERROR(VLOOKUP(A102,[4]Sheet1!$A$3:$D$379,3,FALSE),0) -> 2655930.63 | F102: =IFERROR(VLOOKUP(A102,[4]Sheet1!$A$3:$D$379,4,FALSE),0) -> 2096829.91 | G102: =IFERROR(VLOOKUP(A102,'[5]2023-24 Final'!$B$19:$S$156,18,FALSE),0) -> 447115 | H102: 0.9305281088 | I102: =_xlfn.IFS(H102=0%,0,'other funds ftr 2023'!H102<Assumptions!$E$57,Assumptions!$B$57,'other funds ftr 2023'!H102<Assumptions!$E$58,Assumptions!$B$58,'other funds ftr 2023'!H102<=Assumptions!$E$59,Assumptions!$B$59,'other funds ftr 2023'!H102<=Assumptions!$E$60,Assumptions!$B$60) -> 1.05
A103: 22009 | B103: REARDAN-EDWALL | C103: =IFERROR(VLOOKUP(A103,'[2]Allocations 2023-24'!$B$9:$AC$326,20,FALSE),0) -> 0 | D103: =IFERROR(VLOOKUP(A103,'[3]State Reservations'!$C$4:$AE$328,29,FALSE),0) -> 235654.989 | E103: =IFERROR(VLOOKUP(A103,[4]Sheet1!$A$3:$D$379,3,FALSE),0) -> 223474.68 | F103: =IFERROR(VLOOKUP(A103,[4]Sheet1!$A$3:$D$379,4,FALSE),0) -> 0 | G103: =IFERROR(VLOOKUP(A103,'[5]2023-24 Final'!$B$19:$S$156,18,FALSE),0) -> 0 | H103: 0 | I103: =_xlfn.IFS(H103=0%,0,'other funds ftr 2023'!H103<Assumptions!$E$57,Assumptions!$B$57,'other funds ftr 2023'!H103<Assumptions!$E$58,Assumptions!$B$58,'other funds ftr 2023'!H103<=Assumptions!$E$59,Assumptions!$B$59,'other funds ftr 2023'!H103<=Assumptions!$E$60,Assumptions!$B$60) -> 0
A104: 17403 | B104: RENTON | C104: =IFERROR(VLOOKUP(A104,'[2]Allocations 2023-24'!$B$9:$AC$326,20,FALSE),0) -> 468063 | D104: =IFERROR(VLOOKUP(A104,'[3]State Reservations'!$C$4:$AE$328,29,FALSE),0) -> 4773064.065 | E104: =IFERROR(VLOOKUP(A104,[4]Sheet1!$A$3:$D$379,3,FALSE),0) -> 8558075.19 | F104: =IFERROR(VLOOKUP(A104,[4]Sheet1!$A$3:$D$379,4,FALSE),0) -> 6499980.74 | G104: =IFERROR(VLOOKUP(A104,'[5]2023-24 Final'!$B$19:$S$156,18,FALSE),0) -> 0 | H104: 0 | I104: =_xlfn.IFS(H104=0%,0,'other funds ftr 2023'!H104<Assumptions!$E$57,Assumptions!$B$57,'other funds ftr 2023'!H104<Assumptions!$E$58,Assumptions!$B$58,'other funds ftr 2023'!H104<=Assumptions!$E$59,Assumptions!$B$59,'other funds ftr 2023'!H104<=Assumptions!$E$60,Assumptions!$B$60) -> 0
A105: 03400 | B105: RICHLAND | C105: =IFERROR(VLOOKUP(A105,'[2]Allocations 2023-24'!$B$9:$AC$326,20,FALSE),0) -> 124039 | D105: =IFERROR(VLOOKUP(A105,'[3]State Reservations'!$C$4:$AE$328,29,FALSE),0) -> 2673798.063 | E105: =IFERROR(VLOOKUP(A105,[4]Sheet1!$A$3:$D$379,3,FALSE),0) -> 4547529.46 | F105: =IFERROR(VLOOKUP(A105,[4]Sheet1!$A$3:$D$379,4,FALSE),0) -> 1524026.5 | G105: =IFERROR(VLOOKUP(A105,'[5]2023-24 Final'!$B$19:$S$156,18,FALSE),0) -> 151597 | H105: 0.9831950817 | I105: =_xlfn.IFS(H105=0%,0,'other funds ftr 2023'!H105<Assumptions!$E$57,Assumptions!$B$57,'other funds ftr 2023'!H105<Assumptions!$E$58,Assumptions!$B$58,'other funds ftr 2023'!H105<=Assumptions!$E$59,Assumptions!$B$59,'other funds ftr 2023'!H105<=Assumptions!$E$60,Assumptions!$B$60) -> 0.95
A106: 06122 | B106: RIDGEFIELD | C106: =IFERROR(VLOOKUP(A106,'[2]Allocations 2023-24'!$B$9:$AC$326,20,FALSE),0) -> 20392 | D106: =IFERROR(VLOOKUP(A106,'[3]State Reservations'!$C$4:$AE$328,29,FALSE),0) -> 407868.5581 | E106: =IFERROR(VLOOKUP(A106,[4]Sheet1!$A$3:$D$379,3,FALSE),0) -> 669470.49 | F106: =IFERROR(VLOOKUP(A106,[4]Sheet1!$A$3:$D$379,4,FALSE),0) -> 285700.14 | G106: =IFERROR(VLOOKUP(A106,'[5]2023-24 Final'!$B$19:$S$156,18,FALSE),0) -> 22579 | H106: 0.9839410836 | I106: =_xlfn.IFS(H106=0%,0,'other funds ftr 2023'!H106<Assumptions!$E$57,Assumptions!$B$57,'other funds ftr 2023'!H106<Assumptions!$E$58,Assumptions!$B$58,'other funds ftr 2023'!H106<=Assumptions!$E$59,Assumptions!$B$59,'other funds ftr 2023'!H106<=Assumptions!$E$60,Assumptions!$B$60) -> 0.95
A107: 17407 | B107: RIVERVIEW | C107: =IFERROR(VLOOKUP(A107,'[2]Allocations 2023-24'!$B$9:$AC$326,20,FALSE),0) -> 27930 | D107: =IFERROR(VLOOKUP(A107,'[3]State Reservations'!$C$4:$AE$328,29,FALSE),0) -> 321677.4666 | E107: =IFERROR(VLOOKUP(A107,[4]Sheet1!$A$3:$D$379,3,FALSE),0) -> 358348.96 | F107: =IFERROR(VLOOKUP(A107,[4]Sheet1!$A$3:$D$379,4,FALSE),0) -> 396825.52 | G107: =IFERROR(VLOOKUP(A107,'[5]2023-24 Final'!$B$19:$S$156,18,FALSE),0) -> 7560 | H107: 0.9932035288 | I107: =_xlfn.IFS(H107=0%,0,'other funds ftr 2023'!H107<Assumptions!$E$57,Assumptions!$B$57,'other funds ftr 2023'!H107<Assumptions!$E$58,Assumptions!$B$58,'other funds ftr 2023'!H107<=Assumptions!$E$59,Assumptions!$B$59,'other funds ftr 2023'!H107<=Assumptions!$E$60,Assumptions!$B$60) -> 0.95
A108: 34401 | B108: ROCHESTER | C108: =IFERROR(VLOOKUP(A108,'[2]Allocations 2023-24'!$B$9:$AC$326,20,FALSE),0) -> 37059 | D108: =IFERROR(VLOOKUP(A108,'[3]State Reservations'!$C$4:$AE$328,29,FALSE),0) -> 697372.7928 | E108: =IFERROR(VLOOKUP(A108,[4]Sheet1!$A$3:$D$379,3,FALSE),0) -> 1283498.95 | F108: =IFERROR(VLOOKUP(A108,[4]Sheet1!$A$3:$D$379,4,FALSE),0) -> 355936.42 | G108: =IFERROR(VLOOKUP(A108,'[5]2023-24 Final'!$B$19:$S$156,18,FALSE),0) -> 25703 | H108: 0.9892884982 | I108: =_xlfn.IFS(H108=0%,0,'other funds ftr 2023'!H108<Assumptions!$E$57,Assumptions!$B$57,'other funds ftr 2023'!H108<Assumptions!$E$58,Assumptions!$B$58,'other funds ftr 2023'!H108<=Assumptions!$E$59,Assumptions!$B$59,'other funds ftr 2023'!H108<=Assumptions!$E$60,Assumptions!$B$60) -> 0.95
A109: 20403 | B109: ROOSEVELT | C109: =IFERROR(VLOOKUP(A109,'[2]Allocations 2023-24'!$B$9:$AC$326,20,FALSE),0) -> 0 | D109: =IFERROR(VLOOKUP(A109,'[3]State Reservations'!$C$4:$AE$328,29,FALSE),0) -> 22014.64289 | E109: =IFERROR(VLOOKUP(A109,[4]Sheet1!$A$3:$D$379,3,FALSE),0) -> 0 | F109: =IFERROR(VLOOKUP(A109,[4]Sheet1!$A$3:$D$379,4,FALSE),0) -> 0 | G109: =IFERROR(VLOOKUP(A109,'[5]2023-24 Final'!$B$19:$S$156,18,FALSE),0) -> 24411 | H109: 0.4741914493 | I109: =_xlfn.IFS(H109=0%,0,'other funds ftr 2023'!H109<Assumptions!$E$57,Assumptions!$B$57,'other funds ftr 2023'!H109<Assumptions!$E$58,Assumptions!$B$58,'other funds ftr 2023'!H109<=Assumptions!$E$59,Assumptions!$B$59,'other funds ftr 2023'!H109<=Assumptions!$E$60,Assumptions!$B$60) -> 1.1
A110: 13160 | B110: ROYAL | C110: =IFERROR(VLOOKUP(A110,'[2]Allocations 2023-24'!$B$9:$AC$326,20,FALSE),0) -> 108048 | D110: =IFERROR(VLOOKUP(A110,'[3]State Reservations'!$C$4:$AE$328,29,FALSE),0) -> 649743.4818 | E110: =IFERROR(VLOOKUP(A110,[4]Sheet1!$A$3:$D$379,3,FALSE),0) -> 1447546.58 | F110: =IFERROR(VLOOKUP(A110,[4]Sheet1!$A$3:$D$379,4,FALSE),0) -> 1214899.71 | G110: =IFERROR(VLOOKUP(A110,'[5]2023-24 Final'!$B$19:$S$156,18,FALSE),0) -> 157560 | H110: 0.9559617368 | I110: =_xlfn.IFS(H110=0%,0,'other funds ftr 2023'!H110<Assumptions!$E$57,Assumptions!$B$57,'other funds ftr 2023'!H110<Assumptions!$E$58,Assumptions!$B$58,'other funds ftr 2023'!H110<=Assumptions!$E$59,Assumptions!$B$59,'other funds ftr 2023'!H110<=Assumptions!$E$60,Assumptions!$B$60) -> 1
A111: 17001 | B111: SEATTLE PUBLIC SCHOOLS | C111: =IFERROR(VLOOKUP(A111,'[2]Allocations 2023-24'!$B$9:$AC$326,20,FALSE),0) -> 936430 | D111: =IFERROR(VLOOKUP(A111,'[3]State Reservations'!$C$4:$AE$328,29,FALSE),0) -> 16468801.93 | E111: =IFERROR(VLOOKUP(A111,[4]Sheet1!$A$3:$D$379,3,FALSE),0) -> 20517581.5 | F111: =IFERROR(VLOOKUP(A111,[4]Sheet1!$A$3:$D$379,4,FALSE),0) -> 12857099.58 | G111: =IFERROR(VLOOKUP(A111,'[5]2023-24 Final'!$B$19:$S$156,18,FALSE),0) -> 25449 | H111: 0.9994990883 | I111: =_xlfn.IFS(H111=0%,0,'other funds ftr 2023'!H111<Assumptions!$E$57,Assumptions!$B$57,'other funds ftr 2023'!H111<Assumptions!$E$58,Assumptions!$B$58,'other funds ftr 2023'!H111<=Assumptions!$E$59,Assumptions!$B$59,'other funds ftr 2023'!H111<=Assumptions!$E$60,Assumptions!$B$60) -> 0.95
A112: 29101 | B112: SEDRO-WOOLLEY | C112: =IFERROR(VLOOKUP(A112,'[2]Allocations 2023-24'!$B$9:$AC$326,20,FALSE),0) -> 59585 | D112: =IFERROR(VLOOKUP(A112,'[3]State Reservations'!$C$4:$AE$328,29,FALSE),0) -> 1001971.439 | E112: =IFERROR(VLOOKUP(A112,[4]Sheet1!$A$3:$D$379,3,FALSE),0) -> 2426051.8 | F112: =IFERROR(VLOOKUP(A112,[4]Sheet1!$A$3:$D$379,4,FALSE),0) -> 700546.98 | G112: =IFERROR(VLOOKUP(A112,'[5]2023-24 Final'!$B$19:$S$156,18,FALSE),0) -> 114056 | H112: 0.9734889818 | I112: =_xlfn.IFS(H112=0%,0,'other funds ftr 2023'!H112<Assumptions!$E$57,Assumptions!$B$57,'other funds ftr 2023'!H112<Assumptions!$E$58,Assumptions!$B$58,'other funds ftr 2023'!H112<=Assumptions!$E$59,Assumptions!$B$59,'other funds ftr 2023'!H112<=Assumptions!$E$60,Assumptions!$B$60) -> 1
A113: 39119 | B113: SELAH | C113: =IFERROR(VLOOKUP(A113,'[2]Allocations 2023-24'!$B$9:$AC$326,20,FALSE),0) -> 56436 | D113: =IFERROR(VLOOKUP(A113,'[3]State Reservations'!$C$4:$AE$328,29,FALSE),0) -> 762487.9952 | E113: =IFERROR(VLOOKUP(A113,[4]Sheet1!$A$3:$D$379,3,FALSE),0) -> 2659878.58 | F113: =IFERROR(VLOOKUP(A113,[4]Sheet1!$A$3:$D$379,4,FALSE),0) -> 652362.95 | G113: =IFERROR(VLOOKUP(A113,'[5]2023-24 Final'!$B$19:$S$156,18,FALSE),0) -> 137775 | H113: 0.9677261842 | I113: =_xlfn.IFS(H113=0%,0,'other funds ftr 2023'!H113<Assumptions!$E$57,Assumptions!$B$57,'other funds ftr 2023'!H113<Assumptions!$E$58,Assumptions!$B$58,'other funds ftr 2023'!H113<=Assumptions!$E$59,Assumptions!$B$59,'other funds ftr 2023'!H113<=Assumptions!$E$60,Assumptions!$B$60) -> 1
A114: 23309 | B114: SHELTON | C114: =IFERROR(VLOOKUP(A114,'[2]Allocations 2023-24'!$B$9:$AC$326,20,FALSE),0) -> 137202 | D114: =IFERROR(VLOOKUP(A114,'[3]State Reservations'!$C$4:$AE$328,29,FALSE),0) -> 1796921.169 | E114: =IFERROR(VLOOKUP(A114,[4]Sheet1!$A$3:$D$379,3,FALSE),0) -> 3256018.86 | F114: =IFERROR(VLOOKUP(A114,[4]Sheet1!$A$3:$D$379,4,FALSE),0) -> 1642799.18 | G114: =IFERROR(VLOOKUP(A114,'[5]2023-24 Final'!$B$19:$S$156,18,FALSE),0) -> 0 | H114: 0 | I114: =_xlfn.IFS(H114=0%,0,'other funds ftr 2023'!H114<Assumptions!$E$57,Assumptions!$B$57,'other funds ftr 2023'!H114<Assumptions!$E$58,Assumptions!$B$58,'other funds ftr 2023'!H114<=Assumptions!$E$59,Assumptions!$B$59,'other funds ftr 2023'!H114<=Assumptions!$E$60,Assumptions!$B$60) -> 0
A115: 31201 | B115: SNOHOMISH | C115: =IFERROR(VLOOKUP(A115,'[2]Allocations 2023-24'!$B$9:$AC$326,20,FALSE),0) -> 68288 | D115: =IFERROR(VLOOKUP(A115,'[3]State Reservations'!$C$4:$AE$328,29,FALSE),0) -> 371845.7849 | E115: =IFERROR(VLOOKUP(A115,[4]Sheet1!$A$3:$D$379,3,FALSE),0) -> 1506024.09 | F115: =IFERROR(VLOOKUP(A115,[4]Sheet1!$A$3:$D$379,4,FALSE),0) -> 1113764.42 | G115: =IFERROR(VLOOKUP(A115,'[5]2023-24 Final'!$B$19:$S$156,18,FALSE),0) -> 47059 | H115: 0.9848537872 | I115: =_xlfn.IFS(H115=0%,0,'other funds ftr 2023'!H115<Assumptions!$E$57,Assumptions!$B$57,'other funds ftr 2023'!H115<Assumptions!$E$58,Assumptions!$B$58,'other funds ftr 2023'!H115<=Assumptions!$E$59,Assumptions!$B$59,'other funds ftr 2023'!H115<=Assumptions!$E$60,Assumptions!$B$60) -> 0.95
A116: 13156 | B116: SOAP LAKE | C116: =IFERROR(VLOOKUP(A116,'[2]Allocations 2023-24'!$B$9:$AC$326,20,FALSE),0) -> 16861 | D116: =IFERROR(VLOOKUP(A116,'[3]State Reservations'!$C$4:$AE$328,29,FALSE),0) -> 325281.4572 | E116: =IFERROR(VLOOKUP(A116,[4]Sheet1!$A$3:$D$379,3,FALSE),0) -> 425755.11 | F116: =IFERROR(VLOOKUP(A116,[4]Sheet1!$A$3:$D$379,4,FALSE),0) -> 208029.36 | G116: =IFERROR(VLOOKUP(A116,'[5]2023-24 Final'!$B$19:$S$156,18,FALSE),0) -> 0 | H116: 0 | I116: =_xlfn.IFS(H116=0%,0,'other funds ftr 2023'!H116<Assumptions!$E$57,Assumptions!$B$57,'other funds ftr 2023'!H116<Assumptions!$E$58,Assumptions!$B$58,'other funds ftr 2023'!H116<=Assumptions!$E$59,Assumptions!$B$59,'other funds ftr 2023'!H116<=Assumptions!$E$60,Assumptions!$B$60) -> 0
A117: 32081 | B117: SPOKANE | C117: =IFERROR(VLOOKUP(A117,'[2]Allocations 2023-24'!$B$9:$AC$326,20,FALSE),0) -> 312096 | D117: =IFERROR(VLOOKUP(A117,'[3]State Reservations'!$C$4:$AE$328,29,FALSE),0) -> 13845067.75 | E117: =IFERROR(VLOOKUP(A117,[4]Sheet1!$A$3:$D$379,3,FALSE),0) -> 17042157.94 | F117: =IFERROR(VLOOKUP(A117,[4]Sheet1!$A$3:$D$379,4,FALSE),0) -> 3685459.67 | G117: =IFERROR(VLOOKUP(A117,'[5]2023-24 Final'!$B$19:$S$156,18,FALSE),0) -> 0 | H117: 0 | I117: =_xlfn.IFS(H117=0%,0,'other funds ftr 2023'!H117<Assumptions!$E$57,Assumptions!$B$57,'other funds ftr 2023'!H117<Assumptions!$E$58,Assumptions!$B$58,'other funds ftr 2023'!H117<=Assumptions!$E$59,Assumptions!$B$59,'other funds ftr 2023'!H117<=Assumptions!$E$60,Assumptions!$B$60) -> 0
A118: 31401 | B118: STANWOOD-CAMANO | C118: =IFERROR(VLOOKUP(A118,'[2]Allocations 2023-24'!$B$9:$AC$326,20,FALSE),0) -> 21956 | D118: =IFERROR(VLOOKUP(A118,'[3]State Reservations'!$C$4:$AE$328,29,FALSE),0) -> 621807.1602 | E118: =IFERROR(VLOOKUP(A118,[4]Sheet1!$A$3:$D$379,3,FALSE),0) -> 1081488.73 | F118: =IFERROR(VLOOKUP(A118,[4]Sheet1!$A$3:$D$379,4,FALSE),0) -> 276372.14 | G118: =IFERROR(VLOOKUP(A118,'[5]2023-24 Final'!$B$19:$S$156,18,FALSE),0) -> 11668 | H118: 0.9942045169 | I118: =_xlfn.IFS(H118=0%,0,'other funds ftr 2023'!H118<Assumptions!$E$57,Assumptions!$B$57,'other funds ftr 2023'!H118<Assumptions!$E$58,Assumptions!$B$58,'other funds ftr 2023'!H118<=Assumptions!$E$59,Assumptions!$B$59,'other funds ftr 2023'!H118<=Assumptions!$E$60,Assumptions!$B$60) -> 0.95
A119: 30303 | B119: STEVENSON-CARSON | C119: =IFERROR(VLOOKUP(A119,'[2]Allocations 2023-24'!$B$9:$AC$326,20,FALSE),0) -> 0 | D119: =IFERROR(VLOOKUP(A119,'[3]State Reservations'!$C$4:$AE$328,29,FALSE),0) -> 251538.9086 | E119: =IFERROR(VLOOKUP(A119,[4]Sheet1!$A$3:$D$379,3,FALSE),0) -> 466169.63 | F119: =IFERROR(VLOOKUP(A119,[4]Sheet1!$A$3:$D$379,4,FALSE),0) -> 26437.49 | G119: =IFERROR(VLOOKUP(A119,'[5]2023-24 Final'!$B$19:$S$156,18,FALSE),0) -> 0 | H119: 0 | I119: =_xlfn.IFS(H119=0%,0,'other funds ftr 2023'!H119<Assumptions!$E$57,Assumptions!$B$57,'other funds ftr 2023'!H119<Assumptions!$E$58,Assumptions!$B$58,'other funds ftr 2023'!H119<=Assumptions!$E$59,Assumptions!$B$59,'other funds ftr 2023'!H119<=Assumptions!$E$60,Assumptions!$B$60) -> 0
A120: 27320 | B120: SUMNER | C120: =IFERROR(VLOOKUP(A120,'[2]Allocations 2023-24'!$B$9:$AC$326,20,FALSE),0) -> 73242 | D120: =IFERROR(VLOOKUP(A120,'[3]State Reservations'!$C$4:$AE$328,29,FALSE),0) -> 1003510.566 | E120: =IFERROR(VLOOKUP(A120,[4]Sheet1!$A$3:$D$379,3,FALSE),0) -> 2329207.05 | F120: =IFERROR(VLOOKUP(A120,[4]Sheet1!$A$3:$D$379,4,FALSE),0) -> 1065250.79 | G120: =IFERROR(VLOOKUP(A120,'[5]2023-24 Final'!$B$19:$S$156,18,FALSE),0) -> 0 | H120: 0 | I120: =_xlfn.IFS(H120=0%,0,'other funds ftr 2023'!H120<Assumptions!$E$57,Assumptions!$B$57,'other funds ftr 2023'!H120<Assumptions!$E$58,Assumptions!$B$58,'other funds ftr 2023'!H120<=Assumptions!$E$59,Assumptions!$B$59,'other funds ftr 2023'!H120<=Assumptions!$E$60,Assumptions!$B$60) -> 0
A121: 39201 | B121: SUNNYSIDE | C121: =IFERROR(VLOOKUP(A121,'[2]Allocations 2023-24'!$B$9:$AC$326,20,FALSE),0) -> 283613 | D121: =IFERROR(VLOOKUP(A121,'[3]State Reservations'!$C$4:$AE$328,29,FALSE),0) -> 2494920.936 | E121: =IFERROR(VLOOKUP(A121,[4]Sheet1!$A$3:$D$379,3,FALSE),0) -> 5817614.31 | F121: =IFERROR(VLOOKUP(A121,[4]Sheet1!$A$3:$D$379,4,FALSE),0) -> 3200875.87 | G121: =IFERROR(VLOOKUP(A121,'[5]2023-24 Final'!$B$19:$S$156,18,FALSE),0) -> 1411960 | H121: 0.8931060869 | I121: =_xlfn.IFS(H121=0%,0,'other funds ftr 2023'!H121<Assumptions!$E$57,Assumptions!$B$57,'other funds ftr 2023'!H121<Assumptions!$E$58,Assumptions!$B$58,'other funds ftr 2023'!H121<=Assumptions!$E$59,Assumptions!$B$59,'other funds ftr 2023'!H121<=Assumptions!$E$60,Assumptions!$B$60) -> 1.1
A122: 27010 | B122: TACOMA | C122: =IFERROR(VLOOKUP(A122,'[2]Allocations 2023-24'!$B$9:$AC$326,20,FALSE),0) -> 435754 | D122: =IFERROR(VLOOKUP(A122,'[3]State Reservations'!$C$4:$AE$328,29,FALSE),0) -> 10316420.06 | E122: =IFERROR(VLOOKUP(A122,[4]Sheet1!$A$3:$D$379,3,FALSE),0) -> 17082649.56 | F122: =IFERROR(VLOOKUP(A122,[4]Sheet1!$A$3:$D$379,4,FALSE),0) -> 5768295.27 | G122: =IFERROR(VLOOKUP(A122,'[5]2023-24 Final'!$B$19:$S$156,18,FALSE),0) -> 0 | H122: 0 | I122: =_xlfn.IFS(H122=0%,0,'other funds ftr 2023'!H122<Assumptions!$E$57,Assumptions!$B$57,'other funds ftr 2023'!H122<Assumptions!$E$58,Assumptions!$B$58,'other funds ftr 2023'!H122<=Assumptions!$E$59,Assumptions!$B$59,'other funds ftr 2023'!H122<=Assumptions!$E$60,Assumptions!$B$60) -> 0
A123: 14077 | B123: TAHOLAH | C123: =IFERROR(VLOOKUP(A123,'[2]Allocations 2023-24'!$B$9:$AC$326,20,FALSE),0) -> 0 | D123: =IFERROR(VLOOKUP(A123,'[3]State Reservations'!$C$4:$AE$328,29,FALSE),0) -> 139668.2785 | E123: =IFERROR(VLOOKUP(A123,[4]Sheet1!$A$3:$D$379,3,FALSE),0) -> 142126.18 | F123: =IFERROR(VLOOKUP(A123,[4]Sheet1!$A$3:$D$379,4,FALSE),0) -> 0 | G123: =IFERROR(VLOOKUP(A123,'[5]2023-24 Final'!$B$19:$S$156,18,FALSE),0) -> 91729 | H123: 0.7544223852 | I123: =_xlfn.IFS(H123=0%,0,'other funds ftr 2023'!H123<Assumptions!$E$57,Assumptions!$B$57,'other funds ftr 2023'!H123<Assumptions!$E$58,Assumptions!$B$58,'other funds ftr 2023'!H123<=Assumptions!$E$59,Assumptions!$B$59,'other funds ftr 2023'!H123<=Assumptions!$E$60,Assumptions!$B$60) -> 1.1
A124: 24404 | B124: TONASKET | C124: =IFERROR(VLOOKUP(A124,'[2]Allocations 2023-24'!$B$9:$AC$326,20,FALSE),0) -> 18439 | D124: =IFERROR(VLOOKUP(A124,'[3]State Reservations'!$C$4:$AE$328,29,FALSE),0) -> 835226.1469 | E124: =IFERROR(VLOOKUP(A124,[4]Sheet1!$A$3:$D$379,3,FALSE),0) -> 951351.76 | F124: =IFERROR(VLOOKUP(A124,[4]Sheet1!$A$3:$D$379,4,FALSE),0) -> 208437.68 | G124: =IFERROR(VLOOKUP(A124,'[5]2023-24 Final'!$B$19:$S$156,18,FALSE),0) -> 289280 | H124: 0.8743754484 | I124: =_xlfn.IFS(H124=0%,0,'other funds ftr 2023'!H124<Assumptions!$E$57,Assumptions!$B$57,'other funds ftr 2023'!H124<Assumptions!$E$58,Assumptions!$B$58,'other funds ftr 2023'!H124<=Assumptions!$E$59,Assumptions!$B$59,'other funds ftr 2023'!H124<=Assumptions!$E$60,Assumptions!$B$60) -> 1.1
A125: 39202 | B125: TOPPENISH | C125: =IFERROR(VLOOKUP(A125,'[2]Allocations 2023-24'!$B$9:$AC$326,20,FALSE),0) -> 201315 | D125: =IFERROR(VLOOKUP(A125,'[3]State Reservations'!$C$4:$AE$328,29,FALSE),0) -> 1687935.649 | E125: =IFERROR(VLOOKUP(A125,[4]Sheet1!$A$3:$D$379,3,FALSE),0) -> 3771745.66 | F125: =IFERROR(VLOOKUP(A125,[4]Sheet1!$A$3:$D$379,4,FALSE),0) -> 1954741.15 | G125: =IFERROR(VLOOKUP(A125,'[5]2023-24 Final'!$B$19:$S$156,18,FALSE),0) -> 599293 | H125: 0.9270492054 | I125: =_xlfn.IFS(H125=0%,0,'other funds ftr 2023'!H125<Assumptions!$E$57,Assumptions!$B$57,'other funds ftr 2023'!H125<Assumptions!$E$58,Assumptions!$B$58,'other funds ftr 2023'!H125<=Assumptions!$E$59,Assumptions!$B$59,'other funds ftr 2023'!H125<=Assumptions!$E$60,Assumptions!$B$60) -> 1.05
A126: 20400 | B126: TROUT LAKE | C126: =IFERROR(VLOOKUP(A126,'[2]Allocations 2023-24'!$B$9:$AC$326,20,FALSE),0) -> 0 | D126: =IFERROR(VLOOKUP(A126,'[3]State Reservations'!$C$4:$AE$328,29,FALSE),0) -> 95138.33369 | E126: =IFERROR(VLOOKUP(A126,[4]Sheet1!$A$3:$D$379,3,FALSE),0) -> 43219.65 | F126: =IFERROR(VLOOKUP(A126,[4]Sheet1!$A$3:$D$379,4,FALSE),0) -> 25518.83 | G126: =IFERROR(VLOOKUP(A126,'[5]2023-24 Final'!$B$19:$S$156,18,FALSE),0) -> 0 | H126: 0 | I126: =_xlfn.IFS(H126=0%,0,'other funds ftr 2023'!H126<Assumptions!$E$57,Assumptions!$B$57,'other funds ftr 2023'!H126<Assumptions!$E$58,Assumptions!$B$58,'other funds ftr 2023'!H126<=Assumptions!$E$59,Assumptions!$B$59,'other funds ftr 2023'!H126<=Assumptions!$E$60,Assumptions!$B$60) -> 0
A127: 39002 | B127: UNION GAP | C127: =IFERROR(VLOOKUP(A127,'[2]Allocations 2023-24'!$B$9:$AC$326,20,FALSE),0) -> 20886 | D127: =IFERROR(VLOOKUP(A127,'[3]State Reservations'!$C$4:$AE$328,29,FALSE),0) -> 326869.1655 | E127: =IFERROR(VLOOKUP(A127,[4]Sheet1!$A$3:$D$379,3,FALSE),0) -> 498584.36 | F127: =IFERROR(VLOOKUP(A127,[4]Sheet1!$A$3:$D$379,4,FALSE),0) -> 225892.54 | G127: =IFERROR(VLOOKUP(A127,'[5]2023-24 Final'!$B$19:$S$156,18,FALSE),0) -> 58417 | H127: 0.9483332169 | I127: =_xlfn.IFS(H127=0%,0,'other funds ftr 2023'!H127<Assumptions!$E$57,Assumptions!$B$57,'other funds ftr 2023'!H127<Assumptions!$E$58,Assumptions!$B$58,'other funds ftr 2023'!H127<=Assumptions!$E$59,Assumptions!$B$59,'other funds ftr 2023'!H127<=Assumptions!$E$60,Assumptions!$B$60) -> 1.05
A128: 06037 | B128: VANCOUVER | C128: =IFERROR(VLOOKUP(A128,'[2]Allocations 2023-24'!$B$9:$AC$326,20,FALSE),0) -> 465566 | D128: =IFERROR(VLOOKUP(A128,'[3]State Reservations'!$C$4:$AE$328,29,FALSE),0) -> 6788803.352 | E128: =IFERROR(VLOOKUP(A128,[4]Sheet1!$A$3:$D$379,3,FALSE),0) -> 11875011.72 | F128: =IFERROR(VLOOKUP(A128,[4]Sheet1!$A$3:$D$379,4,FALSE),0) -> 5919470.67 | G128: =IFERROR(VLOOKUP(A128,'[5]2023-24 Final'!$B$19:$S$156,18,FALSE),0) -> 38638 | H128: 0.9984598698 | I128: =_xlfn.IFS(H128=0%,0,'other funds ftr 2023'!H128<Assumptions!$E$57,Assumptions!$B$57,'other funds ftr 2023'!H128<Assumptions!$E$58,Assumptions!$B$58,'other funds ftr 2023'!H128<=Assumptions!$E$59,Assumptions!$B$59,'other funds ftr 2023'!H128<=Assumptions!$E$60,Assumptions!$B$60) -> 0.95
A129: 34901 | B129: WA HE LUT INDIAN SCHOOL | C129: =IFERROR(VLOOKUP(A129,'[2]Allocations 2023-24'!$B$9:$AC$326,20,FALSE),0) -> 0 | D129: =IFERROR(VLOOKUP(A129,'[3]State Reservations'!$C$4:$AE$328,29,FALSE),0) -> 0 | E129: =IFERROR(VLOOKUP(A129,[4]Sheet1!$A$3:$D$379,3,FALSE),0) -> 132193.79 | F129: =IFERROR(VLOOKUP(A129,[4]Sheet1!$A$3:$D$379,4,FALSE),0) -> 0 | G129: =IFERROR(VLOOKUP(A129,'[5]2023-24 Final'!$B$19:$S$156,18,FALSE),0) -> 0 | H129: 0 | I129: =_xlfn.IFS(H129=0%,0,'other funds ftr 2023'!H129<Assumptions!$E$57,Assumptions!$B$57,'other funds ftr 2023'!H129<Assumptions!$E$58,Assumptions!$B$58,'other funds ftr 2023'!H129<=Assumptions!$E$59,Assumptions!$B$59,'other funds ftr 2023'!H129<=Assumptions!$E$60,Assumptions!$B$60) -> 0
A130: 13073 | B130: WAHLUKE | C130: =IFERROR(VLOOKUP(A130,'[2]Allocations 2023-24'!$B$9:$AC$326,20,FALSE),0) -> 172393 | D130: =IFERROR(VLOOKUP(A130,'[3]State Reservations'!$C$4:$AE$328,29,FALSE),0) -> 628591.8699 | E130: =IFERROR(VLOOKUP(A130,[4]Sheet1!$A$3:$D$379,3,FALSE),0) -> 2196617.95 | F130: =IFERROR(VLOOKUP(A130,[4]Sheet1!$A$3:$D$379,4,FALSE),0) -> 2056816.41 | G130: =IFERROR(VLOOKUP(A130,'[5]2023-24 Final'!$B$19:$S$156,18,FALSE),0) -> 1500561 | H130: =IF(G130=0,0,(SUM(C130:F130)/SUM(C130:G130))) -> 0.7710807741 | I130: =_xlfn.IFS(H130=0%,0,'other funds ftr 2023'!H130<Assumptions!$E$57,Assumptions!$B$57,'other funds ftr 2023'!H130<Assumptions!$E$58,Assumptions!$B$58,'other funds ftr 2023'!H130<=Assumptions!$E$59,Assumptions!$B$59,'other funds ftr 2023'!H130<=Assumptions!$E$60,Assumptions!$B$60) -> 1.1
A131: 36140 | B131: WALLA WALLA PUBLIC SCHOOLS | C131: =IFERROR(VLOOKUP(A131,'[2]Allocations 2023-24'!$B$9:$AC$326,20,FALSE),0) -> 115164 | D131: =IFERROR(VLOOKUP(A131,'[3]State Reservations'!$C$4:$AE$328,29,FALSE),0) -> 1515574.714 | E131: =IFERROR(VLOOKUP(A131,[4]Sheet1!$A$3:$D$379,3,FALSE),0) -> 3932190.07 | F131: =IFERROR(VLOOKUP(A131,[4]Sheet1!$A$3:$D$379,4,FALSE),0) -> 1334694.69 | G131: =IFERROR(VLOOKUP(A131,'[5]2023-24 Final'!$B$19:$S$156,18,FALSE),0) -> 38723 | H131: 0.9944173781 | I131: =_xlfn.IFS(H131=0%,0,'other funds ftr 2023'!H131<Assumptions!$E$57,Assumptions!$B$57,'other funds ftr 2023'!H131<Assumptions!$E$58,Assumptions!$B$58,'other funds ftr 2023'!H131<=Assumptions!$E$59,Assumptions!$B$59,'other funds ftr 2023'!H131<=Assumptions!$E$60,Assumptions!$B$60) -> 0.95
A132: 39207 | B132: WAPATO | C132: =IFERROR(VLOOKUP(A132,'[2]Allocations 2023-24'!$B$9:$AC$326,20,FALSE),0) -> 192127 | D132: =IFERROR(VLOOKUP(A132,'[3]State Reservations'!$C$4:$AE$328,29,FALSE),0) -> 1747608.865 | E132: =IFERROR(VLOOKUP(A132,[4]Sheet1!$A$3:$D$379,3,FALSE),0) -> 2788498.6 | F132: =IFERROR(VLOOKUP(A132,[4]Sheet1!$A$3:$D$379,4,FALSE),0) -> 1747630.45 | G132: =IFERROR(VLOOKUP(A132,'[5]2023-24 Final'!$B$19:$S$156,18,FALSE),0) -> 648589 | H132: 0.9089629875 | I132: =_xlfn.IFS(H132=0%,0,'other funds ftr 2023'!H132<Assumptions!$E$57,Assumptions!$B$57,'other funds ftr 2023'!H132<Assumptions!$E$58,Assumptions!$B$58,'other funds ftr 2023'!H132<=Assumptions!$E$59,Assumptions!$B$59,'other funds ftr 2023'!H132<=Assumptions!$E$60,Assumptions!$B$60) -> 1.1
A133: 13146 | B133: WARDEN | C133: =IFERROR(VLOOKUP(A133,'[2]Allocations 2023-24'!$B$9:$AC$326,20,FALSE),0) -> 34239 | D133: =IFERROR(VLOOKUP(A133,'[3]State Reservations'!$C$4:$AE$328,29,FALSE),0) -> 359533.342 | E133: =IFERROR(VLOOKUP(A133,[4]Sheet1!$A$3:$D$379,3,FALSE),0) -> 776395.3 | F133: =IFERROR(VLOOKUP(A133,[4]Sheet1!$A$3:$D$379,4,FALSE),0) -> 425041.38 | G133: =IFERROR(VLOOKUP(A133,'[5]2023-24 Final'!$B$19:$S$156,18,FALSE),0) -> 218485 | H133: 0.8795359099 | I133: =_xlfn.IFS(H133=0%,0,'other funds ftr 2023'!H133<Assumptions!$E$57,Assumptions!$B$57,'other funds ftr 2023'!H133<Assumptions!$E$58,Assumptions!$B$58,'other funds ftr 2023'!H133<=Assumptions!$E$59,Assumptions!$B$59,'other funds ftr 2023'!H133<=Assumptions!$E$60,Assumptions!$B$60) -> 1.1
A134: 34979 | B134: WASHINGTON MILITARY DEPARTMENT | C134: =IFERROR(VLOOKUP(A134,'[2]Allocations 2023-24'!$B$9:$AC$326,20,FALSE),0) -> 0 | D134: =IFERROR(VLOOKUP(A134,'[3]State Reservations'!$C$4:$AE$328,29,FALSE),0) -> 0 | E134: =IFERROR(VLOOKUP(A134,[4]Sheet1!$A$3:$D$379,3,FALSE),0) -> 0 | F134: =IFERROR(VLOOKUP(A134,[4]Sheet1!$A$3:$D$379,4,FALSE),0) -> 0 | G134: =IFERROR(VLOOKUP(A134,'[5]2023-24 Final'!$B$19:$S$156,18,FALSE),0) -> 0 | H134: 0 | I134: =_xlfn.IFS(H134=0%,0,'other funds ftr 2023'!H134<Assumptions!$E$57,Assumptions!$B$57,'other funds ftr 2023'!H134<Assumptions!$E$58,Assumptions!$B$58,'other funds ftr 2023'!H134<=Assumptions!$E$59,Assumptions!$B$59,'other funds ftr 2023'!H134<=Assumptions!$E$60,Assumptions!$B$60) -> 0
A135: 09209 | B135: WATERVILLE | C135: =IFERROR(VLOOKUP(A135,'[2]Allocations 2023-24'!$B$9:$AC$326,20,FALSE),0) -> 0 | D135: =IFERROR(VLOOKUP(A135,'[3]State Reservations'!$C$4:$AE$328,29,FALSE),0) -> 89743.33003 | E135: =IFERROR(VLOOKUP(A135,[4]Sheet1!$A$3:$D$379,3,FALSE),0) -> 115425.56 | F135: =IFERROR(VLOOKUP(A135,[4]Sheet1!$A$3:$D$379,4,FALSE),0) -> 32153.71 | G135: =IFERROR(VLOOKUP(A135,'[5]2023-24 Final'!$B$19:$S$156,18,FALSE),0) -> 14881 | H135: 0.9409960841 | I135: =_xlfn.IFS(H135=0%,0,'other funds ftr 2023'!H135<Assumptions!$E$57,Assumptions!$B$57,'other funds ftr 2023'!H135<Assumptions!$E$58,Assumptions!$B$58,'other funds ftr 2023'!H135<=Assumptions!$E$59,Assumptions!$B$59,'other funds ftr 2023'!H135<=Assumptions!$E$60,Assumptions!$B$60) -> 1.05
A136: 33049 | B136: WELLPINIT | C136: =IFERROR(VLOOKUP(A136,'[2]Allocations 2023-24'!$B$9:$AC$326,20,FALSE),0) -> 18108 | D136: =IFERROR(VLOOKUP(A136,'[3]State Reservations'!$C$4:$AE$328,29,FALSE),0) -> 184634.9535 | E136: =IFERROR(VLOOKUP(A136,[4]Sheet1!$A$3:$D$379,3,FALSE),0) -> 340874.22 | F136: =IFERROR(VLOOKUP(A136,[4]Sheet1!$A$3:$D$379,4,FALSE),0) -> 0 | G136: =IFERROR(VLOOKUP(A136,'[5]2023-24 Final'!$B$19:$S$156,18,FALSE),0) -> 74331 | H136: 0.8797132135 | I136: =_xlfn.IFS(H136=0%,0,'other funds ftr 2023'!H136<Assumptions!$E$57,Assumptions!$B$57,'other funds ftr 2023'!H136<Assumptions!$E$58,Assumptions!$B$58,'other funds ftr 2023'!H136<=Assumptions!$E$59,Assumptions!$B$59,'other funds ftr 2023'!H136<=Assumptions!$E$60,Assumptions!$B$60) -> 1.1
A137: 04246 | B137: WENATCHEE | C137: =IFERROR(VLOOKUP(A137,'[2]Allocations 2023-24'!$B$9:$AC$326,20,FALSE),0) -> 223580 | D137: =IFERROR(VLOOKUP(A137,'[3]State Reservations'!$C$4:$AE$328,29,FALSE),0) -> 2274377.953 | E137: =IFERROR(VLOOKUP(A137,[4]Sheet1!$A$3:$D$379,3,FALSE),0) -> 4701509.97 | F137: =IFERROR(VLOOKUP(A137,[4]Sheet1!$A$3:$D$379,4,FALSE),0) -> 2553039.12 | G137: =IFERROR(VLOOKUP(A137,'[5]2023-24 Final'!$B$19:$S$156,18,FALSE),0) -> 1269609 | H137: 0.88481259 | I137: =_xlfn.IFS(H137=0%,0,'other funds ftr 2023'!H137<Assumptions!$E$57,Assumptions!$B$57,'other funds ftr 2023'!H137<Assumptions!$E$58,Assumptions!$B$58,'other funds ftr 2023'!H137<=Assumptions!$E$59,Assumptions!$B$59,'other funds ftr 2023'!H137<=Assumptions!$E$60,Assumptions!$B$60) -> 1.1
A138: 39208 | B138: WEST VALLEY (YAKIMA) | C138: =IFERROR(VLOOKUP(A138,'[2]Allocations 2023-24'!$B$9:$AC$326,20,FALSE),0) -> 66429 | D138: =IFERROR(VLOOKUP(A138,'[3]State Reservations'!$C$4:$AE$328,29,FALSE),0) -> 1198212.926 | E138: =IFERROR(VLOOKUP(A138,[4]Sheet1!$A$3:$D$379,3,FALSE),0) -> 2316654.03 | F138: =IFERROR(VLOOKUP(A138,[4]Sheet1!$A$3:$D$379,4,FALSE),0) -> 800584.43 | G138: =IFERROR(VLOOKUP(A138,'[5]2023-24 Final'!$B$19:$S$156,18,FALSE),0) -> 118030 | H138: 0.9737705888 | I138: =_xlfn.IFS(H138=0%,0,'other funds ftr 2023'!H138<Assumptions!$E$57,Assumptions!$B$57,'other funds ftr 2023'!H138<Assumptions!$E$58,Assumptions!$B$58,'other funds ftr 2023'!H138<=Assumptions!$E$59,Assumptions!$B$59,'other funds ftr 2023'!H138<=Assumptions!$E$60,Assumptions!$B$60) -> 1
A139: 21303 | B139: WHITE PASS | C139: =IFERROR(VLOOKUP(A139,'[2]Allocations 2023-24'!$B$9:$AC$326,20,FALSE),0) -> 0 | D139: =IFERROR(VLOOKUP(A139,'[3]State Reservations'!$C$4:$AE$328,29,FALSE),0) -> 239871.5436 | E139: =IFERROR(VLOOKUP(A139,[4]Sheet1!$A$3:$D$379,3,FALSE),0) -> 272096.79 | F139: =IFERROR(VLOOKUP(A139,[4]Sheet1!$A$3:$D$379,4,FALSE),0) -> 0 | G139: =IFERROR(VLOOKUP(A139,'[5]2023-24 Final'!$B$19:$S$156,18,FALSE),0) -> 0 | H139: 0 | I139: =_xlfn.IFS(H139=0%,0,'other funds ftr 2023'!H139<Assumptions!$E$57,Assumptions!$B$57,'other funds ftr 2023'!H139<Assumptions!$E$58,Assumptions!$B$58,'other funds ftr 2023'!H139<=Assumptions!$E$59,Assumptions!$B$59,'other funds ftr 2023'!H139<=Assumptions!$E$60,Assumptions!$B$60) -> 0
A140: 20405 | B140: WHITE SALMON VALLEY | C140: =IFERROR(VLOOKUP(A140,'[2]Allocations 2023-24'!$B$9:$AC$326,20,FALSE),0) -> 25347 | D140: =IFERROR(VLOOKUP(A140,'[3]State Reservations'!$C$4:$AE$328,29,FALSE),0) -> 252416.768 | E140: =IFERROR(VLOOKUP(A140,[4]Sheet1!$A$3:$D$379,3,FALSE),0) -> 349456.32 | F140: =IFERROR(VLOOKUP(A140,[4]Sheet1!$A$3:$D$379,4,FALSE),0) -> 287050.26 | G140: =IFERROR(VLOOKUP(A140,'[5]2023-24 Final'!$B$19:$S$156,18,FALSE),0) -> 0 | H140: 0 | I140: =_xlfn.IFS(H140=0%,0,'other funds ftr 2023'!H140<Assumptions!$E$57,Assumptions!$B$57,'other funds ftr 2023'!H140<Assumptions!$E$58,Assumptions!$B$58,'other funds ftr 2023'!H140<=Assumptions!$E$59,Assumptions!$B$59,'other funds ftr 2023'!H140<=Assumptions!$E$60,Assumptions!$B$60) -> 0
A141: 21232 | B141: WINLOCK | C141: =IFERROR(VLOOKUP(A141,'[2]Allocations 2023-24'!$B$9:$AC$326,20,FALSE),0) -> 0 | D141: =IFERROR(VLOOKUP(A141,'[3]State Reservations'!$C$4:$AE$328,29,FALSE),0) -> 235114.0629 | E141: =IFERROR(VLOOKUP(A141,[4]Sheet1!$A$3:$D$379,3,FALSE),0) -> 639969.11 | F141: =IFERROR(VLOOKUP(A141,[4]Sheet1!$A$3:$D$379,4,FALSE),0) -> 70094.05 | G141: =IFERROR(VLOOKUP(A141,'[5]2023-24 Final'!$B$19:$S$156,18,FALSE),0) -> 0 | H141: 0 | I141: =_xlfn.IFS(H141=0%,0,'other funds ftr 2023'!H141<Assumptions!$E$57,Assumptions!$B$57,'other funds ftr 2023'!H141<Assumptions!$E$58,Assumptions!$B$58,'other funds ftr 2023'!H141<=Assumptions!$E$59,Assumptions!$B$59,'other funds ftr 2023'!H141<=Assumptions!$E$60,Assumptions!$B$60) -> 0
A142: 20094 | B142: WISHRAM | C142: =IFERROR(VLOOKUP(A142,'[2]Allocations 2023-24'!$B$9:$AC$326,20,FALSE),0) -> 0 | D142: =IFERROR(VLOOKUP(A142,'[3]State Reservations'!$C$4:$AE$328,29,FALSE),0) -> 35263.75662 | E142: =IFERROR(VLOOKUP(A142,[4]Sheet1!$A$3:$D$379,3,FALSE),0) -> 62336.03 | F142: =IFERROR(VLOOKUP(A142,[4]Sheet1!$A$3:$D$379,4,FALSE),0) -> 0 | G142: =IFERROR(VLOOKUP(A142,'[5]2023-24 Final'!$B$19:$S$156,18,FALSE),0) -> 0 | H142: 0 | I142: =_xlfn.IFS(H142=0%,0,'other funds ftr 2023'!H142<Assumptions!$E$57,Assumptions!$B$57,'other funds ftr 2023'!H142<Assumptions!$E$58,Assumptions!$B$58,'other funds ftr 2023'!H142<=Assumptions!$E$59,Assumptions!$B$59,'other funds ftr 2023'!H142<=Assumptions!$E$60,Assumptions!$B$60) -> 0
A143: 08404 | B143: WOODLAND | C143: =IFERROR(VLOOKUP(A143,'[2]Allocations 2023-24'!$B$9:$AC$326,20,FALSE),0) -> 27740 | D143: =IFERROR(VLOOKUP(A143,'[3]State Reservations'!$C$4:$AE$328,29,FALSE),0) -> 409407.6847 | E143: =IFERROR(VLOOKUP(A143,[4]Sheet1!$A$3:$D$379,3,FALSE),0) -> 797485.7 | F143: =IFERROR(VLOOKUP(A143,[4]Sheet1!$A$3:$D$379,4,FALSE),0) -> 310206.7 | G143: =IFERROR(VLOOKUP(A143,'[5]2023-24 Final'!$B$19:$S$156,18,FALSE),0) -> 0 | H143: 0 | I143: =_xlfn.IFS(H143=0%,0,'other funds ftr 2023'!H143<Assumptions!$E$57,Assumptions!$B$57,'other funds ftr 2023'!H143<Assumptions!$E$58,Assumptions!$B$58,'other funds ftr 2023'!H143<=Assumptions!$E$59,Assumptions!$B$59,'other funds ftr 2023'!H143<=Assumptions!$E$60,Assumptions!$B$60) -> 0
A144: 39901 | B144: YAKAMA NATION TRIBAL COMPACT | C144: =IFERROR(VLOOKUP(A144,'[2]Allocations 2023-24'!$B$9:$AC$326,20,FALSE),0) -> 0 | D144: =IFERROR(VLOOKUP(A144,'[3]State Reservations'!$C$4:$AE$328,29,FALSE),0) -> 0 | E144: =IFERROR(VLOOKUP(A144,[4]Sheet1!$A$3:$D$379,3,FALSE),0) -> 0 | F144: =IFERROR(VLOOKUP(A144,[4]Sheet1!$A$3:$D$379,4,FALSE),0) -> 0 | G144: =IFERROR(VLOOKUP(A144,'[5]2023-24 Final'!$B$19:$S$156,18,FALSE),0) -> 0 | H144: 0 | I144: =_xlfn.IFS(H144=0%,0,'other funds ftr 2023'!H144<Assumptions!$E$57,Assumptions!$B$57,'other funds ftr 2023'!H144<Assumptions!$E$58,Assumptions!$B$58,'other funds ftr 2023'!H144<=Assumptions!$E$59,Assumptions!$B$59,'other funds ftr 2023'!H144<=Assumptions!$E$60,Assumptions!$B$60) -> 0
A145: 39007 | B145: YAKIMA | C145: =IFERROR(VLOOKUP(A145,'[2]Allocations 2023-24'!$B$9:$AC$326,20,FALSE),0) -> 642341 | D145: =IFERROR(VLOOKUP(A145,'[3]State Reservations'!$C$4:$AE$328,29,FALSE),0) -> 9350067.647 | E145: =IFERROR(VLOOKUP(A145,[4]Sheet1!$A$3:$D$379,3,FALSE),0) -> 13193006.08 | F145: =IFERROR(VLOOKUP(A145,[4]Sheet1!$A$3:$D$379,4,FALSE),0) -> 7594194.9 | G145: =IFERROR(VLOOKUP(A145,'[5]2023-24 Final'!$B$19:$S$156,18,FALSE),0) -> 0 | H145: 0 | I145: =_xlfn.IFS(H145=0%,0,'other funds ftr 2023'!H145<Assumptions!$E$57,Assumptions!$B$57,'other funds ftr 2023'!H145<Assumptions!$E$58,Assumptions!$B$58,'other funds ftr 2023'!H145<=Assumptions!$E$59,Assumptions!$B$59,'other funds ftr 2023'!H145<=Assumptions!$E$60,Assumptions!$B$60) -> 0
A146: 34002 | B146: YELM | C146: =IFERROR(VLOOKUP(A146,'[2]Allocations 2023-24'!$B$9:$AC$326,20,FALSE),0) -> 24548 | D146: =IFERROR(VLOOKUP(A146,'[3]State Reservations'!$C$4:$AE$328,29,FALSE),0) -> 1165031.778 | E146: =IFERROR(VLOOKUP(A146,[4]Sheet1!$A$3:$D$379,3,FALSE),0) -> 2017922.26 | F146: =IFERROR(VLOOKUP(A146,[4]Sheet1!$A$3:$D$379,4,FALSE),0) -> 348640.1 | G146: =IFERROR(VLOOKUP(A146,'[5]2023-24 Final'!$B$19:$S$156,18,FALSE),0) -> 0 | H146: 0 | I146: =_xlfn.IFS(H146=0%,0,'other funds ftr 2023'!H146<Assumptions!$E$57,Assumptions!$B$57,'other funds ftr 2023'!H146<Assumptions!$E$58,Assumptions!$B$58,'other funds ftr 2023'!H146<=Assumptions!$E$59,Assumptions!$B$59,'other funds ftr 2023'!H146<=Assumptions!$E$60,Assumptions!$B$60) -> 0
A147: 39205 | B147: ZILLAH | C147: =IFERROR(VLOOKUP(A147,'[2]Allocations 2023-24'!$B$9:$AC$326,20,FALSE),0) -> 21865 | D147: =IFERROR(VLOOKUP(A147,'[3]State Reservations'!$C$4:$AE$328,29,FALSE),0) -> 330710.7847 | E147: =IFERROR(VLOOKUP(A147,[4]Sheet1!$A$3:$D$379,3,FALSE),0) -> 978260.17 | F147: =IFERROR(VLOOKUP(A147,[4]Sheet1!$A$3:$D$379,4,FALSE),0) -> 282850.53 | G147: =IFERROR(VLOOKUP(A147,'[5]2023-24 Final'!$B$19:$S$156,18,FALSE),0) -> 0 | H147: 0 | I147: =_xlfn.IFS(H147=0%,0,'other funds ftr 2023'!H147<Assumptions!$E$57,Assumptions!$B$57,'other funds ftr 2023'!H147<Assumptions!$E$58,Assumptions!$B$58,'other funds ftr 2023'!H147<=Assumptions!$E$59,Assumptions!$B$59,'other funds ftr 2023'!H147<=Assumptions!$E$60,Assumptions!$B$60) -> 0

Sheet CCDDD (hidden)
A1: 14005 | B1: ABERDEEN | C1: =A1 -> 14005
A2: 29103 | B2: ANACORTES | C2: =A2 -> 29103
A3: 31016 | B3: ARLINGTON | C3: 31016
A4: 17408 | B4: AUBURN | C4: 17408
A5: 06119 | B5: BATTLE GROUND | C5: 06119
A6: 17405 | B6: BELLEVUE | C6: 17405
A7: 37501 | B7: BELLINGHAM | C7: 37501
A8: 27403 | B8: BETHEL | C8: 27403
A9: 37503 | B9: BLAINE | C9: 37503
A10: 18100 | B10: BREMERTON | C10: 18100
A11: 24111 | B11: BREWSTER | C11: 24111
A12: 09075 | B12: BRIDGEPORT | C12: 09075
A13: 29100 | B13: BURLINGTON | C13: 29100
A14: 06117 | B14: CAMAS | C14: 06117
A15: 04228 | B15: CASCADE | C15: 04228
A16: 04222 | B16: CASHMERE | C16: 04222
A17: 32356 | B17: CENTRAL VALLEY | C17: 32356
A18: 21401 | B18: CENTRALIA | C18: 21401
A19: 21302 | B19: CHEHALIS | C19: 21302
A20: 16049 | B20: CHIMACUM | C20: 16049
A21: 19404 | B21: CLE ELUM | C21: 19404
A22: 27400 | B22: CLOVER PARK | C22: 27400
A23: 36250 | B23: COLLEGE PLACE | C23: 36250
A24: 36400 | B24: COLUMBIA | C24: 36400
A25: 29317 | B25: CONWAY | C25: 29317
A26: 15204 | B26: COUPEVILLE | C26: 15204
A27: 39090 | B27: EAST VALLEY | C27: 39090
A28: 09206 | B28: EASTMONT | C28: 09206
A29: 31015 | B29: EDMONDS | C29: 31015
A30: 19401 | B30: ELLENSBURG | C30: 19401
A31: 14068 | B31: ELMA | C31: 14068
A32: 04127 | B32: ENTIAT | C32: 04127
A33: 17216 | B33: ENUMCLAW | C33: 17216
A34: 13165 | B34: EPHRATA | C34: 13165
A35: 31002 | B35: EVERETT | C35: 31002
A36: 06114 | B36: EVERGREEN | C36: 06114
A37: 17210 | B37: FEDERAL WAY | C37: 17210
A38: 37502 | B38: FERNDALE | C38: 37502
A39: 27417 | B39: FIFE | C39: 27417
A40: 03053 | B40: FINLEY | C40: 03053
A41: 27402 | B41: FRANKLIN PIERCE | C41: 27402
A42: 20404 | B42: GOLDENDALE | C42: 20404
A43: 13301 | B43: GRAND COULEE DAM | C43: 13301
A44: 39200 | B44: GRANDVIEW | C44: 39200
A45: 39204 | B45: GRANGER | C45: 39204
A46: 39203 | B46: HIGHLAND | C46: 39203
A47: 17401 | B47: HIGHLINE | C47: 17401
A48: 23404 | B48: HOOD CANAL | C48: 23404
A49: 14028 | B49: HOQUIAM | C49: 14028
A50: 11056 | B50: KAHLOTUS | C50: 11056
A51: 08458 | B51: KELSO | C51: 08458
A52: 03017 | B52: KENNEWICK | C52: 03017
A53: 17415 | B53: KENT | C53: 17415
A54: 03052 | B54: KIONA BENTON | C54: 03052
A55: 19403 | B55: KITTITAS | C55: 19403
A56: 06101 | B56: LA CENTER | C56: 06101
A57: 29311 | B57: LA CONNER | C57: 29311
A58: 04129 | B58: LAKE CHELAN | C58: 04129
A59: 34307 | B59: LAKE QUINAULT | C59: 34307
A60: 17414 | B60: LAKE WASHINGTON | C60: 17414
A61: 31306 | B61: LAKEWOOD | C61: 31306
A62: 01158 | B62: LIND | C62: 01158
A63: 08122 | B63: LONGVIEW | C63: 08122
A64: 28144 | B64: LOPEZ ISLAND | C64: 28144
A65: 20406 | B65: LYLE | C65: 20406
A66: 37504 | B66: LYNDEN | C66: =A66 -> 37504
A67: 39120 | B67: MABTON | C67: 39120
A68: 04019 | B68: MANSON | C68: 04019
A69: 31025 | B69: MARYSVILLE | C69: 31025
A70: 37505 | B70: MERIDIAN | C70: 37505
A71: 31103 | B71: MONROE | C71: 31103
A72: 14066 | B72: MONTESANO | C72: 14066
A73: 13161 | B73: MOSES LAKE | C73: 13161
A74: 21206 | B74: MOSSYROCK | C74: 21206
A75: 29320 | B75: MOUNT VERNON | C75: 29320
A76: 39209 | B76: MT ADAMS | C76: 39209
A77: 37507 | B77: MT BAKER | C77: 37507
A78: 31006 | B78: MUKILTEO | C78: 31006
A79: 39003 | B79: NACHES | C79: 39003
A80: 25155 | B80: NASELLE-GRAYS RIVER | C80: 25155
A81: 24014 | B81: NESPELEM | C81: 24014
A82: 37506 | B82: NOOKSACK VALLEY | C82: 37506
A83: 14064 | B83: NORTH BEACH | C83: 14064
A84: 11051 | B84: NORTH FRANKLIN | C84: 11051
A85: 18400 | B85: NORTH KITSAP | C85: 18400
A86: 34003 | B86: NORTH THURSTON | C86: 34003
A87: 17417 | B87: NORTHSHORE | C87: 17417
A88: 15201 | B88: OAK HARBOR | C88: 15201
A89: 25101 | B89: OCEAN BEACH | C89: 25101
A90: 14172 | B90: OCOSTA | C90: 14172
A91: 24105 | B91: OKANOGAN | C91: 24105
A92: 34111 | B92: OLYMPIA | C92: 34111
A93: 24019 | B93: OMAK | C93: 24019
A94: 09013 | B94: ORONDO | C94: 09013
A95: 24410 | B95: OROVILLE | C95: 24410
A96: 01147 | B96: OTHELLO | C96: 01147
A97: 09102 | B97: PALISADES | C97: 09102
A98: 11001 | B98: PASCO | C98: 11001
A99: 24122 | B99: PATEROS | C99: 24122
A100: 03050 | B100: PATERSON | C100: 03050
A101: 23402 | B101: PIONEER | C101: 23402
A102: 12110 | B102: POMEROY | C102: 12110
A103: 05121 | B103: PORT ANGELES | C103: 05121
A104: 16050 | B104: PORT TOWNSEND | C104: 16050
A105: 36402 | B105: PRESCOTT | C105: 36402
A106: 03116 | B106: PROSSER | C106: 03116
A107: 27003 | B107: PUYALLUP | C107: 27003
A108: 05402 | B108: QUILLAYUTE VALLEY | C108: 05402
A109: 13144 | B109: QUINCY | C109: 13144
A110: 25116 | B110: RAYMOND | C110: 25116
A111: 17403 | B111: RENTON | C111: 17403
A112: 03400 | B112: RICHLAND | C112: 03400
A113: 06122 | B113: RIDGEFIELD | C113: 06122
A114: 17407 | B114: RIVERVIEW | C114: 17407
A115: 34401 | B115: ROCHESTER | C115: 34401
A116: 20403 | B116: ROOSEVELT | C116: 20403
A117: 13160 | B117: ROYAL CITY | C117: 13160
A118: 28149 | B118: SAN JUAN ISLAND | C118: 28149
A119: 14104 | B119: SATSOP | C119: 14104
A120: 17001 | B120: SEATTLE | C120: 17001
A121: 29101 | B121: SEDRO WOOLLEY | C121: 29101
A122: 39119 | B122: SELAH | C122: 39119
A123: 05323 | B123: SEQUIM | C123: 05323
A124: 23309 | B124: SHELTON | C124: 23309
A125: 31201 | B125: SNOHOMISH | C125: 31201
A126: 17410 | B126: SNOQUALMIE VALLEY | C126: 17410
A127: 13156 | B127: SOAP LAKE | C127: 13156
A128: 25118 | B128: SOUTH BEND | C128: 25118
A129: 23042 | B129: SOUTHSIDE | C129: 23042
A130: 32081 | B130: SPOKANE | C130: =A130 -> 32081
A131: 31401 | B131: STANWOOD | C131: 31401
A132: 11054 | B132: STAR | C132: 11054
A133: 31311 | B133: SULTAN | C133: 31311
A134: 27320 | B134: SUMNER | C134: 27320
A135: 39201 | B135: SUNNYSIDE | C135: 39201
A136: 27010 | B136: TACOMA | C136: 27010
A137: 34402 | B137: TENINO | C137: 34402
A138: 19400 | B138: THORP | C138: 19400
A139: 24404 | B139: TONASKET | C139: 24404
A140: 39202 | B140: TOPPENISH | C140: 39202
A141: 36300 | B141: TOUCHET | C141: 36300
A142: 20400 | B142: TROUT LAKE | C142: 20400
A143: 17406 | B143: TUKWILA | C143: 17406
A144: 34033 | B144: TUMWATER | C144: 34033
A145: 39002 | B145: UNION GAP | C145: 39002
A146: 06037 | B146: VANCOUVER | C146: 06037
A147: 35200 | B147: WAHKIAKUM | C147: 35200
A148: 13073 | B148: WAHLUKE | C148: 13073
A149: 36140 | B149: WALLA WALLA | C149: 36140
A150: 39207 | B150: WAPATO | C150: 39207
A151: 13146 | B151: WARDEN | C151: 13146
A152: 09209 | B152: WATERVILLE | C152: 09209
A153: 04246 | B153: WENATCHEE | C153: 04246
A154: 39208 | B154: WEST VALLEY | C154: 39208
A155: 21303 | B155: WHITE PASS | C155: 21303
A156: 27416 | B156: WHITE RIVER | C156: 27416
A157: 20405 | B157: WHITE SALMON | C157: 20405
A158: 21232 | B158: WINLOCK | C158: 21232
A159: 20094 | B159: WISHRAM | C159: 20094
A160: 08404 | B160: WOODLAND | C160: 08404
A161: 39007 | B161: YAKIMA | C161: 39007
A162: 34002 | B162: YELM | C162: 34002
A163: 39205 | B163: ZILLAH | C163: 39205

Sheet 2023-24 Final (hidden)
J1: From Assumptions Page:
D2: Constant Dollar Multipliers - Do Not Change Here | J2: Target Amounts | O2: =[5]Assumptions!C24 -> 21091065
D3: 0 | F3: 2.036969198e+66 | G3: 397.8767041 | H3: Use CTRL K | J3: Actual Amounts | O3: =O18 -> 21091064
J4: Difference | O4: =O3-O2 -> -1
J6: =O18 -> 21091064
H7: Put total here | J7: =[5]Assumptions!C24 -> 21091065
J10: Go to H9 & Control K to set dollar amount
E14: Migrant Students | V14: Accepting Funding? | X14: HOLD HARMLESS
D15: =G3 -> 397.8767041 | E15: K-12 | G15: Needs Support | I15: Priority Interuption | S15: =S18 -> 21091064
C16: CCDDD | D16: District | E16: Ave. number | F16: Regular Dollars | G16: Ave. number | H16: Regular Dollars | I16: Priority Number | J16: Priority Dollars | K16: Subtotal | L16: Other Funds Factor | M16: Subtotal 2 | N16: Add'l Rural Factor | O16: Total Allocated Amount | Q16: MOE | R16: MOE Red. | S16: Subtotal After MOE | V16: Y for yes, N for no (reallocates money) | X16: Override funding? Y for yes, otherwise blank. | Y16: Health Support Grant | Z16: Total
E17: 10 | F17: =F18/E18 -> 397.8766552 | G17: 0.25 | H17: =H18/G18 -> 102.060097 | I17: 1 | J17: =J18/I18 -> 400.3783277 | N17: 0.1 | O17: 124
A18: 0 | C18: 99999 | D18: State Total | E18: =SUMIF(E19:E164,">-10") -> 31643 | F18: =SUM(F19:F164) -> 12590011 | G18: =SUMIF(G19:G164,">=10") -> 8869 | H18: =SUM(H19:H164) -> 905171 | I18: =SUMIF(I19:I164,">=10") -> 19721 | J18: =SUM(J19:J164) -> 7895861 | K18: =SUM(K19:K164) -> 21391043 | M18: =SUM(M19:M164) -> 22231673 | O18: =SUM(O19:O164) -> 21091064 | R18: =SUM(R19:R152) -> 0 | S18: =SUM(S19:S164) -> 21091064 | T18: Previous Year Final Allocations | U18: Allocation Difference | W18: Consortia | Y18: =SUM(Y19:Y164) -> 212500 | Z18: =SUM(Z19:Z164) -> 21014050
A19: 1 | B19: 14005 | D19: ABERDEEN | E19: =IFERROR(VLOOKUP(B19,[5]Enrollment!$A$1:$F$147,4,FALSE),0) -> 114 | F19: =IF(E19>=10,ROUND(E19*$G$3,0),0) -> 45358 | G19: =IFERROR(VLOOKUP(B19,[5]Enrollment!$A$1:$F$147,6,FALSE),0) -> 38 | H19: =IF(E19>=$E$17,ROUND(G19*$G$3*$G$17,0),0) -> 3780 | I19: =IFERROR(VLOOKUP(B19,[5]Enrollment!$A$1:$F$147,5,FALSE),0) -> 58 | J19: =IF(E19>=$E$17,ROUND(I19*$G$3*$I$17,0),0) -> 23077 | K19: =+F19+H19+J19 -> 72215 | L19: =IF(E19>$E$17,_xlfn.IFNA(VLOOKUP(B19,'[5]other funds ftr 2023'!A:I,9,FALSE),0),1) -> 0.85 | M19: =IF(L19=0,K19,ROUND(K19*L19,0)) -> 61383 | N19: =1+IF(ISNA(VLOOKUP(B19,'[5]Rural and Low Income 23-24'!$A:$B,2,FALSE)),0,$N$17) -> 1.1 | O19: =IF(V19="y",ROUND(M19*N19,0),0) -> 67521 | R19: =ROUND(IF(Q19>0,-(0.9-Q19)*O19,0),0) -> 0 | S19: =O19+R19 -> 67521 | T19: 80840 | U19: =S19-T19 -> -13319 | V19: =IF(ISNA(VLOOKUP(B19,[6]Sheet1!$B$1:$D$96,1,FALSE)),"N","Y") -> Y | Y19: =IF(V19="Y",IF(E19<=99,1500,IF(AND(E19>=100,E19<=399),2500,4000)),0) -> 2500 | Z19: =IF(W19=1, 0, Y19+S19) -> 70021
A20: 2 | B20: 29103 | D20: ANACORTES | E20: =IFERROR(VLOOKUP(B20,[5]Enrollment!$A$1:$F$147,4,FALSE),0) -> 11 | F20: =IF(E20>=10,ROUND(E20*$G$3,0),0) -> 4377 | G20: =IFERROR(VLOOKUP(B20,[5]Enrollment!$A$1:$F$147,6,FALSE),0) -> 0 | H20: =IF(E20>=$E$17,ROUND(G20*$G$3*$G$17,0),0) -> 0 | I20: =IFERROR(VLOOKUP(B20,[5]Enrollment!$A$1:$F$147,5,FALSE),0) -> 10 | J20: =IF(E20>=$E$17,ROUND(I20*$G$3*$I$17,0),0) -> 3979 | K20: 8356 | L20: =IF(E20>$E$17,_xlfn.IFNA(VLOOKUP(B20,'[5]other funds ftr 2023'!A:I,9,FALSE),0),1) -> 0 | M20: 8356 | N20: =1+IF(ISNA(VLOOKUP(B20,'[5]Rural and Low Income 23-24'!$A:$B,2,FALSE)),0,$N$17) -> 1 | O20: 8356 | R20: 0 | S20: 8356 | T20: 0 | U20: 8356 | V20: =IF(ISNA(VLOOKUP(B20,[6]Sheet1!$B$1:$D$96,1,FALSE)),"N","Y") -> Y | Y20: =IF(V20="Y",IF(E20<=99,1500,IF(AND(E20>=100,E20<=399),2500,4000)),0) -> 1500 | Z20: =IF(W20=1, 0, Y20+S20) -> 9856
A21: 3 | B21: 31016 | D21: ARLINGTON | E21: =IFERROR(VLOOKUP(B21,[5]Enrollment!$A$1:$F$147,4,FALSE),0) -> 41 | F21: 16313 | G21: =IFERROR(VLOOKUP(B21,[5]Enrollment!$A$1:$F$147,6,FALSE),0) -> 12 | H21: 1194 | I21: =IFERROR(VLOOKUP(B21,[5]Enrollment!$A$1:$F$147,5,FALSE),0) -> 26 | J21: 10345 | K21: 27852 | L21: =IF(E21>$E$17,_xlfn.IFNA(VLOOKUP(B21,'[5]other funds ftr 2023'!A:I,9,FALSE),0),1) -> 0 | M21: 27852 | N21: =1+IF(ISNA(VLOOKUP(B21,'[5]Rural and Low Income 23-24'!$A:$B,2,FALSE)),0,$N$17) -> 1 | O21: 0 | R21: 0 | S21: 0 | T21: 0 | U21: 0 | V21: =IF(ISNA(VLOOKUP(B21,[6]Sheet1!$B$1:$D$96,1,FALSE)),"N","Y") -> N | Y21: 0 | Z21: 0
A22: 4 | B22: 17408 | D22: AUBURN | E22: =IFERROR(VLOOKUP(B22,[5]Enrollment!$A$1:$F$147,4,FALSE),0) -> 37 | F22: 14721 | G22: =IFERROR(VLOOKUP(B22,[5]Enrollment!$A$1:$F$147,6,FALSE),0) -> 6 | H22: 597 | I22: =IFERROR(VLOOKUP(B22,[5]Enrollment!$A$1:$F$147,5,FALSE),0) -> 28 | J22: 11141 | K22: 26459 | L22: =IF(E22>$E$17,_xlfn.IFNA(VLOOKUP(B22,'[5]other funds ftr 2023'!A:I,9,FALSE),0),1) -> 0 | M22: 26459 | N22: =1+IF(ISNA(VLOOKUP(B22,'[5]Rural and Low Income 23-24'!$A:$B,2,FALSE)),0,$N$17) -> 1 | O22: 26459 | R22: 0 | S22: 26459 | T22: 0 | U22: 26459 | V22: =IF(ISNA(VLOOKUP(B22,[6]Sheet1!$B$1:$D$96,1,FALSE)),"N","Y") -> Y | Y22: 1500 | Z22: 27959
A23: 5 | B23: 06119 | D23: BATTLE GROUND | E23: =IFERROR(VLOOKUP(B23,[5]Enrollment!$A$1:$F$147,4,FALSE),0) -> 23 | F23: 9151 | G23: =IFERROR(VLOOKUP(B23,[5]Enrollment!$A$1:$F$147,6,FALSE),0) -> 0 | H23: 0 | I23: =IFERROR(VLOOKUP(B23,[5]Enrollment!$A$1:$F$147,5,FALSE),0) -> 21 | J23: 8355 | K23: 17506 | L23: =IF(E23>$E$17,_xlfn.IFNA(VLOOKUP(B23,'[5]other funds ftr 2023'!A:I,9,FALSE),0),1) -> 0 | M23: 17506 | N23: =1+IF(ISNA(VLOOKUP(B23,'[5]Rural and Low Income 23-24'!$A:$B,2,FALSE)),0,$N$17) -> 1 | O23: 0 | R23: 0 | S23: 0 | T23: 0 | U23: 0 | V23: =IF(ISNA(VLOOKUP(B23,[6]Sheet1!$B$1:$D$96,1,FALSE)),"N","Y") -> N | Y23: 0 | Z23: 0
A24: 6 | B24: 37501 | D24: BELLINGHAM | E24: =IFERROR(VLOOKUP(B24,[5]Enrollment!$A$1:$F$147,4,FALSE),0) -> 128 | F24: 50928 | G24: =IFERROR(VLOOKUP(B24,[5]Enrollment!$A$1:$F$147,6,FALSE),0) -> 43 | H24: 4277 | I24: =IFERROR(VLOOKUP(B24,[5]Enrollment!$A$1:$F$147,5,FALSE),0) -> 70 | J24: 27851 | K24: 83056 | L24: =IF(E24>$E$17,_xlfn.IFNA(VLOOKUP(B24,'[5]other funds ftr 2023'!A:I,9,FALSE),0),1) -> 0 | M24: 83056 | N24: =1+IF(ISNA(VLOOKUP(B24,'[5]Rural and Low Income 23-24'!$A:$B,2,FALSE)),0,$N$17) -> 1 | O24: 83056 | R24: 0 | S24: 83056 | T24: 0 | U24: 83056 | V24: =IF(ISNA(VLOOKUP(B24,[6]Sheet1!$B$1:$D$96,1,FALSE)),"N","Y") -> Y | Y24: 2500 | Z24: 85556
A25: 7 | B25: 27403 | D25: BETHEL | E25: =IFERROR(VLOOKUP(B25,[5]Enrollment!$A$1:$F$147,4,FALSE),0) -> 16 | F25: 6366 | G25: =IFERROR(VLOOKUP(B25,[5]Enrollment!$A$1:$F$147,6,FALSE),0) -> 2 | H25: 199 | I25: =IFERROR(VLOOKUP(B25,[5]Enrollment!$A$1:$F$147,5,FALSE),0) -> 13 | J25: 5172 | K25: 11737 | L25: =IF(E25>$E$17,_xlfn.IFNA(VLOOKUP(B25,'[5]other funds ftr 2023'!A:I,9,FALSE),0),1) -> 0 | M25: 11737 | N25: =1+IF(ISNA(VLOOKUP(B25,'[5]Rural and Low Income 23-24'!$A:$B,2,FALSE)),0,$N$17) -> 1 | O25: 0 | R25: 0 | S25: 0 | T25: 0 | U25: 0 | V25: =IF(ISNA(VLOOKUP(B25,[6]Sheet1!$B$1:$D$96,1,FALSE)),"N","Y") -> N | Y25: 0 | Z25: 0
A26: 8 | B26: 18100 | D26: BREMERTON | E26: =IFERROR(VLOOKUP(B26,[5]Enrollment!$A$1:$F$147,4,FALSE),0) -> 61 | F26: 24270 | G26: =IFERROR(VLOOKUP(B26,[5]Enrollment!$A$1:$F$147,6,FALSE),0) -> 13 | H26: 1293 | I26: =IFERROR(VLOOKUP(B26,[5]Enrollment!$A$1:$F$147,5,FALSE),0) -> 38 | J26: 15119 | K26: 40682 | L26: =IF(E26>$E$17,_xlfn.IFNA(VLOOKUP(B26,'[5]other funds ftr 2023'!A:I,9,FALSE),0),1) -> 0.85 | M26: 34580 | N26: =1+IF(ISNA(VLOOKUP(B26,'[5]Rural and Low Income 23-24'!$A:$B,2,FALSE)),0,$N$17) -> 1 | O26: 34580 | R26: 0 | S26: 34580 | T26: 45790 | U26: -11210 | V26: =IF(ISNA(VLOOKUP(B26,[6]Sheet1!$B$1:$D$96,1,FALSE)),"N","Y") -> Y | Y26: 1500 | Z26: 36080
A27: 9 | B27: 24111 | D27: BREWSTER | E27: =IFERROR(VLOOKUP(B27,[5]Enrollment!$A$1:$F$147,4,FALSE),0) -> 237 | F27: 94297 | G27: =IFERROR(VLOOKUP(B27,[5]Enrollment!$A$1:$F$147,6,FALSE),0) -> 43 | H27: 4277 | I27: =IFERROR(VLOOKUP(B27,[5]Enrollment!$A$1:$F$147,5,FALSE),0) -> 156 | J27: 62069 | K27: 160643 | L27: =IF(E27>$E$17,_xlfn.IFNA(VLOOKUP(B27,'[5]other funds ftr 2023'!A:I,9,FALSE),0),1) -> 1.05 | M27: 168675 | N27: =1+IF(ISNA(VLOOKUP(B27,'[5]Rural and Low Income 23-24'!$A:$B,2,FALSE)),0,$N$17) -> 1.1 | O27: 185543 | R27: 0 | S27: 185543 | T27: 169488 | U27: 16055 | V27: =IF(ISNA(VLOOKUP(B27,[6]Sheet1!$B$1:$D$96,1,FALSE)),"N","Y") -> Y | Y27: 2500 | Z27: 188043
A28: 10 | B28: 09075 | D28: BRIDGEPORT | E28: =IFERROR(VLOOKUP(B28,[5]Enrollment!$A$1:$F$147,4,FALSE),0) -> 128 | F28: 50928 | G28: =IFERROR(VLOOKUP(B28,[5]Enrollment!$A$1:$F$147,6,FALSE),0) -> 37 | H28: 3680 | I28: =IFERROR(VLOOKUP(B28,[5]Enrollment!$A$1:$F$147,5,FALSE),0) -> 85 | J28: 33820 | K28: 88428 | L28: =IF(E28>$E$17,_xlfn.IFNA(VLOOKUP(B28,'[5]other funds ftr 2023'!A:I,9,FALSE),0),1) -> 1.05 | M28: 92849 | N28: =1+IF(ISNA(VLOOKUP(B28,'[5]Rural and Low Income 23-24'!$A:$B,2,FALSE)),0,$N$17) -> 1.1 | O28: 102134 | R28: 0 | S28: 102134 | T28: 126591 | U28: -24457 | V28: =IF(ISNA(VLOOKUP(B28,[6]Sheet1!$B$1:$D$96,1,FALSE)),"N","Y") -> Y | Y28: 2500 | Z28: 104634
A29: 11 | B29: 29100 | D29: BURLINGTON-EDISON | E29: =IFERROR(VLOOKUP(B29,[5]Enrollment!$A$1:$F$147,4,FALSE),0) -> 491 | F29: 195357 | G29: =IFERROR(VLOOKUP(B29,[5]Enrollment!$A$1:$F$147,6,FALSE),0) -> 124 | H29: 12334 | I29: =IFERROR(VLOOKUP(B29,[5]Enrollment!$A$1:$F$147,5,FALSE),0) -> 341 | J29: 135676 | K29: 343367 | L29: =IF(E29>$E$17,_xlfn.IFNA(VLOOKUP(B29,'[5]other funds ftr 2023'!A:I,9,FALSE),0),1) -> 1 | M29: 343367 | N29: =1+IF(ISNA(VLOOKUP(B29,'[5]Rural and Low Income 23-24'!$A:$B,2,FALSE)),0,$N$17) -> 1 | O29: 343367 | R29: 0 | S29: 343367 | T29: 246367 | U29: 97000 | V29: =IF(ISNA(VLOOKUP(B29,[6]Sheet1!$B$1:$D$96,1,FALSE)),"N","Y") -> Y | Y29: 4000 | Z29: 347367
A30: 12 | B30: 04228 | D30: CASCADE | E30: =IFERROR(VLOOKUP(B30,[5]Enrollment!$A$1:$F$147,4,FALSE),0) -> 53 | F30: 21087 | G30: =IFERROR(VLOOKUP(B30,[5]Enrollment!$A$1:$F$147,6,FALSE),0) -> 16 | H30: 1592 | I30: =IFERROR(VLOOKUP(B30,[5]Enrollment!$A$1:$F$147,5,FALSE),0) -> 30 | J30: 11936 | K30: 34615 | L30: =IF(E30>$E$17,_xlfn.IFNA(VLOOKUP(B30,'[5]other funds ftr 2023'!A:I,9,FALSE),0),1) -> 1 | M30: 34615 | N30: =1+IF(ISNA(VLOOKUP(B30,'[5]Rural and Low Income 23-24'!$A:$B,2,FALSE)),0,$N$17) -> 1 | O30: 34615 | R30: 0 | S30: 34615 | T30: 40123 | U30: -5508 | V30: =IF(ISNA(VLOOKUP(B30,[6]Sheet1!$B$1:$D$96,1,FALSE)),"N","Y") -> Y | Y30: 1500 | Z30: 36115
A31: 14 | B31: 04222 | D31: CASHMERE | E31: =IFERROR(VLOOKUP(B31,[5]Enrollment!$A$1:$F$147,4,FALSE),0) -> 184 | F31: 73209 | G31: =IFERROR(VLOOKUP(B31,[5]Enrollment!$A$1:$F$147,6,FALSE),0) -> 26 | H31: 2586 | I31: =IFERROR(VLOOKUP(B31,[5]Enrollment!$A$1:$F$147,5,FALSE),0) -> 146 | J31: 58090 | K31: 133885 | L31: =IF(E31>$E$17,_xlfn.IFNA(VLOOKUP(B31,'[5]other funds ftr 2023'!A:I,9,FALSE),0),1) -> 1.15 | M31: 153968 | N31: =1+IF(ISNA(VLOOKUP(B31,'[5]Rural and Low Income 23-24'!$A:$B,2,FALSE)),0,$N$17) -> 1 | O31: 153968 | R31: 0 | S31: 153968 | T31: 151656 | U31: 2312 | V31: =IF(ISNA(VLOOKUP(B31,[6]Sheet1!$B$1:$D$96,1,FALSE)),"N","Y") -> Y | Y31: 2500 | Z31: 156468
A32: 13 | B32: 18401 | D32: CENTRAL KITSAP | E32: =IFERROR(VLOOKUP(B32,[5]Enrollment!$A$1:$F$147,4,FALSE),0) -> 17 | F32: 6764 | G32: =IFERROR(VLOOKUP(B32,[5]Enrollment!$A$1:$F$147,6,FALSE),0) -> 10 | H32: 995 | I32: =IFERROR(VLOOKUP(B32,[5]Enrollment!$A$1:$F$147,5,FALSE),0) -> 5 | J32: 1989 | K32: 9748 | L32: =IF(E32>$E$17,_xlfn.IFNA(VLOOKUP(B32,'[5]other funds ftr 2023'!A:I,9,FALSE),0),1) -> 0 | M32: 9748 | N32: =1+IF(ISNA(VLOOKUP(B32,'[5]Rural and Low Income 23-24'!$A:$B,2,FALSE)),0,$N$17) -> 1 | O32: 0 | R32: =ROUND(IF(Q32>0,-(0.9-Q32)*O32,0),0) -> 0 | S32: 0 | T32: 0 | U32: 0 | V32: =IF(ISNA(VLOOKUP(B32,[6]Sheet1!$B$1:$D$96,1,FALSE)),"N","Y") -> N | Y32: 0 | Z32: 0
A33: 15 | B33: 32356 | D33: CENTRAL VALLEY | E33: =IFERROR(VLOOKUP(B33,[5]Enrollment!$A$1:$F$147,4,FALSE),0) -> 17 | F33: 6764 | G33: =IFERROR(VLOOKUP(B33,[5]Enrollment!$A$1:$F$147,6,FALSE),0) -> 8 | H33: 796 | I33: =IFERROR(VLOOKUP(B33,[5]Enrollment!$A$1:$F$147,5,FALSE),0) -> 8 | J33: 3183 | K33: 10743 | L33: =IF(E33>$E$17,_xlfn.IFNA(VLOOKUP(B33,'[5]other funds ftr 2023'!A:I,9,FALSE),0),1) -> 0 | M33: 10743 | N33: =1+IF(ISNA(VLOOKUP(B33,'[5]Rural and Low Income 23-24'!$A:$B,2,FALSE)),0,$N$17) -> 1 | O33: 0 | R33: =ROUND(IF(Q33>0,-(0.9-Q33)*O33,0),0) -> 0 | S33: 0 | T33: 0 | U33: 0 | V33: =IF(ISNA(VLOOKUP(B33,[6]Sheet1!$B$1:$D$96,1,FALSE)),"N","Y") -> N | Y33: 0 | Z33: 0
A34: 16 | B34: 21401 | D34: CENTRALIA | E34: =IFERROR(VLOOKUP(B34,[5]Enrollment!$A$1:$F$147,4,FALSE),0) -> 90 | F34: 35809 | G34: =IFERROR(VLOOKUP(B34,[5]Enrollment!$A$1:$F$147,6,FALSE),0) -> 49 | H34: 4874 | I34: =IFERROR(VLOOKUP(B34,[5]Enrollment!$A$1:$F$147,5,FALSE),0) -> 30 | J34: 11936 | K34: 52619 | L34: =IF(E34>$E$17,_xlfn.IFNA(VLOOKUP(B34,'[5]other funds ftr 2023'!A:I,9,FALSE),0),1) -> 0.85 | M34: 44726 | N34: =1+IF(ISNA(VLOOKUP(B34,'[5]Rural and Low Income 23-24'!$A:$B,2,FALSE)),0,$N$17) -> 1 | O34: 44726 | R34: =ROUND(IF(Q34>0,-(0.9-Q34)*O34,0),0) -> 0 | S34: 44726 | T34: 67220 | U34: -22494 | V34: =IF(ISNA(VLOOKUP(B34,[6]Sheet1!$B$1:$D$96,1,FALSE)),"N","Y") -> Y | X34: Y | Y34: 1500 | Z34: 46226
A35: 17 | B35: 21302 | D35: CHEHALIS | E35: =IFERROR(VLOOKUP(B35,[5]Enrollment!$A$1:$F$147,4,FALSE),0) -> 38 | F35: 15119 | G35: =IFERROR(VLOOKUP(B35,[5]Enrollment!$A$1:$F$147,6,FALSE),0) -> 13 | H35: 1293 | I35: =IFERROR(VLOOKUP(B35,[5]Enrollment!$A$1:$F$147,5,FALSE),0) -> 18 | J35: 7162 | K35: 23574 | L35: =IF(E35>$E$17,_xlfn.IFNA(VLOOKUP(B35,'[5]other funds ftr 2023'!A:I,9,FALSE),0),1) -> 0.85 | M35: 20038 | N35: =1+IF(ISNA(VLOOKUP(B35,'[5]Rural and Low Income 23-24'!$A:$B,2,FALSE)),0,$N$17) -> 1 | O35: 20038 | R35: 0 | S35: 20038 | T35: 18866 | U35: 1172 | V35: =IF(ISNA(VLOOKUP(B35,[6]Sheet1!$B$1:$D$96,1,FALSE)),"N","Y") -> Y | Y35: 1500 | Z35: 21538
A36: 18 | B36: 32360 | D36: CHENEY | E36: =IFERROR(VLOOKUP(B36,[5]Enrollment!$A$1:$F$147,4,FALSE),0) -> 21 | F36: 8355 | G36: =IFERROR(VLOOKUP(B36,[5]Enrollment!$A$1:$F$147,6,FALSE),0) -> 9 | H36: 895 | I36: =IFERROR(VLOOKUP(B36,[5]Enrollment!$A$1:$F$147,5,FALSE),0) -> 8 | J36: 3183 | K36: 12433 | L36: =IF(E36>$E$17,_xlfn.IFNA(VLOOKUP(B36,'[5]other funds ftr 2023'!A:I,9,FALSE),0),1) -> 0 | M36: 12433 | N36: =1+IF(ISNA(VLOOKUP(B36,'[5]Rural and Low Income 23-24'!$A:$B,2,FALSE)),0,$N$17) -> 1 | O36: 0 | R36: =ROUND(IF(Q36>0,-(0.9-Q36)*O36,0),0) -> 0 | S36: 0 | T36: 0 | U36: 0 | V36: =IF(ISNA(VLOOKUP(B36,[6]Sheet1!$B$1:$D$96,1,FALSE)),"N","Y") -> N | X36: Y | Y36: 0 | Z36: 0
A37: 19 | B37: 27901 | D37: CHIEF LESCHI TRIBAL COMPACT | E37: =IFERROR(VLOOKUP(B37,[5]Enrollment!$A$1:$F$147,4,FALSE),0) -> 37 | F37: 14721 | G37: =IFERROR(VLOOKUP(B37,[5]Enrollment!$A$1:$F$147,6,FALSE),0) -> 3 | H37: 298 | I37: =IFERROR(VLOOKUP(B37,[5]Enrollment!$A$1:$F$147,5,FALSE),0) -> 28 | J37: 11141 | K37: 26160 | L37: =IF(E37>$E$17,_xlfn.IFNA(VLOOKUP(B37,'[5]other funds ftr 2023'!A:I,9,FALSE),0),1) -> 0.95 | M37: 24852 | N37: =1+IF(ISNA(VLOOKUP(B37,'[5]Rural and Low Income 23-24'!$A:$B,2,FALSE)),0,$N$17) -> 1 | O37: 24852 | R37: 0 | S37: 24852 | T37: 10344 | U37: 14508 | V37: =IF(ISNA(VLOOKUP(B37,[6]Sheet1!$B$1:$D$96,1,FALSE)),"N","Y") -> Y | Y37: 1500 | Z37: 26352
A38: 20 | B38: 27400 | D38: CLOVER PARK | E38: =IFERROR(VLOOKUP(B38,[5]Enrollment!$A$1:$F$147,4,FALSE),0) -> 13 | F38: 5172 | G38: =IFERROR(VLOOKUP(B38,[5]Enrollment!$A$1:$F$147,6,FALSE),0) -> 5 | H38: 497 | I38: =IFERROR(VLOOKUP(B38,[5]Enrollment!$A$1:$F$147,5,FALSE),0) -> 8 | J38: 3183 | K38: 8852 | L38: =IF(E38>$E$17,_xlfn.IFNA(VLOOKUP(B38,'[5]other funds ftr 2023'!A:I,9,FALSE),0),1) -> 0 | M38: 8852 | N38: =1+IF(ISNA(VLOOKUP(B38,'[5]Rural and Low Income 23-24'!$A:$B,2,FALSE)),0,$N$17) -> 1 | O38: 0 | R38: 0 | S38: 0 | T38: 0 | U38: 0 | V38: =IF(ISNA(VLOOKUP(B38,[6]Sheet1!$B$1:$D$96,1,FALSE)),"N","Y") -> N | Y38: 0 | Z38: 0
A39: 21 | B39: 36250 | D39: COLLEGE PLACE | E39: =IFERROR(VLOOKUP(B39,[5]Enrollment!$A$1:$F$147,4,FALSE),0) -> 144 | F39: 57294 | G39: =IFERROR(VLOOKUP(B39,[5]Enrollment!$A$1:$F$147,6,FALSE),0) -> 49 | H39: 4874 | I39: =IFERROR(VLOOKUP(B39,[5]Enrollment!$A$1:$F$147,5,FALSE),0) -> 77 | J39: 30637 | K39: 92805 | L39: =IF(E39>$E$17,_xlfn.IFNA(VLOOKUP(B39,'[5]other funds ftr 2023'!A:I,9,FALSE),0),1) -> 0.95 | M39: 88165 | N39: =1+IF(ISNA(VLOOKUP(B39,'[5]Rural and Low Income 23-24'!$A:$B,2,FALSE)),0,$N$17) -> 1 | O39: 88165 | R39: 0 | S39: 88165 | T39: 76049 | U39: 12116 | V39: =IF(ISNA(VLOOKUP(B39,[6]Sheet1!$B$1:$D$96,1,FALSE)),"N","Y") -> Y | Y39: 2500 | Z39: 90665
A40: 22 | B40: 36400 | D40: COLUMBIA (WALLA WALLA) | E40: =IFERROR(VLOOKUP(B40,[5]Enrollment!$A$1:$F$147,4,FALSE),0) -> 53 | F40: 21087 | G40: =IFERROR(VLOOKUP(B40,[5]Enrollment!$A$1:$F$147,6,FALSE),0) -> 28 | H40: 2785 | I40: =IFERROR(VLOOKUP(B40,[5]Enrollment!$A$1:$F$147,5,FALSE),0) -> 29 | J40: 11538 | K40: 35410 | L40: =IF(E40>$E$17,_xlfn.IFNA(VLOOKUP(B40,'[5]other funds ftr 2023'!A:I,9,FALSE),0),1) -> 0.95 | M40: 33640 | N40: =1+IF(ISNA(VLOOKUP(B40,'[5]Rural and Low Income 23-24'!$A:$B,2,FALSE)),0,$N$17) -> 1 | O40: 33640 | R40: 0 | S40: 33640 | T40: 30296 | U40: 3344 | V40: =IF(ISNA(VLOOKUP(B40,[6]Sheet1!$B$1:$D$96,1,FALSE)),"N","Y") -> Y | W40: 1 | Y40: 1500 | Z40: 0
A41: 23 | B41: 29317 | D41: CONWAY | E41: =IFERROR(VLOOKUP(B41,[5]Enrollment!$A$1:$F$147,4,FALSE),0) -> 14 | F41: 5570 | G41: =IFERROR(VLOOKUP(B41,[5]Enrollment!$A$1:$F$147,6,FALSE),0) -> 5 | H41: 497 | I41: =IFERROR(VLOOKUP(B41,[5]Enrollment!$A$1:$F$147,5,FALSE),0) -> 10 | J41: 3979 | K41: 10046 | L41: =IF(E41>$E$17,_xlfn.IFNA(VLOOKUP(B41,'[5]other funds ftr 2023'!A:I,9,FALSE),0),1) -> 1.15 | M41: 11553 | N41: =1+IF(ISNA(VLOOKUP(B41,'[5]Rural and Low Income 23-24'!$A:$B,2,FALSE)),0,$N$17) -> 1.1 | O41: 0 | R41: 0 | S41: 0 | T41: 25079 | U41: -25079 | V41: =IF(ISNA(VLOOKUP(B41,[6]Sheet1!$B$1:$D$96,1,FALSE)),"N","Y") -> N | Y41: 0 | Z41: 0
A42: 24 | B42: 15204 | D42: COUPEVILLE | E42: =IFERROR(VLOOKUP(B42,[5]Enrollment!$A$1:$F$147,4,FALSE),0) -> 18 | F42: 7162 | G42: =IFERROR(VLOOKUP(B42,[5]Enrollment!$A$1:$F$147,6,FALSE),0) -> 8 | H42: 796 | I42: =IFERROR(VLOOKUP(B42,[5]Enrollment!$A$1:$F$147,5,FALSE),0) -> 7 | J42: 2785 | K42: 10743 | L42: =IF(E42>$E$17,_xlfn.IFNA(VLOOKUP(B42,'[5]other funds ftr 2023'!A:I,9,FALSE),0),1) -> 0.85 | M42: 9132 | N42: =1+IF(ISNA(VLOOKUP(B42,'[5]Rural and Low Income 23-24'!$A:$B,2,FALSE)),0,$N$17) -> 1 | O42: 9132 | R42: 0 | S42: 9132 | T42: 8700 | U42: 432 | V42: =IF(ISNA(VLOOKUP(B42,[6]Sheet1!$B$1:$D$96,1,FALSE)),"N","Y") -> Y | Y42: 1500 | Z42: 10632
A43: 25 | B43: 39090 | D43: EAST VALLEY (YAKIMA) | E43: =IFERROR(VLOOKUP(B43,[5]Enrollment!$A$1:$F$147,4,FALSE),0) -> 230 | F43: 91512 | G43: =IFERROR(VLOOKUP(B43,[5]Enrollment!$A$1:$F$147,6,FALSE),0) -> 43 | H43: 4277 | I43: =IFERROR(VLOOKUP(B43,[5]Enrollment!$A$1:$F$147,5,FALSE),0) -> 165 | J43: 65650 | K43: 161439 | L43: =IF(E43>$E$17,_xlfn.IFNA(VLOOKUP(B43,'[5]other funds ftr 2023'!A:I,9,FALSE),0),1) -> 0 | M43: 161439 | N43: =1+IF(ISNA(VLOOKUP(B43,'[5]Rural and Low Income 23-24'!$A:$B,2,FALSE)),0,$N$17) -> 1 | O43: 0 | R43: 0 | S43: 0 | T43: 0 | U43: 0 | V43: =IF(ISNA(VLOOKUP(B43,[6]Sheet1!$B$1:$D$96,1,FALSE)),"N","Y") -> N | Y43: 0 | Z43: 0
A44: 26 | B44: 09206 | D44: EASTMONT | E44: =IFERROR(VLOOKUP(B44,[5]Enrollment!$A$1:$F$147,4,FALSE),0) -> 888 | F44: 353315 | G44: =IFERROR(VLOOKUP(B44,[5]Enrollment!$A$1:$F$147,6,FALSE),0) -> 295 | H44: 29343 | I44: =IFERROR(VLOOKUP(B44,[5]Enrollment!$A$1:$F$147,5,FALSE),0) -> 597 | J44: 237532 | K44: 620190 | L44: =IF(E44>$E$17,_xlfn.IFNA(VLOOKUP(B44,'[5]other funds ftr 2023'!A:I,9,FALSE),0),1) -> 1.05 | M44: 651200 | N44: =1+IF(ISNA(VLOOKUP(B44,'[5]Rural and Low Income 23-24'!$A:$B,2,FALSE)),0,$N$17) -> 1 | O44: 651200 | R44: 0 | S44: 651200 | T44: 640986 | U44: 10214 | V44: =IF(ISNA(VLOOKUP(B44,[6]Sheet1!$B$1:$D$96,1,FALSE)),"N","Y") -> Y | Y44: 4000 | Z44: 655200
A45: 27 | B45: 19028 | D45: EASTON | E45: =IFERROR(VLOOKUP(B45,[5]Enrollment!$A$1:$F$147,4,FALSE),0) -> 13 | F45: 5172 | G45: =IFERROR(VLOOKUP(B45,[5]Enrollment!$A$1:$F$147,6,FALSE),0) -> 0 | H45: 0 | I45: =IFERROR(VLOOKUP(B45,[5]Enrollment!$A$1:$F$147,5,FALSE),0) -> 12 | J45: 4775 | K45: 9947 | L45: =IF(E45>$E$17,_xlfn.IFNA(VLOOKUP(B45,'[5]other funds ftr 2023'!A:I,9,FALSE),0),1) -> 0 | M45: 9947 | N45: =1+IF(ISNA(VLOOKUP(B45,'[5]Rural and Low Income 23-24'!$A:$B,2,FALSE)),0,$N$17) -> 1.1 | O45: 0 | R45: 0 | S45: 0 | T45: 0 | U45: 0 | V45: =IF(ISNA(VLOOKUP(B45,[6]Sheet1!$B$1:$D$96,1,FALSE)),"N","Y") -> N | Y45: 0 | Z45: 0
A46: 28 | B46: 31015 | D46: EDMONDS | E46: =IFERROR(VLOOKUP(B46,[5]Enrollment!$A$1:$F$147,4,FALSE),0) -> 17 | F46: 6764 | G46: =IFERROR(VLOOKUP(B46,[5]Enrollment!$A$1:$F$147,6,FALSE),0) -> 4 | H46: 398 | I46: =IFERROR(VLOOKUP(B46,[5]Enrollment!$A$1:$F$147,5,FALSE),0) -> 12 | J46: 4775 | K46: 11937 | L46: =IF(E46>$E$17,_xlfn.IFNA(VLOOKUP(B46,'[5]other funds ftr 2023'!A:I,9,FALSE),0),1) -> 0 | M46: 11937 | N46: =1+IF(ISNA(VLOOKUP(B46,'[5]Rural and Low Income 23-24'!$A:$B,2,FALSE)),0,$N$17) -> 1 | O46: 0 | R46: 0 | S46: 0 | T46: 0 | U46: 0 | V46: =IF(ISNA(VLOOKUP(B46,[6]Sheet1!$B$1:$D$96,1,FALSE)),"N","Y") -> N | Y46: 0 | Z46: 0
A47: 29 | B47: 39801 | D47: EDUCATIONAL SERVICE DISTRICT 105 | E47: =IFERROR(VLOOKUP(B47,[5]Enrollment!$A$1:$F$147,4,FALSE),0) -> 35 | F47: 13926 | G47: =IFERROR(VLOOKUP(B47,[5]Enrollment!$A$1:$F$147,6,FALSE),0) -> 14 | H47: 1393 | I47: =IFERROR(VLOOKUP(B47,[5]Enrollment!$A$1:$F$147,5,FALSE),0) -> 19 | J47: 7560 | K47: 22879 | L47: =IF(E47>$E$17,_xlfn.IFNA(VLOOKUP(B47,'[5]other funds ftr 2023'!A:I,9,FALSE),0),1) -> 0 | M47: 22879 | N47: =1+IF(ISNA(VLOOKUP(B47,'[5]Rural and Low Income 23-24'!$A:$B,2,FALSE)),0,$N$17) -> 1 | O47: 0 | R47: 0 | S47: 0 | T47: 0 | U47: 0 | V47: =IF(ISNA(VLOOKUP(B47,[6]Sheet1!$B$1:$D$96,1,FALSE)),"N","Y") -> N | Y47: 0 | Z47: 0
A48: 30 | B48: 11801 | D48: EDUCATIONAL SERVICE DISTRICT 123 | E48: =IFERROR(VLOOKUP(B48,[5]Enrollment!$A$1:$F$147,4,FALSE),0) -> 119 | F48: 47347 | G48: =IFERROR(VLOOKUP(B48,[5]Enrollment!$A$1:$F$147,6,FALSE),0) -> 54 | H48: 5371 | I48: =IFERROR(VLOOKUP(B48,[5]Enrollment!$A$1:$F$147,5,FALSE),0) -> 54 | J48: 21485 | K48: 74203 | L48: =IF(E48>$E$17,_xlfn.IFNA(VLOOKUP(B48,'[5]other funds ftr 2023'!A:I,9,FALSE),0),1) -> 0 | M48: 74203 | N48: =1+IF(ISNA(VLOOKUP(B48,'[5]Rural and Low Income 23-24'!$A:$B,2,FALSE)),0,$N$17) -> 1 | O48: 0 | R48: 0 | S48: 0 | T48: 0 | U48: 0 | V48: =IF(ISNA(VLOOKUP(B48,[6]Sheet1!$B$1:$D$96,1,FALSE)),"N","Y") -> N | Y48: 0 | Z48: 0
A49: 31 | B49: 19401 | D49: ELLENSBURG | E49: =IFERROR(VLOOKUP(B49,[5]Enrollment!$A$1:$F$147,4,FALSE),0) -> 49 | F49: 19496 | G49: =IFERROR(VLOOKUP(B49,[5]Enrollment!$A$1:$F$147,6,FALSE),0) -> 15 | H49: 1492 | I49: =IFERROR(VLOOKUP(B49,[5]Enrollment!$A$1:$F$147,5,FALSE),0) -> 30 | J49: 11936 | K49: 32924 | L49: =IF(E49>$E$17,_xlfn.IFNA(VLOOKUP(B49,'[5]other funds ftr 2023'!A:I,9,FALSE),0),1) -> 0 | M49: 32924 | N49: =1+IF(ISNA(VLOOKUP(B49,'[5]Rural and Low Income 23-24'!$A:$B,2,FALSE)),0,$N$17) -> 1 | O49: 0 | R49: 0 | S49: 0 | T49: 0 | U49: 0 | V49: =IF(ISNA(VLOOKUP(B49,[6]Sheet1!$B$1:$D$96,1,FALSE)),"N","Y") -> N | Y49: 0 | Z49: 0
A50: 32 | B50: 14068 | D50: ELMA | E50: =IFERROR(VLOOKUP(B50,[5]Enrollment!$A$1:$F$147,4,FALSE),0) -> 41 | F50: 16313 | G50: =IFERROR(VLOOKUP(B50,[5]Enrollment!$A$1:$F$147,6,FALSE),0) -> 2 | H50: 199 | I50: =IFERROR(VLOOKUP(B50,[5]Enrollment!$A$1:$F$147,5,FALSE),0) -> 34 | J50: 13528 | K50: 30040 | L50: =IF(E50>$E$17,_xlfn.IFNA(VLOOKUP(B50,'[5]other funds ftr 2023'!A:I,9,FALSE),0),1) -> 0 | M50: 30040 | N50: =1+IF(ISNA(VLOOKUP(B50,'[5]Rural and Low Income 23-24'!$A:$B,2,FALSE)),0,$N$17) -> 1 | O50: 0 | R50: 0 | S50: 0 | T50: 0 | U50: 0 | V50: =IF(ISNA(VLOOKUP(B50,[6]Sheet1!$B$1:$D$96,1,FALSE)),"N","Y") -> N | Y50: 0 | Z50: 0
A51: 33 | B51: 04127 | D51: ENTIAT | E51: =IFERROR(VLOOKUP(B51,[5]Enrollment!$A$1:$F$147,4,FALSE),0) -> 29 | F51: 11538 | G51: =IFERROR(VLOOKUP(B51,[5]Enrollment!$A$1:$F$147,6,FALSE),0) -> 1 | H51: 99 | I51: =IFERROR(VLOOKUP(B51,[5]Enrollment!$A$1:$F$147,5,FALSE),0) -> 23 | J51: 9151 | K51: 20788 | L51: =IF(E51>$E$17,_xlfn.IFNA(VLOOKUP(B51,'[5]other funds ftr 2023'!A:I,9,FALSE),0),1) -> 0 | M51: 20788 | N51: =1+IF(ISNA(VLOOKUP(B51,'[5]Rural and Low Income 23-24'!$A:$B,2,FALSE)),0,$N$17) -> 1.1 | O51: 0 | R51: 0 | S51: 0 | T51: 0 | U51: 0 | V51: =IF(ISNA(VLOOKUP(B51,[6]Sheet1!$B$1:$D$96,1,FALSE)),"N","Y") -> N | Y51: 0 | Z51: 0
A52: 34 | B52: 13165 | D52: EPHRATA | E52: =IFERROR(VLOOKUP(B52,[5]Enrollment!$A$1:$F$147,4,FALSE),0) -> 176 | F52: 70026 | G52: =IFERROR(VLOOKUP(B52,[5]Enrollment!$A$1:$F$147,6,FALSE),0) -> 85 | H52: 8455 | I52: =IFERROR(VLOOKUP(B52,[5]Enrollment!$A$1:$F$147,5,FALSE),0) -> 69 | J52: 27453 | K52: 105934 | L52: =IF(E52>$E$17,_xlfn.IFNA(VLOOKUP(B52,'[5]other funds ftr 2023'!A:I,9,FALSE),0),1) -> 1 | M52: 105934 | N52: =1+IF(ISNA(VLOOKUP(B52,'[5]Rural and Low Income 23-24'!$A:$B,2,FALSE)),0,$N$17) -> 1 | O52: 105934 | R52: 0 | S52: 105934 | T52: 142757 | U52: -36823 | V52: =IF(ISNA(VLOOKUP(B52,[6]Sheet1!$B$1:$D$96,1,FALSE)),"N","Y") -> Y | Y52: 2500 | Z52: 108434
A53: 35 | B53: 31002 | D53: EVERETT | E53: =IFERROR(VLOOKUP(B53,[5]Enrollment!$A$1:$F$147,4,FALSE),0) -> 65 | F53: 25862 | G53: =IFERROR(VLOOKUP(B53,[5]Enrollment!$A$1:$F$147,6,FALSE),0) -> 12 | H53: 1194 | I53: =IFERROR(VLOOKUP(B53,[5]Enrollment!$A$1:$F$147,5,FALSE),0) -> 44 | J53: 17507 | K53: 44563 | L53: =IF(E53>$E$17,_xlfn.IFNA(VLOOKUP(B53,'[5]other funds ftr 2023'!A:I,9,FALSE),0),1) -> 0 | M53: 44563 | N53: =1+IF(ISNA(VLOOKUP(B53,'[5]Rural and Low Income 23-24'!$A:$B,2,FALSE)),0,$N$17) -> 1 | O53: 0 | R53: 0 | S53: 0 | T53: 0 | U53: 0 | V53: =IF(ISNA(VLOOKUP(B53,[6]Sheet1!$B$1:$D$96,1,FALSE)),"N","Y") -> N | Y53: 0 | Z53: 0
A54: 36 | B54: 06114 | D54: EVERGREEN (CLARK) | E54: =IFERROR(VLOOKUP(B54,[5]Enrollment!$A$1:$F$147,4,FALSE),0) -> 45 | F54: 17904 | G54: =IFERROR(VLOOKUP(B54,[5]Enrollment!$A$1:$F$147,6,FALSE),0) -> 10 | H54: 995 | I54: =IFERROR(VLOOKUP(B54,[5]Enrollment!$A$1:$F$147,5,FALSE),0) -> 31 | J54: 12334 | K54: 31233 | L54: =IF(E54>$E$17,_xlfn.IFNA(VLOOKUP(B54,'[5]other funds ftr 2023'!A:I,9,FALSE),0),1) -> 0 | M54: 31233 | N54: =1+IF(ISNA(VLOOKUP(B54,'[5]Rural and Low Income 23-24'!$A:$B,2,FALSE)),0,$N$17) -> 1 | O54: 0 | R54: 0 | S54: 0 | T54: 0 | U54: 0 | V54: =IF(ISNA(VLOOKUP(B54,[6]Sheet1!$B$1:$D$96,1,FALSE)),"N","Y") -> N | Y54: 0 | Z54: 0
A55: 37 | B55: 17210 | D55: FEDERAL WAY | E55: =IFERROR(VLOOKUP(B55,[5]Enrollment!$A$1:$F$147,4,FALSE),0) -> 49 | F55: 19496 | G55: =IFERROR(VLOOKUP(B55,[5]Enrollment!$A$1:$F$147,6,FALSE),0) -> 16 | H55: 1592 | I55: =IFERROR(VLOOKUP(B55,[5]Enrollment!$A$1:$F$147,5,FALSE),0) -> 13 | J55: 5172 | K55: 26260 | L55: =IF(E55>$E$17,_xlfn.IFNA(VLOOKUP(B55,'[5]other funds ftr 2023'!A:I,9,FALSE),0),1) -> 0.85 | M55: 22321 | N55: =1+IF(ISNA(VLOOKUP(B55,'[5]Rural and Low Income 23-24'!$A:$B,2,FALSE)),0,$N$17) -> 1 | O55: 0 | R55: 0 | S55: 0 | T55: 47729 | U55: -47729 | V55: =IF(ISNA(VLOOKUP(B55,[6]Sheet1!$B$1:$D$96,1,FALSE)),"N","Y") -> N | X55: Y | Y55: 0 | Z55: 0
A56: 38 | B56: 37502 | D56: FERNDALE | E56: =IFERROR(VLOOKUP(B56,[5]Enrollment!$A$1:$F$147,4,FALSE),0) -> 144 | F56: 57294 | G56: =IFERROR(VLOOKUP(B56,[5]Enrollment!$A$1:$F$147,6,FALSE),0) -> 33 | H56: 3282 | I56: =IFERROR(VLOOKUP(B56,[5]Enrollment!$A$1:$F$147,5,FALSE),0) -> 102 | J56: 40583 | K56: 101159 | L56: =IF(E56>$E$17,_xlfn.IFNA(VLOOKUP(B56,'[5]other funds ftr 2023'!A:I,9,FALSE),0),1) -> 0.95 | M56: 96101 | N56: =1+IF(ISNA(VLOOKUP(B56,'[5]Rural and Low Income 23-24'!$A:$B,2,FALSE)),0,$N$17) -> 1 | O56: 96101 | R56: 0 | S56: 96101 | T56: 95805 | U56: 296 | V56: =IF(ISNA(VLOOKUP(B56,[6]Sheet1!$B$1:$D$96,1,FALSE)),"N","Y") -> Y | X56: Y | Y56: 2500 | Z56: 98601
A57: 39 | B57: 03053 | D57: FINLEY | E57: =IFERROR(VLOOKUP(B57,[5]Enrollment!$A$1:$F$147,4,FALSE),0) -> 122 | F57: 48541 | G57: =IFERROR(VLOOKUP(B57,[5]Enrollment!$A$1:$F$147,6,FALSE),0) -> 61 | H57: 6068 | I57: =IFERROR(VLOOKUP(B57,[5]Enrollment!$A$1:$F$147,5,FALSE),0) -> 61 | J57: 24270 | K57: 78879 | L57: =IF(E57>$E$17,_xlfn.IFNA(VLOOKUP(B57,'[5]other funds ftr 2023'!A:I,9,FALSE),0),1) -> 1 | M57: 78879 | N57: =1+IF(ISNA(VLOOKUP(B57,'[5]Rural and Low Income 23-24'!$A:$B,2,FALSE)),0,$N$17) -> 1 | O57: 78879 | R57: 0 | S57: 78879 | T57: 70727 | U57: 8152 | V57: =IF(ISNA(VLOOKUP(B57,[6]Sheet1!$B$1:$D$96,1,FALSE)),"N","Y") -> Y | W57: 1 | Y57: 2500 | Z57: 0
A58: 40 | B58: 27402 | D58: FRANKLIN PIERCE | E58: =IFERROR(VLOOKUP(B58,[5]Enrollment!$A$1:$F$147,4,FALSE),0) -> 12 | F58: 4775 | G58: =IFERROR(VLOOKUP(B58,[5]Enrollment!$A$1:$F$147,6,FALSE),0) -> 4 | H58: 398 | I58: =IFERROR(VLOOKUP(B58,[5]Enrollment!$A$1:$F$147,5,FALSE),0) -> 3 | J58: 1194 | K58: 6367 | L58: =IF(E58>$E$17,_xlfn.IFNA(VLOOKUP(B58,'[5]other funds ftr 2023'!A:I,9,FALSE),0),1) -> 0 | M58: 6367 | N58: =1+IF(ISNA(VLOOKUP(B58,'[5]Rural and Low Income 23-24'!$A:$B,2,FALSE)),0,$N$17) -> 1 | O58: 0 | R58: 0 | S58: 0 | T58: 0 | U58: 0 | V58: =IF(ISNA(VLOOKUP(B58,[6]Sheet1!$B$1:$D$96,1,FALSE)),"N","Y") -> N | Y58: 0 | Z58: 0
A59: 41 | B59: 20404 | D59: GOLDENDALE | E59: =IFERROR(VLOOKUP(B59,[5]Enrollment!$A$1:$F$147,4,FALSE),0) -> 83 | F59: 33024 | G59: =IFERROR(VLOOKUP(B59,[5]Enrollment!$A$1:$F$147,6,FALSE),0) -> 13 | H59: 1293 | I59: =IFERROR(VLOOKUP(B59,[5]Enrollment!$A$1:$F$147,5,FALSE),0) -> 65 | J59: 25862 | K59: 60179 | L59: =IF(E59>$E$17,_xlfn.IFNA(VLOOKUP(B59,'[5]other funds ftr 2023'!A:I,9,FALSE),0),1) -> 0.95 | M59: 57170 | N59: =1+IF(ISNA(VLOOKUP(B59,'[5]Rural and Low Income 23-24'!$A:$B,2,FALSE)),0,$N$17) -> 1.1 | O59: 62887 | R59: 0 | S59: 62887 | T59: 45241 | U59: 17646 | V59: =IF(ISNA(VLOOKUP(B59,[6]Sheet1!$B$1:$D$96,1,FALSE)),"N","Y") -> Y | Y59: 1500 | Z59: 64387
A60: 42 | B60: 13301 | D60: GRAND COULEE DAM | E60: =IFERROR(VLOOKUP(B60,[5]Enrollment!$A$1:$F$147,4,FALSE),0) -> 233 | F60: 92705 | G60: =IFERROR(VLOOKUP(B60,[5]Enrollment!$A$1:$F$147,6,FALSE),0) -> 33 | H60: 3282 | I60: =IFERROR(VLOOKUP(B60,[5]Enrollment!$A$1:$F$147,5,FALSE),0) -> 166 | J60: 66048 | K60: 162035 | L60: =IF(E60>$E$17,_xlfn.IFNA(VLOOKUP(B60,'[5]other funds ftr 2023'!A:I,9,FALSE),0),1) -> 1.15 | M60: 186340 | N60: =1+IF(ISNA(VLOOKUP(B60,'[5]Rural and Low Income 23-24'!$A:$B,2,FALSE)),0,$N$17) -> 1 | O60: 186340 | R60: 0 | S60: 186340 | T60: 111512 | U60: 74828 | V60: =IF(ISNA(VLOOKUP(B60,[6]Sheet1!$B$1:$D$96,1,FALSE)),"N","Y") -> Y | Y60: 2500 | Z60: 188840
A61: 43 | B61: 39200 | D61: GRANDVIEW | E61: =IFERROR(VLOOKUP(B61,[5]Enrollment!$A$1:$F$147,4,FALSE),0) -> 589 | F61: 234349 | G61: =IFERROR(VLOOKUP(B61,[5]Enrollment!$A$1:$F$147,6,FALSE),0) -> 134 | H61: 13329 | I61: =IFERROR(VLOOKUP(B61,[5]Enrollment!$A$1:$F$147,5,FALSE),0) -> 429 | J61: 170689 | K61: 418367 | L61: =IF(E61>$E$17,_xlfn.IFNA(VLOOKUP(B61,'[5]other funds ftr 2023'!A:I,9,FALSE),0),1) -> 1 | M61: 418367 | N61: =1+IF(ISNA(VLOOKUP(B61,'[5]Rural and Low Income 23-24'!$A:$B,2,FALSE)),0,$N$17) -> 1 | O61: 418367 | R61: 0 | S61: 418367 | T61: 362657 | U61: 55710 | V61: =IF(ISNA(VLOOKUP(B61,[6]Sheet1!$B$1:$D$96,1,FALSE)),"N","Y") -> Y | Y61: 4000 | Z61: 422367
A62: 44 | B62: 39204 | D62: GRANGER | E62: =IFERROR(VLOOKUP(B62,[5]Enrollment!$A$1:$F$147,4,FALSE),0) -> 362 | F62: 144031 | G62: =IFERROR(VLOOKUP(B62,[5]Enrollment!$A$1:$F$147,6,FALSE),0) -> 149 | H62: 14821 | I62: =IFERROR(VLOOKUP(B62,[5]Enrollment!$A$1:$F$147,5,FALSE),0) -> 196 | J62: 77984 | K62: 236836 | L62: =IF(E62>$E$17,_xlfn.IFNA(VLOOKUP(B62,'[5]other funds ftr 2023'!A:I,9,FALSE),0),1) -> 1.05 | M62: 248678 | N62: =1+IF(ISNA(VLOOKUP(B62,'[5]Rural and Low Income 23-24'!$A:$B,2,FALSE)),0,$N$17) -> 1.1 | O62: 273546 | R62: 0 | S62: 273546 | T62: 266679 | U62: 6867 | V62: =IF(ISNA(VLOOKUP(B62,[6]Sheet1!$B$1:$D$96,1,FALSE)),"N","Y") -> Y | Y62: 2500 | Z62: 276046
A63: 45 | B63: 39203 | D63: HIGHLAND | E63: =IFERROR(VLOOKUP(B63,[5]Enrollment!$A$1:$F$147,4,FALSE),0) -> 218 | F63: 86737 | G63: =IFERROR(VLOOKUP(B63,[5]Enrollment!$A$1:$F$147,6,FALSE),0) -> 46 | H63: 4576 | I63: =IFERROR(VLOOKUP(B63,[5]Enrollment!$A$1:$F$147,5,FALSE),0) -> 150 | J63: 59682 | K63: 150995 | L63: =IF(E63>$E$17,_xlfn.IFNA(VLOOKUP(B63,'[5]other funds ftr 2023'!A:I,9,FALSE),0),1) -> 1 | M63: 150995 | N63: =1+IF(ISNA(VLOOKUP(B63,'[5]Rural and Low Income 23-24'!$A:$B,2,FALSE)),0,$N$17) -> 1 | O63: 150995 | R63: 0 | S63: 150995 | T63: 110004 | U63: 40991 | V63: =IF(ISNA(VLOOKUP(B63,[6]Sheet1!$B$1:$D$96,1,FALSE)),"N","Y") -> Y | Y63: 2500 | Z63: 153495
A64: 46 | B64: 17401 | D64: HIGHLINE | E64: =IFERROR(VLOOKUP(B64,[5]Enrollment!$A$1:$F$147,4,FALSE),0) -> 17 | F64: 6764 | G64: =IFERROR(VLOOKUP(B64,[5]Enrollment!$A$1:$F$147,6,FALSE),0) -> 8 | H64: 796 | I64: =IFERROR(VLOOKUP(B64,[5]Enrollment!$A$1:$F$147,5,FALSE),0) -> 8 | J64: 3183 | K64: 10743 | L64: =IF(E64>$E$17,_xlfn.IFNA(VLOOKUP(B64,'[5]other funds ftr 2023'!A:I,9,FALSE),0),1) -> 0 | M64: 10743 | N64: =1+IF(ISNA(VLOOKUP(B64,'[5]Rural and Low Income 23-24'!$A:$B,2,FALSE)),0,$N$17) -> 1 | O64: 0 | R64: 0 | S64: 0 | T64: 0 | U64: 0 | V64: =IF(ISNA(VLOOKUP(B64,[6]Sheet1!$B$1:$D$96,1,FALSE)),"N","Y") -> N | X64: Y | Y64: 0 | Z64: 0
A65: 47 | B65: 23404 | D65: HOOD CANAL | E65: =IFERROR(VLOOKUP(B65,[5]Enrollment!$A$1:$F$147,4,FALSE),0) -> 34 | F65: 13528 | G65: =IFERROR(VLOOKUP(B65,[5]Enrollment!$A$1:$F$147,6,FALSE),0) -> 17 | H65: 1691 | I65: =IFERROR(VLOOKUP(B65,[5]Enrollment!$A$1:$F$147,5,FALSE),0) -> 15 | J65: 5968 | K65: 21187 | L65: =IF(E65>$E$17,_xlfn.IFNA(VLOOKUP(B65,'[5]other funds ftr 2023'!A:I,9,FALSE),0),1) -> 0 | M65: 21187 | N65: =1+IF(ISNA(VLOOKUP(B65,'[5]Rural and Low Income 23-24'!$A:$B,2,FALSE)),0,$N$17) -> 1.1 | O65: 23306 | R65: 0 | S65: 23306 | T65: 0 | U65: 23306 | V65: =IF(ISNA(VLOOKUP(B65,[6]Sheet1!$B$1:$D$96,1,FALSE)),"N","Y") -> Y | Y65: 1500 | Z65: 24806
A66: 48 | B66: 14028 | D66: HOQUIAM | E66: =IFERROR(VLOOKUP(B66,[5]Enrollment!$A$1:$F$147,4,FALSE),0) -> 43 | F66: 17109 | G66: =IFERROR(VLOOKUP(B66,[5]Enrollment!$A$1:$F$147,6,FALSE),0) -> 19 | H66: 1890 | I66: =IFERROR(VLOOKUP(B66,[5]Enrollment!$A$1:$F$147,5,FALSE),0) -> 16 | J66: 6366 | K66: 25365 | L66: =IF(E66>$E$17,_xlfn.IFNA(VLOOKUP(B66,'[5]other funds ftr 2023'!A:I,9,FALSE),0),1) -> 0 | M66: 25365 | N66: =1+IF(ISNA(VLOOKUP(B66,'[5]Rural and Low Income 23-24'!$A:$B,2,FALSE)),0,$N$17) -> 1.1 | O66: 0 | R66: 0 | S66: 0 | T66: 0 | U66: 0 | V66: =IF(ISNA(VLOOKUP(B66,[6]Sheet1!$B$1:$D$96,1,FALSE)),"N","Y") -> N | Y66: 0 | Z66: 0
A67: 49 | B67: 10070 | D67: INCHELIUM | E67: =IFERROR(VLOOKUP(B67,[5]Enrollment!$A$1:$F$147,4,FALSE),0) -> 18 | F67: 7162 | G67: =IFERROR(VLOOKUP(B67,[5]Enrollment!$A$1:$F$147,6,FALSE),0) -> 5 | H67: 497 | I67: =IFERROR(VLOOKUP(B67,[5]Enrollment!$A$1:$F$147,5,FALSE),0) -> 6 | J67: 2387 | K67: 10046 | L67: =IF(E67>$E$17,_xlfn.IFNA(VLOOKUP(B67,'[5]other funds ftr 2023'!A:I,9,FALSE),0),1) -> 0 | M67: 10046 | N67: =1+IF(ISNA(VLOOKUP(B67,'[5]Rural and Low Income 23-24'!$A:$B,2,FALSE)),0,$N$17) -> 1.1 | O67: 0 | R67: 0 | S67: 0 | T67: 0 | U67: 0 | V67: =IF(ISNA(VLOOKUP(B67,[6]Sheet1!$B$1:$D$96,1,FALSE)),"N","Y") -> N | Y67: 0 | Z67: 0
A68: 50 | B68: 08458 | D68: KELSO | E68: =IFERROR(VLOOKUP(B68,[5]Enrollment!$A$1:$F$147,4,FALSE),0) -> 38 | F68: 15119 | G68: =IFERROR(VLOOKUP(B68,[5]Enrollment!$A$1:$F$147,6,FALSE),0) -> 8 | H68: 796 | I68: =IFERROR(VLOOKUP(B68,[5]Enrollment!$A$1:$F$147,5,FALSE),0) -> 28 | J68: 11141 | K68: 27056 | L68: =IF(E68>$E$17,_xlfn.IFNA(VLOOKUP(B68,'[5]other funds ftr 2023'!A:I,9,FALSE),0),1) -> 0 | M68: 27056 | N68: =1+IF(ISNA(VLOOKUP(B68,'[5]Rural and Low Income 23-24'!$A:$B,2,FALSE)),0,$N$17) -> 1 | O68: 0 | R68: 0 | S68: 0 | T68: 0 | U68: 0 | V68: =IF(ISNA(VLOOKUP(B68,[6]Sheet1!$B$1:$D$96,1,FALSE)),"N","Y") -> N | Y68: 0 | Z68: 0
A69: 51 | B69: 03017 | D69: KENNEWICK | E69: =IFERROR(VLOOKUP(B69,[5]Enrollment!$A$1:$F$147,4,FALSE),0) -> 3081 | F69: 1225858 | G69: =IFERROR(VLOOKUP(B69,[5]Enrollment!$A$1:$F$147,6,FALSE),0) -> 1107 | H69: 110112 | I69: =IFERROR(VLOOKUP(B69,[5]Enrollment!$A$1:$F$147,5,FALSE),0) -> 1633 | J69: 649733 | K69: 1985703 | L69: =IF(E69>$E$17,_xlfn.IFNA(VLOOKUP(B69,'[5]other funds ftr 2023'!A:I,9,FALSE),0),1) -> 1.05 | M69: 2084988 | N69: =1+IF(ISNA(VLOOKUP(B69,'[5]Rural and Low Income 23-24'!$A:$B,2,FALSE)),0,$N$17) -> 1 | O69: 2084988 | R69: 0 | S69: 2084988 | T69: 2108260 | U69: -23272 | V69: =IF(ISNA(VLOOKUP(B69,[6]Sheet1!$B$1:$D$96,1,FALSE)),"N","Y") -> Y | Y69: 4000 | Z69: 2088988
A70: 52 | B70: 17415 | D70: KENT | E70: =IFERROR(VLOOKUP(B70,[5]Enrollment!$A$1:$F$147,4,FALSE),0) -> 32 | F70: 12732 | G70: =IFERROR(VLOOKUP(B70,[5]Enrollment!$A$1:$F$147,6,FALSE),0) -> 8 | H70: 796 | I70: =IFERROR(VLOOKUP(B70,[5]Enrollment!$A$1:$F$147,5,FALSE),0) -> 23 | J70: 9151 | K70: 22679 | L70: =IF(E70>$E$17,_xlfn.IFNA(VLOOKUP(B70,'[5]other funds ftr 2023'!A:I,9,FALSE),0),1) -> 0 | M70: 22679 | N70: =1+IF(ISNA(VLOOKUP(B70,'[5]Rural and Low Income 23-24'!$A:$B,2,FALSE)),0,$N$17) -> 1 | O70: 0 | R70: 0 | S70: 0 | T70: 0 | U70: 0 | V70: =IF(ISNA(VLOOKUP(B70,[6]Sheet1!$B$1:$D$96,1,FALSE)),"N","Y") -> N | Y70: 0 | Z70: 0
A71: 53 | B71: 03052 | D71: KIONA-BENTON CITY | E71: =IFERROR(VLOOKUP(B71,[5]Enrollment!$A$1:$F$147,4,FALSE),0) -> 374 | F71: 148806 | G71: =IFERROR(VLOOKUP(B71,[5]Enrollment!$A$1:$F$147,6,FALSE),0) -> 132 | H71: 13130 | I71: =IFERROR(VLOOKUP(B71,[5]Enrollment!$A$1:$F$147,5,FALSE),0) -> 243 | J71: 96684 | K71: 258620 | L71: =IF(E71>$E$17,_xlfn.IFNA(VLOOKUP(B71,'[5]other funds ftr 2023'!A:I,9,FALSE),0),1) -> 1.15 | M71: 297413 | N71: =1+IF(ISNA(VLOOKUP(B71,'[5]Rural and Low Income 23-24'!$A:$B,2,FALSE)),0,$N$17) -> 1 | O71: 297413 | R71: 0 | S71: 297413 | T71: 287578 | U71: 9835 | V71: =IF(ISNA(VLOOKUP(B71,[6]Sheet1!$B$1:$D$96,1,FALSE)),"N","Y") -> Y | Y71: 2500 | Z71: 299913
A72: 54 | B72: 19403 | D72: KITTITAS | E72: =IFERROR(VLOOKUP(B72,[5]Enrollment!$A$1:$F$147,4,FALSE),0) -> 25 | F72: 9947 | G72: =IFERROR(VLOOKUP(B72,[5]Enrollment!$A$1:$F$147,6,FALSE),0) -> 5 | H72: 497 | I72: =IFERROR(VLOOKUP(B72,[5]Enrollment!$A$1:$F$147,5,FALSE),0) -> 17 | J72: 6764 | K72: 17208 | L72: =IF(E72>$E$17,_xlfn.IFNA(VLOOKUP(B72,'[5]other funds ftr 2023'!A:I,9,FALSE),0),1) -> 0 | M72: 17208 | N72: =1+IF(ISNA(VLOOKUP(B72,'[5]Rural and Low Income 23-24'!$A:$B,2,FALSE)),0,$N$17) -> 1 | O72: 0 | R72: 0 | S72: 0 | T72: 0 | U72: 0 | V72: =IF(ISNA(VLOOKUP(B72,[6]Sheet1!$B$1:$D$96,1,FALSE)),"N","Y") -> N | Y72: 0 | Z72: 0
A73: 55 | B73: 29311 | D73: LA CONNER | E73: =IFERROR(VLOOKUP(B73,[5]Enrollment!$A$1:$F$147,4,FALSE),0) -> 160 | F73: 63660 | G73: =IFERROR(VLOOKUP(B73,[5]Enrollment!$A$1:$F$147,6,FALSE),0) -> 23 | H73: 2288 | I73: =IFERROR(VLOOKUP(B73,[5]Enrollment!$A$1:$F$147,5,FALSE),0) -> 132 | J73: 52520 | K73: 118468 | L73: =IF(E73>$E$17,_xlfn.IFNA(VLOOKUP(B73,'[5]other funds ftr 2023'!A:I,9,FALSE),0),1) -> 1.15 | M73: 136238 | N73: =1+IF(ISNA(VLOOKUP(B73,'[5]Rural and Low Income 23-24'!$A:$B,2,FALSE)),0,$N$17) -> 1.1 | O73: 149862 | R73: 0 | S73: 149862 | T73: 142219 | U73: 7643 | V73: =IF(ISNA(VLOOKUP(B73,[6]Sheet1!$B$1:$D$96,1,FALSE)),"N","Y") -> Y | Y73: 2500 | Z73: 152362
A74: 56 | B74: 04129 | D74: LAKE CHELAN | E74: =IFERROR(VLOOKUP(B74,[5]Enrollment!$A$1:$F$147,4,FALSE),0) -> 164 | F74: 65252 | G74: =IFERROR(VLOOKUP(B74,[5]Enrollment!$A$1:$F$147,6,FALSE),0) -> 59 | H74: 5869 | I74: =IFERROR(VLOOKUP(B74,[5]Enrollment!$A$1:$F$147,5,FALSE),0) -> 94 | J74: 37400 | K74: 108521 | L74: =IF(E74>$E$17,_xlfn.IFNA(VLOOKUP(B74,'[5]other funds ftr 2023'!A:I,9,FALSE),0),1) -> 1.05 | M74: 113947 | N74: =1+IF(ISNA(VLOOKUP(B74,'[5]Rural and Low Income 23-24'!$A:$B,2,FALSE)),0,$N$17) -> 1 | O74: 113947 | R74: 0 | S74: 113947 | T74: 138017 | U74: -24070 | V74: =IF(ISNA(VLOOKUP(B74,[6]Sheet1!$B$1:$D$96,1,FALSE)),"N","Y") -> Y | Y74: 2500 | Z74: 116447
A75: 57 | B75: 31306 | D75: LAKEWOOD | E75: =IFERROR(VLOOKUP(B75,[5]Enrollment!$A$1:$F$147,4,FALSE),0) -> 11 | F75: 4377 | G75: =IFERROR(VLOOKUP(B75,[5]Enrollment!$A$1:$F$147,6,FALSE),0) -> 2 | H75: 199 | I75: =IFERROR(VLOOKUP(B75,[5]Enrollment!$A$1:$F$147,5,FALSE),0) -> 9 | J75: 3581 | K75: 8157 | L75: =IF(E75>$E$17,_xlfn.IFNA(VLOOKUP(B75,'[5]other funds ftr 2023'!A:I,9,FALSE),0),1) -> 0 | M75: 8157 | N75: =1+IF(ISNA(VLOOKUP(B75,'[5]Rural and Low Income 23-24'!$A:$B,2,FALSE)),0,$N$17) -> 1 | O75: 0 | R75: 0 | S75: 0 | T75: 0 | U75: 0 | V75: =IF(ISNA(VLOOKUP(B75,[6]Sheet1!$B$1:$D$96,1,FALSE)),"N","Y") -> N | Y75: 0 | Z75: 0
A76: 58 | B76: 01158 | D76: LIND | E76: =IFERROR(VLOOKUP(B76,[5]Enrollment!$A$1:$F$147,4,FALSE),0) -> 36 | F76: 14324 | G76: =IFERROR(VLOOKUP(B76,[5]Enrollment!$A$1:$F$147,6,FALSE),0) -> 3 | H76: 298 | I76: =IFERROR(VLOOKUP(B76,[5]Enrollment!$A$1:$F$147,5,FALSE),0) -> 29 | J76: 11538 | K76: 26160 | L76: =IF(E76>$E$17,_xlfn.IFNA(VLOOKUP(B76,'[5]other funds ftr 2023'!A:I,9,FALSE),0),1) -> 1.15 | M76: 30084 | N76: =1+IF(ISNA(VLOOKUP(B76,'[5]Rural and Low Income 23-24'!$A:$B,2,FALSE)),0,$N$17) -> 1.1 | O76: 33092 | R76: 0 | S76: 33092 | T76: 45112 | U76: -12020 | V76: =IF(ISNA(VLOOKUP(B76,[6]Sheet1!$B$1:$D$96,1,FALSE)),"N","Y") -> Y | Y76: 1500 | Z76: 34592
A77: 59 | B77: 08122 | D77: LONGVIEW | E77: =IFERROR(VLOOKUP(B77,[5]Enrollment!$A$1:$F$147,4,FALSE),0) -> 47 | F77: 18700 | G77: =IFERROR(VLOOKUP(B77,[5]Enrollment!$A$1:$F$147,6,FALSE),0) -> 13 | H77: 1293 | I77: =IFERROR(VLOOKUP(B77,[5]Enrollment!$A$1:$F$147,5,FALSE),0) -> 29 | J77: 11538 | K77: 31531 | L77: =IF(E77>$E$17,_xlfn.IFNA(VLOOKUP(B77,'[5]other funds ftr 2023'!A:I,9,FALSE),0),1) -> 0 | M77: 31531 | N77: =1+IF(ISNA(VLOOKUP(B77,'[5]Rural and Low Income 23-24'!$A:$B,2,FALSE)),0,$N$17) -> 1 | O77: 0 | R77: 0 | S77: 0 | T77: 0 | U77: 0 | V77: =IF(ISNA(VLOOKUP(B77,[6]Sheet1!$B$1:$D$96,1,FALSE)),"N","Y") -> N | Y77: 0 | Z77: 0
A78: 60 | B78: 20406 | D78: LYLE | E78: =IFERROR(VLOOKUP(B78,[5]Enrollment!$A$1:$F$147,4,FALSE),0) -> 28 | F78: 11141 | G78: =IFERROR(VLOOKUP(B78,[5]Enrollment!$A$1:$F$147,6,FALSE),0) -> 1 | H78: 99 | I78: =IFERROR(VLOOKUP(B78,[5]Enrollment!$A$1:$F$147,5,FALSE),0) -> 21 | J78: 8355 | K78: 19595 | L78: =IF(E78>$E$17,_xlfn.IFNA(VLOOKUP(B78,'[5]other funds ftr 2023'!A:I,9,FALSE),0),1) -> 1 | M78: 19595 | N78: =1+IF(ISNA(VLOOKUP(B78,'[5]Rural and Low Income 23-24'!$A:$B,2,FALSE)),0,$N$17) -> 1.1 | O78: 21555 | R78: 0 | S78: 21555 | T78: 25363 | U78: -3808 | V78: =IF(ISNA(VLOOKUP(B78,[6]Sheet1!$B$1:$D$96,1,FALSE)),"N","Y") -> Y | Y78: 1500 | Z78: 23055
A79: 61 | B79: 37504 | D79: LYNDEN | E79: =IFERROR(VLOOKUP(B79,[5]Enrollment!$A$1:$F$147,4,FALSE),0) -> 129 | F79: 51326 | G79: =IFERROR(VLOOKUP(B79,[5]Enrollment!$A$1:$F$147,6,FALSE),0) -> 32 | H79: 3183 | I79: =IFERROR(VLOOKUP(B79,[5]Enrollment!$A$1:$F$147,5,FALSE),0) -> 76 | J79: 30239 | K79: 84748 | L79: =IF(E79>$E$17,_xlfn.IFNA(VLOOKUP(B79,'[5]other funds ftr 2023'!A:I,9,FALSE),0),1) -> 1 | M79: 84748 | N79: =1+IF(ISNA(VLOOKUP(B79,'[5]Rural and Low Income 23-24'!$A:$B,2,FALSE)),0,$N$17) -> 1 | O79: 84748 | R79: 0 | S79: 84748 | T79: 104940 | U79: -20192 | V79: =IF(ISNA(VLOOKUP(B79,[6]Sheet1!$B$1:$D$96,1,FALSE)),"N","Y") -> Y | Y79: 2500 | Z79: 87248
